{"text_format":"1","workbook":"xlsx","n_sheets":18,"sheets":["EMPRESAS ELABORADORAS","CAPA","EMPREENDIMENTO","IMÓVEIS","LISTA_PATRIMÔNIO","MANUAL IDE-SISEMA","ORÇAMENTO_TIPO IV","ORÇAMENTO_TIPO III","ORÇAMENTO_TIPO II","ORÇAMENTO_TIPO I","REEMBOLSO","CAPACIDADE DE PAGAMENTO","FLUXO DE CAIXA","LISTAS","PATRIMÔNIO","REGRAS","LISTA_INVESTIMENTO","LISTA_INVESTIMENTO (2)"],"not_rendered":{"charts":0,"images":19,"macros":1,"external_links":3,"defined_names":164,"comments":1,"pivot_tables":0},"unopened":[],"bounds":{"document_bytes":16777216,"sheet_cells":100000,"rows_first":2000,"rows_last":500,"rows_between":2000,"halvings":0,"cell_chars":16384,"cell_head_chars":4096},"cells_cut":0,"cells_raw":0,"read":"whole","date_system":"1900"}

{"sheet":"EMPRESAS ELABORADORAS","index":0,"n_rows":14,"n_cols":6,"rows_kept":14,"cut":false,"hidden":true,"merged":[]}
["NOME","CNPJ","ENDEREÇO","CIDADE","TELEFONE","EMAIL"]
["AGROMINAS - APA ASSESSORIA E PLANEJAMENTO AGROPECUÁRIO LTDA",7357636000134,"RUA DO BÁLSAMO, Nº 500, BAIRRO CAMPESTRE","SÃO GOTARDO","(34)  3671-3425","AGROMINASSG@YAHOO.COM.BR"]
["AGROSOLUÇÕES - AFA ASSESSORIA PROJETOS E PLANEJAMENTOS LTDA",33478456000110,"AV. RUI BARBOSA, 174A, CENTRO","SÃO GOTARDO","(34) 3671-3334","AGROSOLUCOES@AGROSOLUCOESLTDA.COM.BR"]
["COOPADAP - COOPERATIVA AGROPECUÁRIA DO ALTO PARANAÍBA",86675642000106,"ROD MG 235 KM 89, 443 - GUARDA DOS FERREIROS","SÃO GOTARDO","(34) 3616-1200","DEBORAPRATES@COOPADAP.COM.BR"]
["ÉLCIO EDUARDO URBANO JÚNIOR",7244640692,"RUA CORONEL FONTE BOA - Nº 725 - CENTRO","SÃO GOTARDO","(34) 99823-4210","URBANOELCIO@YAHOO.COM.BR"]
["EMATER-MG",19198118000102,"RUA BENTO FERREIRA DOS SANTOS, 160 S02, CENTRO","SÃO GOTARDO","(34) 3671-1355","SAO.GOTARDO@EMATER.MG.GOV.BR"]
["FORTPLAN - VICTOR SATORU ALVES MUKAEDA 10149154658",41465317000180,"AV. TABELIÃO JOÃO LOPES, Nº 1064, CAMPESTRE","SÃO GOTARDO","(34) 99944-7158","FORTPLAN@OUTLOOK.COM"]
["NIVALDO LUCAS MARTINS",10839110669,"RUA CURITIBA, N° 95, BAIRRO SANTA TEREZINHA","SÃO GOTARDO","(34) 99931-0052","THIAGOFERNANDES@SHIMADAAGRO.COM.BR"]
["NOVA CONSULTORIA - JUSCELINO ALEXANDRINO MACHADO EIRELI",14409336000117,"AV. PRESIDENTE VARGAS, 245, CENTRO","SÃO GOTARDO","(34) 3671-2396","NOVACONSULTORIAEPROJETOS@HOTMAIL.COM"]
["PAULO MITURU YAMAGAMI",97037680834,"AV. RIO TOCANTINS, N° 70, BAIRRO SOL NASCENTE","SÃO GOTARDO","(34) 99983-0655","AGROLOGICA@YMAIL.COM"]
["Rural Credi - ECRM Assessoria e projetos para o agronegócio Ltda.",50623756000165,"RUA PINHEIRO MACHADO Nº 245","SÃO GOTARDO","(34) 99815-1120","ruralcredicreditorural@hotmail.com"]
["PROGEO - ISAIAS DE SOUZA SANTOS",29368223000198,"RUA TRISTAO FURTADO, Nº 114, CENTRO","RIO PARANAÍBA","(34) 99961-9993","PROGEORP@GMAIL.COM"]
["VALOR SERVICOS FINANCEIROS LTDA",26311957000142,"RUA JOÃO ALVES FRANCO Nº 50,CENTRO","SÃO GOTARDO","(34) 99904-2818","VALOR.CREDITORURAL@GMAIL.COM"]
["G&R SOLUCOES AGROPECUARIAS LTDA",21784507000153,"AV. ALBERTO CALDEIRA, N° 155, CENTRO ","GUANHÃES","(33) 3421-7071","GRSOLUCOES@HOTMAIL.COM"]

{"sheet":"CAPA","index":1,"n_rows":52,"n_cols":40,"rows_kept":52,"cut":false,"hidden":false,"merged":[[48,23,49,32],[48,33,49,44],[45,23,46,29],[51,0,52,7],[51,8,52,21],[51,30,52,31],[51,32,52,32],[51,39,52,41],[51,38,52,38],[51,33,52,37],[51,23,52,29],[48,0,49,6],[48,7,49,21],[39,23,40,27],[39,28,40,44],[45,8,46,21],[42,23,43,30],[42,31,43,44],[45,30,46,44],[42,0,43,10],[42,11,43,21],[45,0,46,7],[39,0,40,4],[39,5,40,21],[33,0,34,10],[33,11,37,43],[17,26,18,44],[20,23,21,26],[20,27,21,44],[30,0,31,44],[20,4,21,20],[20,0,21,3],[17,6,18,21],[17,0,18,5],[1,0,1,44],[14,23,15,44],[26,0,27,5],[26,6,27,21],[26,23,27,29],[26,30,27,44],[23,0,24,3],[23,4,24,21],[14,0,15,21],[23,23,24,26],[23,27,24,44],[17,23,18,25]]}
[]
[]
[]
[]
[]
[]
[null,null,null,null,null,null,null,null,null,null,null,null,2]
[]
[]
[]
[]
[]
[]
[]
["EMPRESA ELABORADORA",null,null,null,null,null,null,null,null,null,null,null,null,null,null,null,null,null,null,null,null,null,null,"PROPONENTE"]
[]
[]
["ELABORADOR:",null,null,null,null,null,{"$f":"IF(EMPREENDIMENTO!G9=0,\"-\",UPPER(EMPREENDIMENTO!G9))","v":"-"},null,null,null,null,null,null,null,null,null,null,null,null,null,null,null,null,"NOME:",null,null,{"$f":"IF(EMPREENDIMENTO!F19=0,\"-\",UPPER(EMPREENDIMENTO!F19))","v":"-"}]
[]
[]
["CPF/CNPJ:",null,null,null,{"$f":"IF(EMPREENDIMENTO!AJ9=0,\"-\",EMPREENDIMENTO!AJ9)","v":"-"},null,null,null,null,null,null,null,null,null,null,null,null,null,null,null,null,null,null,"CPF/CNPJ:",null,null,null,{"$f":"IF(EMPREENDIMENTO!AJ19=0,\"-\",EMPREENDIMENTO!AJ19)","v":"-"}]
[]
[]
["TELEFONE:",null,null,null,{"$f":"IF(EMPREENDIMENTO!F13=\"\",\"-\",EMPREENDIMENTO!F13)","v":"-"},null,null,null,null,null,null,null,null,null,null,null,null,null,null,null,null,null,null,"TELEFONE:",null,null,null,{"$f":"IF(EMPREENDIMENTO!T23=\"\",\"-\",EMPREENDIMENTO!T23)","v":"-"}]
[]
[]
["RESP. TÉCNICO:",null,null,null,null,null,{"$f":"IF(EMPREENDIMENTO!H15=0,\"-\",UPPER(EMPREENDIMENTO!H15))","v":"-"},null,null,null,null,null,null,null,null,null,null,null,null,null,null,null,null,"CONTA CORRENTE:",null,null,null,null,null,null,{"$f":"IF(EMPREENDIMENTO!I23=0,\"-\",EMPREENDIMENTO!I23)","v":"-"}]
[]
[]
[]
["INFORMAÇÕES DO PROJETO"]
[]
[]
["DESCRIÇÃO INVESTIMENTO:",null,null,null,null,null,null,null,null,null,null,{"$f":"IF(DESCRIÇÃO=\"\",\"-\",DESCRIÇÃO)","v":"-"}]
[]
[]
[]
[]
[]
["ATIVIDADE:",null,null,null,null,{"$f":"IF(ATIVIDADE_EMP=\"\",\"-\",ATIVIDADE_EMP)","v":"-"},null,null,null,null,null,null,null,null,null,null,null,null,null,null,null,null,null,{"$f":"IF(CULT_EXPLO=\"\",\"EXPLORAÇÃO\",CULT_EXPLO)","v":"CULTURA:"},null,null,null,null,{"$f":"IF(CULT_EXPLO2=\"\",\"-\",CULT_EXPLO2)","v":"-"}]
[]
[]
["VALOR TOTAL INVESTIMENTO:",null,null,null,null,null,null,null,null,null,null,{"$f":"IF(TOTAL_INVESTIMENTO=\"\",\"-\",TOTAL_INVESTIMENTO)","v":"-"},null,null,null,null,null,null,null,null,null,null,null,"VALOR FINANCIADO:",null,null,null,null,null,null,null,{"$f":"IF(VALOR_TOTAL=\"\",\"-\",VALOR_TOTAL)","v":"-"}]
[]
[]
["LINHA DE CRÉDITO:",null,null,null,null,null,null,null,{"$f":"IF(LINHA=\"\",\"-\",LINHA)","v":"-"},null,null,null,null,null,null,null,null,null,null,null,null,null,null,"TAXA DE JUROS:",null,null,null,null,null,null,{"$f":"IF(TAXA_JUROS=\"\",\"-\",_xlfn.CONCAT(TEXT(TAXA_JUROS,\"0,000%\"), \" a.a\"))","v":"-"}]
[]
[]
["PERIODICIDADE:",null,null,null,null,null,null,{"$f":"IF(PERIODICIDADE=\"\",\"-\",PERIODICIDADE)","v":"-"},null,null,null,null,null,null,null,null,null,null,null,null,null,null,null,"PRAZO DO INVESTIMENTO:",null,null,null,null,null,null,null,null,null,{"$f":"IF(PRAZO_PROJETO=\"\",\"-\",PRAZO_PROJETO)","v":"-"}]
[]
[]
["PRAZO DE CARÊNCIA:",null,null,null,null,null,null,null,{"$f":"IF(PRAZO_CARENCIA=\"\",\"-\",PRAZO_CARENCIA)","v":"-"},null,null,null,null,null,null,null,null,null,null,null,null,null,null,"DATA DO PROJETO:",null,null,null,null,null,null,{"$f":"IF(DATA_DIA=\"\",\"\",DATA_DIA)","v":""},null,"/",{"$f":"IF(DATA_MES=\"\",\"\",DATA_MES)","v":""},null,null,null,null,"/",{"$f":"IF(DATA_ANO=\"\",\"\",DATA_ANO)","v":""}]

{"sheet":"EMPREENDIMENTO","index":2,"n_rows":94,"n_cols":47,"rows_kept":94,"cut":false,"hidden":true,"merged":[[66,23,66,27],[66,28,66,44],[66,7,66,10],[58,0,58,9],[40,33,40,44],[30,29,30,34],[34,0,34,4],[34,5,34,15],[34,16,34,25],[64,23,64,30],[50,5,50,15],[50,0,50,4],[52,0,52,44],[42,16,42,25],[42,26,42,29],[50,16,50,25],[50,26,50,29],[42,5,42,15],[46,0,46,6],[40,28,40,32],[48,28,48,32],[66,11,66,18],[66,19,66,21],[34,26,34,29],[64,31,64,44],[64,0,64,4],[64,5,64,21],[38,0,38,6],[36,0,36,44],[38,7,38,28],[38,29,38,34],[38,35,38,44],[62,8,62,9],[62,0,62,7],[56,0,56,4],[56,5,56,44],[54,0,54,4],[54,5,54,14],[54,15,54,20],[62,17,62,19],[40,0,40,5],[40,6,40,27],[74,0,74,6],[74,7,74,21],[68,40,68,44],[68,34,68,39],[72,0,72,10],[70,0,70,7],[70,8,70,21],[72,33,72,40],[68,23,68,28],[68,29,68,33],[68,0,68,11],[68,12,68,21],[72,11,72,19],[72,23,72,32],[70,23,70,36],[70,37,70,44],[6,0,6,44],[16,0,16,44],[22,26,22,29],[18,0,18,4],[18,35,18,44],[20,0,20,4],[20,29,20,32],[8,6,8,30],[10,5,10,28],[12,5,12,18],[14,7,14,29],[18,5,18,29],[20,5,20,28],[22,19,22,25],[22,30,22,44],[22,0,22,7],[22,8,22,13],[12,0,12,4],[8,35,8,44],[8,0,8,5],[20,33,20,44],[14,30,14,34],[14,35,14,44],[8,31,8,34],[86,0,86,7],[80,0,80,7],[78,0,78,7],[76,0,76,44],[84,8,84,44],[86,8,86,44],[80,8,80,44],[78,8,78,44],[84,0,84,7],[92,0,92,19],[93,0,93,19],[91,25,91,44],[92,25,92,44],[93,25,93,44],[82,0,82,7],[82,8,82,44],[91,0,91,19],[32,33,32,44],[32,28,32,32],[62,11,62,15],[42,0,42,4],[46,7,46,28],[46,29,46,34],[46,35,46,44],[44,0,44,44],[48,0,48,5],[48,6,48,27],[48,33,48,44],[62,35,62,39],[62,41,62,43],[62,23,62,34],[58,10,60,44],[54,21,54,44],[34,30,34,40],[32,0,32,5],[32,6,32,27],[10,0,10,4],[10,29,10,32],[10,33,10,44],[22,14,22,18],[24,0,24,44],[30,35,30,44],[30,7,30,28],[12,19,12,22],[12,23,12,44],[18,30,18,34],[14,0,14,6],[26,0,26,9],[26,10,26,11],[28,0,28,44],[30,0,30,6]]}
[]
[]
[]
[]
[]
[]
["REPONSÁVEL PELA ELABORAÇÃO",null,null,null,null,null,null,null,null,null,null,null,null,null,null,null,null,null,null,null,null,null,null,null,null,null,null,null,null,null,null,null,null,null,null,null,null,null,null,null,null,null,null,null,null,{"$f":"IF(OR(G9=\"\",AJ9=\"\",F11=\"\",AH11=\"\",F13=\"\",X13=\"\",H15=\"\",AJ15=\"\"),\"AUSENTE\",\"OK\")","v":"AUSENTE"}]
[]
["ELABORADOR:",null,null,null,null,null,null,null,null,null,null,null,null,null,null,null,null,null,null,null,null,null,null,null,null,null,null,null,null,null,null,"CPF/CNPJ:",null,null,null,{"$f":"IFERROR(VLOOKUP(EMPRESA,'EMPRESAS ELABORADORAS'!A2:F14,2,0),\"-\")","v":"-"}]
[]
["ENDEREÇO:",null,null,null,null,{"$f":"IFERROR(VLOOKUP(EMPRESA,'EMPRESAS ELABORADORAS'!A2:F14,3,0),\"-\")","v":"-"},null,null,null,null,null,null,null,null,null,null,null,null,null,null,null,null,null,null,null,null,null,null,null,"CIDADE:",null,null,null,{"$f":"IFERROR(VLOOKUP(EMPRESA,'EMPRESAS ELABORADORAS'!A2:F14,4,0),\"-\")","v":"-"}]
[]
["TELEFONE:",null,null,null,null,{"$f":"IFERROR(VLOOKUP(EMPRESA,'EMPRESAS ELABORADORAS'!A2:F14,5,0),\"-\")","v":"-"},null,null,null,null,null,null,null,null,null,null,null,null,null,"EMAIL:",null,null,null,{"$f":"IFERROR(VLOOKUP(EMPRESA,'EMPRESAS ELABORADORAS'!A2:F14,6,0),\"-\")","v":"-"}]
[]
["RESP. TÉCNICO:",null,null,null,null,null,null,null,null,null,null,null,null,null,null,null,null,null,null,null,null,null,null,null,null,null,null,null,null,null,"CREA / CFTA:"]
[]
["IDENTIFICAÇÃO DO PROPONENTE",null,null,null,null,null,null,null,null,null,null,null,null,null,null,null,null,null,null,null,null,null,null,null,null,null,null,null,null,null,null,null,null,null,null,null,null,null,null,null,null,null,null,null,null,{"$f":"IF(OR(F19=\"\",AJ19=\"\",F21=\"\",AH21=\"\",I23=\"\",T23=\"\",AE23=\"\"),\"AUSENTE\",\"OK\")","v":"AUSENTE"}]
[]
["NOME:",null,null,null,null,null,null,null,null,null,null,null,null,null,null,null,null,null,null,null,null,null,null,null,null,null,null,null,null,null,"CPF/CNPJ:"]
[]
["ENDEREÇO:",null,null,null,null,null,null,null,null,null,null,null,null,null,null,null,null,null,null,null,null,null,null,null,null,null,null,null,null,"CIDADE:"]
[]
["CONTA CORRENTE:",null,null,null,null,null,null,null,null,null,null,null,null,null,"TELEFONE:",null,null,null,null,null,null,null,null,null,null,null,"EMAIL:"]
[]
["IMÓVEIS DE LOCALIZAÇÃO DO EMPREENDIMENTO"]
[]
["QUANTIDADE DE IMÓVEIS:",null,null,null,null,null,null,null,null,null,1]
[]
["IMÓVEL 1",null,null,null,null,null,null,null,null,null,null,null,null,null,null,null,null,null,null,null,null,null,null,null,null,null,null,null,null,null,null,null,null,null,null,null,null,null,null,null,null,null,null,null,null,{"$f":"IF(OR(H31=\"\",AJ31=\"\",G33=\"\",AH33=\"\",F35=\"\",AA35=\"\"),\"AUSENTE\",\"OK\")","v":"AUSENTE"}]
[]
["PROPRIEDADE:",null,null,null,null,null,null,null,null,null,null,null,null,null,null,null,null,null,null,null,null,null,null,null,null,null,null,null,null,"MATRÍCULA:"]
[]
["PROPRIETÁRIO:",null,null,null,null,null,null,null,null,null,null,null,null,null,null,null,null,null,null,null,null,null,null,null,null,null,null,null,"CPF/CNPJ:"]
[]
["MUNICÍPIO:",null,null,null,null,null,null,null,null,null,null,null,null,null,null,null,"ÁREA TOTAL IMÓVEL (ha):"]
[]
["IMÓVEL 2",null,null,null,null,null,null,null,null,null,null,null,null,null,null,null,null,null,null,null,null,null,null,null,null,null,null,null,null,null,null,null,null,null,null,null,null,null,null,null,null,null,null,null,null,{"$f":"IF(OR(H39=\"\",AJ39=\"\",G41=\"\",AH41=\"\",F43=\"\",AA43=\"\"),\"AUSENTE\",\"OK\")","v":"AUSENTE"}]
[]
["PROPRIEDADE:",null,null,null,null,null,null,null,null,null,null,null,null,null,null,null,null,null,null,null,null,null,null,null,null,null,null,null,null,"MATRÍCULA:"]
[]
["PROPRIETÁRIO:",null,null,null,null,null,null,null,null,null,null,null,null,null,null,null,null,null,null,null,null,null,null,null,null,null,null,null,"CPF/CNPJ:"]
[]
["MUNICÍPIO:",null,null,null,null,null,null,null,null,null,null,null,null,null,null,null,"ÁREA TOTAL IMÓVEL (ha):"]
[]
["IMÓVEL 3",null,null,null,null,null,null,null,null,null,null,null,null,null,null,null,null,null,null,null,null,null,null,null,null,null,null,null,null,null,null,null,null,null,null,null,null,null,null,null,null,null,null,null,null,{"$f":"IF(OR(H47=\"\",AJ47=\"\",G49=\"\",AH49=\"\",F51=\"\",AA51=\"\"),\"AUSENTE\",\"OK\")","v":"AUSENTE"}]
[]
["PROPRIEDADE:",null,null,null,null,null,null,null,null,null,null,null,null,null,null,null,null,null,null,null,null,null,null,null,null,null,null,null,null,"MATRÍCULA:"]
[]
["PROPRIETÁRIO:",null,null,null,null,null,null,null,null,null,null,null,null,null,null,null,null,null,null,null,null,null,null,null,null,null,null,null,"CPF/CNPJ:"]
[]
["MUNICÍPIO:",null,null,null,null,null,null,null,null,null,null,null,null,null,null,null,"ÁREA TOTAL IMÓVEL (ha):"]
[]
["EMPREENDIMENTO",null,null,null,null,null,null,null,null,null,null,null,null,null,null,null,null,null,null,null,null,null,null,null,null,null,null,null,null,null,null,null,null,null,null,null,null,null,null,null,null,null,null,null,null,{"$f":"IF(OR(ATIVIDADE_EMP=\"\",MODALIDADE_EMP=\"\",F57=\"\",DESCRIÇÃO=\"\",DATA_DIA=\"\",DATA_MES=\"\",DATA_ANO=\"\",AJ63=\"\",AP63=\"\",PORTE_PRODUTOR=\"\",AC67=\"\",PRAZO_CARENCIA=\"\",TOTAL_INVESTIMENTO=\"\",AH73=\"\",PRAZO_PROJETO=\"\",H75=\"\",VALOR_TOTAL=\"\",LINHA=\"\",PERIODICIDADE=\"\",TAXA_JUROS=\"\",CULT_EXPLO2=\"\"),\"AUSENTE\",\"OK\")","v":"AUSENTE"}]
[]
["ATIVIDADE:",null,null,null,null,null,null,null,null,null,null,null,null,null,null,"MODALIDADE:",null,null,null,null,null,null,null,null,null,null,null,null,null,null,null,null,null,null,null,null,null,null,null,null,null,null,null,null,null,{"$f":"IFERROR(VLOOKUP(MODALIDADE_EMP,LISTA_INVESTIMENTO!F2:G8,2,0),1)","v":1}]
[]
["PRODUTO:"]
[]
["DESCRIÇÃO INVESTIMENTO:"]
[]
[]
[]
["DATA DO PROJETO:",null,null,null,null,null,null,null,null,null,"/",null,null,null,null,null,"/",null,null,null,null,null,null,"MÊS DE INICIO DO INVESTIMENTO:",null,null,null,null,null,null,null,null,null,null,null,null,null,null,null,null,"/"]
[]
["CULTURA:",null,null,null,null,null,null,null,null,null,null,null,null,null,null,null,null,null,null,null,null,null,null,"PORTE DO PRODUTOR:",null,null,null,null,null,null,null,null,null,null,null,null,null,null,null,null,null,null,null,null,null,{"$f":"_xlfn.CONCAT(ATIVIDADE_EMP,\"_1\")","v":"_1"}]
[]
["TAXA DE JUROS (a.a):",null,null,null,null,null,null,null,null,null,null,"ÍNDICE DE CORREÇÃO:",null,null,null,null,null,null,null,null,null,null,null,"GARANTIAS:"]
[]
["PERIODICIDADE DO REEMBOLSO:",null,null,null,null,null,null,null,null,null,null,null,null,null,null,null,null,null,null,null,null,null,null,"PRAZO TOTAL:",null,null,null,null,null,null,null,null,null,null,"CARÊNCIA:",null,null,null,null,null,null,null,null,null,null,{"$f":"IFERROR(VLOOKUP(AO69,LISTAS!L:M,2,0),1)","v":1},{"$f":"IFERROR(VLOOKUP(AD69,LISTAS!L:M,2,0),1)","v":1}]
[]
["LINHA DE CRÉDITO:",null,null,null,null,null,null,null,null,null,null,null,null,null,null,null,null,null,null,null,null,null,null,"VALOR TOTAL DO INVESTIMENTO (R$):",null,null,null,null,null,null,null,null,null,null,null,null,null,null,null,null,null,null,null,null,null,{"$f":"CARENCIA/12","v":8.3333333333333329E-2},{"$f":"PRAZO_TOTAL/12","v":8.3333333333333329E-2}]
[]
["VALOR A SER FINANCIADO (R$):",null,null,null,null,null,null,null,null,null,null,null,null,null,null,null,null,null,null,null,null,null,null,"RECURSOS PRÓPRIOS (R$):",null,null,null,null,null,null,null,null,null,{"$f":"IF(TOTAL_INVESTIMENTO=\"\",\"\",TOTAL_INVESTIMENTO-VALOR_TOTAL)","v":""},null,null,null,null,null,null,null,null,null,null,null,{"$f":"CARENCIA/6","v":0.16666666666666666},{"$f":"PRAZO_TOTAL/6","v":0.16666666666666666}]
[]
["ASSISTÊNCIA TÉC.:"]
[]
["INFORMAÇÕES COMPLEMENTARES (OPCIONAIS)",null,null,null,null,null,null,null,null,null,null,null,null,null,null,null,null,null,null,null,null,null,null,null,null,null,null,null,null,null,null,null,null,null,null,null,null,null,null,null,null,null,null,null,null,{"$f":"IF(AND(EMPREENDIMENTO_INFO=\"\",EMPREENDIMENTO_INFO1=\"\",EMPREENDIMENTO_INFO2=\"\",EMPREENDIMENTO_INFO3=\"\",EMPREENDIMENTO_INFO4=\"\"),0,1)","v":0}]
[]
["SOBRE O PRODUTOR:"]
[]
["SOBRE A PRODUÇÃO:"]
[]
["SOBRE A ÁREA:"]
[]
["SOBRE A ESTRUTURA:"]
[]
["SOBRE O MAQUINÁRIO E EQUIPAMENTOS:"]
[]
[]
[]
[]
["________________________________________",null,null,null,null,null,null,null,null,null,null,null,null,null,null,null,null,null,null,null,null,null,null,null,null,"________________________________________"]
[{"$f":"UPPER(EMPREENDIMENTO!F19)","v":""},null,null,null,null,null,null,null,null,null,null,null,null,null,null,null,null,null,null,null,null,null,null,null,null,{"$f":"UPPER(EMPREENDIMENTO!H15)","v":""}]
["Proponente",null,null,null,null,null,null,null,null,null,null,null,null,null,null,null,null,null,null,null,null,null,null,null,null,"Responsável Técnico"]

{"sheet":"IMÓVEIS","index":3,"n_rows":285,"n_cols":57,"rows_kept":285,"cut":false,"hidden":true,"merged":[[283,22,283,39],[283,40,283,57],[284,22,284,39],[284,40,284,57],[261,46,261,49],[261,51,261,54],[261,56,261,58],[262,0,262,58],[277,0,277,40],[278,0,278,58],[279,0,279,40],[280,0,280,40],[282,22,282,39],[282,40,282,57],[261,0,261,3],[261,5,261,8],[261,10,261,12],[261,15,261,18],[261,20,261,23],[261,25,261,27],[261,30,261,33],[261,35,261,38],[261,40,261,43],[258,46,258,49],[258,51,258,54],[258,56,258,58],[260,0,260,3],[260,5,260,8],[260,10,260,12],[260,15,260,18],[260,20,260,23],[260,25,260,27],[260,30,260,33],[260,35,260,38],[260,40,260,43],[260,46,260,49],[260,51,260,54],[260,56,260,58],[258,0,258,3],[258,5,258,8],[258,10,258,12],[258,15,258,18],[258,20,258,23],[258,25,258,27],[258,30,258,33],[258,35,258,38],[258,40,258,43],[256,46,256,49],[256,51,256,54],[256,56,256,58],[257,0,257,3],[257,5,257,8],[257,10,257,12],[257,15,257,18],[257,20,257,23],[257,25,257,27],[257,30,257,33],[257,35,257,38],[257,40,257,43],[257,46,257,49],[257,51,257,54],[257,56,257,58],[256,0,256,3],[256,5,256,8],[256,10,256,12],[256,15,256,18],[256,20,256,23],[256,25,256,27],[256,30,256,33],[256,35,256,38],[256,40,256,43],[254,46,254,49],[254,51,254,54],[254,56,254,58],[255,0,255,3],[255,5,255,8],[255,10,255,12],[255,15,255,18],[255,20,255,23],[255,25,255,27],[255,30,255,33],[255,35,255,38],[255,40,255,43],[255,46,255,49],[255,51,255,54],[255,56,255,58],[254,0,254,3],[254,5,254,8],[254,10,254,12],[254,15,254,18],[254,20,254,23],[254,25,254,27],[254,30,254,33],[254,35,254,38],[254,40,254,43],[229,46,229,49],[229,51,229,54],[229,56,229,58],[230,0,230,58],[253,0,253,3],[253,5,253,8],[253,10,253,12],[253,15,253,18],[253,20,253,23],[253,25,253,27],[253,30,253,33],[253,35,253,38],[253,40,253,43],[253,46,253,49],[253,51,253,54],[253,56,253,58],[227,40,227,43],[227,46,227,49],[227,51,227,54],[227,56,227,58],[228,15,228,18],[228,20,228,23],[228,25,228,27],[228,30,228,33],[228,35,228,38],[228,40,228,43],[228,46,228,49],[228,51,228,54],[228,56,228,58],[229,5,229,8],[229,10,229,12],[229,15,229,18],[225,46,225,49],[225,51,225,54],[225,56,225,58],[226,15,226,18],[226,20,226,23],[226,25,226,27],[226,30,226,33],[226,35,226,38],[226,40,226,43],[226,46,226,49],[226,51,226,54],[226,56,226,58],[223,40,223,43],[223,46,223,49],[223,51,223,54],[223,56,223,58],[224,15,224,18],[224,20,224,23],[224,25,224,27],[224,30,224,33],[224,35,224,38],[224,40,224,43],[224,46,224,49],[224,51,224,54],[224,56,224,58],[221,46,221,49],[221,51,221,54],[221,56,221,58],[222,15,222,18],[222,20,222,23],[222,25,222,27],[222,30,222,33],[222,35,222,38],[222,40,222,43],[222,46,222,49],[222,51,222,54],[222,56,222,58],[219,46,219,49],[219,51,219,54],[219,56,219,58],[220,15,220,18],[220,20,220,23],[220,25,220,27],[220,30,220,33],[220,35,220,38],[220,40,220,43],[220,46,220,49],[220,51,220,54],[220,56,220,58],[221,40,221,43],[219,35,219,38],[219,40,219,43],[217,46,217,49],[217,51,217,54],[217,56,217,58],[218,15,218,18],[218,20,218,23],[218,25,218,27],[218,30,218,33],[218,35,218,38],[218,40,218,43],[218,46,218,49],[218,51,218,54],[218,56,218,58],[215,40,215,43],[215,46,215,49],[215,51,215,54],[215,56,215,58],[216,15,216,18],[216,20,216,23],[216,25,216,27],[216,30,216,33],[216,35,216,38],[216,40,216,43],[216,46,216,49],[216,51,216,54],[216,56,216,58],[215,35,215,38],[213,46,213,49],[213,51,213,54],[213,56,213,58],[214,0,214,3],[214,15,214,18],[214,20,214,23],[214,25,214,27],[214,30,214,33],[214,35,214,38],[214,40,214,43],[214,46,214,49],[214,51,214,54],[214,56,214,58],[213,0,213,3],[213,5,213,8],[213,10,213,12],[213,15,213,18],[213,20,213,23],[213,25,213,27],[213,30,213,33],[213,35,213,38],[213,40,213,43],[214,5,214,8],[214,10,214,12],[211,46,211,49],[211,51,211,54],[211,56,211,58],[212,0,212,3],[212,5,212,8],[212,10,212,12],[212,15,212,18],[212,20,212,23],[212,25,212,27],[212,30,212,33],[212,35,212,38],[212,40,212,43],[212,46,212,49],[212,51,212,54],[212,56,212,58],[211,0,211,3],[211,5,211,8],[211,10,211,12],[211,15,211,18],[211,20,211,23],[211,25,211,27],[211,30,211,33],[211,35,211,38],[211,40,211,43],[209,46,209,49],[209,51,209,54],[209,56,209,58],[210,0,210,3],[210,5,210,8],[210,10,210,12],[210,15,210,18],[210,20,210,23],[210,25,210,27],[210,30,210,33],[210,35,210,38],[210,40,210,43],[210,46,210,49],[210,51,210,54],[210,56,210,58],[209,0,209,3],[209,5,209,8],[209,10,209,12],[209,15,209,18],[209,20,209,23],[209,25,209,27],[209,30,209,33],[209,35,209,38],[209,40,209,43],[207,46,207,49],[207,51,207,54],[207,56,207,58],[208,0,208,3],[208,5,208,8],[208,10,208,12],[208,15,208,18],[208,20,208,23],[208,25,208,27],[208,30,208,33],[208,35,208,38],[208,40,208,43],[208,46,208,49],[208,51,208,54],[208,56,208,58],[207,0,207,3],[207,5,207,8],[207,10,207,12],[207,15,207,18],[207,20,207,23],[207,25,207,27],[207,30,207,33],[207,35,207,38],[207,40,207,43],[205,46,205,49],[205,51,205,54],[205,56,205,58],[206,0,206,3],[206,5,206,8],[206,10,206,12],[206,15,206,18],[206,20,206,23],[206,25,206,27],[206,30,206,33],[206,35,206,38],[206,40,206,43],[206,46,206,49],[206,51,206,54],[206,56,206,58],[205,0,205,3],[205,5,205,8],[205,10,205,12],[205,15,205,18],[205,20,205,23],[205,25,205,27],[205,30,205,33],[205,35,205,38],[205,40,205,43],[203,46,203,49],[203,51,203,54],[203,56,203,58],[204,0,204,3],[204,5,204,8],[204,10,204,12],[204,15,204,18],[204,20,204,23],[204,25,204,27],[204,30,204,33],[204,35,204,38],[204,40,204,43],[204,46,204,49],[204,51,204,54],[204,56,204,58],[203,0,203,3],[203,5,203,8],[203,10,203,12],[203,15,203,18],[203,20,203,23],[203,25,203,27],[203,30,203,33],[203,35,203,38],[203,40,203,43],[200,46,201,49],[200,51,201,54],[200,56,201,58],[202,0,202,3],[202,5,202,8],[202,10,202,12],[202,15,202,18],[202,20,202,23],[202,25,202,27],[202,30,202,33],[202,35,202,38],[202,40,202,43],[202,46,202,49],[202,51,202,54],[202,56,202,58],[200,0,201,3],[200,5,201,8],[200,10,201,12],[200,15,201,18],[200,20,201,23],[200,25,201,27],[200,30,201,33],[200,35,201,38],[200,40,201,43],[191,22,191,39],[191,40,191,57],[192,0,192,58],[194,0,194,5],[194,6,194,27],[194,28,194,33],[194,34,194,40],[196,7,196,58],[198,0,198,15],[198,16,198,19],[169,0,169,58],[184,0,184,40],[185,0,185,58],[186,0,186,40],[187,0,187,40],[189,22,189,39],[189,40,189,57],[190,22,190,39],[190,40,190,57],[167,46,167,49],[167,51,167,54],[167,56,167,58],[168,0,168,3],[168,5,168,8],[168,10,168,12],[168,15,168,18],[168,20,168,23],[168,25,168,27],[168,30,168,33],[168,35,168,38],[168,40,168,43],[168,46,168,49],[168,51,168,54],[168,56,168,58],[167,0,167,3],[167,5,167,8],[167,10,167,12],[167,15,167,18],[167,20,167,23],[167,25,167,27],[167,30,167,33],[167,35,167,38],[167,40,167,43],[164,46,164,49],[164,51,164,54],[164,56,164,58],[165,0,165,3],[165,5,165,8],[165,10,165,12],[165,15,165,18],[165,20,165,23],[165,25,165,27],[165,30,165,33],[165,35,165,38],[165,40,165,43],[165,46,165,49],[165,51,165,54],[165,56,165,58],[164,0,164,3],[164,5,164,8],[164,10,164,12],[164,15,164,18],[164,20,164,23],[164,25,164,27],[164,30,164,33],[164,35,164,38],[164,40,164,43],[162,46,162,49],[162,51,162,54],[162,56,162,58],[163,0,163,3],[163,5,163,8],[163,10,163,12],[163,15,163,18],[163,20,163,23],[163,25,163,27],[163,30,163,33],[163,35,163,38],[163,40,163,43],[163,46,163,49],[163,51,163,54],[163,56,163,58],[162,0,162,3],[162,5,162,8],[162,10,162,12],[162,15,162,18],[162,20,162,23],[162,25,162,27],[162,30,162,33],[162,35,162,38],[162,40,162,43],[160,46,160,49],[160,51,160,54],[160,56,160,58],[161,0,161,3],[161,5,161,8],[161,10,161,12],[161,15,161,18],[161,20,161,23],[161,25,161,27],[161,30,161,33],[161,35,161,38],[161,40,161,43],[161,46,161,49],[161,51,161,54],[161,56,161,58],[160,0,160,3],[160,5,160,8],[160,10,160,12],[160,15,160,18],[160,20,160,23],[160,25,160,27],[160,30,160,33],[160,35,160,38],[160,40,160,43],[136,40,136,43],[136,46,136,49],[136,51,136,54],[136,56,136,58],[133,46,133,49],[133,51,133,54],[133,56,133,58],[134,0,134,3],[134,5,134,8],[134,15,134,18],[134,20,134,23],[134,25,134,27],[134,30,134,33],[134,35,134,38],[134,40,134,43],[134,46,134,49],[134,51,134,54],[134,56,134,58],[131,35,131,38],[131,40,131,43],[131,46,131,49],[131,51,131,54],[131,56,131,58],[132,0,132,3],[132,5,132,8],[132,15,132,18],[132,20,132,23],[132,25,132,27],[132,30,132,33],[132,35,132,38],[132,40,132,43],[132,46,132,49],[132,51,132,54],[132,56,132,58],[109,40,109,43],[110,40,110,43],[111,40,111,43],[112,40,112,43],[113,40,113,43],[114,40,114,43],[115,40,115,43],[116,40,116,43],[117,40,117,43],[131,15,131,18],[131,20,131,23],[131,25,131,27],[127,40,127,43],[128,40,128,43],[126,15,126,18],[126,20,126,23],[73,40,73,43],[70,20,70,23],[70,25,70,27],[70,30,70,33],[70,35,70,38],[70,40,70,43],[70,46,70,49],[70,51,70,54],[70,56,70,58],[72,0,72,3],[72,5,72,8],[72,10,72,12],[72,15,72,18],[72,20,72,23],[72,25,72,27],[72,30,72,33],[72,35,72,38],[72,40,72,43],[72,46,72,49],[72,51,72,54],[72,56,72,58],[67,0,67,3],[70,0,70,3],[70,5,70,8],[70,10,70,12],[70,15,70,18],[67,35,67,38],[68,30,68,33],[67,30,67,33],[68,25,68,27],[67,25,67,27],[68,20,68,23],[67,20,67,23],[68,15,68,18],[67,15,67,18],[73,0,73,3],[73,5,73,8],[73,10,73,12],[73,15,73,18],[73,20,73,23],[73,25,73,27],[73,30,73,33],[73,35,73,38],[74,46,74,49],[74,51,74,54],[74,56,74,58],[67,56,67,58],[67,51,67,54],[67,46,67,49],[68,40,68,43],[67,40,67,43],[73,46,73,49],[73,51,73,54],[73,56,73,58],[68,46,68,49],[68,51,68,54],[68,56,68,58],[69,0,69,3],[69,5,69,8],[69,10,69,12],[69,15,69,18],[69,20,69,23],[69,25,69,27],[69,30,69,33],[69,35,69,38],[69,40,69,43],[69,46,69,49],[69,51,69,54],[69,56,69,58],[68,35,68,38],[68,10,68,12],[67,10,67,12],[68,5,68,8],[67,5,67,8],[68,0,68,3],[75,51,75,54],[75,56,75,58],[37,40,37,43],[38,40,38,43],[39,40,39,43],[40,40,40,43],[41,40,41,43],[42,40,42,43],[43,40,43,43],[75,0,75,3],[75,5,75,8],[75,10,75,12],[75,15,75,18],[75,20,75,23],[75,25,75,27],[75,30,75,33],[75,35,75,38],[75,40,75,43],[74,0,74,3],[74,5,74,8],[74,10,74,12],[74,15,74,18],[74,20,74,23],[74,25,74,27],[74,30,74,33],[74,35,74,38],[38,46,38,49],[38,51,38,54],[38,56,38,58],[39,46,39,49],[39,51,39,54],[74,40,74,43],[14,40,15,43],[16,40,16,43],[17,40,17,43],[18,40,18,43],[19,40,19,43],[20,40,20,43],[21,40,21,43],[22,40,22,43],[23,40,23,43],[24,40,24,43],[25,40,25,43],[26,40,26,43],[27,40,27,43],[28,40,28,43],[29,40,29,43],[30,40,30,43],[31,40,31,43],[32,40,32,43],[33,40,33,43],[34,40,34,43],[35,40,35,43],[129,46,129,49],[129,51,129,54],[129,56,129,58],[129,40,129,43],[130,0,130,3],[130,5,130,8],[130,15,130,18],[130,20,130,23],[130,25,130,27],[130,30,130,33],[130,35,130,38],[130,40,130,43],[130,46,130,49],[130,51,130,54],[130,56,130,58],[127,46,127,49],[127,51,127,54],[127,56,127,58],[128,0,128,3],[128,5,128,8],[128,15,128,18],[128,20,128,23],[128,25,128,27],[128,30,128,33],[128,35,128,38],[128,46,128,49],[128,51,128,54],[128,56,128,58],[126,25,126,27],[126,30,126,33],[126,35,126,38],[126,46,126,49],[126,51,126,54],[126,56,126,58],[126,40,126,43],[124,46,124,49],[124,51,124,54],[124,56,124,58],[125,15,125,18],[125,20,125,23],[125,25,125,27],[125,30,125,33],[125,35,125,38],[125,46,125,49],[125,51,125,54],[125,56,125,58],[124,40,124,43],[125,40,125,43],[124,20,124,23],[122,25,122,27],[122,30,122,33],[122,35,122,38],[122,46,122,49],[122,51,122,54],[122,56,122,58],[123,0,123,3],[123,5,123,8],[123,10,123,12],[123,15,123,18],[123,20,123,23],[123,25,123,27],[123,30,123,33],[123,35,123,38],[123,46,123,49],[123,51,123,54],[123,56,123,58],[122,40,122,43],[123,40,123,43],[120,46,120,49],[120,51,120,54],[120,56,120,58],[121,0,121,3],[121,5,121,8],[121,10,121,12],[121,15,121,18],[121,20,121,23],[121,25,121,27],[121,30,121,33],[121,35,121,38],[121,46,121,49],[121,51,121,54],[121,56,121,58],[120,40,120,43],[121,40,121,43],[120,0,120,3],[120,5,120,8],[120,10,120,12],[120,15,120,18],[120,20,120,23],[120,25,120,27],[120,30,120,33],[120,35,120,38],[118,46,118,49],[118,51,118,54],[118,56,118,58],[119,0,119,3],[119,5,119,8],[119,10,119,12],[119,15,119,18],[119,20,119,23],[119,25,119,27],[119,30,119,33],[119,35,119,38],[119,46,119,49],[119,51,119,54],[119,56,119,58],[118,40,118,43],[119,40,119,43],[118,0,118,3],[118,5,118,8],[118,10,118,12],[118,15,118,18],[118,20,118,23],[118,25,118,27],[118,30,118,33],[118,35,118,38],[116,46,116,49],[116,51,116,54],[116,56,116,58],[117,0,117,3],[117,5,117,8],[117,10,117,12],[117,15,117,18],[117,20,117,23],[117,25,117,27],[117,30,117,33],[117,35,117,38],[117,46,117,49],[117,51,117,54],[117,56,117,58],[116,0,116,3],[116,5,116,8],[116,10,116,12],[116,15,116,18],[116,20,116,23],[116,25,116,27],[116,30,116,33],[116,35,116,38],[114,46,114,49],[114,51,114,54],[114,56,114,58],[115,0,115,3],[115,5,115,8],[115,10,115,12],[115,15,115,18],[115,20,115,23],[115,25,115,27],[115,30,115,33],[115,35,115,38],[115,46,115,49],[115,51,115,54],[115,56,115,58],[114,0,114,3],[114,5,114,8],[114,10,114,12],[114,15,114,18],[114,20,114,23],[114,25,114,27],[114,30,114,33],[114,35,114,38],[112,46,112,49],[112,51,112,54],[112,56,112,58],[113,0,113,3],[113,5,113,8],[113,10,113,12],[113,15,113,18],[113,20,113,23],[113,25,113,27],[113,30,113,33],[113,35,113,38],[113,46,113,49],[113,51,113,54],[113,56,113,58],[112,0,112,3],[112,5,112,8],[112,10,112,12],[112,15,112,18],[112,20,112,23],[112,25,112,27],[112,30,112,33],[112,35,112,38],[107,30,108,33],[107,35,108,38],[107,40,108,43],[107,46,108,49],[107,51,108,54],[107,56,108,58],[110,46,110,49],[110,51,110,54],[110,56,110,58],[111,0,111,3],[111,5,111,8],[111,10,111,12],[111,15,111,18],[111,20,111,23],[111,25,111,27],[111,30,111,33],[111,35,111,38],[111,46,111,49],[111,51,111,54],[111,56,111,58],[110,0,110,3],[110,5,110,8],[110,10,110,12],[110,15,110,18],[110,20,110,23],[110,25,110,27],[110,30,110,33],[110,35,110,38],[101,28,101,33],[101,34,101,40],[76,0,76,58],[92,0,92,58],[41,46,41,49],[41,51,41,54],[41,56,41,58],[42,46,42,49],[42,51,42,54],[42,56,42,58],[43,46,43,49],[43,51,43,54],[43,56,43,58],[93,0,93,40],[94,0,94,40],[109,0,109,3],[109,5,109,8],[109,10,109,12],[109,15,109,18],[109,20,109,23],[109,25,109,27],[109,30,109,33],[109,35,109,38],[109,46,109,49],[109,51,109,54],[109,56,109,58],[107,0,108,3],[107,5,108,8],[107,10,108,12],[107,15,108,18],[107,20,108,23],[107,25,108,27],[35,46,35,49],[35,51,35,54],[35,56,35,58],[36,46,36,49],[36,51,36,54],[36,56,36,58],[37,46,37,49],[37,51,37,54],[37,56,37,58],[32,46,32,49],[32,51,32,54],[32,56,32,58],[33,46,33,49],[33,51,33,54],[33,56,33,58],[34,46,34,49],[34,51,34,54],[34,56,34,58],[29,46,29,49],[29,51,29,54],[29,56,29,58],[30,46,30,49],[30,51,30,54],[30,56,30,58],[31,46,31,49],[31,51,31,54],[31,56,31,58],[26,46,26,49],[26,51,26,54],[26,56,26,58],[27,46,27,49],[27,51,27,54],[27,56,27,58],[28,46,28,49],[28,51,28,54],[28,56,28,58],[23,46,23,49],[23,51,23,54],[23,56,23,58],[24,46,24,49],[24,51,24,54],[24,56,24,58],[25,46,25,49],[25,51,25,54],[25,56,25,58],[20,56,20,58],[21,46,21,49],[21,51,21,54],[21,56,21,58],[22,46,22,49],[22,51,22,54],[22,56,22,58],[91,0,91,40],[41,20,41,23],[41,25,41,27],[41,30,41,33],[41,35,41,38],[40,0,40,3],[40,5,40,8],[40,10,40,12],[40,15,40,18],[40,20,40,23],[40,25,40,27],[40,30,40,33],[40,35,40,38],[39,0,39,3],[39,5,39,8],[39,10,39,12],[6,0,6,58],[10,7,10,58],[44,0,44,58],[14,46,15,49],[14,51,15,54],[14,56,15,58],[16,46,16,49],[16,51,16,54],[16,56,16,58],[17,46,17,49],[17,51,17,54],[17,56,17,58],[18,46,18,49],[18,51,18,54],[18,56,18,58],[19,46,19,49],[19,51,19,54],[19,56,19,58],[20,46,20,49],[20,51,20,54],[42,0,42,3],[42,5,42,8],[42,10,42,12],[42,15,42,18]],"merged_total":1392,"flags":["merged_cut"]}
[]
[]
[]
[]
[]
[]
["IMÓVEL 1"]
[]
["PROPRIEDADE:",null,null,null,null,null,{"$f":"IF(EMPREENDIMENTO!H31=\"\",\"-\",EMPREENDIMENTO!H31)","v":"-"},null,null,null,null,null,null,null,null,null,null,null,null,null,null,null,null,null,null,null,null,null,"MATRÍCULA:",null,null,null,null,null,{"$f":"IF(EMPREENDIMENTO!AJ31=\"\",\"-\",EMPREENDIMENTO!AJ31)","v":"-"}]
[]
["ROTEIRO DE ACESSO:"]
[]
["COORDENADAS ENVIADAS PELO APLICATIVO:",null,null,null,null,null,null,null,null,null,null,null,null,null,null,null,"SIM"]
[]
["LATITUDE",null,null,null,null,"LONGITUDE",null,null,null,null,"ALT. (m)",null,null,null,null,"LATITUDE",null,null,null,null,"LONGITUDE",null,null,null,null,"ALT. (m)",null,null,null,null,"LATITUDE",null,null,null,null,"LONGITUDE",null,null,null,null,"ALT. (m)",null,null,null,null,null,"LATITUDE",null,null,null,null,"LONGITUDE",null,null,null,null,"ALT. (m)"]
[]
[]
[]
[]
[]
[]
[]
[]
[]
[]
[]
[]
[]
[]
[]
[]
[]
[]
[]
[]
[]
[]
[]
[]
[]
[]
[]
[]
[]
["IMAGEM DA PROPRIEDADE"]
[]
[]
[]
[]
[]
[]
[]
[]
[]
[]
[]
[]
[]
[]
[]
[]
[]
[]
[]
[]
[]
[]
[]
[]
[]
[]
[]
[]
[]
[]
[]
["CONSULTA GEOESPACIAL"]
[]
[]
[]
[]
[]
[]
[]
[]
[]
[]
[]
[]
[]
[]
["Declaro para os devidos fins que:"]
[{"$f":" \"- Realizei as consultas geoespaciais através da ferramenta IDE-SISEMA e não foram encontradas irregularidades que impeçam a utilização da área mencionada acima.\"","v":"- Realizei as consultas geoespaciais através da ferramenta IDE-SISEMA e não foram encontradas irregularidades que impeçam a utilização da área mencionada acima."}]
[{"$f":"\"- Conferi as documentações que atestam a Regularidade Ambiental e estão em conformidade com as exigências.\"","v":"- Conferi as documentações que atestam a Regularidade Ambiental e estão em conformidade com as exigências."}]
[{"$f":"\"- Conferi as documentações que atestam o uso legal dos Recursos Hídricos e estão em conformidade com as exigências.\"","v":"- Conferi as documentações que atestam o uso legal dos Recursos Hídricos e estão em conformidade com as exigências."}]
[]
[null,null,null,null,null,null,null,null,null,null,null,null,null,null,null,null,null,null,null,null,null,null,"________________________________________",null,null,null,null,null,null,null,null,null,null,null,null,null,null,null,null,null,"________________________________________"]
[null,null,null,null,null,null,null,null,null,null,null,null,null,null,null,null,null,null,null,null,null,null,{"$f":"UPPER(NOME_PROPONENTE)","v":""},null,null,null,null,null,null,null,null,null,null,null,null,null,null,null,null,null,{"$f":"UPPER(RESP_TECNICO)","v":""}]
[null,null,null,null,null,null,null,null,null,null,null,null,null,null,null,null,null,null,null,null,null,null,"Proponente",null,null,null,null,null,null,null,null,null,null,null,null,null,null,null,null,null,"Responsável Técnico"]
["IMÓVEL 2"]
[]
["PROPRIEDADE:",null,null,null,null,null,{"$f":"IF(EMPREENDIMENTO!H39=\"\",\"-\",EMPREENDIMENTO!H39)","v":"-"},null,null,null,null,null,null,null,null,null,null,null,null,null,null,null,null,null,null,null,null,null,"MATRÍCULA:",null,null,null,null,null,{"$f":"IF(EMPREENDIMENTO!AJ39=\"\",\"-\",EMPREENDIMENTO!AJ39)","v":"-"}]
[]
["ROTEIRO DE ACESSO:"]
[]
["COORDENADAS ENVIADAS PELO APLICATIVO:",null,null,null,null,null,null,null,null,null,null,null,null,null,null,null,"SIM"]
[]
["LATITUDE",null,null,null,null,"LONGITUDE",null,null,null,null,"ALT. (m)",null,null,null,null,"LATITUDE",null,null,null,null,"LONGITUDE",null,null,null,null,"ALT. (m)",null,null,null,null,"LATITUDE",null,null,null,null,"LONGITUDE",null,null,null,null,"ALT. (m)",null,null,null,null,null,"LATITUDE",null,null,null,null,"LONGITUDE",null,null,null,null,"ALT. (m)"]
[]
[]
[]
[]
[]
[]
[]
[]
[]
[]
[]
[]
[]
[]
[]
[]
[]
[]
[]
[]
[]
[]
[]
[]
[]
[]
[]
[]
[]
["IMAGEM DA PROPRIEDADE"]
[]
[]
[]
[]
[]
[]
[]
[]
[]
[]
[]
[]
[]
[]
[]
[]
[]
[]
[]
[]
[]
[]
[]
[]
[]
[]
[]
[]
[]
[]
[]
["CONSULTA GEOESPACIAL"]
[]
[]
[]
[]
[]
[]
[]
[]
[]
[]
[]
[]
[]
[]
["Declaro para os devidos fins que:"]
[{"$f":" \"- Realizei as consultas geoespaciais através da ferramenta IDE-SISEMA e não foram encontradas irregularidades que impeçam a utilização da área mencionada acima.\"","v":"- Realizei as consultas geoespaciais através da ferramenta IDE-SISEMA e não foram encontradas irregularidades que impeçam a utilização da área mencionada acima."}]
[{"$f":"\"- Conferi as documentações que atestam a Regularidade Ambiental e estão em conformidade com as exigências.\"","v":"- Conferi as documentações que atestam a Regularidade Ambiental e estão em conformidade com as exigências."}]
[{"$f":"\"- Conferi as documentações que atestam o uso legal dos Recursos Hídricos e estão em conformidade com as exigências.\"","v":"- Conferi as documentações que atestam o uso legal dos Recursos Hídricos e estão em conformidade com as exigências."}]
[]
[null,null,null,null,null,null,null,null,null,null,null,null,null,null,null,null,null,null,null,null,null,null,"________________________________________",null,null,null,null,null,null,null,null,null,null,null,null,null,null,null,null,null,"________________________________________"]
[null,null,null,null,null,null,null,null,null,null,null,null,null,null,null,null,null,null,null,null,null,null,{"$f":"UPPER(NOME_PROPONENTE)","v":""},null,null,null,null,null,null,null,null,null,null,null,null,null,null,null,null,null,{"$f":"UPPER(RESP_TECNICO)","v":""}]
[null,null,null,null,null,null,null,null,null,null,null,null,null,null,null,null,null,null,null,null,null,null,"Proponente",null,null,null,null,null,null,null,null,null,null,null,null,null,null,null,null,null,"Responsável Técnico"]
["IMÓVEL 3"]
[]
["PROPRIEDADE:",null,null,null,null,null,{"$f":"IF(EMPREENDIMENTO!H47=\"\",\"-\",EMPREENDIMENTO!H47)","v":"-"},null,null,null,null,null,null,null,null,null,null,null,null,null,null,null,null,null,null,null,null,null,"MATRÍCULA:",null,null,null,null,null,{"$f":"IF(EMPREENDIMENTO!AJ47=\"\",\"-\",EMPREENDIMENTO!AJ47)","v":"-"}]
[]
["ROTEIRO DE ACESSO:"]
[]
["COORDENADAS ENVIADAS PELO APLICATIVO:",null,null,null,null,null,null,null,null,null,null,null,null,null,null,null,"SIM"]
[]
["LATITUDE",null,null,null,null,"LONGITUDE",null,null,null,null,"ALT. (m)",null,null,null,null,"LATITUDE",null,null,null,null,"LONGITUDE",null,null,null,null,"ALT. (m)",null,null,null,null,"LATITUDE",null,null,null,null,"LONGITUDE",null,null,null,null,"ALT. (m)",null,null,null,null,null,"LATITUDE",null,null,null,null,"LONGITUDE",null,null,null,null,"ALT. (m)"]
[]
[]
[]
[]
[]
[]
[]
[]
[]
[]
[]
[]
[]
[]
[]
[]
[]
[]
[]
[]
[]
[]
[]
[]
[]
[]
[]
[]
[]
["IMAGEM DA PROPRIEDADE"]
[]
[]
[]
[]
[]
[]
[]
[]
[]
[]
[]
[]
[]
[]
[]
[]
[]
[]
[]
[]
[]
[]
[]
[]
[]
[]
[]
[]
[]
[]
[]
["CONSULTA GEOESPACIAL"]
[]
[]
[]
[]
[]
[]
[]
[]
[]
[]
[]
[]
[]
[]
["Declaro para os devidos fins que:"]
[{"$f":" \"- Realizei as consultas geoespaciais através da ferramenta IDE-SISEMA e não foram encontradas irregularidades que impeçam a utilização da área mencionada acima.\"","v":"- Realizei as consultas geoespaciais através da ferramenta IDE-SISEMA e não foram encontradas irregularidades que impeçam a utilização da área mencionada acima."}]
[{"$f":"\"- Conferi as documentações que atestam a Regularidade Ambiental e estão em conformidade com as exigências legais.\"","v":"- Conferi as documentações que atestam a Regularidade Ambiental e estão em conformidade com as exigências legais."}]
[{"$f":"\"- Conferi as documentações que atestam o uso legal dos Recursos Hídricos e estão em conformidade com as exigências legais.\"","v":"- Conferi as documentações que atestam o uso legal dos Recursos Hídricos e estão em conformidade com as exigências legais."}]
[]
[null,null,null,null,null,null,null,null,null,null,null,null,null,null,null,null,null,null,null,null,null,null,"________________________________________",null,null,null,null,null,null,null,null,null,null,null,null,null,null,null,null,null,"________________________________________"]
[null,null,null,null,null,null,null,null,null,null,null,null,null,null,null,null,null,null,null,null,null,null,{"$f":"UPPER(NOME_PROPONENTE)","v":""},null,null,null,null,null,null,null,null,null,null,null,null,null,null,null,null,null,{"$f":"UPPER(RESP_TECNICO)","v":""}]
[null,null,null,null,null,null,null,null,null,null,null,null,null,null,null,null,null,null,null,null,null,null,"Proponente",null,null,null,null,null,null,null,null,null,null,null,null,null,null,null,null,null,"Responsável Técnico"]

{"sheet":"LISTA_PATRIMÔNIO","index":4,"n_rows":21,"n_cols":11,"rows_kept":21,"cut":false,"hidden":true,"merged":[]}
["LOCALIZAÇÃO","TIPO USO","TIPO BEM","TIPO BEM",null,null,null,null,"TIPO_SEMOVENTES",null,"REF"]
["URBANO","RESIDENCIAL","CASA","VEÍCULO",null,null,null,null,"SUÍNOS",null,1]
["RURAL","COMERCIAL","APARTAMENTO","MÁQUINA",null,null,null,null,"BUBALINOS",null,2]
[" ","INDUSTRIAL","PRÉDIO","EQUIPAMENTO",null,null,null,null,"EQUINOS",null,3]
[null,"RURAL","TERRENO",null,null,null,null,null,"OVINOS",null,4]
[null,null,"PRÉDIO",null,null,null,null,null,"APICULTURA",null,5]
[null,null,"TERRENO",null,null,null,null,null,"ASININOS",null,6]
[null,null,"LOJA",null,null,null,null,null,"AVICULTURA",null,7]
[null,null,"SALA",null,null,null,null,null,"CANINOS",null,8]
[null,null,"GALPÃO",null,null,null,null,null,"CAPRINOS",null,9]
[null,null,"PRÉDIO",null,null,null,null,null,"PISCICULTURA",null,10]
[null,null,"TERRENO",null,null,null,null,null,"RANICULTURA",null,11]
[null,null,"FAZENDA",null,null,null,null,null,"SERICICULTURA",null,12]
[null,null,"SÍTIO",null,null,null,null,null,null,null,13]
[null,null,"RANCHO",null,null,null,null,null,null,null,14]
[null,null,"CHÁCARA",null,null,null,null,null,null,null,15]
[null,null,"ESTÂNCIA",null,null,null,null,null,null,null,16]
[null,null,"OUTRO",null,null,null,null,null,null,null,17]
[null,null,null,null,null,null,null,null,null,null,18]
[null,null,null,null,null,null,null,null,null,null,19]
[null,null,null,null,null,null,null,null,null,null,20]

{"sheet":"MANUAL IDE-SISEMA","index":5,"n_rows":159,"n_cols":1,"rows_kept":159,"cut":false,"hidden":true,"merged":[[42,0,42,17],[76,0,76,17],[110,0,110,17],[0,0,3,17],[5,0,5,17],[6,0,6,17],[8,0,8,17]]}
[]
[]
[]
[]
[]
["Acessar a plataforma IDE-SISEMA pelo link abaixo:"]
["http://idesisema.meioambiente.mg.gov.br/"]
[]
["Abrir o site importar o KML do empreendimento, conforme indicação setas amarelas na imagem abaixo:"]
[]
[]
[]
[]
[]
[]
[]
[]
[]
[]
[]
[]
[]
[]
[]
[]
[]
[]
[]
[]
[]
[]
[]
[]
[]
[]
[]
[]
[]
[]
[]
[]
[]
["Abaixo, a imagem demonstra o processo de anexar o arquivo KML."]
[]
[]
[]
[]
[]
[]
[]
[]
[]
[]
[]
[]
[]
[]
[]
[]
[]
[]
[]
[]
[]
[]
[]
[]
[]
[]
[]
[]
[]
[]
[]
[]
[]
["Ao final da inclusão, a área do empreendimento deve ficar demarcada como a imagem a abaixo:"]
[]
[]
[]
[]
[]
[]
[]
[]
[]
[]
[]
[]
[]
[]
[]
[]
[]
[]
[]
[]
[]
[]
[]
[]
[]
[]
[]
[]
[]
[]
[]
[]
[]
["Em seguida, clicar em CAMADAS, e selecionar a lista de camadas abaixo:"]
[]
["Restrição Ambiental / Terras Indígenas (FUNAI) / Terras Indígenas"]
["Restrição Ambiental / Quilombolas (Fundação Palmares INCRA) / Quilombolas"]
["Restrição Ambiental / Áreas Protegidas (IEF/ICMbio) / Propriedades Cadastradas em Áreas de Conservação"]
["Restrição Ambiental / Áreas Protegidas (IEF/ICMbio) / Unidade de Conservação Federal"]
["Restrição Ambiental / Áreas Protegidas (IEF/ICMbio) / Unidade de Conservação Estadual"]
["Restrição Ambiental / Áreas Protegidas (IEF/ICMbio) / Unidade de Conservação Municipal"]
["Restrição Ambiental / Áreas Protegidas (IEF/ICMbio) / Reserva Particular do Patrimônio Natural"]
["Restrição Ambiental / Áreas Protegidas (IEF/ICMbio) / Áreas prioritárias para criação de Unidades de Conservação"]
["Restrição Ambiental / Corredores ecológicos legalmente instituídos / Corredores Ecológicos"]
[]
[]
["Nesse momento, há que se observar se a área não se sobrepões em nenhuma das camadas, o que inviabilizaria a utilização da área."]
[]
["A imagem abaixo ilustra o procedimento:"]
[]
[]
[]
[]
[]
[]
[]
[]
[]
[]
[]
[]
[]
[]
[]
[]
[]
[]
[]
[]
[]
[]
[]
[]
[]
[]
[]
[]
[]
[]
["Em seguida, colocar o mouse sobre a área do empreendimento, de forma que as coordenadas fiquem visíveis no canto inferior da tela."]
[]
["Capturar a parte da tela, indicada pelo quadro abaixo utilizando alguma ferramenta (Print Screen, Ferramenta de Captura, etc...) depois inserir o arquivo da imagem capturada no projeto."]

{"sheet":"ORÇAMENTO_TIPO IV","index":6,"n_rows":28,"n_cols":9,"rows_kept":28,"cut":false,"hidden":true,"merged":[[16,0,16,8],[6,0,6,7],[26,0,26,3],[26,4,26,8],[27,0,27,3],[27,4,27,8],[17,0,17,3],[25,0,25,3],[25,4,25,8]]}
[]
[]
[]
[]
[]
[" "]
["DESCRIÇÃO"]
["AQUISIÇÕES"]
["ESPECIFICAÇÃO","UN","QTDE","CUSTO UN.\n(R$)","CUSTO TOTAL\n(R$)","FINANCIADO\n (R$)","RECURSOS PRÓPRIOS (R$)","INICIO DA\nUTILIZAÇÃO","EM BRANCO"]
[null,null,null,null,{"$f":"ORÇAMENTO4_TABELA1[[#This Row],[CUSTO UN.\n(R$)]]*ORÇAMENTO4_TABELA1[[#This Row],[QTDE]]","v":0},null,{"$f":"ORÇAMENTO4_TABELA1[[#This Row],[CUSTO TOTAL\n(R$)]]-ORÇAMENTO4_TABELA1[[#This Row],[FINANCIADO\n (R$)]]","v":0},"2021-09-01"]
["Total",null,null,null,{"$f":"IF(SUBTOTAL(109,ORÇAMENTO4_TABELA1[CUSTO TOTAL\n(R$)])=0,0,SUBTOTAL(109,ORÇAMENTO4_TABELA1[CUSTO TOTAL\n(R$)]))","v":0},{"$f":"SUBTOTAL(109,ORÇAMENTO4_TABELA1[FINANCIADO\n (R$)])","v":0},{"$f":"IF(SUBTOTAL(109,ORÇAMENTO4_TABELA1[RECURSOS PRÓPRIOS (R$)])=0,0,SUBTOTAL(109,ORÇAMENTO4_TABELA1[RECURSOS PRÓPRIOS (R$)]))","v":0},null,{"$f":"SUBTOTAL(109,ORÇAMENTO4_TABELA1[EM BRANCO])","v":0}]
["  "]
["SERVIÇOS"]
["ESPECIFICAÇÃO","UN","QTDE","CUSTO UN.\n(R$)","CUSTO TOTAL\n(R$)","FINANCIADO\n (R$)","RECURSOS PRÓPRIOS (R$)","INICIO DA\nUTILIZAÇÃO","EM BRANCO"]
[null,null,null,null,{"$f":"ORÇAMENTO4_TABELA2[[#This Row],[CUSTO UN.\n(R$)]]*ORÇAMENTO4_TABELA2[[#This Row],[QTDE]]","v":0},null,{"$f":"ORÇAMENTO4_TABELA2[[#This Row],[CUSTO TOTAL\n(R$)]]-ORÇAMENTO4_TABELA2[[#This Row],[FINANCIADO\n (R$)]]","v":0},null,{"$f":"IF(AND(OR(ORÇAMENTO4_TABELA2[[#This Row],[ESPECIFICAÇÃO]]=\"\",ORÇAMENTO4_TABELA2[[#This Row],[UN]]=\"\",#REF!=\"\",ORÇAMENTO4_TABELA2[[#This Row],[CUSTO UN.\n(R$)]]=\"\",ORÇAMENTO4_TABELA2[[#This Row],[RECURSOS PRÓPRIOS (R$)]]=\"\",ORÇAMENTO4_TABELA2[[#This Row],[INICIO DA\nUTILIZAÇÃO]]=\"\"),OR(ORÇAMENTO4_TABELA2[[#This Row],[ESPECIFICAÇÃO]]<>\"\",ORÇAMENTO4_TABELA2[[#This Row],[UN]]<>\"\",#REF!<>\"\",ORÇAMENTO4_TABELA2[[#This Row],[CUSTO UN.\n(R$)]]<>\"\",ORÇAMENTO4_TABELA2[[#This Row],[RECURSOS PRÓPRIOS (R$)]]<>\"\",ORÇAMENTO4_TABELA2[[#This Row],[INICIO DA\nUTILIZAÇÃO]]<>\"\")),1,0)","v":{"$error":"#REF!"}}]
["Total",null,null,null,{"$f":"IF(SUBTOTAL(109,ORÇAMENTO4_TABELA2[CUSTO TOTAL\n(R$)])=0,0,SUBTOTAL(109,ORÇAMENTO4_TABELA2[CUSTO TOTAL\n(R$)]))","v":0},{"$f":"IF(SUBTOTAL(109,ORÇAMENTO4_TABELA2[FINANCIADO\n (R$)])=0,0,SUBTOTAL(109,ORÇAMENTO4_TABELA2[FINANCIADO\n (R$)]))","v":0},{"$f":"IF(SUBTOTAL(109,ORÇAMENTO4_TABELA2[RECURSOS PRÓPRIOS (R$)])=0,0,SUBTOTAL(109,ORÇAMENTO4_TABELA2[RECURSOS PRÓPRIOS (R$)]))","v":0},null,{"$f":"SUBTOTAL(109,ORÇAMENTO4_TABELA2[EM BRANCO])","v":{"$error":"#REF!"}}]
["   "]
["TOTAL"]
["ESPECIFICAÇÃO","ORÇADO","FINANCIADO","RECURSOS\nPRÓPRIOS"]
["I - AQUISIÇÕES",{"$f":"ORÇAMENTO4_TABELA1[[#Totals],[CUSTO TOTAL\n(R$)]]","v":0},{"$f":"ORÇAMENTO4_TABELA1[[#Totals],[FINANCIADO\n (R$)]]","v":0},{"$f":"IFERROR(ORÇAMENTO4_TABELA1[[#Totals],[RECURSOS PRÓPRIOS (R$)]],0)","v":0}]
["II - SERVIÇOS",{"$f":"IFERROR(ORÇAMENTO4_TABELA2[[#Totals],[CUSTO TOTAL\n(R$)]],0)","v":0},{"$f":"ORÇAMENTO4_TABELA2[[#Totals],[FINANCIADO\n (R$)]]","v":0},{"$f":"ORÇAMENTO4_TABELA2[[#Totals],[RECURSOS PRÓPRIOS (R$)]]","v":0}]
["Total",{"$f":"B21+B20","v":0},{"$f":"C21+C20","v":0},0]
[]
[]
[]
["________________________________________",null,null,null,"________________________________________"]
[{"$f":"UPPER(EMPREENDIMENTO!F19)","v":""},null,null,null,{"$f":"UPPER(EMPREENDIMENTO!H15)","v":""}]
["Proponente",null,null,null,"Responsável Técnico"]

{"sheet":"ORÇAMENTO_TIPO III","index":7,"n_rows":20,"n_cols":9,"rows_kept":20,"cut":false,"hidden":true,"merged":[[13,0,13,9],[6,0,6,7],[17,0,17,2],[18,0,18,2],[19,0,19,2],[17,3,17,9],[18,3,18,9],[19,3,19,9]]}
[]
[]
[]
[]
[]
[" "]
["AQUISIÇÃO DE ANIMAIS"]
[]
["TIPO ANIMAL","DESCRIÇÃO","QTDE","VALOR UNITÁRIO\n(R$)","VALOR TOTAL\n(R$)","FINANCIADO\n(R$)","RECURSOS PRÓRIOS (R$)","DATA DE UTILIZAÇÃO","EM BRANCO"]
[null,null,null,null,{"$f":"ORÇAMENTO3_TABELA1[[#This Row],[VALOR UNITÁRIO\n(R$)]]*ORÇAMENTO3_TABELA1[[#This Row],[QTDE]]","v":0},null,{"$f":"ORÇAMENTO3_TABELA1[[#This Row],[VALOR TOTAL\n(R$)]]-ORÇAMENTO3_TABELA1[[#This Row],[FINANCIADO\n(R$)]]","v":0}]
[null,null,null,null,{"$f":"ORÇAMENTO3_TABELA1[[#This Row],[VALOR UNITÁRIO\n(R$)]]*ORÇAMENTO3_TABELA1[[#This Row],[QTDE]]","v":0},null,{"$f":"ORÇAMENTO3_TABELA1[[#This Row],[VALOR TOTAL\n(R$)]]-ORÇAMENTO3_TABELA1[[#This Row],[FINANCIADO\n(R$)]]","v":0}]
[null,null,null,null,{"$f":"ORÇAMENTO3_TABELA1[[#This Row],[VALOR UNITÁRIO\n(R$)]]*ORÇAMENTO3_TABELA1[[#This Row],[QTDE]]","v":0},null,{"$f":"ORÇAMENTO3_TABELA1[[#This Row],[VALOR TOTAL\n(R$)]]-ORÇAMENTO3_TABELA1[[#This Row],[FINANCIADO\n(R$)]]","v":0}]
["Total",null,null,null,{"$f":"IF(SUBTOTAL(109,ORÇAMENTO3_TABELA1[VALOR TOTAL\n(R$)])=0,0,SUBTOTAL(109,ORÇAMENTO3_TABELA1[VALOR TOTAL\n(R$)]))","v":0},{"$f":"SUBTOTAL(109,ORÇAMENTO3_TABELA1[FINANCIADO\n(R$)])","v":0},{"$f":"SUBTOTAL(109,ORÇAMENTO3_TABELA1[RECURSOS PRÓRIOS (R$)])","v":0},null,{"$f":"SUBTOTAL(109,ORÇAMENTO3_TABELA1[EM BRANCO])","v":0}]
["   "]
[]
[]
[]
["________________________________________",null,null,"________________________________________"]
[{"$f":"UPPER(EMPREENDIMENTO!F19)","v":""},null,null,{"$f":"UPPER(EMPREENDIMENTO!H15)","v":""}]
["Proponente",null,null,"Responsável Técnico"]

{"sheet":"ORÇAMENTO_TIPO II","index":8,"n_rows":43,"n_cols":9,"rows_kept":43,"cut":false,"hidden":true,"merged":[[42,0,42,3],[42,4,42,8],[32,0,32,3],[40,0,40,3],[40,4,40,8],[18,0,18,8],[6,0,6,7],[31,0,31,8],[19,0,19,7],[41,0,41,3],[41,4,41,8]]}
[]
[]
[]
[]
[]
[" "]
["I - PREPARO DO SOLO"]
["INSUMOS"]
["ESPECIFICAÇÃO","UN","QTDE","CUSTO UN.\n(R$)","CUSTO TOTAL\n(R$)","FINANCIADO\n (R$)","RECURSOS PRÓPRIOS (R$)","INICIO DA\nUTILIZAÇÃO","EM BRANCO"]
[null,null,null,null,{"$f":"ORÇAMENTO2_TABELA1[[#This Row],[CUSTO UN.\n(R$)]]*ORÇAMENTO2_TABELA1[[#This Row],[QTDE]]","v":0},null,{"$f":"ORÇAMENTO2_TABELA1[[#This Row],[CUSTO TOTAL\n(R$)]]-ORÇAMENTO2_TABELA1[[#This Row],[FINANCIADO\n (R$)]]","v":0}]
[null,null,null,null,{"$f":"ORÇAMENTO2_TABELA1[[#This Row],[CUSTO UN.\n(R$)]]*ORÇAMENTO2_TABELA1[[#This Row],[QTDE]]","v":0},null,{"$f":"ORÇAMENTO2_TABELA1[[#This Row],[CUSTO TOTAL\n(R$)]]-ORÇAMENTO2_TABELA1[[#This Row],[FINANCIADO\n (R$)]]","v":0}]
["Total",null,null,null,{"$f":"IF(SUBTOTAL(109,ORÇAMENTO2_TABELA1[CUSTO TOTAL\n(R$)])=0,0,SUBTOTAL(109,ORÇAMENTO2_TABELA1[CUSTO TOTAL\n(R$)]))","v":0},{"$f":"SUBTOTAL(109,ORÇAMENTO2_TABELA1[FINANCIADO\n (R$)])","v":0},{"$f":"IF(SUBTOTAL(109,ORÇAMENTO2_TABELA1[RECURSOS PRÓPRIOS (R$)])=0,0,SUBTOTAL(109,ORÇAMENTO2_TABELA1[RECURSOS PRÓPRIOS (R$)]))","v":0},null,{"$f":"SUBTOTAL(109,ORÇAMENTO2_TABELA1[EM BRANCO])","v":0}]
["  "]
["SERVIÇOS"]
["ESPECIFICAÇÃO","UN","QTDE","CUSTO UN.\n(R$)","CUSTO TOTAL\n(R$)","FINANCIADO\n (R$)","RECURSOS PRÓPRIOS (R$)","INICIO DA\nUTILIZAÇÃO","EM BRANCO"]
[null,null,null,null,{"$f":"ORÇAMENTO2_TABELA2[[#This Row],[CUSTO UN.\n(R$)]]*ORÇAMENTO2_TABELA2[[#This Row],[QTDE]]","v":0},null,{"$f":"ORÇAMENTO2_TABELA2[[#This Row],[CUSTO TOTAL\n(R$)]]-ORÇAMENTO2_TABELA2[[#This Row],[FINANCIADO\n (R$)]]","v":0},null,{"$f":"IF(AND(OR(ORÇAMENTO2_TABELA2[[#This Row],[ESPECIFICAÇÃO]]=\"\",ORÇAMENTO2_TABELA2[[#This Row],[UN]]=\"\",ORÇAMENTO2_TABELA2[[#This Row],[QTDE]]=\"\",ORÇAMENTO2_TABELA2[[#This Row],[CUSTO UN.\n(R$)]]=\"\",ORÇAMENTO2_TABELA2[[#This Row],[RECURSOS PRÓPRIOS (R$)]]=\"\",ORÇAMENTO2_TABELA2[[#This Row],[INICIO DA\nUTILIZAÇÃO]]=\"\"),OR(ORÇAMENTO2_TABELA2[[#This Row],[ESPECIFICAÇÃO]]<>\"\",ORÇAMENTO2_TABELA2[[#This Row],[UN]]<>\"\",ORÇAMENTO2_TABELA2[[#This Row],[QTDE]]<>\"\",ORÇAMENTO2_TABELA2[[#This Row],[CUSTO UN.\n(R$)]]<>\"\",ORÇAMENTO2_TABELA2[[#This Row],[RECURSOS PRÓPRIOS (R$)]]<>\"\",ORÇAMENTO2_TABELA2[[#This Row],[INICIO DA\nUTILIZAÇÃO]]<>\"\")),1,0)","v":1}]
[null,null,null,null,{"$f":"ORÇAMENTO2_TABELA2[[#This Row],[CUSTO UN.\n(R$)]]*ORÇAMENTO2_TABELA2[[#This Row],[QTDE]]","v":0},null,{"$f":"ORÇAMENTO2_TABELA2[[#This Row],[CUSTO TOTAL\n(R$)]]-ORÇAMENTO2_TABELA2[[#This Row],[FINANCIADO\n (R$)]]","v":0},null,{"$f":"IF(AND(OR(ORÇAMENTO2_TABELA2[[#This Row],[ESPECIFICAÇÃO]]=\"\",ORÇAMENTO2_TABELA2[[#This Row],[UN]]=\"\",ORÇAMENTO2_TABELA2[[#This Row],[QTDE]]=\"\",ORÇAMENTO2_TABELA2[[#This Row],[CUSTO UN.\n(R$)]]=\"\",ORÇAMENTO2_TABELA2[[#This Row],[RECURSOS PRÓPRIOS (R$)]]=\"\",ORÇAMENTO2_TABELA2[[#This Row],[INICIO DA\nUTILIZAÇÃO]]=\"\"),OR(ORÇAMENTO2_TABELA2[[#This Row],[ESPECIFICAÇÃO]]<>\"\",ORÇAMENTO2_TABELA2[[#This Row],[UN]]<>\"\",ORÇAMENTO2_TABELA2[[#This Row],[QTDE]]<>\"\",ORÇAMENTO2_TABELA2[[#This Row],[CUSTO UN.\n(R$)]]<>\"\",ORÇAMENTO2_TABELA2[[#This Row],[RECURSOS PRÓPRIOS (R$)]]<>\"\",ORÇAMENTO2_TABELA2[[#This Row],[INICIO DA\nUTILIZAÇÃO]]<>\"\")),1,0)","v":1}]
["Total",null,null,null,{"$f":"IF(SUBTOTAL(109,ORÇAMENTO2_TABELA2[CUSTO TOTAL\n(R$)])=0,0,SUBTOTAL(109,ORÇAMENTO2_TABELA2[CUSTO TOTAL\n(R$)]))","v":0},{"$f":"IF(SUBTOTAL(109,ORÇAMENTO2_TABELA2[FINANCIADO\n (R$)])=0,0,SUBTOTAL(109,ORÇAMENTO2_TABELA2[FINANCIADO\n (R$)]))","v":0},{"$f":"IF(SUBTOTAL(109,ORÇAMENTO2_TABELA2[RECURSOS PRÓPRIOS (R$)])=0,0,SUBTOTAL(109,ORÇAMENTO2_TABELA2[RECURSOS PRÓPRIOS (R$)]))","v":0},null,{"$f":"SUBTOTAL(109,ORÇAMENTO2_TABELA2[EM BRANCO])","v":2}]
["   "]
["II - TRATOS CULTURAIS"]
["INSUMOS"]
["ESPECIFICAÇÃO","UN","QTDE","CUSTO UN.\n(R$)","CUSTO TOTAL\n(R$)","FINANCIADO\n (R$)","RECURSOS PRÓPRIOS (R$)","INICIO DA\nUTILIZAÇÃO","EM BRANCO"]
["asdasd",null,null,null,{"$f":"ORÇAMENTO2_TABELA3[[#This Row],[CUSTO UN.\n(R$)]]*ORÇAMENTO2_TABELA3[[#This Row],[QTDE]]","v":0},null,{"$f":"ORÇAMENTO2_TABELA3[[#This Row],[CUSTO TOTAL\n(R$)]]-ORÇAMENTO2_TABELA3[[#This Row],[FINANCIADO\n (R$)]]","v":0},null,{"$f":"IF(AND(OR(ORÇAMENTO2_TABELA3[[#This Row],[ESPECIFICAÇÃO]]=\"\",ORÇAMENTO2_TABELA3[[#This Row],[UN]]=\"\",#REF!=\"\",ORÇAMENTO2_TABELA3[[#This Row],[CUSTO UN.\n(R$)]]=\"\",ORÇAMENTO2_TABELA3[[#This Row],[RECURSOS PRÓPRIOS (R$)]]=\"\",ORÇAMENTO2_TABELA3[[#This Row],[INICIO DA\nUTILIZAÇÃO]]=\"\"),OR(ORÇAMENTO2_TABELA3[[#This Row],[ESPECIFICAÇÃO]]<>\"\",ORÇAMENTO2_TABELA3[[#This Row],[UN]]<>\"\",#REF!<>\"\",ORÇAMENTO2_TABELA3[[#This Row],[CUSTO UN.\n(R$)]]<>\"\",ORÇAMENTO2_TABELA3[[#This Row],[RECURSOS PRÓPRIOS (R$)]]<>\"\",ORÇAMENTO2_TABELA3[[#This Row],[INICIO DA\nUTILIZAÇÃO]]<>\"\")),1,0)","v":{"$error":"#REF!"}}]
[null,null,null,null,{"$f":"ORÇAMENTO2_TABELA3[[#This Row],[CUSTO UN.\n(R$)]]*ORÇAMENTO2_TABELA3[[#This Row],[QTDE]]","v":0},null,{"$f":"ORÇAMENTO2_TABELA3[[#This Row],[CUSTO TOTAL\n(R$)]]-ORÇAMENTO2_TABELA3[[#This Row],[FINANCIADO\n (R$)]]","v":0},null,{"$f":"IF(AND(OR(ORÇAMENTO2_TABELA3[[#This Row],[ESPECIFICAÇÃO]]=\"\",ORÇAMENTO2_TABELA3[[#This Row],[UN]]=\"\",#REF!=\"\",ORÇAMENTO2_TABELA3[[#This Row],[CUSTO UN.\n(R$)]]=\"\",ORÇAMENTO2_TABELA3[[#This Row],[RECURSOS PRÓPRIOS (R$)]]=\"\",ORÇAMENTO2_TABELA3[[#This Row],[INICIO DA\nUTILIZAÇÃO]]=\"\"),OR(ORÇAMENTO2_TABELA3[[#This Row],[ESPECIFICAÇÃO]]<>\"\",ORÇAMENTO2_TABELA3[[#This Row],[UN]]<>\"\",#REF!<>\"\",ORÇAMENTO2_TABELA3[[#This Row],[CUSTO UN.\n(R$)]]<>\"\",ORÇAMENTO2_TABELA3[[#This Row],[RECURSOS PRÓPRIOS (R$)]]<>\"\",ORÇAMENTO2_TABELA3[[#This Row],[INICIO DA\nUTILIZAÇÃO]]<>\"\")),1,0)","v":{"$error":"#REF!"}}]
["Total",null,null,null,{"$f":"IF(SUBTOTAL(109,ORÇAMENTO2_TABELA3[CUSTO TOTAL\n(R$)])=0,0,SUBTOTAL(109,ORÇAMENTO2_TABELA3[CUSTO TOTAL\n(R$)]))","v":0},{"$f":"IF(SUBTOTAL(109,ORÇAMENTO2_TABELA3[FINANCIADO\n (R$)])=0,0,SUBTOTAL(109,ORÇAMENTO2_TABELA3[FINANCIADO\n (R$)]))","v":0},{"$f":"IF(SUBTOTAL(109,ORÇAMENTO2_TABELA3[RECURSOS PRÓPRIOS (R$)])=0,0,SUBTOTAL(109,ORÇAMENTO2_TABELA3[RECURSOS PRÓPRIOS (R$)]))","v":0},null,{"$f":"SUBTOTAL(109,ORÇAMENTO2_TABELA3[EM BRANCO])","v":{"$error":"#REF!"}}]
["   "]
["SERVIÇOS"]
["ESPECIFICAÇÃO","UN","QTDE","CUSTO UN.\n(R$)","CUSTO TOTAL\n(R$)","FINANCIADO\n (R$)","RECURSOS PRÓPRIOS (R$)","INICIO DA\nUTILIZAÇÃO","EM BRANCO"]
[null,null,null,null,{"$f":"ORÇAMENTO2_TABELA4[[#This Row],[CUSTO UN.\n(R$)]]*ORÇAMENTO2_TABELA4[[#This Row],[QTDE]]","v":0},null,{"$f":"ORÇAMENTO2_TABELA4[[#This Row],[CUSTO TOTAL\n(R$)]]-ORÇAMENTO2_TABELA4[[#This Row],[FINANCIADO\n (R$)]]","v":0}]
[null,null,null,null,{"$f":"ORÇAMENTO2_TABELA4[[#This Row],[CUSTO UN.\n(R$)]]*ORÇAMENTO2_TABELA4[[#This Row],[QTDE]]","v":0},null,{"$f":"ORÇAMENTO2_TABELA4[[#This Row],[CUSTO TOTAL\n(R$)]]-ORÇAMENTO2_TABELA4[[#This Row],[FINANCIADO\n (R$)]]","v":0}]
["Total",null,null,null,{"$f":"IF(SUBTOTAL(109,ORÇAMENTO2_TABELA4[CUSTO TOTAL\n(R$)])=0,0,SUBTOTAL(109,ORÇAMENTO2_TABELA4[CUSTO TOTAL\n(R$)]))","v":0},{"$f":"IF(SUBTOTAL(109,ORÇAMENTO2_TABELA4[FINANCIADO\n (R$)])=0,0,SUBTOTAL(109,ORÇAMENTO2_TABELA4[FINANCIADO\n (R$)]))","v":0},{"$f":"IF(SUBTOTAL(109,ORÇAMENTO2_TABELA4[RECURSOS PRÓPRIOS (R$)])=0,0,SUBTOTAL(109,ORÇAMENTO2_TABELA4[RECURSOS PRÓPRIOS (R$)]))","v":0},null,{"$f":"SUBTOTAL(109,ORÇAMENTO2_TABELA4[EM BRANCO])","v":0}]
["   "]
["TOTAL"]
["ESPECIFICAÇÃO","ORÇADO","FINANCIADO","RECURSOS\nPRÓPRIOS"]
["I - PREPARO DO SOLO",{"$f":"IFERROR(ORÇAMENTO2_TABELA1[[#Totals],[CUSTO TOTAL\n(R$)]]+ORÇAMENTO2_TABELA2[[#Totals],[CUSTO TOTAL\n(R$)]],0)","v":0},{"$f":"IFERROR(ORÇAMENTO2_TABELA1[[#Totals],[FINANCIADO\n (R$)]]+ORÇAMENTO2_TABELA2[[#Totals],[FINANCIADO\n (R$)]],0)","v":0},{"$f":"IFERROR(B35-C35,0)","v":0}]
["II - TRATOS CULTURAIS",{"$f":"IFERROR(ORÇAMENTO2_TABELA3[[#Totals],[CUSTO TOTAL\n(R$)]]+ORÇAMENTO2_TABELA4[[#Totals],[CUSTO TOTAL\n(R$)]],0)","v":0},{"$f":"IFERROR(ORÇAMENTO2_TABELA4[[#Totals],[FINANCIADO\n (R$)]]+ORÇAMENTO2_TABELA3[[#Totals],[FINANCIADO\n (R$)]],0)","v":0},{"$f":"IFERROR(B36-C36,0)","v":0}]
["Total",{"$f":"IFERROR(B36+B35,0)","v":0},{"$f":"IF(SUM(C35:C36)=0,0,SUM(C35:C36))","v":0},{"$f":"IF(SUM(D35:D36)=0,0,SUM(D35:D36))","v":0}]
[]
[]
[]
["________________________________________",null,null,null,"________________________________________"]
[{"$f":"UPPER(EMPREENDIMENTO!F19)","v":""},null,null,null,{"$f":"UPPER(EMPREENDIMENTO!H15)","v":""}]
["Proponente",null,null,null,"Responsável Técnico"]

{"sheet":"ORÇAMENTO_TIPO I","index":9,"n_rows":19,"n_cols":9,"rows_kept":19,"cut":false,"hidden":true,"merged":[[5,0,5,5],[6,0,6,7],[7,0,7,7],[18,3,18,7],[16,0,16,2],[17,0,17,2],[18,0,18,2],[16,3,16,7],[17,3,17,7]]}
[]
[]
[]
[]
[]
[" "]
[{"$f":"IF(EMPREENDIMENTO!F57=0,\"DESCRIÇÃO\",EMPREENDIMENTO!F57)","v":"DESCRIÇÃO"}]
[]
["DISCRIMINAÇÃO","UN","QTD","CUSTO UN.\n(R$)","CUSTO TOTAL\n(R$)","FINANCIADO\n (R$)","RECURSOS PRÓPRIOS (R$)","MÊS DE UTILIZAÇÃO","EM BRANCO"]
[null,null,null,null,{"$f":"ORÇAMENTO1_TABELA1[[#This Row],[CUSTO UN.\n(R$)]]*ORÇAMENTO1_TABELA1[[#This Row],[QTD]]","v":0},null,{"$f":"ORÇAMENTO1_TABELA1[[#This Row],[CUSTO TOTAL\n(R$)]]-ORÇAMENTO1_TABELA1[[#This Row],[FINANCIADO\n (R$)]]","v":0},null,{"$f":"IF(AND(OR(ORÇAMENTO1_TABELA1[[#This Row],[DISCRIMINAÇÃO]]=\"\",ORÇAMENTO1_TABELA1[[#This Row],[UN]]=\"\",ORÇAMENTO1_TABELA1[[#This Row],[QTD]]=\"\",ORÇAMENTO1_TABELA1[[#This Row],[CUSTO UN.\n(R$)]]=\"\",ORÇAMENTO1_TABELA1[[#This Row],[RECURSOS PRÓPRIOS (R$)]]=\"\",ORÇAMENTO1_TABELA1[[#This Row],[MÊS DE UTILIZAÇÃO]]=\"\"),OR(ORÇAMENTO1_TABELA1[[#This Row],[DISCRIMINAÇÃO]]<>\"\",ORÇAMENTO1_TABELA1[[#This Row],[UN]]<>\"\",ORÇAMENTO1_TABELA1[[#This Row],[QTD]]<>\"\",ORÇAMENTO1_TABELA1[[#This Row],[CUSTO UN.\n(R$)]]<>\"\",ORÇAMENTO1_TABELA1[[#This Row],[RECURSOS PRÓPRIOS (R$)]]<>\"\",ORÇAMENTO1_TABELA1[[#This Row],[MÊS DE UTILIZAÇÃO]]<>\"\")),1,0)","v":1}]
[null,null,null,null,{"$f":"ORÇAMENTO1_TABELA1[[#This Row],[CUSTO UN.\n(R$)]]*ORÇAMENTO1_TABELA1[[#This Row],[QTD]]","v":0},null,{"$f":"ORÇAMENTO1_TABELA1[[#This Row],[CUSTO TOTAL\n(R$)]]-ORÇAMENTO1_TABELA1[[#This Row],[FINANCIADO\n (R$)]]","v":0},null,{"$f":"IF(AND(OR(ORÇAMENTO1_TABELA1[[#This Row],[DISCRIMINAÇÃO]]=\"\",ORÇAMENTO1_TABELA1[[#This Row],[UN]]=\"\",ORÇAMENTO1_TABELA1[[#This Row],[QTD]]=\"\",ORÇAMENTO1_TABELA1[[#This Row],[CUSTO UN.\n(R$)]]=\"\",ORÇAMENTO1_TABELA1[[#This Row],[RECURSOS PRÓPRIOS (R$)]]=\"\",ORÇAMENTO1_TABELA1[[#This Row],[MÊS DE UTILIZAÇÃO]]=\"\"),OR(ORÇAMENTO1_TABELA1[[#This Row],[DISCRIMINAÇÃO]]<>\"\",ORÇAMENTO1_TABELA1[[#This Row],[UN]]<>\"\",ORÇAMENTO1_TABELA1[[#This Row],[QTD]]<>\"\",ORÇAMENTO1_TABELA1[[#This Row],[CUSTO UN.\n(R$)]]<>\"\",ORÇAMENTO1_TABELA1[[#This Row],[RECURSOS PRÓPRIOS (R$)]]<>\"\",ORÇAMENTO1_TABELA1[[#This Row],[MÊS DE UTILIZAÇÃO]]<>\"\")),1,0)","v":1}]
[null,null,null,null,{"$f":"ORÇAMENTO1_TABELA1[[#This Row],[CUSTO UN.\n(R$)]]*ORÇAMENTO1_TABELA1[[#This Row],[QTD]]","v":0},null,{"$f":"ORÇAMENTO1_TABELA1[[#This Row],[CUSTO TOTAL\n(R$)]]-ORÇAMENTO1_TABELA1[[#This Row],[FINANCIADO\n (R$)]]","v":0},null,{"$f":"IF(AND(OR(ORÇAMENTO1_TABELA1[[#This Row],[DISCRIMINAÇÃO]]=\"\",ORÇAMENTO1_TABELA1[[#This Row],[UN]]=\"\",ORÇAMENTO1_TABELA1[[#This Row],[QTD]]=\"\",ORÇAMENTO1_TABELA1[[#This Row],[CUSTO UN.\n(R$)]]=\"\",ORÇAMENTO1_TABELA1[[#This Row],[RECURSOS PRÓPRIOS (R$)]]=\"\",ORÇAMENTO1_TABELA1[[#This Row],[MÊS DE UTILIZAÇÃO]]=\"\"),OR(ORÇAMENTO1_TABELA1[[#This Row],[DISCRIMINAÇÃO]]<>\"\",ORÇAMENTO1_TABELA1[[#This Row],[UN]]<>\"\",ORÇAMENTO1_TABELA1[[#This Row],[QTD]]<>\"\",ORÇAMENTO1_TABELA1[[#This Row],[CUSTO UN.\n(R$)]]<>\"\",ORÇAMENTO1_TABELA1[[#This Row],[RECURSOS PRÓPRIOS (R$)]]<>\"\",ORÇAMENTO1_TABELA1[[#This Row],[MÊS DE UTILIZAÇÃO]]<>\"\")),1,0)","v":1}]
["Total",null,null,null,{"$f":"IF(SUBTOTAL(109,ORÇAMENTO1_TABELA1[CUSTO TOTAL\n(R$)])=0,0,SUBTOTAL(109,ORÇAMENTO1_TABELA1[CUSTO TOTAL\n(R$)]))","v":0},{"$f":"IF(SUBTOTAL(109,ORÇAMENTO1_TABELA1[FINANCIADO\n (R$)])=0,0,SUBTOTAL(109,ORÇAMENTO1_TABELA1[FINANCIADO\n (R$)]))","v":0},{"$f":"IF(SUBTOTAL(109,ORÇAMENTO1_TABELA1[RECURSOS PRÓPRIOS (R$)])=0,0,SUBTOTAL(109,ORÇAMENTO1_TABELA1[RECURSOS PRÓPRIOS (R$)]))","v":0},null,{"$f":"SUBTOTAL(109,ORÇAMENTO1_TABELA1[EM BRANCO])","v":3}]
[]
[]
[]
["________________________________________",null,null,"________________________________________"]
[{"$f":"UPPER(EMPREENDIMENTO!F19)","v":""},null,null,{"$f":"UPPER(EMPREENDIMENTO!H15)","v":""}]
["Proponente",null,null,"Responsável Técnico"]

{"sheet":"REEMBOLSO","index":10,"n_rows":221,"n_cols":53,"rows_kept":221,"cut":false,"hidden":true,"merged":[[212,0,212,4],[212,5,212,8],[212,9,212,17],[212,18,212,26],[212,27,212,35],[212,36,212,44],[210,0,210,4],[210,5,210,8],[210,9,210,17],[210,18,210,26],[210,27,210,35],[210,36,210,44],[211,0,211,4],[211,5,211,8],[211,9,211,17],[211,18,211,26],[211,27,211,35],[211,36,211,44],[208,5,208,8],[208,9,208,17],[208,18,208,26],[208,27,208,35],[208,36,208,44],[209,0,209,4],[209,5,209,8],[209,9,209,17],[209,18,209,26],[209,27,209,35],[209,36,209,44],[182,0,182,3],[182,4,182,13],[182,14,182,23],[182,24,182,34],[182,35,182,44],[207,0,207,4],[207,5,207,8],[207,9,207,17],[207,18,207,26],[207,27,207,35],[207,36,207,44],[189,36,189,44],[190,0,190,4],[190,5,190,8],[190,9,190,17],[190,18,190,26],[190,27,190,35],[190,36,190,44],[185,0,185,44],[186,0,186,44],[187,5,187,8],[180,14,180,23],[180,24,180,34],[180,35,180,44],[181,0,181,3],[181,4,181,13],[181,14,181,23],[181,24,181,34],[181,35,181,44],[163,0,163,2],[163,3,163,10],[163,11,163,19],[163,20,163,28],[163,29,163,37],[163,38,163,44],[164,0,164,2],[164,3,164,10],[164,11,164,19],[164,20,164,28],[164,29,164,37],[164,38,164,44],[173,4,173,13],[174,4,174,13],[175,4,175,13],[176,4,176,13],[177,4,177,13],[173,14,173,23],[174,14,174,23],[175,14,175,23],[176,14,176,23],[177,14,177,23],[169,14,169,23],[170,14,170,23],[161,0,161,2],[161,3,161,10],[161,11,161,19],[161,20,161,28],[161,29,161,37],[161,38,161,44],[162,0,162,2],[162,3,162,10],[162,11,162,19],[162,20,162,28],[162,29,162,37],[162,38,162,44],[159,0,159,2],[159,3,159,10],[159,11,159,19],[159,20,159,28],[159,29,159,37],[159,38,159,44],[160,0,160,2],[160,3,160,10],[160,11,160,19],[160,20,160,28],[160,29,160,37],[160,38,160,44],[157,0,157,2],[157,3,157,10],[157,11,157,19],[157,20,157,28],[157,29,157,37],[157,38,157,44],[158,0,158,2],[158,3,158,10],[158,11,158,19],[158,20,158,28],[158,29,158,37],[158,38,158,44],[155,0,155,2],[155,3,155,10],[155,11,155,19],[155,20,155,28],[155,29,155,37],[155,38,155,44],[156,0,156,2],[156,3,156,10],[156,11,156,19],[156,20,156,28],[156,29,156,37],[156,38,156,44],[153,0,153,2],[153,3,153,10],[153,11,153,19],[153,20,153,28],[153,29,153,37],[153,38,153,44],[154,0,154,2],[154,3,154,10],[154,11,154,19],[154,20,154,28],[154,29,154,37],[154,38,154,44],[151,0,151,2],[151,3,151,10],[151,11,151,19],[151,20,151,28],[151,29,151,37],[151,38,151,44],[152,0,152,2],[152,3,152,10],[152,11,152,19],[152,20,152,28],[152,29,152,37],[152,38,152,44],[149,0,149,2],[149,3,149,10],[149,11,149,19],[149,20,149,28],[149,29,149,37],[149,38,149,44],[150,0,150,2],[150,3,150,10],[150,11,150,19],[150,20,150,28],[150,29,150,37],[150,38,150,44],[147,0,147,2],[147,3,147,10],[147,11,147,19],[147,20,147,28],[147,29,147,37],[147,38,147,44],[148,0,148,2],[148,3,148,10],[148,11,148,19],[148,20,148,28],[148,29,148,37],[148,38,148,44],[145,0,145,2],[145,3,145,10],[145,11,145,19],[145,20,145,28],[145,29,145,37],[145,38,145,44],[146,0,146,2],[146,3,146,10],[146,11,146,19],[146,20,146,28],[146,29,146,37],[146,38,146,44],[143,0,143,2],[143,3,143,10],[143,11,143,19],[143,20,143,28],[143,29,143,37],[143,38,143,44],[144,0,144,2],[144,3,144,10],[144,11,144,19],[144,20,144,28],[144,29,144,37],[144,38,144,44],[141,0,141,2],[141,3,141,10],[141,11,141,19],[141,20,141,28],[141,29,141,37],[141,38,141,44],[142,0,142,2],[142,3,142,10],[142,11,142,19],[142,20,142,28],[142,29,142,37],[142,38,142,44],[139,0,139,2],[139,3,139,10],[139,11,139,19],[139,20,139,28],[139,29,139,37],[139,38,139,44],[140,0,140,2],[140,3,140,10],[140,11,140,19],[140,20,140,28],[140,29,140,37],[140,38,140,44],[133,0,133,2],[133,3,133,10],[133,11,133,19],[133,20,133,28],[137,0,137,2],[137,3,137,10],[137,11,137,19],[137,20,137,28],[137,29,137,37],[137,38,137,44],[138,0,138,2],[138,3,138,10],[138,11,138,19],[138,20,138,28],[138,29,138,37],[138,38,138,44],[135,0,135,2],[135,3,135,10],[135,11,135,19],[135,20,135,28],[135,29,135,37],[135,38,135,44],[136,0,136,2],[136,3,136,10],[136,11,136,19],[136,20,136,28],[136,29,136,37],[136,38,136,44],[92,0,92,2],[92,3,92,10],[91,0,91,2],[91,3,91,10],[90,0,90,2],[90,3,90,10],[86,0,86,2],[86,3,86,10],[85,0,85,2],[85,3,85,10],[92,20,92,28],[92,11,92,19],[90,11,90,19],[91,11,91,19],[133,29,133,37],[133,38,133,44],[134,0,134,2],[134,3,134,10],[134,11,134,19],[134,20,134,28],[134,29,134,37],[134,38,134,44],[131,0,131,2],[131,3,131,10],[131,11,131,19],[131,20,131,28],[131,29,131,37],[131,38,131,44],[132,0,132,2],[132,3,132,10],[132,11,132,19],[132,20,132,28],[129,0,129,2],[129,3,129,10],[129,11,129,19],[129,20,129,28],[129,29,129,37],[129,38,129,44],[130,0,130,2],[130,3,130,10],[130,11,130,19],[130,20,130,28],[130,29,130,37],[130,38,130,44],[95,0,95,2],[95,3,95,10],[91,29,91,37],[92,38,92,44],[93,38,93,44],[94,38,94,44],[95,38,95,44],[96,38,96,44],[97,38,97,44],[98,38,98,44],[99,38,99,44],[100,38,100,44],[101,38,101,44],[102,38,102,44],[103,38,103,44],[104,38,104,44],[105,38,105,44],[106,38,106,44],[93,0,93,2],[93,3,93,10],[81,11,81,19],[82,11,82,19],[83,11,83,19],[84,11,84,19],[183,35,183,44],[85,11,85,19],[86,11,86,19],[87,11,87,19],[88,11,88,19],[89,11,89,19],[84,20,84,28],[124,38,124,44],[110,38,110,44],[111,38,111,44],[112,38,112,44],[113,38,113,44],[114,38,114,44],[115,38,115,44],[116,38,116,44],[117,38,117,44],[127,38,127,44],[128,38,128,44],[165,38,165,44],[85,20,85,28],[86,20,86,28],[87,20,87,28],[88,20,88,28],[89,20,89,28],[90,20,90,28],[91,20,91,28],[132,29,132,37],[132,38,132,44],[92,29,92,37],[24,11,24,19],[10,20,10,28],[11,20,11,28],[12,20,12,28],[13,20,13,28],[14,20,14,28],[15,20,15,28],[16,20,16,28],[17,20,17,28],[75,20,75,28],[76,20,76,28],[77,20,77,28],[78,20,78,28],[18,11,18,19],[19,11,19,19],[79,20,79,28],[80,20,80,28],[22,11,22,19],[23,11,23,19],[14,11,14,19],[20,11,20,19],[21,11,21,19],[81,20,81,28],[82,20,82,28],[83,20,83,28],[75,11,75,19],[76,11,76,19],[77,11,77,19],[78,11,78,19],[79,11,79,19],[80,11,80,19],[82,29,82,37],[83,29,83,37],[118,38,118,44],[119,38,119,44],[120,38,120,44],[121,38,121,44],[122,38,122,44],[123,38,123,44],[125,38,125,44],[126,38,126,44],[83,38,83,44],[84,38,84,44],[85,38,85,44],[86,38,86,44],[87,38,87,44],[88,38,88,44],[89,38,89,44],[121,29,121,37],[122,29,122,37],[123,29,123,37],[84,29,84,37],[85,29,85,37],[86,29,86,37],[87,29,87,37],[88,29,88,37],[107,38,107,44],[108,38,108,44],[109,38,109,44],[90,38,90,44],[91,38,91,44],[89,29,89,37],[90,29,90,37],[54,38,54,44],[76,38,76,44],[77,38,77,44],[78,38,78,44],[79,38,79,44],[80,38,80,44],[81,38,81,44],[82,38,82,44],[9,29,9,37],[10,29,10,37],[11,29,11,37],[12,29,12,37],[13,29,13,37],[14,29,14,37],[15,29,15,37],[16,29,16,37],[17,29,17,37],[18,29,18,37],[19,29,19,37],[20,29,20,37],[21,29,21,37],[22,29,22,37],[23,29,23,37],[24,29,24,37],[25,29,25,37],[75,29,75,37],[76,29,76,37],[77,29,77,37],[78,29,78,37],[79,29,79,37],[80,29,80,37],[81,29,81,37],[21,38,21,44],[22,38,22,44],[14,38,14,44],[49,38,49,44],[50,38,50,44],[51,38,51,44],[52,38,52,44],[72,38,72,44],[39,38,39,44],[40,38,40,44],[41,38,41,44],[42,38,42,44],[43,38,43,44],[44,38,44,44],[45,38,45,44],[46,38,46,44],[47,38,47,44],[48,38,48,44],[55,38,55,44],[65,38,65,44],[66,38,66,44],[67,38,67,44],[68,38,68,44],[69,38,69,44],[70,38,70,44],[56,38,56,44],[57,38,57,44],[58,38,58,44],[59,38,59,44],[60,38,60,44],[71,38,71,44],[53,38,53,44],[26,29,26,37],[27,29,27,37],[24,20,24,28],[10,11,10,19],[11,11,11,19],[12,11,12,19],[13,11,13,19],[73,38,73,44],[74,38,74,44],[75,38,75,44],[24,38,24,44],[62,38,62,44],[63,38,63,44],[64,38,64,44],[8,38,8,44],[9,38,9,44],[10,38,10,44],[11,38,11,44],[12,38,12,44],[13,38,13,44],[34,38,34,44],[35,38,35,44],[36,38,36,44],[37,38,37,44],[38,38,38,44],[61,38,61,44],[15,38,15,44],[16,38,16,44],[17,38,17,44],[18,38,18,44],[19,38,19,44],[20,38,20,44],[11,0,11,2],[11,3,11,10],[15,3,15,10],[15,0,15,2],[28,0,28,2],[28,3,28,10],[43,3,43,10],[23,38,23,44],[8,11,8,19],[8,20,8,28],[8,29,8,37],[28,29,28,37],[29,29,29,37],[30,29,30,37],[31,29,31,37],[32,29,32,37],[33,29,33,37],[25,20,25,28],[26,20,26,28],[25,11,25,19],[28,20,28,28],[29,20,29,28],[27,11,27,19],[28,11,28,19],[29,11,29,19],[9,20,9,28],[9,11,9,19],[18,20,18,28],[20,20,20,28],[21,20,21,28],[22,20,22,28],[23,20,23,28],[6,0,6,44],[76,3,76,10],[79,0,79,2],[25,38,25,44],[26,38,26,44],[27,38,27,44],[28,38,28,44],[29,38,29,44],[30,38,30,44],[31,38,31,44],[32,38,32,44],[33,38,33,44],[19,20,19,28],[15,11,15,19],[16,11,16,19],[17,11,17,19],[56,0,56,2],[56,3,56,10],[55,0,55,2],[55,3,55,10],[54,0,54,2],[54,3,54,10],[62,0,62,2],[20,0,20,2],[20,3,20,10],[19,0,19,2],[19,3,19,10],[18,0,18,2],[18,3,18,10],[23,0,23,2],[23,3,23,10],[22,0,22,2],[88,3,88,10],[87,0,87,2],[87,3,87,10],[83,0,83,2],[83,3,83,10],[82,0,82,2],[82,3,82,10],[81,0,81,2],[81,3,81,10],[10,0,10,2],[10,3,10,10],[14,0,14,2],[14,3,14,10],[13,0,13,2],[13,3,13,10],[12,0,12,2],[12,3,12,10],[17,0,17,2],[77,0,77,2],[75,0,75,2],[21,3,21,10],[26,0,26,2],[26,3,26,10],[25,0,25,2],[25,3,25,10],[24,0,24,2],[24,3,24,10],[27,0,27,2],[27,3,27,10],[35,0,35,2],[35,3,35,10],[34,0,34,2],[73,0,73,2],[73,3,73,10],[72,0,72,2],[72,3,72,10],[78,3,78,10],[77,3,77,10],[76,0,76,2],[7,0,7,44],[8,3,8,10],[75,3,75,10],[26,11,26,19],[27,20,27,28],[30,0,30,2],[30,3,30,10],[30,20,30,28],[30,11,30,19],[37,0,37,2],[37,3,37,10],[36,0,36,2],[36,3,36,10],[9,0,9,2],[9,3,9,10],[8,0,8,2],[34,3,34,10],[33,0,33,2],[33,3,33,10],[41,0,41,2],[41,3,41,10],[40,0,40,2],[40,3,40,10],[39,0,39,2],[48,3,48,10],[80,3,80,10],[79,3,79,10],[42,0,42,2],[42,3,42,10],[96,20,96,28],[93,11,93,19],[94,11,94,19],[95,11,95,19],[96,0,96,2],[96,3,96,10],[94,0,94,2],[94,3,94,10],[96,11,96,19],[106,11,106,19],[17,3,17,10],[16,0,16,2],[16,3,16,10],[29,0,29,2],[29,3,29,10],[39,3,39,10],[44,0,44,2],[44,3,44,10],[43,0,43,2],[80,0,80,2],[78,0,78,2],[50,0,50,2],[50,3,50,10],[49,0,49,2],[49,3,49,10],[48,0,48,2],[22,3,22,10],[21,0,21,2],[97,11,97,19],[98,11,98,19],[99,11,99,19],[102,0,102,2],[102,3,102,10],[101,0,101,2],[101,3,101,10],[100,0,100,2],[100,3,100,10],[100,29,100,37],[101,29,101,37],[102,29,102,37],[100,20,100,28],[101,20,101,28],[102,20,102,28],[100,11,100,19],[101,11,101,19],[102,11,102,19],[99,0,99,2],[99,3,99,10],[98,0,98,2],[98,3,98,10],[97,0,97,2],[97,3,97,10],[105,0,105,2],[105,3,105,10],[104,0,104,2],[104,3,104,10],[103,0,103,2],[103,3,103,10],[103,29,103,37],[104,29,104,37],[105,29,105,37],[103,20,103,28],[104,20,104,28],[105,20,105,28],[105,11,105,19],[104,11,104,19],[103,11,103,19],[108,0,108,2],[108,3,108,10],[107,0,107,2],[107,3,107,10],[106,0,106,2],[106,3,106,10],[106,29,106,37],[107,29,107,37],[108,29,108,37],[106,20,106,28],[107,20,107,28],[108,20,108,28],[107,11,107,19],[108,11,108,19],[111,0,111,2],[111,3,111,10],[110,0,110,2],[110,3,110,10],[109,0,109,2],[109,3,109,10],[115,3,115,10],[118,0,118,2],[109,29,109,37],[110,29,110,37],[111,29,111,37],[109,20,109,28],[110,20,110,28],[111,20,111,28],[109,11,109,19],[110,11,110,19],[111,11,111,19],[114,0,114,2],[114,3,114,10],[113,0,113,2],[113,3,113,10],[112,0,112,2],[112,3,112,10],[112,29,112,37],[113,29,113,37],[114,29,114,37],[112,20,112,28],[113,20,113,28],[114,20,114,28],[113,11,113,19],[114,11,114,19],[112,11,112,19],[116,29,116,37],[117,29,117,37],[115,20,115,28],[116,20,116,28],[117,20,117,28],[115,11,115,19],[116,11,116,19],[117,11,117,19],[124,11,124,19],[125,11,125,19],[120,3,120,10],[121,20,121,28],[122,20,122,28],[123,20,123,28],[121,11,121,19],[122,11,122,19],[122,0,122,2],[122,3,122,10],[121,0,121,2],[121,3,121,10],[118,11,118,19],[119,11,119,19],[120,11,120,19],[117,0,117,2],[120,0,120,2],[118,3,118,10],[119,0,119,2],[119,3,119,10],[32,0,32,2],[32,3,32,10],[31,0,31,2],[31,3,31,10],[31,20,31,28],[32,20,32,28],[31,11,31,19],[32,11,32,19],[34,29,34,37],[35,29,35,37],[33,20,33,28],[34,20,34,28],[35,20,35,28],[33,11,33,19],[34,11,34,19],[35,11,35,19],[38,0,38,2],[38,3,38,10],[36,29,36,37],[37,29,37,37],[38,29,38,37],[36,20,36,28],[37,20,37,28],[38,20,38,28],[36,11,36,19],[37,11,37,19],[38,11,38,19],[39,29,39,37],[40,29,40,37],[41,29,41,37],[39,20,39,28],[40,20,40,28],[41,20,41,28],[39,11,39,19],[40,11,40,19],[41,11,41,19],[42,29,42,37],[43,29,43,37],[44,29,44,37],[42,20,42,28],[43,20,43,28],[44,20,44,28],[42,11,42,19],[43,11,43,19],[44,11,44,19],[47,0,47,2],[47,3,47,10],[46,0,46,2],[46,3,46,10],[45,0,45,2],[45,3,45,10],[45,29,45,37],[46,29,46,37],[47,29,47,37],[45,20,45,28],[46,20,46,28],[47,20,47,28],[45,11,45,19],[46,11,46,19],[47,11,47,19],[48,29,48,37],[49,29,49,37],[50,29,50,37],[48,20,48,28],[49,20,49,28],[50,20,50,28],[48,11,48,19],[49,11,49,19],[50,11,50,19],[53,0,53,2],[53,3,53,10],[52,0,52,2],[52,3,52,10],[51,0,51,2],[51,3,51,10],[51,29,51,37],[52,29,52,37],[53,29,53,37],[51,20,51,28],[52,20,52,28],[53,20,53,28],[51,11,51,19],[52,11,52,19],[53,11,53,19],[54,29,54,37],[55,29,55,37],[56,29,56,37],[54,20,54,28],[55,20,55,28],[56,20,56,28],[54,11,54,19],[55,11,55,19],[56,11,56,19],[59,0,59,2],[59,3,59,10],[58,0,58,2],[58,3,58,10],[57,0,57,2],[57,3,57,10],[57,29,57,37],[58,29,58,37],[59,29,59,37],[57,20,57,28],[58,20,58,28],[59,20,59,28],[57,11,57,19],[58,11,58,19],[59,11,59,19],[60,29,60,37],[61,29,61,37],[62,29,62,37],[60,20,60,28],[61,20,61,28],[62,20,62,28],[60,11,60,19],[61,11,61,19],[62,11,62,19],[65,0,65,2],[65,3,65,10],[64,0,64,2],[64,3,64,10],[63,0,63,2],[63,3,63,10],[63,29,63,37],[64,29,64,37],[65,29,65,37],[63,20,63,28],[64,20,64,28],[65,20,65,28],[63,11,63,19],[64,11,64,19],[65,11,65,19],[62,3,62,10],[61,0,61,2],[61,3,61,10],[60,0,60,2],[60,3,60,10],[66,29,66,37],[67,29,67,37],[68,29,68,37],[66,20,66,28],[67,20,67,28],[68,20,68,28],[66,11,66,19],[67,11,67,19],[68,11,68,19],[71,0,71,2],[71,3,71,10],[70,0,70,2],[70,3,70,10],[69,0,69,2],[69,3,69,10],[69,29,69,37],[70,29,70,37],[71,29,71,37],[69,20,69,28],[70,20,70,28],[71,20,71,28],[69,11,69,19],[70,11,70,19],[71,11,71,19],[68,0,68,2],[68,3,68,10],[67,0,67,2],[67,3,67,10],[66,0,66,2],[66,3,66,10],[84,0,84,2],[84,3,84,10],[89,0,89,2],[89,3,89,10],[88,0,88,2],[165,11,165,19],[123,11,123,19],[124,29,124,37],[125,29,125,37],[126,29,126,37],[124,20,124,28],[125,20,125,28],[126,20,126,28],[165,0,165,2],[165,3,165,10],[128,0,128,2],[128,3,128,10],[127,0,127,2],[127,3,127,10],[126,0,126,2],[126,3,126,10],[125,0,125,2],[125,3,125,10],[124,0,124,2],[124,3,124,10],[123,0,123,2],[123,3,123,10],[117,3,117,10],[116,0,116,2],[116,3,116,10],[115,0,115,2],[115,29,115,37],[72,29,72,37],[73,29,73,37],[74,29,74,37],[72,20,72,28],[73,20,73,28],[74,20,74,28],[72,11,72,19],[73,11,73,19],[74,11,74,19],[126,11,126,19],[118,29,118,37],[119,29,119,37],[120,29,120,37],[118,20,118,28],[119,20,119,28],[120,20,120,28],[170,35,170,44],[169,24,169,34]],"merged_total":1204,"flags":["merged_cut"]}
[null,null,null,null,null,null,null,null,null,null,null,null,null,null,null,null,null,null,null,null,null,null,null,null,null,null,null,null,null,null,null,null,null,null,null,null,null,null,null,null,null,null,null,null,null,null,"SINALIZADORES DE INCLUSÃO E EXCLUSÃO (IMPORTANTES)!!!!"]
[]
[]
[]
[]
[]
["REEMBOLSO MENSAL"]
["MÊS"]
["PARCELA",null,null,"VENCIMENTO",null,null,null,null,null,null,null,"AMORTIZAÇÃO\n(R$)",null,null,null,null,null,null,null,null,"JUROS\n(R$)",null,null,null,null,null,null,null,null,"VALOR PARCELA\n(R$)",null,null,null,null,null,null,null,null,"SALDO DEVEDOR\n(R$)",null,null,null,null,null,null,null,null,null,null,null,"ACUMULADO"]
["-",null,null,"-",null,null,null,null,null,null,null,"-",null,null,null,null,null,null,null,null,"-",null,null,null,null,null,null,null,null,"-",null,null,null,null,null,null,null,null,{"$f":"VALOR_TOTAL","v":0},null,null,null,null,null,null,null,null,null,null,{"$f":"IF(AM10>0,\"SIM\",\"NÃO\")","v":"NÃO"},{"$f":"ROUNDDOWN(IF(L10=0,U10+AY9,0),2)","v":0}]
[1,null,null,{"$f":"IFERROR(DATE(EMPREENDIMENTO!$AP$63,VLOOKUP(EMPREENDIMENTO!$AJ$63,LISTAS!$C$2:$D$13,2,0)+A11,1),\"-\")","v":"-"},null,null,null,null,null,null,null,{"$f":"IF(A11>PRAZO_TOTAL,0,IF(A11<=VLOOKUP(EMPREENDIMENTO!$AO$69,LISTAS!L:M,2,0),0,VALOR_TOTAL/(PRAZO_TOTAL-CARENCIA)))","v":{"$error":"#N/A"}},null,null,null,null,null,null,null,null,{"$f":"IF(AM10*(((1+TAXA_JUROS)^(1/12))-1)<0,0,AM10*(((1+TAXA_JUROS)^(1/12))-1))","v":0},null,null,null,null,null,null,null,null,{"$f":"IF(AM11<0,0,IF(L11=0,0,U11+L11+AY10))","v":{"$error":"#N/A"}},null,null,null,null,null,null,null,null,{"$f":"IF(L11=0,AM10-L11+U11,AM10-L11-AY10)","v":{"$error":"#N/A"}},null,null,null,null,null,null,null,null,null,{"$f":"YEAR(D11)","v":{"$error":"#VALUE!"}},{"$f":"IF(AM11>0,\"SIM\",\"NÃO\")","v":{"$error":"#N/A"}},{"$f":"IF(L11=0,U11+AY10,0)","v":{"$error":"#N/A"}},1,1]
[2,null,null,{"$f":"IFERROR(DATE(EMPREENDIMENTO!$AP$63,VLOOKUP(EMPREENDIMENTO!$AJ$63,LISTAS!$C$2:$D$13,2,0)+A12,1),\"-\")","v":"-"},null,null,null,null,null,null,null,{"$f":"IF(A12>PRAZO_TOTAL,0,IF(A12<=VLOOKUP(EMPREENDIMENTO!$AO$69,LISTAS!L:M,2,0),0,VALOR_TOTAL/(PRAZO_TOTAL-CARENCIA)))","v":0},null,null,null,null,null,null,null,null,{"$error":"#N/A"},null,null,null,null,null,null,null,null,{"$error":"#N/A"},null,null,null,null,null,null,null,null,{"$error":"#N/A"},null,null,null,null,null,null,null,null,null,{"$error":"#VALUE!"},{"$f":"IF(AM12>0,\"SIM\",\"NÃO\")","v":{"$error":"#N/A"}},{"$f":"IF(L12=0,U12+AY11,0)","v":{"$error":"#N/A"}},1,1]
[3,null,null,{"$f":"IFERROR(DATE(EMPREENDIMENTO!$AP$63,VLOOKUP(EMPREENDIMENTO!$AJ$63,LISTAS!$C$2:$D$13,2,0)+A13,1),\"-\")","v":"-"},null,null,null,null,null,null,null,{"$f":"IF(A13>PRAZO_TOTAL,0,IF(A13<=VLOOKUP(EMPREENDIMENTO!$AO$69,LISTAS!L:M,2,0),0,VALOR_TOTAL/(PRAZO_TOTAL-CARENCIA)))","v":0},null,null,null,null,null,null,null,null,{"$error":"#N/A"},null,null,null,null,null,null,null,null,{"$error":"#N/A"},null,null,null,null,null,null,null,null,{"$error":"#N/A"},null,null,null,null,null,null,null,null,null,{"$error":"#VALUE!"},{"$error":"#N/A"},{"$error":"#N/A"},1,1]
[4,null,null,{"$f":"IFERROR(DATE(EMPREENDIMENTO!$AP$63,VLOOKUP(EMPREENDIMENTO!$AJ$63,LISTAS!$C$2:$D$13,2,0)+A14,1),\"-\")","v":"-"},null,null,null,null,null,null,null,{"$f":"IF(A14>PRAZO_TOTAL,0,IF(A14<=VLOOKUP(EMPREENDIMENTO!$AO$69,LISTAS!L:M,2,0),0,VALOR_TOTAL/(PRAZO_TOTAL-CARENCIA)))","v":0},null,null,null,null,null,null,null,null,{"$error":"#N/A"},null,null,null,null,null,null,null,null,{"$error":"#N/A"},null,null,null,null,null,null,null,null,{"$error":"#N/A"},null,null,null,null,null,null,null,null,null,{"$error":"#VALUE!"},{"$error":"#N/A"},{"$error":"#N/A"},1,1]
[5,null,null,{"$f":"IFERROR(DATE(EMPREENDIMENTO!$AP$63,VLOOKUP(EMPREENDIMENTO!$AJ$63,LISTAS!$C$2:$D$13,2,0)+A15,1),\"-\")","v":"-"},null,null,null,null,null,null,null,{"$f":"IF(A15>PRAZO_TOTAL,0,IF(A15<=VLOOKUP(EMPREENDIMENTO!$AO$69,LISTAS!L:M,2,0),0,VALOR_TOTAL/(PRAZO_TOTAL-CARENCIA)))","v":0},null,null,null,null,null,null,null,null,{"$error":"#N/A"},null,null,null,null,null,null,null,null,{"$error":"#N/A"},null,null,null,null,null,null,null,null,{"$error":"#N/A"},null,null,null,null,null,null,null,null,null,{"$error":"#VALUE!"},{"$error":"#N/A"},{"$error":"#N/A"},1,1]
[6,null,null,{"$f":"IFERROR(DATE(EMPREENDIMENTO!$AP$63,VLOOKUP(EMPREENDIMENTO!$AJ$63,LISTAS!$C$2:$D$13,2,0)+A16,1),\"-\")","v":"-"},null,null,null,null,null,null,null,{"$f":"IF(A16>PRAZO_TOTAL,0,IF(A16<=VLOOKUP(EMPREENDIMENTO!$AO$69,LISTAS!L:M,2,0),0,VALOR_TOTAL/(PRAZO_TOTAL-CARENCIA)))","v":0},null,null,null,null,null,null,null,null,{"$error":"#N/A"},null,null,null,null,null,null,null,null,{"$error":"#N/A"},null,null,null,null,null,null,null,null,{"$error":"#N/A"},null,null,null,null,null,null,null,null,null,{"$error":"#VALUE!"},{"$error":"#N/A"},{"$error":"#N/A"},1,1]
[7,null,null,{"$f":"IFERROR(DATE(EMPREENDIMENTO!$AP$63,VLOOKUP(EMPREENDIMENTO!$AJ$63,LISTAS!$C$2:$D$13,2,0)+A17,1),\"-\")","v":"-"},null,null,null,null,null,null,null,{"$f":"IF(A17>PRAZO_TOTAL,0,IF(A17<=VLOOKUP(EMPREENDIMENTO!$AO$69,LISTAS!L:M,2,0),0,VALOR_TOTAL/(PRAZO_TOTAL-CARENCIA)))","v":0},null,null,null,null,null,null,null,null,{"$error":"#N/A"},null,null,null,null,null,null,null,null,{"$error":"#N/A"},null,null,null,null,null,null,null,null,{"$error":"#N/A"},null,null,null,null,null,null,null,null,null,{"$error":"#VALUE!"},{"$error":"#N/A"},{"$error":"#N/A"},1,2]
[8,null,null,{"$f":"IFERROR(DATE(EMPREENDIMENTO!$AP$63,VLOOKUP(EMPREENDIMENTO!$AJ$63,LISTAS!$C$2:$D$13,2,0)+A18,1),\"-\")","v":"-"},null,null,null,null,null,null,null,{"$f":"IF(A18>PRAZO_TOTAL,0,IF(A18<=VLOOKUP(EMPREENDIMENTO!$AO$69,LISTAS!L:M,2,0),0,VALOR_TOTAL/(PRAZO_TOTAL-CARENCIA)))","v":0},null,null,null,null,null,null,null,null,{"$error":"#N/A"},null,null,null,null,null,null,null,null,{"$error":"#N/A"},null,null,null,null,null,null,null,null,{"$error":"#N/A"},null,null,null,null,null,null,null,null,null,{"$error":"#VALUE!"},{"$error":"#N/A"},{"$error":"#N/A"},1,2]
[9,null,null,{"$f":"IFERROR(DATE(EMPREENDIMENTO!$AP$63,VLOOKUP(EMPREENDIMENTO!$AJ$63,LISTAS!$C$2:$D$13,2,0)+A19,1),\"-\")","v":"-"},null,null,null,null,null,null,null,{"$f":"IF(A19>PRAZO_TOTAL,0,IF(A19<=VLOOKUP(EMPREENDIMENTO!$AO$69,LISTAS!L:M,2,0),0,VALOR_TOTAL/(PRAZO_TOTAL-CARENCIA)))","v":0},null,null,null,null,null,null,null,null,{"$error":"#N/A"},null,null,null,null,null,null,null,null,{"$error":"#N/A"},null,null,null,null,null,null,null,null,{"$error":"#N/A"},null,null,null,null,null,null,null,null,null,{"$error":"#VALUE!"},{"$error":"#N/A"},{"$error":"#N/A"},1,2]
[10,null,null,{"$f":"IFERROR(DATE(EMPREENDIMENTO!$AP$63,VLOOKUP(EMPREENDIMENTO!$AJ$63,LISTAS!$C$2:$D$13,2,0)+A20,1),\"-\")","v":"-"},null,null,null,null,null,null,null,{"$f":"IF(A20>PRAZO_TOTAL,0,IF(A20<=VLOOKUP(EMPREENDIMENTO!$AO$69,LISTAS!L:M,2,0),0,VALOR_TOTAL/(PRAZO_TOTAL-CARENCIA)))","v":0},null,null,null,null,null,null,null,null,{"$error":"#N/A"},null,null,null,null,null,null,null,null,{"$error":"#N/A"},null,null,null,null,null,null,null,null,{"$error":"#N/A"},null,null,null,null,null,null,null,null,null,{"$error":"#VALUE!"},{"$error":"#N/A"},{"$error":"#N/A"},1,2]
[11,null,null,{"$f":"IFERROR(DATE(EMPREENDIMENTO!$AP$63,VLOOKUP(EMPREENDIMENTO!$AJ$63,LISTAS!$C$2:$D$13,2,0)+A21,1),\"-\")","v":"-"},null,null,null,null,null,null,null,{"$f":"IF(A21>PRAZO_TOTAL,0,IF(A21<=VLOOKUP(EMPREENDIMENTO!$AO$69,LISTAS!L:M,2,0),0,VALOR_TOTAL/(PRAZO_TOTAL-CARENCIA)))","v":0},null,null,null,null,null,null,null,null,{"$error":"#N/A"},null,null,null,null,null,null,null,null,{"$error":"#N/A"},null,null,null,null,null,null,null,null,{"$error":"#N/A"},null,null,null,null,null,null,null,null,null,{"$error":"#VALUE!"},{"$error":"#N/A"},{"$error":"#N/A"},1,2]
[12,null,null,{"$f":"IFERROR(DATE(EMPREENDIMENTO!$AP$63,VLOOKUP(EMPREENDIMENTO!$AJ$63,LISTAS!$C$2:$D$13,2,0)+A22,1),\"-\")","v":"-"},null,null,null,null,null,null,null,{"$f":"IF(A22>PRAZO_TOTAL,0,IF(A22<=VLOOKUP(EMPREENDIMENTO!$AO$69,LISTAS!L:M,2,0),0,VALOR_TOTAL/(PRAZO_TOTAL-CARENCIA)))","v":0},null,null,null,null,null,null,null,null,{"$error":"#N/A"},null,null,null,null,null,null,null,null,{"$error":"#N/A"},null,null,null,null,null,null,null,null,{"$error":"#N/A"},null,null,null,null,null,null,null,null,null,{"$error":"#VALUE!"},{"$error":"#N/A"},{"$error":"#N/A"},1,2]
[13,null,null,{"$f":"IFERROR(DATE(EMPREENDIMENTO!$AP$63,VLOOKUP(EMPREENDIMENTO!$AJ$63,LISTAS!$C$2:$D$13,2,0)+A23,1),\"-\")","v":"-"},null,null,null,null,null,null,null,{"$f":"IF(A23>PRAZO_TOTAL,0,IF(A23<=VLOOKUP(EMPREENDIMENTO!$AO$69,LISTAS!L:M,2,0),0,VALOR_TOTAL/(PRAZO_TOTAL-CARENCIA)))","v":0},null,null,null,null,null,null,null,null,{"$error":"#N/A"},null,null,null,null,null,null,null,null,{"$error":"#N/A"},null,null,null,null,null,null,null,null,{"$error":"#N/A"},null,null,null,null,null,null,null,null,null,{"$error":"#VALUE!"},{"$error":"#N/A"},{"$error":"#N/A"},2,{"$f":"BA17+1","v":3}]
[14,null,null,{"$f":"IFERROR(DATE(EMPREENDIMENTO!$AP$63,VLOOKUP(EMPREENDIMENTO!$AJ$63,LISTAS!$C$2:$D$13,2,0)+A24,1),\"-\")","v":"-"},null,null,null,null,null,null,null,{"$f":"IF(A24>PRAZO_TOTAL,0,IF(A24<=VLOOKUP(EMPREENDIMENTO!$AO$69,LISTAS!L:M,2,0),0,VALOR_TOTAL/(PRAZO_TOTAL-CARENCIA)))","v":0},null,null,null,null,null,null,null,null,{"$error":"#N/A"},null,null,null,null,null,null,null,null,{"$error":"#N/A"},null,null,null,null,null,null,null,null,{"$error":"#N/A"},null,null,null,null,null,null,null,null,null,{"$error":"#VALUE!"},{"$error":"#N/A"},{"$error":"#N/A"},2,{"$f":"BA18+1","v":3}]
[15,null,null,{"$f":"IFERROR(DATE(EMPREENDIMENTO!$AP$63,VLOOKUP(EMPREENDIMENTO!$AJ$63,LISTAS!$C$2:$D$13,2,0)+A25,1),\"-\")","v":"-"},null,null,null,null,null,null,null,{"$f":"IF(A25>PRAZO_TOTAL,0,IF(A25<=VLOOKUP(EMPREENDIMENTO!$AO$69,LISTAS!L:M,2,0),0,VALOR_TOTAL/(PRAZO_TOTAL-CARENCIA)))","v":0},null,null,null,null,null,null,null,null,{"$error":"#N/A"},null,null,null,null,null,null,null,null,{"$error":"#N/A"},null,null,null,null,null,null,null,null,{"$error":"#N/A"},null,null,null,null,null,null,null,null,null,{"$error":"#VALUE!"},{"$error":"#N/A"},{"$error":"#N/A"},2,3]
[16,null,null,{"$f":"IFERROR(DATE(EMPREENDIMENTO!$AP$63,VLOOKUP(EMPREENDIMENTO!$AJ$63,LISTAS!$C$2:$D$13,2,0)+A26,1),\"-\")","v":"-"},null,null,null,null,null,null,null,{"$f":"IF(A26>PRAZO_TOTAL,0,IF(A26<=VLOOKUP(EMPREENDIMENTO!$AO$69,LISTAS!L:M,2,0),0,VALOR_TOTAL/(PRAZO_TOTAL-CARENCIA)))","v":0},null,null,null,null,null,null,null,null,{"$error":"#N/A"},null,null,null,null,null,null,null,null,{"$error":"#N/A"},null,null,null,null,null,null,null,null,{"$error":"#N/A"},null,null,null,null,null,null,null,null,null,{"$error":"#VALUE!"},{"$error":"#N/A"},{"$error":"#N/A"},2,3]
[17,null,null,{"$f":"IFERROR(DATE(EMPREENDIMENTO!$AP$63,VLOOKUP(EMPREENDIMENTO!$AJ$63,LISTAS!$C$2:$D$13,2,0)+A27,1),\"-\")","v":"-"},null,null,null,null,null,null,null,{"$f":"IF(A27>PRAZO_TOTAL,0,IF(A27<=VLOOKUP(EMPREENDIMENTO!$AO$69,LISTAS!L:M,2,0),0,VALOR_TOTAL/(PRAZO_TOTAL-CARENCIA)))","v":0},null,null,null,null,null,null,null,null,{"$error":"#N/A"},null,null,null,null,null,null,null,null,{"$error":"#N/A"},null,null,null,null,null,null,null,null,{"$error":"#N/A"},null,null,null,null,null,null,null,null,null,{"$error":"#VALUE!"},{"$error":"#N/A"},{"$error":"#N/A"},2,3]
[18,null,null,{"$f":"IFERROR(DATE(EMPREENDIMENTO!$AP$63,VLOOKUP(EMPREENDIMENTO!$AJ$63,LISTAS!$C$2:$D$13,2,0)+A28,1),\"-\")","v":"-"},null,null,null,null,null,null,null,{"$f":"IF(A28>PRAZO_TOTAL,0,IF(A28<=VLOOKUP(EMPREENDIMENTO!$AO$69,LISTAS!L:M,2,0),0,VALOR_TOTAL/(PRAZO_TOTAL-CARENCIA)))","v":0},null,null,null,null,null,null,null,null,{"$error":"#N/A"},null,null,null,null,null,null,null,null,{"$error":"#N/A"},null,null,null,null,null,null,null,null,{"$error":"#N/A"},null,null,null,null,null,null,null,null,null,{"$error":"#VALUE!"},{"$error":"#N/A"},{"$error":"#N/A"},2,3]
[19,null,null,{"$f":"IFERROR(DATE(EMPREENDIMENTO!$AP$63,VLOOKUP(EMPREENDIMENTO!$AJ$63,LISTAS!$C$2:$D$13,2,0)+A29,1),\"-\")","v":"-"},null,null,null,null,null,null,null,{"$f":"IF(A29>PRAZO_TOTAL,0,IF(A29<=VLOOKUP(EMPREENDIMENTO!$AO$69,LISTAS!L:M,2,0),0,VALOR_TOTAL/(PRAZO_TOTAL-CARENCIA)))","v":0},null,null,null,null,null,null,null,null,{"$error":"#N/A"},null,null,null,null,null,null,null,null,{"$error":"#N/A"},null,null,null,null,null,null,null,null,{"$error":"#N/A"},null,null,null,null,null,null,null,null,null,{"$error":"#VALUE!"},{"$error":"#N/A"},{"$error":"#N/A"},2,4]
[20,null,null,{"$f":"IFERROR(DATE(EMPREENDIMENTO!$AP$63,VLOOKUP(EMPREENDIMENTO!$AJ$63,LISTAS!$C$2:$D$13,2,0)+A30,1),\"-\")","v":"-"},null,null,null,null,null,null,null,{"$f":"IF(A30>PRAZO_TOTAL,0,IF(A30<=VLOOKUP(EMPREENDIMENTO!$AO$69,LISTAS!L:M,2,0),0,VALOR_TOTAL/(PRAZO_TOTAL-CARENCIA)))","v":0},null,null,null,null,null,null,null,null,{"$error":"#N/A"},null,null,null,null,null,null,null,null,{"$error":"#N/A"},null,null,null,null,null,null,null,null,{"$error":"#N/A"},null,null,null,null,null,null,null,null,null,{"$error":"#VALUE!"},{"$error":"#N/A"},{"$error":"#N/A"},2,4]
[21,null,null,{"$f":"IFERROR(DATE(EMPREENDIMENTO!$AP$63,VLOOKUP(EMPREENDIMENTO!$AJ$63,LISTAS!$C$2:$D$13,2,0)+A31,1),\"-\")","v":"-"},null,null,null,null,null,null,null,{"$f":"IF(A31>PRAZO_TOTAL,0,IF(A31<=VLOOKUP(EMPREENDIMENTO!$AO$69,LISTAS!L:M,2,0),0,VALOR_TOTAL/(PRAZO_TOTAL-CARENCIA)))","v":0},null,null,null,null,null,null,null,null,{"$error":"#N/A"},null,null,null,null,null,null,null,null,{"$error":"#N/A"},null,null,null,null,null,null,null,null,{"$error":"#N/A"},null,null,null,null,null,null,null,null,null,{"$error":"#VALUE!"},{"$error":"#N/A"},{"$error":"#N/A"},2,4]
[22,null,null,{"$f":"IFERROR(DATE(EMPREENDIMENTO!$AP$63,VLOOKUP(EMPREENDIMENTO!$AJ$63,LISTAS!$C$2:$D$13,2,0)+A32,1),\"-\")","v":"-"},null,null,null,null,null,null,null,{"$f":"IF(A32>PRAZO_TOTAL,0,IF(A32<=VLOOKUP(EMPREENDIMENTO!$AO$69,LISTAS!L:M,2,0),0,VALOR_TOTAL/(PRAZO_TOTAL-CARENCIA)))","v":0},null,null,null,null,null,null,null,null,{"$error":"#N/A"},null,null,null,null,null,null,null,null,{"$error":"#N/A"},null,null,null,null,null,null,null,null,{"$error":"#N/A"},null,null,null,null,null,null,null,null,null,{"$error":"#VALUE!"},{"$error":"#N/A"},{"$error":"#N/A"},2,4]
[23,null,null,{"$f":"IFERROR(DATE(EMPREENDIMENTO!$AP$63,VLOOKUP(EMPREENDIMENTO!$AJ$63,LISTAS!$C$2:$D$13,2,0)+A33,1),\"-\")","v":"-"},null,null,null,null,null,null,null,{"$f":"IF(A33>PRAZO_TOTAL,0,IF(A33<=VLOOKUP(EMPREENDIMENTO!$AO$69,LISTAS!L:M,2,0),0,VALOR_TOTAL/(PRAZO_TOTAL-CARENCIA)))","v":0},null,null,null,null,null,null,null,null,{"$error":"#N/A"},null,null,null,null,null,null,null,null,{"$error":"#N/A"},null,null,null,null,null,null,null,null,{"$error":"#N/A"},null,null,null,null,null,null,null,null,null,{"$error":"#VALUE!"},{"$error":"#N/A"},{"$error":"#N/A"},2,4]
[24,null,null,{"$f":"IFERROR(DATE(EMPREENDIMENTO!$AP$63,VLOOKUP(EMPREENDIMENTO!$AJ$63,LISTAS!$C$2:$D$13,2,0)+A34,1),\"-\")","v":"-"},null,null,null,null,null,null,null,{"$f":"IF(A34>PRAZO_TOTAL,0,IF(A34<=VLOOKUP(EMPREENDIMENTO!$AO$69,LISTAS!L:M,2,0),0,VALOR_TOTAL/(PRAZO_TOTAL-CARENCIA)))","v":0},null,null,null,null,null,null,null,null,{"$error":"#N/A"},null,null,null,null,null,null,null,null,{"$error":"#N/A"},null,null,null,null,null,null,null,null,{"$error":"#N/A"},null,null,null,null,null,null,null,null,null,{"$error":"#VALUE!"},{"$error":"#N/A"},{"$error":"#N/A"},2,4]
[25,null,null,{"$f":"IFERROR(DATE(EMPREENDIMENTO!$AP$63,VLOOKUP(EMPREENDIMENTO!$AJ$63,LISTAS!$C$2:$D$13,2,0)+A35,1),\"-\")","v":"-"},null,null,null,null,null,null,null,{"$f":"IF(A35>PRAZO_TOTAL,0,IF(A35<=VLOOKUP(EMPREENDIMENTO!$AO$69,LISTAS!L:M,2,0),0,VALOR_TOTAL/(PRAZO_TOTAL-CARENCIA)))","v":0},null,null,null,null,null,null,null,null,{"$error":"#N/A"},null,null,null,null,null,null,null,null,{"$error":"#N/A"},null,null,null,null,null,null,null,null,{"$error":"#N/A"},null,null,null,null,null,null,null,null,null,{"$error":"#VALUE!"},{"$error":"#N/A"},{"$error":"#N/A"},3,5]
[26,null,null,{"$f":"IFERROR(DATE(EMPREENDIMENTO!$AP$63,VLOOKUP(EMPREENDIMENTO!$AJ$63,LISTAS!$C$2:$D$13,2,0)+A36,1),\"-\")","v":"-"},null,null,null,null,null,null,null,{"$f":"IF(A36>PRAZO_TOTAL,0,IF(A36<=VLOOKUP(EMPREENDIMENTO!$AO$69,LISTAS!L:M,2,0),0,VALOR_TOTAL/(PRAZO_TOTAL-CARENCIA)))","v":0},null,null,null,null,null,null,null,null,{"$error":"#N/A"},null,null,null,null,null,null,null,null,{"$error":"#N/A"},null,null,null,null,null,null,null,null,{"$error":"#N/A"},null,null,null,null,null,null,null,null,null,{"$error":"#VALUE!"},{"$error":"#N/A"},{"$error":"#N/A"},3,5]
[27,null,null,{"$f":"IFERROR(DATE(EMPREENDIMENTO!$AP$63,VLOOKUP(EMPREENDIMENTO!$AJ$63,LISTAS!$C$2:$D$13,2,0)+A37,1),\"-\")","v":"-"},null,null,null,null,null,null,null,{"$f":"IF(A37>PRAZO_TOTAL,0,IF(A37<=VLOOKUP(EMPREENDIMENTO!$AO$69,LISTAS!L:M,2,0),0,VALOR_TOTAL/(PRAZO_TOTAL-CARENCIA)))","v":0},null,null,null,null,null,null,null,null,{"$error":"#N/A"},null,null,null,null,null,null,null,null,{"$error":"#N/A"},null,null,null,null,null,null,null,null,{"$error":"#N/A"},null,null,null,null,null,null,null,null,null,{"$error":"#VALUE!"},{"$error":"#N/A"},{"$error":"#N/A"},3,5]
[28,null,null,{"$f":"IFERROR(DATE(EMPREENDIMENTO!$AP$63,VLOOKUP(EMPREENDIMENTO!$AJ$63,LISTAS!$C$2:$D$13,2,0)+A38,1),\"-\")","v":"-"},null,null,null,null,null,null,null,{"$f":"IF(A38>PRAZO_TOTAL,0,IF(A38<=VLOOKUP(EMPREENDIMENTO!$AO$69,LISTAS!L:M,2,0),0,VALOR_TOTAL/(PRAZO_TOTAL-CARENCIA)))","v":0},null,null,null,null,null,null,null,null,{"$error":"#N/A"},null,null,null,null,null,null,null,null,{"$error":"#N/A"},null,null,null,null,null,null,null,null,{"$error":"#N/A"},null,null,null,null,null,null,null,null,null,{"$error":"#VALUE!"},{"$error":"#N/A"},{"$error":"#N/A"},3,5]
[29,null,null,{"$f":"IFERROR(DATE(EMPREENDIMENTO!$AP$63,VLOOKUP(EMPREENDIMENTO!$AJ$63,LISTAS!$C$2:$D$13,2,0)+A39,1),\"-\")","v":"-"},null,null,null,null,null,null,null,{"$f":"IF(A39>PRAZO_TOTAL,0,IF(A39<=VLOOKUP(EMPREENDIMENTO!$AO$69,LISTAS!L:M,2,0),0,VALOR_TOTAL/(PRAZO_TOTAL-CARENCIA)))","v":0},null,null,null,null,null,null,null,null,{"$error":"#N/A"},null,null,null,null,null,null,null,null,{"$error":"#N/A"},null,null,null,null,null,null,null,null,{"$error":"#N/A"},null,null,null,null,null,null,null,null,null,{"$error":"#VALUE!"},{"$error":"#N/A"},{"$error":"#N/A"},3,5]
[30,null,null,{"$f":"IFERROR(DATE(EMPREENDIMENTO!$AP$63,VLOOKUP(EMPREENDIMENTO!$AJ$63,LISTAS!$C$2:$D$13,2,0)+A40,1),\"-\")","v":"-"},null,null,null,null,null,null,null,{"$f":"IF(A40>PRAZO_TOTAL,0,IF(A40<=VLOOKUP(EMPREENDIMENTO!$AO$69,LISTAS!L:M,2,0),0,VALOR_TOTAL/(PRAZO_TOTAL-CARENCIA)))","v":0},null,null,null,null,null,null,null,null,{"$error":"#N/A"},null,null,null,null,null,null,null,null,{"$error":"#N/A"},null,null,null,null,null,null,null,null,{"$error":"#N/A"},null,null,null,null,null,null,null,null,null,{"$error":"#VALUE!"},{"$error":"#N/A"},{"$error":"#N/A"},3,5]
[31,null,null,{"$f":"IFERROR(DATE(EMPREENDIMENTO!$AP$63,VLOOKUP(EMPREENDIMENTO!$AJ$63,LISTAS!$C$2:$D$13,2,0)+A41,1),\"-\")","v":"-"},null,null,null,null,null,null,null,{"$f":"IF(A41>PRAZO_TOTAL,0,IF(A41<=VLOOKUP(EMPREENDIMENTO!$AO$69,LISTAS!L:M,2,0),0,VALOR_TOTAL/(PRAZO_TOTAL-CARENCIA)))","v":0},null,null,null,null,null,null,null,null,{"$error":"#N/A"},null,null,null,null,null,null,null,null,{"$error":"#N/A"},null,null,null,null,null,null,null,null,{"$error":"#N/A"},null,null,null,null,null,null,null,null,null,{"$error":"#VALUE!"},{"$error":"#N/A"},{"$error":"#N/A"},3,6]
[32,null,null,{"$f":"IFERROR(DATE(EMPREENDIMENTO!$AP$63,VLOOKUP(EMPREENDIMENTO!$AJ$63,LISTAS!$C$2:$D$13,2,0)+A42,1),\"-\")","v":"-"},null,null,null,null,null,null,null,{"$f":"IF(A42>PRAZO_TOTAL,0,IF(A42<=VLOOKUP(EMPREENDIMENTO!$AO$69,LISTAS!L:M,2,0),0,VALOR_TOTAL/(PRAZO_TOTAL-CARENCIA)))","v":0},null,null,null,null,null,null,null,null,{"$error":"#N/A"},null,null,null,null,null,null,null,null,{"$error":"#N/A"},null,null,null,null,null,null,null,null,{"$error":"#N/A"},null,null,null,null,null,null,null,null,null,{"$error":"#VALUE!"},{"$error":"#N/A"},{"$error":"#N/A"},3,6]
[33,null,null,{"$f":"IFERROR(DATE(EMPREENDIMENTO!$AP$63,VLOOKUP(EMPREENDIMENTO!$AJ$63,LISTAS!$C$2:$D$13,2,0)+A43,1),\"-\")","v":"-"},null,null,null,null,null,null,null,{"$f":"IF(A43>PRAZO_TOTAL,0,IF(A43<=VLOOKUP(EMPREENDIMENTO!$AO$69,LISTAS!L:M,2,0),0,VALOR_TOTAL/(PRAZO_TOTAL-CARENCIA)))","v":0},null,null,null,null,null,null,null,null,{"$f":"IF(AM42*(((1+TAXA_JUROS)^(1/12))-1)<0,0,AM42*(((1+TAXA_JUROS)^(1/12))-1))","v":{"$error":"#N/A"}},null,null,null,null,null,null,null,null,{"$f":"IF(AM43<0,0,IF(L43=0,0,U43+L43+AY42))","v":{"$error":"#N/A"}},null,null,null,null,null,null,null,null,{"$f":"IF(L43=0,AM42-L43+U43,AM42-L43-AY42)","v":{"$error":"#N/A"}},null,null,null,null,null,null,null,null,null,{"$error":"#VALUE!"},{"$error":"#N/A"},{"$error":"#N/A"},3,6]
[34,null,null,{"$f":"IFERROR(DATE(EMPREENDIMENTO!$AP$63,VLOOKUP(EMPREENDIMENTO!$AJ$63,LISTAS!$C$2:$D$13,2,0)+A44,1),\"-\")","v":"-"},null,null,null,null,null,null,null,{"$f":"IF(A44>PRAZO_TOTAL,0,IF(A44<=VLOOKUP(EMPREENDIMENTO!$AO$69,LISTAS!L:M,2,0),0,VALOR_TOTAL/(PRAZO_TOTAL-CARENCIA)))","v":0},null,null,null,null,null,null,null,null,{"$error":"#N/A"},null,null,null,null,null,null,null,null,{"$error":"#N/A"},null,null,null,null,null,null,null,null,{"$error":"#N/A"},null,null,null,null,null,null,null,null,null,{"$error":"#VALUE!"},{"$error":"#N/A"},{"$error":"#N/A"},3,6]
[35,null,null,{"$f":"IFERROR(DATE(EMPREENDIMENTO!$AP$63,VLOOKUP(EMPREENDIMENTO!$AJ$63,LISTAS!$C$2:$D$13,2,0)+A45,1),\"-\")","v":"-"},null,null,null,null,null,null,null,{"$f":"IF(A45>PRAZO_TOTAL,0,IF(A45<=VLOOKUP(EMPREENDIMENTO!$AO$69,LISTAS!L:M,2,0),0,VALOR_TOTAL/(PRAZO_TOTAL-CARENCIA)))","v":0},null,null,null,null,null,null,null,null,{"$error":"#N/A"},null,null,null,null,null,null,null,null,{"$error":"#N/A"},null,null,null,null,null,null,null,null,{"$error":"#N/A"},null,null,null,null,null,null,null,null,null,{"$error":"#VALUE!"},{"$error":"#N/A"},{"$error":"#N/A"},3,6]
[36,null,null,{"$f":"IFERROR(DATE(EMPREENDIMENTO!$AP$63,VLOOKUP(EMPREENDIMENTO!$AJ$63,LISTAS!$C$2:$D$13,2,0)+A46,1),\"-\")","v":"-"},null,null,null,null,null,null,null,{"$f":"IF(A46>PRAZO_TOTAL,0,IF(A46<=VLOOKUP(EMPREENDIMENTO!$AO$69,LISTAS!L:M,2,0),0,VALOR_TOTAL/(PRAZO_TOTAL-CARENCIA)))","v":0},null,null,null,null,null,null,null,null,{"$error":"#N/A"},null,null,null,null,null,null,null,null,{"$error":"#N/A"},null,null,null,null,null,null,null,null,{"$error":"#N/A"},null,null,null,null,null,null,null,null,null,{"$error":"#VALUE!"},{"$error":"#N/A"},{"$error":"#N/A"},3,6]
[37,null,null,{"$f":"IFERROR(DATE(EMPREENDIMENTO!$AP$63,VLOOKUP(EMPREENDIMENTO!$AJ$63,LISTAS!$C$2:$D$13,2,0)+A47,1),\"-\")","v":"-"},null,null,null,null,null,null,null,{"$f":"IF(A47>PRAZO_TOTAL,0,IF(A47<=VLOOKUP(EMPREENDIMENTO!$AO$69,LISTAS!L:M,2,0),0,VALOR_TOTAL/(PRAZO_TOTAL-CARENCIA)))","v":0},null,null,null,null,null,null,null,null,{"$error":"#N/A"},null,null,null,null,null,null,null,null,{"$error":"#N/A"},null,null,null,null,null,null,null,null,{"$error":"#N/A"},null,null,null,null,null,null,null,null,null,{"$error":"#VALUE!"},{"$error":"#N/A"},{"$error":"#N/A"},4,7]
[38,null,null,{"$f":"IFERROR(DATE(EMPREENDIMENTO!$AP$63,VLOOKUP(EMPREENDIMENTO!$AJ$63,LISTAS!$C$2:$D$13,2,0)+A48,1),\"-\")","v":"-"},null,null,null,null,null,null,null,{"$f":"IF(A48>PRAZO_TOTAL,0,IF(A48<=VLOOKUP(EMPREENDIMENTO!$AO$69,LISTAS!L:M,2,0),0,VALOR_TOTAL/(PRAZO_TOTAL-CARENCIA)))","v":0},null,null,null,null,null,null,null,null,{"$error":"#N/A"},null,null,null,null,null,null,null,null,{"$error":"#N/A"},null,null,null,null,null,null,null,null,{"$error":"#N/A"},null,null,null,null,null,null,null,null,null,{"$error":"#VALUE!"},{"$error":"#N/A"},{"$error":"#N/A"},4,7]
[39,null,null,{"$f":"IFERROR(DATE(EMPREENDIMENTO!$AP$63,VLOOKUP(EMPREENDIMENTO!$AJ$63,LISTAS!$C$2:$D$13,2,0)+A49,1),\"-\")","v":"-"},null,null,null,null,null,null,null,{"$f":"IF(A49>PRAZO_TOTAL,0,IF(A49<=VLOOKUP(EMPREENDIMENTO!$AO$69,LISTAS!L:M,2,0),0,VALOR_TOTAL/(PRAZO_TOTAL-CARENCIA)))","v":0},null,null,null,null,null,null,null,null,{"$error":"#N/A"},null,null,null,null,null,null,null,null,{"$error":"#N/A"},null,null,null,null,null,null,null,null,{"$error":"#N/A"},null,null,null,null,null,null,null,null,null,{"$error":"#VALUE!"},{"$error":"#N/A"},{"$error":"#N/A"},4,7]
[40,null,null,{"$f":"IFERROR(DATE(EMPREENDIMENTO!$AP$63,VLOOKUP(EMPREENDIMENTO!$AJ$63,LISTAS!$C$2:$D$13,2,0)+A50,1),\"-\")","v":"-"},null,null,null,null,null,null,null,{"$f":"IF(A50>PRAZO_TOTAL,0,IF(A50<=VLOOKUP(EMPREENDIMENTO!$AO$69,LISTAS!L:M,2,0),0,VALOR_TOTAL/(PRAZO_TOTAL-CARENCIA)))","v":0},null,null,null,null,null,null,null,null,{"$error":"#N/A"},null,null,null,null,null,null,null,null,{"$error":"#N/A"},null,null,null,null,null,null,null,null,{"$error":"#N/A"},null,null,null,null,null,null,null,null,null,{"$error":"#VALUE!"},{"$error":"#N/A"},{"$error":"#N/A"},4,7]
[41,null,null,{"$f":"IFERROR(DATE(EMPREENDIMENTO!$AP$63,VLOOKUP(EMPREENDIMENTO!$AJ$63,LISTAS!$C$2:$D$13,2,0)+A51,1),\"-\")","v":"-"},null,null,null,null,null,null,null,{"$f":"IF(A51>PRAZO_TOTAL,0,IF(A51<=VLOOKUP(EMPREENDIMENTO!$AO$69,LISTAS!L:M,2,0),0,VALOR_TOTAL/(PRAZO_TOTAL-CARENCIA)))","v":0},null,null,null,null,null,null,null,null,{"$error":"#N/A"},null,null,null,null,null,null,null,null,{"$error":"#N/A"},null,null,null,null,null,null,null,null,{"$error":"#N/A"},null,null,null,null,null,null,null,null,null,{"$error":"#VALUE!"},{"$error":"#N/A"},{"$error":"#N/A"},4,7]
[42,null,null,{"$f":"IFERROR(DATE(EMPREENDIMENTO!$AP$63,VLOOKUP(EMPREENDIMENTO!$AJ$63,LISTAS!$C$2:$D$13,2,0)+A52,1),\"-\")","v":"-"},null,null,null,null,null,null,null,{"$f":"IF(A52>PRAZO_TOTAL,0,IF(A52<=VLOOKUP(EMPREENDIMENTO!$AO$69,LISTAS!L:M,2,0),0,VALOR_TOTAL/(PRAZO_TOTAL-CARENCIA)))","v":0},null,null,null,null,null,null,null,null,{"$error":"#N/A"},null,null,null,null,null,null,null,null,{"$error":"#N/A"},null,null,null,null,null,null,null,null,{"$error":"#N/A"},null,null,null,null,null,null,null,null,null,{"$error":"#VALUE!"},{"$error":"#N/A"},{"$error":"#N/A"},4,7]
[43,null,null,{"$f":"IFERROR(DATE(EMPREENDIMENTO!$AP$63,VLOOKUP(EMPREENDIMENTO!$AJ$63,LISTAS!$C$2:$D$13,2,0)+A53,1),\"-\")","v":"-"},null,null,null,null,null,null,null,{"$f":"IF(A53>PRAZO_TOTAL,0,IF(A53<=VLOOKUP(EMPREENDIMENTO!$AO$69,LISTAS!L:M,2,0),0,VALOR_TOTAL/(PRAZO_TOTAL-CARENCIA)))","v":0},null,null,null,null,null,null,null,null,{"$error":"#N/A"},null,null,null,null,null,null,null,null,{"$error":"#N/A"},null,null,null,null,null,null,null,null,{"$error":"#N/A"},null,null,null,null,null,null,null,null,null,{"$error":"#VALUE!"},{"$error":"#N/A"},{"$error":"#N/A"},4,8]
[44,null,null,{"$f":"IFERROR(DATE(EMPREENDIMENTO!$AP$63,VLOOKUP(EMPREENDIMENTO!$AJ$63,LISTAS!$C$2:$D$13,2,0)+A54,1),\"-\")","v":"-"},null,null,null,null,null,null,null,{"$f":"IF(A54>PRAZO_TOTAL,0,IF(A54<=VLOOKUP(EMPREENDIMENTO!$AO$69,LISTAS!L:M,2,0),0,VALOR_TOTAL/(PRAZO_TOTAL-CARENCIA)))","v":0},null,null,null,null,null,null,null,null,{"$error":"#N/A"},null,null,null,null,null,null,null,null,{"$error":"#N/A"},null,null,null,null,null,null,null,null,{"$error":"#N/A"},null,null,null,null,null,null,null,null,null,{"$error":"#VALUE!"},{"$error":"#N/A"},{"$error":"#N/A"},4,8]
[45,null,null,{"$f":"IFERROR(DATE(EMPREENDIMENTO!$AP$63,VLOOKUP(EMPREENDIMENTO!$AJ$63,LISTAS!$C$2:$D$13,2,0)+A55,1),\"-\")","v":"-"},null,null,null,null,null,null,null,{"$f":"IF(A55>PRAZO_TOTAL,0,IF(A55<=VLOOKUP(EMPREENDIMENTO!$AO$69,LISTAS!L:M,2,0),0,VALOR_TOTAL/(PRAZO_TOTAL-CARENCIA)))","v":0},null,null,null,null,null,null,null,null,{"$error":"#N/A"},null,null,null,null,null,null,null,null,{"$error":"#N/A"},null,null,null,null,null,null,null,null,{"$error":"#N/A"},null,null,null,null,null,null,null,null,null,{"$error":"#VALUE!"},{"$error":"#N/A"},{"$error":"#N/A"},4,8]
[46,null,null,{"$f":"IFERROR(DATE(EMPREENDIMENTO!$AP$63,VLOOKUP(EMPREENDIMENTO!$AJ$63,LISTAS!$C$2:$D$13,2,0)+A56,1),\"-\")","v":"-"},null,null,null,null,null,null,null,{"$f":"IF(A56>PRAZO_TOTAL,0,IF(A56<=VLOOKUP(EMPREENDIMENTO!$AO$69,LISTAS!L:M,2,0),0,VALOR_TOTAL/(PRAZO_TOTAL-CARENCIA)))","v":0},null,null,null,null,null,null,null,null,{"$error":"#N/A"},null,null,null,null,null,null,null,null,{"$error":"#N/A"},null,null,null,null,null,null,null,null,{"$error":"#N/A"},null,null,null,null,null,null,null,null,null,{"$error":"#VALUE!"},{"$error":"#N/A"},{"$error":"#N/A"},4,8]
[47,null,null,{"$f":"IFERROR(DATE(EMPREENDIMENTO!$AP$63,VLOOKUP(EMPREENDIMENTO!$AJ$63,LISTAS!$C$2:$D$13,2,0)+A57,1),\"-\")","v":"-"},null,null,null,null,null,null,null,{"$f":"IF(A57>PRAZO_TOTAL,0,IF(A57<=VLOOKUP(EMPREENDIMENTO!$AO$69,LISTAS!L:M,2,0),0,VALOR_TOTAL/(PRAZO_TOTAL-CARENCIA)))","v":0},null,null,null,null,null,null,null,null,{"$error":"#N/A"},null,null,null,null,null,null,null,null,{"$error":"#N/A"},null,null,null,null,null,null,null,null,{"$error":"#N/A"},null,null,null,null,null,null,null,null,null,{"$error":"#VALUE!"},{"$error":"#N/A"},{"$error":"#N/A"},4,8]
[48,null,null,{"$f":"IFERROR(DATE(EMPREENDIMENTO!$AP$63,VLOOKUP(EMPREENDIMENTO!$AJ$63,LISTAS!$C$2:$D$13,2,0)+A58,1),\"-\")","v":"-"},null,null,null,null,null,null,null,{"$f":"IF(A58>PRAZO_TOTAL,0,IF(A58<=VLOOKUP(EMPREENDIMENTO!$AO$69,LISTAS!L:M,2,0),0,VALOR_TOTAL/(PRAZO_TOTAL-CARENCIA)))","v":0},null,null,null,null,null,null,null,null,{"$error":"#N/A"},null,null,null,null,null,null,null,null,{"$error":"#N/A"},null,null,null,null,null,null,null,null,{"$error":"#N/A"},null,null,null,null,null,null,null,null,null,{"$error":"#VALUE!"},{"$error":"#N/A"},{"$error":"#N/A"},4,8]
[49,null,null,{"$f":"IFERROR(DATE(EMPREENDIMENTO!$AP$63,VLOOKUP(EMPREENDIMENTO!$AJ$63,LISTAS!$C$2:$D$13,2,0)+A59,1),\"-\")","v":"-"},null,null,null,null,null,null,null,{"$f":"IF(A59>PRAZO_TOTAL,0,IF(A59<=VLOOKUP(EMPREENDIMENTO!$AO$69,LISTAS!L:M,2,0),0,VALOR_TOTAL/(PRAZO_TOTAL-CARENCIA)))","v":0},null,null,null,null,null,null,null,null,{"$error":"#N/A"},null,null,null,null,null,null,null,null,{"$error":"#N/A"},null,null,null,null,null,null,null,null,{"$error":"#N/A"},null,null,null,null,null,null,null,null,null,{"$error":"#VALUE!"},{"$error":"#N/A"},{"$error":"#N/A"},5,9]
[50,null,null,{"$f":"IFERROR(DATE(EMPREENDIMENTO!$AP$63,VLOOKUP(EMPREENDIMENTO!$AJ$63,LISTAS!$C$2:$D$13,2,0)+A60,1),\"-\")","v":"-"},null,null,null,null,null,null,null,{"$f":"IF(A60>PRAZO_TOTAL,0,IF(A60<=VLOOKUP(EMPREENDIMENTO!$AO$69,LISTAS!L:M,2,0),0,VALOR_TOTAL/(PRAZO_TOTAL-CARENCIA)))","v":0},null,null,null,null,null,null,null,null,{"$error":"#N/A"},null,null,null,null,null,null,null,null,{"$error":"#N/A"},null,null,null,null,null,null,null,null,{"$error":"#N/A"},null,null,null,null,null,null,null,null,null,{"$error":"#VALUE!"},{"$error":"#N/A"},{"$error":"#N/A"},5,9]
[51,null,null,{"$f":"IFERROR(DATE(EMPREENDIMENTO!$AP$63,VLOOKUP(EMPREENDIMENTO!$AJ$63,LISTAS!$C$2:$D$13,2,0)+A61,1),\"-\")","v":"-"},null,null,null,null,null,null,null,{"$f":"IF(A61>PRAZO_TOTAL,0,IF(A61<=VLOOKUP(EMPREENDIMENTO!$AO$69,LISTAS!L:M,2,0),0,VALOR_TOTAL/(PRAZO_TOTAL-CARENCIA)))","v":0},null,null,null,null,null,null,null,null,{"$error":"#N/A"},null,null,null,null,null,null,null,null,{"$error":"#N/A"},null,null,null,null,null,null,null,null,{"$error":"#N/A"},null,null,null,null,null,null,null,null,null,{"$error":"#VALUE!"},{"$error":"#N/A"},{"$error":"#N/A"},5,9]
[52,null,null,{"$f":"IFERROR(DATE(EMPREENDIMENTO!$AP$63,VLOOKUP(EMPREENDIMENTO!$AJ$63,LISTAS!$C$2:$D$13,2,0)+A62,1),\"-\")","v":"-"},null,null,null,null,null,null,null,{"$f":"IF(A62>PRAZO_TOTAL,0,IF(A62<=VLOOKUP(EMPREENDIMENTO!$AO$69,LISTAS!L:M,2,0),0,VALOR_TOTAL/(PRAZO_TOTAL-CARENCIA)))","v":0},null,null,null,null,null,null,null,null,{"$error":"#N/A"},null,null,null,null,null,null,null,null,{"$error":"#N/A"},null,null,null,null,null,null,null,null,{"$error":"#N/A"},null,null,null,null,null,null,null,null,null,{"$error":"#VALUE!"},{"$error":"#N/A"},{"$error":"#N/A"},5,9]
[53,null,null,{"$f":"IFERROR(DATE(EMPREENDIMENTO!$AP$63,VLOOKUP(EMPREENDIMENTO!$AJ$63,LISTAS!$C$2:$D$13,2,0)+A63,1),\"-\")","v":"-"},null,null,null,null,null,null,null,{"$f":"IF(A63>PRAZO_TOTAL,0,IF(A63<=VLOOKUP(EMPREENDIMENTO!$AO$69,LISTAS!L:M,2,0),0,VALOR_TOTAL/(PRAZO_TOTAL-CARENCIA)))","v":0},null,null,null,null,null,null,null,null,{"$error":"#N/A"},null,null,null,null,null,null,null,null,{"$error":"#N/A"},null,null,null,null,null,null,null,null,{"$error":"#N/A"},null,null,null,null,null,null,null,null,null,{"$error":"#VALUE!"},{"$error":"#N/A"},{"$error":"#N/A"},5,9]
[54,null,null,{"$f":"IFERROR(DATE(EMPREENDIMENTO!$AP$63,VLOOKUP(EMPREENDIMENTO!$AJ$63,LISTAS!$C$2:$D$13,2,0)+A64,1),\"-\")","v":"-"},null,null,null,null,null,null,null,{"$f":"IF(A64>PRAZO_TOTAL,0,IF(A64<=VLOOKUP(EMPREENDIMENTO!$AO$69,LISTAS!L:M,2,0),0,VALOR_TOTAL/(PRAZO_TOTAL-CARENCIA)))","v":0},null,null,null,null,null,null,null,null,{"$error":"#N/A"},null,null,null,null,null,null,null,null,{"$error":"#N/A"},null,null,null,null,null,null,null,null,{"$error":"#N/A"},null,null,null,null,null,null,null,null,null,{"$error":"#VALUE!"},{"$error":"#N/A"},{"$error":"#N/A"},5,9]
[55,null,null,{"$f":"IFERROR(DATE(EMPREENDIMENTO!$AP$63,VLOOKUP(EMPREENDIMENTO!$AJ$63,LISTAS!$C$2:$D$13,2,0)+A65,1),\"-\")","v":"-"},null,null,null,null,null,null,null,{"$f":"IF(A65>PRAZO_TOTAL,0,IF(A65<=VLOOKUP(EMPREENDIMENTO!$AO$69,LISTAS!L:M,2,0),0,VALOR_TOTAL/(PRAZO_TOTAL-CARENCIA)))","v":0},null,null,null,null,null,null,null,null,{"$error":"#N/A"},null,null,null,null,null,null,null,null,{"$error":"#N/A"},null,null,null,null,null,null,null,null,{"$error":"#N/A"},null,null,null,null,null,null,null,null,null,{"$error":"#VALUE!"},{"$error":"#N/A"},{"$error":"#N/A"},5,10]
[56,null,null,{"$f":"IFERROR(DATE(EMPREENDIMENTO!$AP$63,VLOOKUP(EMPREENDIMENTO!$AJ$63,LISTAS!$C$2:$D$13,2,0)+A66,1),\"-\")","v":"-"},null,null,null,null,null,null,null,{"$f":"IF(A66>PRAZO_TOTAL,0,IF(A66<=VLOOKUP(EMPREENDIMENTO!$AO$69,LISTAS!L:M,2,0),0,VALOR_TOTAL/(PRAZO_TOTAL-CARENCIA)))","v":0},null,null,null,null,null,null,null,null,{"$error":"#N/A"},null,null,null,null,null,null,null,null,{"$error":"#N/A"},null,null,null,null,null,null,null,null,{"$error":"#N/A"},null,null,null,null,null,null,null,null,null,{"$error":"#VALUE!"},{"$error":"#N/A"},{"$error":"#N/A"},5,10]
[57,null,null,{"$f":"IFERROR(DATE(EMPREENDIMENTO!$AP$63,VLOOKUP(EMPREENDIMENTO!$AJ$63,LISTAS!$C$2:$D$13,2,0)+A67,1),\"-\")","v":"-"},null,null,null,null,null,null,null,{"$f":"IF(A67>PRAZO_TOTAL,0,IF(A67<=VLOOKUP(EMPREENDIMENTO!$AO$69,LISTAS!L:M,2,0),0,VALOR_TOTAL/(PRAZO_TOTAL-CARENCIA)))","v":0},null,null,null,null,null,null,null,null,{"$error":"#N/A"},null,null,null,null,null,null,null,null,{"$error":"#N/A"},null,null,null,null,null,null,null,null,{"$error":"#N/A"},null,null,null,null,null,null,null,null,null,{"$error":"#VALUE!"},{"$error":"#N/A"},{"$error":"#N/A"},5,10]
[58,null,null,{"$f":"IFERROR(DATE(EMPREENDIMENTO!$AP$63,VLOOKUP(EMPREENDIMENTO!$AJ$63,LISTAS!$C$2:$D$13,2,0)+A68,1),\"-\")","v":"-"},null,null,null,null,null,null,null,{"$f":"IF(A68>PRAZO_TOTAL,0,IF(A68<=VLOOKUP(EMPREENDIMENTO!$AO$69,LISTAS!L:M,2,0),0,VALOR_TOTAL/(PRAZO_TOTAL-CARENCIA)))","v":0},null,null,null,null,null,null,null,null,{"$error":"#N/A"},null,null,null,null,null,null,null,null,{"$error":"#N/A"},null,null,null,null,null,null,null,null,{"$error":"#N/A"},null,null,null,null,null,null,null,null,null,{"$error":"#VALUE!"},{"$error":"#N/A"},{"$error":"#N/A"},5,10]
[59,null,null,{"$f":"IFERROR(DATE(EMPREENDIMENTO!$AP$63,VLOOKUP(EMPREENDIMENTO!$AJ$63,LISTAS!$C$2:$D$13,2,0)+A69,1),\"-\")","v":"-"},null,null,null,null,null,null,null,{"$f":"IF(A69>PRAZO_TOTAL,0,IF(A69<=VLOOKUP(EMPREENDIMENTO!$AO$69,LISTAS!L:M,2,0),0,VALOR_TOTAL/(PRAZO_TOTAL-CARENCIA)))","v":0},null,null,null,null,null,null,null,null,{"$error":"#N/A"},null,null,null,null,null,null,null,null,{"$error":"#N/A"},null,null,null,null,null,null,null,null,{"$error":"#N/A"},null,null,null,null,null,null,null,null,null,{"$error":"#VALUE!"},{"$error":"#N/A"},{"$error":"#N/A"},5,10]
[60,null,null,{"$f":"IFERROR(DATE(EMPREENDIMENTO!$AP$63,VLOOKUP(EMPREENDIMENTO!$AJ$63,LISTAS!$C$2:$D$13,2,0)+A70,1),\"-\")","v":"-"},null,null,null,null,null,null,null,{"$f":"IF(A70>PRAZO_TOTAL,0,IF(A70<=VLOOKUP(EMPREENDIMENTO!$AO$69,LISTAS!L:M,2,0),0,VALOR_TOTAL/(PRAZO_TOTAL-CARENCIA)))","v":0},null,null,null,null,null,null,null,null,{"$error":"#N/A"},null,null,null,null,null,null,null,null,{"$error":"#N/A"},null,null,null,null,null,null,null,null,{"$error":"#N/A"},null,null,null,null,null,null,null,null,null,{"$error":"#VALUE!"},{"$error":"#N/A"},{"$error":"#N/A"},5,10]
[61,null,null,{"$f":"IFERROR(DATE(EMPREENDIMENTO!$AP$63,VLOOKUP(EMPREENDIMENTO!$AJ$63,LISTAS!$C$2:$D$13,2,0)+A71,1),\"-\")","v":"-"},null,null,null,null,null,null,null,{"$f":"IF(A71>PRAZO_TOTAL,0,IF(A71<=VLOOKUP(EMPREENDIMENTO!$AO$69,LISTAS!L:M,2,0),0,VALOR_TOTAL/(PRAZO_TOTAL-CARENCIA)))","v":0},null,null,null,null,null,null,null,null,{"$error":"#N/A"},null,null,null,null,null,null,null,null,{"$error":"#N/A"},null,null,null,null,null,null,null,null,{"$error":"#N/A"},null,null,null,null,null,null,null,null,null,{"$error":"#VALUE!"},{"$error":"#N/A"},{"$error":"#N/A"},6,11]
[62,null,null,{"$f":"IFERROR(DATE(EMPREENDIMENTO!$AP$63,VLOOKUP(EMPREENDIMENTO!$AJ$63,LISTAS!$C$2:$D$13,2,0)+A72,1),\"-\")","v":"-"},null,null,null,null,null,null,null,{"$f":"IF(A72>PRAZO_TOTAL,0,IF(A72<=VLOOKUP(EMPREENDIMENTO!$AO$69,LISTAS!L:M,2,0),0,VALOR_TOTAL/(PRAZO_TOTAL-CARENCIA)))","v":0},null,null,null,null,null,null,null,null,{"$error":"#N/A"},null,null,null,null,null,null,null,null,{"$error":"#N/A"},null,null,null,null,null,null,null,null,{"$error":"#N/A"},null,null,null,null,null,null,null,null,null,{"$error":"#VALUE!"},{"$error":"#N/A"},{"$error":"#N/A"},6,11]
[63,null,null,{"$f":"IFERROR(DATE(EMPREENDIMENTO!$AP$63,VLOOKUP(EMPREENDIMENTO!$AJ$63,LISTAS!$C$2:$D$13,2,0)+A73,1),\"-\")","v":"-"},null,null,null,null,null,null,null,{"$f":"IF(A73>PRAZO_TOTAL,0,IF(A73<=VLOOKUP(EMPREENDIMENTO!$AO$69,LISTAS!L:M,2,0),0,VALOR_TOTAL/(PRAZO_TOTAL-CARENCIA)))","v":0},null,null,null,null,null,null,null,null,{"$error":"#N/A"},null,null,null,null,null,null,null,null,{"$error":"#N/A"},null,null,null,null,null,null,null,null,{"$error":"#N/A"},null,null,null,null,null,null,null,null,null,{"$error":"#VALUE!"},{"$error":"#N/A"},{"$error":"#N/A"},6,11]
[64,null,null,{"$f":"IFERROR(DATE(EMPREENDIMENTO!$AP$63,VLOOKUP(EMPREENDIMENTO!$AJ$63,LISTAS!$C$2:$D$13,2,0)+A74,1),\"-\")","v":"-"},null,null,null,null,null,null,null,{"$f":"IF(A74>PRAZO_TOTAL,0,IF(A74<=VLOOKUP(EMPREENDIMENTO!$AO$69,LISTAS!L:M,2,0),0,VALOR_TOTAL/(PRAZO_TOTAL-CARENCIA)))","v":0},null,null,null,null,null,null,null,null,{"$error":"#N/A"},null,null,null,null,null,null,null,null,{"$error":"#N/A"},null,null,null,null,null,null,null,null,{"$error":"#N/A"},null,null,null,null,null,null,null,null,null,{"$error":"#VALUE!"},{"$error":"#N/A"},{"$error":"#N/A"},6,11]
[65,null,null,{"$f":"IFERROR(DATE(EMPREENDIMENTO!$AP$63,VLOOKUP(EMPREENDIMENTO!$AJ$63,LISTAS!$C$2:$D$13,2,0)+A75,1),\"-\")","v":"-"},null,null,null,null,null,null,null,{"$f":"IF(A75>PRAZO_TOTAL,0,IF(A75<=VLOOKUP(EMPREENDIMENTO!$AO$69,LISTAS!L:M,2,0),0,VALOR_TOTAL/(PRAZO_TOTAL-CARENCIA)))","v":0},null,null,null,null,null,null,null,null,{"$f":"IF(AM74*(((1+TAXA_JUROS)^(1/12))-1)<0,0,AM74*(((1+TAXA_JUROS)^(1/12))-1))","v":{"$error":"#N/A"}},null,null,null,null,null,null,null,null,{"$f":"IF(AM75<0,0,IF(L75=0,0,U75+L75+AY74))","v":{"$error":"#N/A"}},null,null,null,null,null,null,null,null,{"$f":"IF(L75=0,AM74-L75+U75,AM74-L75-AY74)","v":{"$error":"#N/A"}},null,null,null,null,null,null,null,null,null,{"$f":"YEAR(D75)","v":{"$error":"#VALUE!"}},{"$error":"#N/A"},{"$error":"#N/A"},6,11]
[66,null,null,{"$f":"IFERROR(DATE(EMPREENDIMENTO!$AP$63,VLOOKUP(EMPREENDIMENTO!$AJ$63,LISTAS!$C$2:$D$13,2,0)+A76,1),\"-\")","v":"-"},null,null,null,null,null,null,null,{"$f":"IF(A76>PRAZO_TOTAL,0,IF(A76<=VLOOKUP(EMPREENDIMENTO!$AO$69,LISTAS!L:M,2,0),0,VALOR_TOTAL/(PRAZO_TOTAL-CARENCIA)))","v":0},null,null,null,null,null,null,null,null,{"$error":"#N/A"},null,null,null,null,null,null,null,null,{"$error":"#N/A"},null,null,null,null,null,null,null,null,{"$error":"#N/A"},null,null,null,null,null,null,null,null,null,{"$error":"#VALUE!"},{"$f":"IF(AM76>0,\"SIM\",\"NÃO\")","v":{"$error":"#N/A"}},{"$f":"IF(L76=0,U76+AY75,0)","v":{"$error":"#N/A"}},6,11]
[67,null,null,{"$f":"IFERROR(DATE(EMPREENDIMENTO!$AP$63,VLOOKUP(EMPREENDIMENTO!$AJ$63,LISTAS!$C$2:$D$13,2,0)+A77,1),\"-\")","v":"-"},null,null,null,null,null,null,null,{"$f":"IF(A77>PRAZO_TOTAL,0,IF(A77<=VLOOKUP(EMPREENDIMENTO!$AO$69,LISTAS!L:M,2,0),0,VALOR_TOTAL/(PRAZO_TOTAL-CARENCIA)))","v":0},null,null,null,null,null,null,null,null,{"$error":"#N/A"},null,null,null,null,null,null,null,null,{"$error":"#N/A"},null,null,null,null,null,null,null,null,{"$error":"#N/A"},null,null,null,null,null,null,null,null,null,{"$error":"#VALUE!"},{"$error":"#N/A"},{"$error":"#N/A"},6,12]
[68,null,null,{"$f":"IFERROR(DATE(EMPREENDIMENTO!$AP$63,VLOOKUP(EMPREENDIMENTO!$AJ$63,LISTAS!$C$2:$D$13,2,0)+A78,1),\"-\")","v":"-"},null,null,null,null,null,null,null,{"$f":"IF(A78>PRAZO_TOTAL,0,IF(A78<=VLOOKUP(EMPREENDIMENTO!$AO$69,LISTAS!L:M,2,0),0,VALOR_TOTAL/(PRAZO_TOTAL-CARENCIA)))","v":0},null,null,null,null,null,null,null,null,{"$error":"#N/A"},null,null,null,null,null,null,null,null,{"$error":"#N/A"},null,null,null,null,null,null,null,null,{"$error":"#N/A"},null,null,null,null,null,null,null,null,null,{"$error":"#VALUE!"},{"$error":"#N/A"},{"$error":"#N/A"},6,12]
[69,null,null,{"$f":"IFERROR(DATE(EMPREENDIMENTO!$AP$63,VLOOKUP(EMPREENDIMENTO!$AJ$63,LISTAS!$C$2:$D$13,2,0)+A79,1),\"-\")","v":"-"},null,null,null,null,null,null,null,{"$f":"IF(A79>PRAZO_TOTAL,0,IF(A79<=VLOOKUP(EMPREENDIMENTO!$AO$69,LISTAS!L:M,2,0),0,VALOR_TOTAL/(PRAZO_TOTAL-CARENCIA)))","v":0},null,null,null,null,null,null,null,null,{"$error":"#N/A"},null,null,null,null,null,null,null,null,{"$error":"#N/A"},null,null,null,null,null,null,null,null,{"$error":"#N/A"},null,null,null,null,null,null,null,null,null,{"$error":"#VALUE!"},{"$error":"#N/A"},{"$error":"#N/A"},6,12]
[70,null,null,{"$f":"IFERROR(DATE(EMPREENDIMENTO!$AP$63,VLOOKUP(EMPREENDIMENTO!$AJ$63,LISTAS!$C$2:$D$13,2,0)+A80,1),\"-\")","v":"-"},null,null,null,null,null,null,null,{"$f":"IF(A80>PRAZO_TOTAL,0,IF(A80<=VLOOKUP(EMPREENDIMENTO!$AO$69,LISTAS!L:M,2,0),0,VALOR_TOTAL/(PRAZO_TOTAL-CARENCIA)))","v":0},null,null,null,null,null,null,null,null,{"$error":"#N/A"},null,null,null,null,null,null,null,null,{"$error":"#N/A"},null,null,null,null,null,null,null,null,{"$error":"#N/A"},null,null,null,null,null,null,null,null,null,{"$error":"#VALUE!"},{"$error":"#N/A"},{"$error":"#N/A"},6,12]
[71,null,null,{"$f":"IFERROR(DATE(EMPREENDIMENTO!$AP$63,VLOOKUP(EMPREENDIMENTO!$AJ$63,LISTAS!$C$2:$D$13,2,0)+A81,1),\"-\")","v":"-"},null,null,null,null,null,null,null,{"$f":"IF(A81>PRAZO_TOTAL,0,IF(A81<=VLOOKUP(EMPREENDIMENTO!$AO$69,LISTAS!L:M,2,0),0,VALOR_TOTAL/(PRAZO_TOTAL-CARENCIA)))","v":0},null,null,null,null,null,null,null,null,{"$error":"#N/A"},null,null,null,null,null,null,null,null,{"$error":"#N/A"},null,null,null,null,null,null,null,null,{"$error":"#N/A"},null,null,null,null,null,null,null,null,null,{"$error":"#VALUE!"},{"$error":"#N/A"},{"$error":"#N/A"},6,12]
[72,null,null,{"$f":"IFERROR(DATE(EMPREENDIMENTO!$AP$63,VLOOKUP(EMPREENDIMENTO!$AJ$63,LISTAS!$C$2:$D$13,2,0)+A82,1),\"-\")","v":"-"},null,null,null,null,null,null,null,{"$f":"IF(A82>PRAZO_TOTAL,0,IF(A82<=VLOOKUP(EMPREENDIMENTO!$AO$69,LISTAS!L:M,2,0),0,VALOR_TOTAL/(PRAZO_TOTAL-CARENCIA)))","v":0},null,null,null,null,null,null,null,null,{"$error":"#N/A"},null,null,null,null,null,null,null,null,{"$error":"#N/A"},null,null,null,null,null,null,null,null,{"$error":"#N/A"},null,null,null,null,null,null,null,null,null,{"$error":"#VALUE!"},{"$error":"#N/A"},{"$error":"#N/A"},6,12]
[73,null,null,{"$f":"IFERROR(DATE(EMPREENDIMENTO!$AP$63,VLOOKUP(EMPREENDIMENTO!$AJ$63,LISTAS!$C$2:$D$13,2,0)+A83,1),\"-\")","v":"-"},null,null,null,null,null,null,null,{"$f":"IF(A83>PRAZO_TOTAL,0,IF(A83<=VLOOKUP(EMPREENDIMENTO!$AO$69,LISTAS!L:M,2,0),0,VALOR_TOTAL/(PRAZO_TOTAL-CARENCIA)))","v":0},null,null,null,null,null,null,null,null,{"$error":"#N/A"},null,null,null,null,null,null,null,null,{"$error":"#N/A"},null,null,null,null,null,null,null,null,{"$error":"#N/A"},null,null,null,null,null,null,null,null,null,{"$error":"#VALUE!"},{"$error":"#N/A"},{"$error":"#N/A"},7,13]
[74,null,null,{"$f":"IFERROR(DATE(EMPREENDIMENTO!$AP$63,VLOOKUP(EMPREENDIMENTO!$AJ$63,LISTAS!$C$2:$D$13,2,0)+A84,1),\"-\")","v":"-"},null,null,null,null,null,null,null,{"$f":"IF(A84>PRAZO_TOTAL,0,IF(A84<=VLOOKUP(EMPREENDIMENTO!$AO$69,LISTAS!L:M,2,0),0,VALOR_TOTAL/(PRAZO_TOTAL-CARENCIA)))","v":0},null,null,null,null,null,null,null,null,{"$error":"#N/A"},null,null,null,null,null,null,null,null,{"$error":"#N/A"},null,null,null,null,null,null,null,null,{"$error":"#N/A"},null,null,null,null,null,null,null,null,null,{"$error":"#VALUE!"},{"$error":"#N/A"},{"$error":"#N/A"},7,13]
[75,null,null,{"$f":"IFERROR(DATE(EMPREENDIMENTO!$AP$63,VLOOKUP(EMPREENDIMENTO!$AJ$63,LISTAS!$C$2:$D$13,2,0)+A85,1),\"-\")","v":"-"},null,null,null,null,null,null,null,{"$f":"IF(A85>PRAZO_TOTAL,0,IF(A85<=VLOOKUP(EMPREENDIMENTO!$AO$69,LISTAS!L:M,2,0),0,VALOR_TOTAL/(PRAZO_TOTAL-CARENCIA)))","v":0},null,null,null,null,null,null,null,null,{"$error":"#N/A"},null,null,null,null,null,null,null,null,{"$error":"#N/A"},null,null,null,null,null,null,null,null,{"$error":"#N/A"},null,null,null,null,null,null,null,null,null,{"$error":"#VALUE!"},{"$error":"#N/A"},{"$error":"#N/A"},7,13]
[76,null,null,{"$f":"IFERROR(DATE(EMPREENDIMENTO!$AP$63,VLOOKUP(EMPREENDIMENTO!$AJ$63,LISTAS!$C$2:$D$13,2,0)+A86,1),\"-\")","v":"-"},null,null,null,null,null,null,null,{"$f":"IF(A86>PRAZO_TOTAL,0,IF(A86<=VLOOKUP(EMPREENDIMENTO!$AO$69,LISTAS!L:M,2,0),0,VALOR_TOTAL/(PRAZO_TOTAL-CARENCIA)))","v":0},null,null,null,null,null,null,null,null,{"$error":"#N/A"},null,null,null,null,null,null,null,null,{"$error":"#N/A"},null,null,null,null,null,null,null,null,{"$error":"#N/A"},null,null,null,null,null,null,null,null,null,{"$error":"#VALUE!"},{"$error":"#N/A"},{"$error":"#N/A"},7,13]
[77,null,null,{"$f":"IFERROR(DATE(EMPREENDIMENTO!$AP$63,VLOOKUP(EMPREENDIMENTO!$AJ$63,LISTAS!$C$2:$D$13,2,0)+A87,1),\"-\")","v":"-"},null,null,null,null,null,null,null,{"$f":"IF(A87>PRAZO_TOTAL,0,IF(A87<=VLOOKUP(EMPREENDIMENTO!$AO$69,LISTAS!L:M,2,0),0,VALOR_TOTAL/(PRAZO_TOTAL-CARENCIA)))","v":0},null,null,null,null,null,null,null,null,{"$error":"#N/A"},null,null,null,null,null,null,null,null,{"$error":"#N/A"},null,null,null,null,null,null,null,null,{"$error":"#N/A"},null,null,null,null,null,null,null,null,null,{"$error":"#VALUE!"},{"$error":"#N/A"},{"$error":"#N/A"},7,13]
[78,null,null,{"$f":"IFERROR(DATE(EMPREENDIMENTO!$AP$63,VLOOKUP(EMPREENDIMENTO!$AJ$63,LISTAS!$C$2:$D$13,2,0)+A88,1),\"-\")","v":"-"},null,null,null,null,null,null,null,{"$f":"IF(A88>PRAZO_TOTAL,0,IF(A88<=VLOOKUP(EMPREENDIMENTO!$AO$69,LISTAS!L:M,2,0),0,VALOR_TOTAL/(PRAZO_TOTAL-CARENCIA)))","v":0},null,null,null,null,null,null,null,null,{"$error":"#N/A"},null,null,null,null,null,null,null,null,{"$error":"#N/A"},null,null,null,null,null,null,null,null,{"$error":"#N/A"},null,null,null,null,null,null,null,null,null,{"$error":"#VALUE!"},{"$error":"#N/A"},{"$error":"#N/A"},7,{"$f":"BA82+1","v":13}]
[79,null,null,{"$f":"IFERROR(DATE(EMPREENDIMENTO!$AP$63,VLOOKUP(EMPREENDIMENTO!$AJ$63,LISTAS!$C$2:$D$13,2,0)+A89,1),\"-\")","v":"-"},null,null,null,null,null,null,null,{"$f":"IF(A89>PRAZO_TOTAL,0,IF(A89<=VLOOKUP(EMPREENDIMENTO!$AO$69,LISTAS!L:M,2,0),0,VALOR_TOTAL/(PRAZO_TOTAL-CARENCIA)))","v":0},null,null,null,null,null,null,null,null,{"$error":"#N/A"},null,null,null,null,null,null,null,null,{"$error":"#N/A"},null,null,null,null,null,null,null,null,{"$error":"#N/A"},null,null,null,null,null,null,null,null,null,{"$error":"#VALUE!"},{"$error":"#N/A"},{"$error":"#N/A"},7,14]
[80,null,null,{"$f":"IFERROR(DATE(EMPREENDIMENTO!$AP$63,VLOOKUP(EMPREENDIMENTO!$AJ$63,LISTAS!$C$2:$D$13,2,0)+A90,1),\"-\")","v":"-"},null,null,null,null,null,null,null,{"$f":"IF(A90>PRAZO_TOTAL,0,IF(A90<=VLOOKUP(EMPREENDIMENTO!$AO$69,LISTAS!L:M,2,0),0,VALOR_TOTAL/(PRAZO_TOTAL-CARENCIA)))","v":0},null,null,null,null,null,null,null,null,{"$error":"#N/A"},null,null,null,null,null,null,null,null,{"$error":"#N/A"},null,null,null,null,null,null,null,null,{"$error":"#N/A"},null,null,null,null,null,null,null,null,null,{"$error":"#VALUE!"},{"$error":"#N/A"},{"$error":"#N/A"},7,14]
[81,null,null,{"$f":"IFERROR(DATE(EMPREENDIMENTO!$AP$63,VLOOKUP(EMPREENDIMENTO!$AJ$63,LISTAS!$C$2:$D$13,2,0)+A91,1),\"-\")","v":"-"},null,null,null,null,null,null,null,{"$f":"IF(A91>PRAZO_TOTAL,0,IF(A91<=VLOOKUP(EMPREENDIMENTO!$AO$69,LISTAS!L:M,2,0),0,VALOR_TOTAL/(PRAZO_TOTAL-CARENCIA)))","v":0},null,null,null,null,null,null,null,null,{"$error":"#N/A"},null,null,null,null,null,null,null,null,{"$error":"#N/A"},null,null,null,null,null,null,null,null,{"$error":"#N/A"},null,null,null,null,null,null,null,null,null,{"$error":"#VALUE!"},{"$error":"#N/A"},{"$error":"#N/A"},7,14]
[82,null,null,{"$f":"IFERROR(DATE(EMPREENDIMENTO!$AP$63,VLOOKUP(EMPREENDIMENTO!$AJ$63,LISTAS!$C$2:$D$13,2,0)+A92,1),\"-\")","v":"-"},null,null,null,null,null,null,null,{"$f":"IF(A92>PRAZO_TOTAL,0,IF(A92<=VLOOKUP(EMPREENDIMENTO!$AO$69,LISTAS!L:M,2,0),0,VALOR_TOTAL/(PRAZO_TOTAL-CARENCIA)))","v":0},null,null,null,null,null,null,null,null,{"$error":"#N/A"},null,null,null,null,null,null,null,null,{"$error":"#N/A"},null,null,null,null,null,null,null,null,{"$error":"#N/A"},null,null,null,null,null,null,null,null,null,{"$error":"#VALUE!"},{"$error":"#N/A"},{"$error":"#N/A"},7,14]
[83,null,null,{"$f":"IFERROR(DATE(EMPREENDIMENTO!$AP$63,VLOOKUP(EMPREENDIMENTO!$AJ$63,LISTAS!$C$2:$D$13,2,0)+A93,1),\"-\")","v":"-"},null,null,null,null,null,null,null,{"$f":"IF(A93>PRAZO_TOTAL,0,IF(A93<=VLOOKUP(EMPREENDIMENTO!$AO$69,LISTAS!L:M,2,0),0,VALOR_TOTAL/(PRAZO_TOTAL-CARENCIA)))","v":0},null,null,null,null,null,null,null,null,{"$error":"#N/A"},null,null,null,null,null,null,null,null,{"$error":"#N/A"},null,null,null,null,null,null,null,null,{"$error":"#N/A"},null,null,null,null,null,null,null,null,null,{"$error":"#VALUE!"},{"$error":"#N/A"},{"$error":"#N/A"},7,14]
[84,null,null,{"$f":"IFERROR(DATE(EMPREENDIMENTO!$AP$63,VLOOKUP(EMPREENDIMENTO!$AJ$63,LISTAS!$C$2:$D$13,2,0)+A94,1),\"-\")","v":"-"},null,null,null,null,null,null,null,{"$f":"IF(A94>PRAZO_TOTAL,0,IF(A94<=VLOOKUP(EMPREENDIMENTO!$AO$69,LISTAS!L:M,2,0),0,VALOR_TOTAL/(PRAZO_TOTAL-CARENCIA)))","v":0},null,null,null,null,null,null,null,null,{"$error":"#N/A"},null,null,null,null,null,null,null,null,{"$error":"#N/A"},null,null,null,null,null,null,null,null,{"$error":"#N/A"},null,null,null,null,null,null,null,null,null,{"$error":"#VALUE!"},{"$error":"#N/A"},{"$error":"#N/A"},7,14]
[85,null,null,{"$f":"IFERROR(DATE(EMPREENDIMENTO!$AP$63,VLOOKUP(EMPREENDIMENTO!$AJ$63,LISTAS!$C$2:$D$13,2,0)+A95,1),\"-\")","v":"-"},null,null,null,null,null,null,null,{"$f":"IF(A95>PRAZO_TOTAL,0,IF(A95<=VLOOKUP(EMPREENDIMENTO!$AO$69,LISTAS!L:M,2,0),0,VALOR_TOTAL/(PRAZO_TOTAL-CARENCIA)))","v":0},null,null,null,null,null,null,null,null,{"$error":"#N/A"},null,null,null,null,null,null,null,null,{"$error":"#N/A"},null,null,null,null,null,null,null,null,{"$error":"#N/A"},null,null,null,null,null,null,null,null,null,{"$error":"#VALUE!"},{"$error":"#N/A"},{"$error":"#N/A"},8,15]
[86,null,null,{"$f":"IFERROR(DATE(EMPREENDIMENTO!$AP$63,VLOOKUP(EMPREENDIMENTO!$AJ$63,LISTAS!$C$2:$D$13,2,0)+A96,1),\"-\")","v":"-"},null,null,null,null,null,null,null,{"$f":"IF(A96>PRAZO_TOTAL,0,IF(A96<=VLOOKUP(EMPREENDIMENTO!$AO$69,LISTAS!L:M,2,0),0,VALOR_TOTAL/(PRAZO_TOTAL-CARENCIA)))","v":0},null,null,null,null,null,null,null,null,{"$error":"#N/A"},null,null,null,null,null,null,null,null,{"$error":"#N/A"},null,null,null,null,null,null,null,null,{"$error":"#N/A"},null,null,null,null,null,null,null,null,null,{"$error":"#VALUE!"},{"$error":"#N/A"},{"$error":"#N/A"},8,15]
[87,null,null,{"$f":"IFERROR(DATE(EMPREENDIMENTO!$AP$63,VLOOKUP(EMPREENDIMENTO!$AJ$63,LISTAS!$C$2:$D$13,2,0)+A97,1),\"-\")","v":"-"},null,null,null,null,null,null,null,{"$f":"IF(A97>PRAZO_TOTAL,0,IF(A97<=VLOOKUP(EMPREENDIMENTO!$AO$69,LISTAS!L:M,2,0),0,VALOR_TOTAL/(PRAZO_TOTAL-CARENCIA)))","v":0},null,null,null,null,null,null,null,null,{"$error":"#N/A"},null,null,null,null,null,null,null,null,{"$error":"#N/A"},null,null,null,null,null,null,null,null,{"$error":"#N/A"},null,null,null,null,null,null,null,null,null,{"$error":"#VALUE!"},{"$error":"#N/A"},{"$error":"#N/A"},8,15]
[88,null,null,{"$f":"IFERROR(DATE(EMPREENDIMENTO!$AP$63,VLOOKUP(EMPREENDIMENTO!$AJ$63,LISTAS!$C$2:$D$13,2,0)+A98,1),\"-\")","v":"-"},null,null,null,null,null,null,null,{"$f":"IF(A98>PRAZO_TOTAL,0,IF(A98<=VLOOKUP(EMPREENDIMENTO!$AO$69,LISTAS!L:M,2,0),0,VALOR_TOTAL/(PRAZO_TOTAL-CARENCIA)))","v":0},null,null,null,null,null,null,null,null,{"$error":"#N/A"},null,null,null,null,null,null,null,null,{"$error":"#N/A"},null,null,null,null,null,null,null,null,{"$error":"#N/A"},null,null,null,null,null,null,null,null,null,{"$error":"#VALUE!"},{"$error":"#N/A"},{"$error":"#N/A"},8,15]
[89,null,null,{"$f":"IFERROR(DATE(EMPREENDIMENTO!$AP$63,VLOOKUP(EMPREENDIMENTO!$AJ$63,LISTAS!$C$2:$D$13,2,0)+A99,1),\"-\")","v":"-"},null,null,null,null,null,null,null,{"$f":"IF(A99>PRAZO_TOTAL,0,IF(A99<=VLOOKUP(EMPREENDIMENTO!$AO$69,LISTAS!L:M,2,0),0,VALOR_TOTAL/(PRAZO_TOTAL-CARENCIA)))","v":0},null,null,null,null,null,null,null,null,{"$error":"#N/A"},null,null,null,null,null,null,null,null,{"$error":"#N/A"},null,null,null,null,null,null,null,null,{"$error":"#N/A"},null,null,null,null,null,null,null,null,null,{"$error":"#VALUE!"},{"$error":"#N/A"},{"$error":"#N/A"},8,15]
[90,null,null,{"$f":"IFERROR(DATE(EMPREENDIMENTO!$AP$63,VLOOKUP(EMPREENDIMENTO!$AJ$63,LISTAS!$C$2:$D$13,2,0)+A100,1),\"-\")","v":"-"},null,null,null,null,null,null,null,{"$f":"IF(A100>PRAZO_TOTAL,0,IF(A100<=VLOOKUP(EMPREENDIMENTO!$AO$69,LISTAS!L:M,2,0),0,VALOR_TOTAL/(PRAZO_TOTAL-CARENCIA)))","v":0},null,null,null,null,null,null,null,null,{"$error":"#N/A"},null,null,null,null,null,null,null,null,{"$error":"#N/A"},null,null,null,null,null,null,null,null,{"$error":"#N/A"},null,null,null,null,null,null,null,null,null,{"$error":"#VALUE!"},{"$error":"#N/A"},{"$error":"#N/A"},8,15]
[91,null,null,{"$f":"IFERROR(DATE(EMPREENDIMENTO!$AP$63,VLOOKUP(EMPREENDIMENTO!$AJ$63,LISTAS!$C$2:$D$13,2,0)+A101,1),\"-\")","v":"-"},null,null,null,null,null,null,null,{"$f":"IF(A101>PRAZO_TOTAL,0,IF(A101<=VLOOKUP(EMPREENDIMENTO!$AO$69,LISTAS!L:M,2,0),0,VALOR_TOTAL/(PRAZO_TOTAL-CARENCIA)))","v":0},null,null,null,null,null,null,null,null,{"$error":"#N/A"},null,null,null,null,null,null,null,null,{"$error":"#N/A"},null,null,null,null,null,null,null,null,{"$error":"#N/A"},null,null,null,null,null,null,null,null,null,{"$error":"#VALUE!"},{"$error":"#N/A"},{"$error":"#N/A"},8,16]
[92,null,null,{"$f":"IFERROR(DATE(EMPREENDIMENTO!$AP$63,VLOOKUP(EMPREENDIMENTO!$AJ$63,LISTAS!$C$2:$D$13,2,0)+A102,1),\"-\")","v":"-"},null,null,null,null,null,null,null,{"$f":"IF(A102>PRAZO_TOTAL,0,IF(A102<=VLOOKUP(EMPREENDIMENTO!$AO$69,LISTAS!L:M,2,0),0,VALOR_TOTAL/(PRAZO_TOTAL-CARENCIA)))","v":0},null,null,null,null,null,null,null,null,{"$error":"#N/A"},null,null,null,null,null,null,null,null,{"$error":"#N/A"},null,null,null,null,null,null,null,null,{"$error":"#N/A"},null,null,null,null,null,null,null,null,null,{"$error":"#VALUE!"},{"$error":"#N/A"},{"$error":"#N/A"},8,16]
[93,null,null,{"$f":"IFERROR(DATE(EMPREENDIMENTO!$AP$63,VLOOKUP(EMPREENDIMENTO!$AJ$63,LISTAS!$C$2:$D$13,2,0)+A103,1),\"-\")","v":"-"},null,null,null,null,null,null,null,{"$f":"IF(A103>PRAZO_TOTAL,0,IF(A103<=VLOOKUP(EMPREENDIMENTO!$AO$69,LISTAS!L:M,2,0),0,VALOR_TOTAL/(PRAZO_TOTAL-CARENCIA)))","v":0},null,null,null,null,null,null,null,null,{"$error":"#N/A"},null,null,null,null,null,null,null,null,{"$error":"#N/A"},null,null,null,null,null,null,null,null,{"$error":"#N/A"},null,null,null,null,null,null,null,null,null,{"$error":"#VALUE!"},{"$error":"#N/A"},{"$error":"#N/A"},8,16]
[94,null,null,{"$f":"IFERROR(DATE(EMPREENDIMENTO!$AP$63,VLOOKUP(EMPREENDIMENTO!$AJ$63,LISTAS!$C$2:$D$13,2,0)+A104,1),\"-\")","v":"-"},null,null,null,null,null,null,null,{"$f":"IF(A104>PRAZO_TOTAL,0,IF(A104<=VLOOKUP(EMPREENDIMENTO!$AO$69,LISTAS!L:M,2,0),0,VALOR_TOTAL/(PRAZO_TOTAL-CARENCIA)))","v":0},null,null,null,null,null,null,null,null,{"$error":"#N/A"},null,null,null,null,null,null,null,null,{"$error":"#N/A"},null,null,null,null,null,null,null,null,{"$error":"#N/A"},null,null,null,null,null,null,null,null,null,{"$error":"#VALUE!"},{"$error":"#N/A"},{"$error":"#N/A"},8,16]
[95,null,null,{"$f":"IFERROR(DATE(EMPREENDIMENTO!$AP$63,VLOOKUP(EMPREENDIMENTO!$AJ$63,LISTAS!$C$2:$D$13,2,0)+A105,1),\"-\")","v":"-"},null,null,null,null,null,null,null,{"$f":"IF(A105>PRAZO_TOTAL,0,IF(A105<=VLOOKUP(EMPREENDIMENTO!$AO$69,LISTAS!L:M,2,0),0,VALOR_TOTAL/(PRAZO_TOTAL-CARENCIA)))","v":0},null,null,null,null,null,null,null,null,{"$error":"#N/A"},null,null,null,null,null,null,null,null,{"$error":"#N/A"},null,null,null,null,null,null,null,null,{"$error":"#N/A"},null,null,null,null,null,null,null,null,null,{"$error":"#VALUE!"},{"$error":"#N/A"},{"$error":"#N/A"},8,16]
[96,null,null,{"$f":"IFERROR(DATE(EMPREENDIMENTO!$AP$63,VLOOKUP(EMPREENDIMENTO!$AJ$63,LISTAS!$C$2:$D$13,2,0)+A106,1),\"-\")","v":"-"},null,null,null,null,null,null,null,{"$f":"IF(A106>PRAZO_TOTAL,0,IF(A106<=VLOOKUP(EMPREENDIMENTO!$AO$69,LISTAS!L:M,2,0),0,VALOR_TOTAL/(PRAZO_TOTAL-CARENCIA)))","v":0},null,null,null,null,null,null,null,null,{"$error":"#N/A"},null,null,null,null,null,null,null,null,{"$error":"#N/A"},null,null,null,null,null,null,null,null,{"$error":"#N/A"},null,null,null,null,null,null,null,null,null,{"$error":"#VALUE!"},{"$error":"#N/A"},{"$error":"#N/A"},8,16]
[97,null,null,{"$f":"IFERROR(DATE(EMPREENDIMENTO!$AP$63,VLOOKUP(EMPREENDIMENTO!$AJ$63,LISTAS!$C$2:$D$13,2,0)+A107,1),\"-\")","v":"-"},null,null,null,null,null,null,null,{"$f":"IF(A107>PRAZO_TOTAL,0,IF(A107<=VLOOKUP(EMPREENDIMENTO!$AO$69,LISTAS!L:M,2,0),0,VALOR_TOTAL/(PRAZO_TOTAL-CARENCIA)))","v":0},null,null,null,null,null,null,null,null,{"$f":"IF(AM106*(((1+TAXA_JUROS)^(1/12))-1)<0,0,AM106*(((1+TAXA_JUROS)^(1/12))-1))","v":{"$error":"#N/A"}},null,null,null,null,null,null,null,null,{"$f":"IF(AM107<0,0,IF(L107=0,0,U107+L107+AY106))","v":{"$error":"#N/A"}},null,null,null,null,null,null,null,null,{"$f":"IF(L107=0,AM106-L107+U107,AM106-L107-AY106)","v":{"$error":"#N/A"}},null,null,null,null,null,null,null,null,null,{"$error":"#VALUE!"},{"$error":"#N/A"},{"$error":"#N/A"},9,17]
[98,null,null,{"$f":"IFERROR(DATE(EMPREENDIMENTO!$AP$63,VLOOKUP(EMPREENDIMENTO!$AJ$63,LISTAS!$C$2:$D$13,2,0)+A108,1),\"-\")","v":"-"},null,null,null,null,null,null,null,{"$f":"IF(A108>PRAZO_TOTAL,0,IF(A108<=VLOOKUP(EMPREENDIMENTO!$AO$69,LISTAS!L:M,2,0),0,VALOR_TOTAL/(PRAZO_TOTAL-CARENCIA)))","v":0},null,null,null,null,null,null,null,null,{"$error":"#N/A"},null,null,null,null,null,null,null,null,{"$error":"#N/A"},null,null,null,null,null,null,null,null,{"$error":"#N/A"},null,null,null,null,null,null,null,null,null,{"$error":"#VALUE!"},{"$error":"#N/A"},{"$error":"#N/A"},9,17]
[99,null,null,{"$f":"IFERROR(DATE(EMPREENDIMENTO!$AP$63,VLOOKUP(EMPREENDIMENTO!$AJ$63,LISTAS!$C$2:$D$13,2,0)+A109,1),\"-\")","v":"-"},null,null,null,null,null,null,null,{"$f":"IF(A109>PRAZO_TOTAL,0,IF(A109<=VLOOKUP(EMPREENDIMENTO!$AO$69,LISTAS!L:M,2,0),0,VALOR_TOTAL/(PRAZO_TOTAL-CARENCIA)))","v":0},null,null,null,null,null,null,null,null,{"$error":"#N/A"},null,null,null,null,null,null,null,null,{"$error":"#N/A"},null,null,null,null,null,null,null,null,{"$error":"#N/A"},null,null,null,null,null,null,null,null,null,{"$error":"#VALUE!"},{"$error":"#N/A"},{"$error":"#N/A"},9,17]
[100,null,null,{"$f":"IFERROR(DATE(EMPREENDIMENTO!$AP$63,VLOOKUP(EMPREENDIMENTO!$AJ$63,LISTAS!$C$2:$D$13,2,0)+A110,1),\"-\")","v":"-"},null,null,null,null,null,null,null,{"$f":"IF(A110>PRAZO_TOTAL,0,IF(A110<=VLOOKUP(EMPREENDIMENTO!$AO$69,LISTAS!L:M,2,0),0,VALOR_TOTAL/(PRAZO_TOTAL-CARENCIA)))","v":0},null,null,null,null,null,null,null,null,{"$error":"#N/A"},null,null,null,null,null,null,null,null,{"$error":"#N/A"},null,null,null,null,null,null,null,null,{"$error":"#N/A"},null,null,null,null,null,null,null,null,null,{"$error":"#VALUE!"},{"$error":"#N/A"},{"$error":"#N/A"},9,17]
[101,null,null,{"$f":"IFERROR(DATE(EMPREENDIMENTO!$AP$63,VLOOKUP(EMPREENDIMENTO!$AJ$63,LISTAS!$C$2:$D$13,2,0)+A111,1),\"-\")","v":"-"},null,null,null,null,null,null,null,{"$f":"IF(A111>PRAZO_TOTAL,0,IF(A111<=VLOOKUP(EMPREENDIMENTO!$AO$69,LISTAS!L:M,2,0),0,VALOR_TOTAL/(PRAZO_TOTAL-CARENCIA)))","v":0},null,null,null,null,null,null,null,null,{"$error":"#N/A"},null,null,null,null,null,null,null,null,{"$error":"#N/A"},null,null,null,null,null,null,null,null,{"$error":"#N/A"},null,null,null,null,null,null,null,null,null,{"$error":"#VALUE!"},{"$error":"#N/A"},{"$error":"#N/A"},9,17]
[102,null,null,{"$f":"IFERROR(DATE(EMPREENDIMENTO!$AP$63,VLOOKUP(EMPREENDIMENTO!$AJ$63,LISTAS!$C$2:$D$13,2,0)+A112,1),\"-\")","v":"-"},null,null,null,null,null,null,null,{"$f":"IF(A112>PRAZO_TOTAL,0,IF(A112<=VLOOKUP(EMPREENDIMENTO!$AO$69,LISTAS!L:M,2,0),0,VALOR_TOTAL/(PRAZO_TOTAL-CARENCIA)))","v":0},null,null,null,null,null,null,null,null,{"$error":"#N/A"},null,null,null,null,null,null,null,null,{"$error":"#N/A"},null,null,null,null,null,null,null,null,{"$error":"#N/A"},null,null,null,null,null,null,null,null,null,{"$error":"#VALUE!"},{"$error":"#N/A"},{"$error":"#N/A"},9,17]
[103,null,null,{"$f":"IFERROR(DATE(EMPREENDIMENTO!$AP$63,VLOOKUP(EMPREENDIMENTO!$AJ$63,LISTAS!$C$2:$D$13,2,0)+A113,1),\"-\")","v":"-"},null,null,null,null,null,null,null,{"$f":"IF(A113>PRAZO_TOTAL,0,IF(A113<=VLOOKUP(EMPREENDIMENTO!$AO$69,LISTAS!L:M,2,0),0,VALOR_TOTAL/(PRAZO_TOTAL-CARENCIA)))","v":0},null,null,null,null,null,null,null,null,{"$error":"#N/A"},null,null,null,null,null,null,null,null,{"$error":"#N/A"},null,null,null,null,null,null,null,null,{"$error":"#N/A"},null,null,null,null,null,null,null,null,null,{"$error":"#VALUE!"},{"$error":"#N/A"},{"$error":"#N/A"},9,18]
[104,null,null,{"$f":"IFERROR(DATE(EMPREENDIMENTO!$AP$63,VLOOKUP(EMPREENDIMENTO!$AJ$63,LISTAS!$C$2:$D$13,2,0)+A114,1),\"-\")","v":"-"},null,null,null,null,null,null,null,{"$f":"IF(A114>PRAZO_TOTAL,0,IF(A114<=VLOOKUP(EMPREENDIMENTO!$AO$69,LISTAS!L:M,2,0),0,VALOR_TOTAL/(PRAZO_TOTAL-CARENCIA)))","v":0},null,null,null,null,null,null,null,null,{"$error":"#N/A"},null,null,null,null,null,null,null,null,{"$error":"#N/A"},null,null,null,null,null,null,null,null,{"$error":"#N/A"},null,null,null,null,null,null,null,null,null,{"$error":"#VALUE!"},{"$error":"#N/A"},{"$error":"#N/A"},9,18]
[105,null,null,{"$f":"IFERROR(DATE(EMPREENDIMENTO!$AP$63,VLOOKUP(EMPREENDIMENTO!$AJ$63,LISTAS!$C$2:$D$13,2,0)+A115,1),\"-\")","v":"-"},null,null,null,null,null,null,null,{"$f":"IF(A115>PRAZO_TOTAL,0,IF(A115<=VLOOKUP(EMPREENDIMENTO!$AO$69,LISTAS!L:M,2,0),0,VALOR_TOTAL/(PRAZO_TOTAL-CARENCIA)))","v":0},null,null,null,null,null,null,null,null,{"$error":"#N/A"},null,null,null,null,null,null,null,null,{"$error":"#N/A"},null,null,null,null,null,null,null,null,{"$error":"#N/A"},null,null,null,null,null,null,null,null,null,{"$error":"#VALUE!"},{"$error":"#N/A"},{"$error":"#N/A"},9,18]
[106,null,null,{"$f":"IFERROR(DATE(EMPREENDIMENTO!$AP$63,VLOOKUP(EMPREENDIMENTO!$AJ$63,LISTAS!$C$2:$D$13,2,0)+A116,1),\"-\")","v":"-"},null,null,null,null,null,null,null,{"$f":"IF(A116>PRAZO_TOTAL,0,IF(A116<=VLOOKUP(EMPREENDIMENTO!$AO$69,LISTAS!L:M,2,0),0,VALOR_TOTAL/(PRAZO_TOTAL-CARENCIA)))","v":0},null,null,null,null,null,null,null,null,{"$error":"#N/A"},null,null,null,null,null,null,null,null,{"$error":"#N/A"},null,null,null,null,null,null,null,null,{"$error":"#N/A"},null,null,null,null,null,null,null,null,null,{"$error":"#VALUE!"},{"$error":"#N/A"},{"$error":"#N/A"},9,18]
[107,null,null,{"$f":"IFERROR(DATE(EMPREENDIMENTO!$AP$63,VLOOKUP(EMPREENDIMENTO!$AJ$63,LISTAS!$C$2:$D$13,2,0)+A117,1),\"-\")","v":"-"},null,null,null,null,null,null,null,{"$f":"IF(A117>PRAZO_TOTAL,0,IF(A117<=VLOOKUP(EMPREENDIMENTO!$AO$69,LISTAS!L:M,2,0),0,VALOR_TOTAL/(PRAZO_TOTAL-CARENCIA)))","v":0},null,null,null,null,null,null,null,null,{"$error":"#N/A"},null,null,null,null,null,null,null,null,{"$error":"#N/A"},null,null,null,null,null,null,null,null,{"$error":"#N/A"},null,null,null,null,null,null,null,null,null,{"$error":"#VALUE!"},{"$error":"#N/A"},{"$error":"#N/A"},9,18]
[108,null,null,{"$f":"IFERROR(DATE(EMPREENDIMENTO!$AP$63,VLOOKUP(EMPREENDIMENTO!$AJ$63,LISTAS!$C$2:$D$13,2,0)+A118,1),\"-\")","v":"-"},null,null,null,null,null,null,null,{"$f":"IF(A118>PRAZO_TOTAL,0,IF(A118<=VLOOKUP(EMPREENDIMENTO!$AO$69,LISTAS!L:M,2,0),0,VALOR_TOTAL/(PRAZO_TOTAL-CARENCIA)))","v":0},null,null,null,null,null,null,null,null,{"$error":"#N/A"},null,null,null,null,null,null,null,null,{"$error":"#N/A"},null,null,null,null,null,null,null,null,{"$error":"#N/A"},null,null,null,null,null,null,null,null,null,{"$error":"#VALUE!"},{"$error":"#N/A"},{"$error":"#N/A"},9,18]
[109,null,null,{"$f":"IFERROR(DATE(EMPREENDIMENTO!$AP$63,VLOOKUP(EMPREENDIMENTO!$AJ$63,LISTAS!$C$2:$D$13,2,0)+A119,1),\"-\")","v":"-"},null,null,null,null,null,null,null,{"$f":"IF(A119>PRAZO_TOTAL,0,IF(A119<=VLOOKUP(EMPREENDIMENTO!$AO$69,LISTAS!L:M,2,0),0,VALOR_TOTAL/(PRAZO_TOTAL-CARENCIA)))","v":0},null,null,null,null,null,null,null,null,{"$error":"#N/A"},null,null,null,null,null,null,null,null,{"$error":"#N/A"},null,null,null,null,null,null,null,null,{"$error":"#N/A"},null,null,null,null,null,null,null,null,null,{"$error":"#VALUE!"},{"$error":"#N/A"},{"$error":"#N/A"},10,19]
[110,null,null,{"$f":"IFERROR(DATE(EMPREENDIMENTO!$AP$63,VLOOKUP(EMPREENDIMENTO!$AJ$63,LISTAS!$C$2:$D$13,2,0)+A120,1),\"-\")","v":"-"},null,null,null,null,null,null,null,{"$f":"IF(A120>PRAZO_TOTAL,0,IF(A120<=VLOOKUP(EMPREENDIMENTO!$AO$69,LISTAS!L:M,2,0),0,VALOR_TOTAL/(PRAZO_TOTAL-CARENCIA)))","v":0},null,null,null,null,null,null,null,null,{"$error":"#N/A"},null,null,null,null,null,null,null,null,{"$error":"#N/A"},null,null,null,null,null,null,null,null,{"$error":"#N/A"},null,null,null,null,null,null,null,null,null,{"$error":"#VALUE!"},{"$error":"#N/A"},{"$error":"#N/A"},10,19]
[111,null,null,{"$f":"IFERROR(DATE(EMPREENDIMENTO!$AP$63,VLOOKUP(EMPREENDIMENTO!$AJ$63,LISTAS!$C$2:$D$13,2,0)+A121,1),\"-\")","v":"-"},null,null,null,null,null,null,null,{"$f":"IF(A121>PRAZO_TOTAL,0,IF(A121<=VLOOKUP(EMPREENDIMENTO!$AO$69,LISTAS!L:M,2,0),0,VALOR_TOTAL/(PRAZO_TOTAL-CARENCIA)))","v":0},null,null,null,null,null,null,null,null,{"$error":"#N/A"},null,null,null,null,null,null,null,null,{"$error":"#N/A"},null,null,null,null,null,null,null,null,{"$error":"#N/A"},null,null,null,null,null,null,null,null,null,{"$error":"#VALUE!"},{"$error":"#N/A"},{"$error":"#N/A"},10,19]
[112,null,null,{"$f":"IFERROR(DATE(EMPREENDIMENTO!$AP$63,VLOOKUP(EMPREENDIMENTO!$AJ$63,LISTAS!$C$2:$D$13,2,0)+A122,1),\"-\")","v":"-"},null,null,null,null,null,null,null,{"$f":"IF(A122>PRAZO_TOTAL,0,IF(A122<=VLOOKUP(EMPREENDIMENTO!$AO$69,LISTAS!L:M,2,0),0,VALOR_TOTAL/(PRAZO_TOTAL-CARENCIA)))","v":0},null,null,null,null,null,null,null,null,{"$error":"#N/A"},null,null,null,null,null,null,null,null,{"$error":"#N/A"},null,null,null,null,null,null,null,null,{"$error":"#N/A"},null,null,null,null,null,null,null,null,null,{"$error":"#VALUE!"},{"$error":"#N/A"},{"$error":"#N/A"},10,19]
[113,null,null,{"$f":"IFERROR(DATE(EMPREENDIMENTO!$AP$63,VLOOKUP(EMPREENDIMENTO!$AJ$63,LISTAS!$C$2:$D$13,2,0)+A123,1),\"-\")","v":"-"},null,null,null,null,null,null,null,{"$f":"IF(A123>PRAZO_TOTAL,0,IF(A123<=VLOOKUP(EMPREENDIMENTO!$AO$69,LISTAS!L:M,2,0),0,VALOR_TOTAL/(PRAZO_TOTAL-CARENCIA)))","v":0},null,null,null,null,null,null,null,null,{"$error":"#N/A"},null,null,null,null,null,null,null,null,{"$error":"#N/A"},null,null,null,null,null,null,null,null,{"$error":"#N/A"},null,null,null,null,null,null,null,null,null,{"$error":"#VALUE!"},{"$error":"#N/A"},{"$error":"#N/A"},10,19]
[114,null,null,{"$f":"IFERROR(DATE(EMPREENDIMENTO!$AP$63,VLOOKUP(EMPREENDIMENTO!$AJ$63,LISTAS!$C$2:$D$13,2,0)+A124,1),\"-\")","v":"-"},null,null,null,null,null,null,null,{"$f":"IF(A124>PRAZO_TOTAL,0,IF(A124<=VLOOKUP(EMPREENDIMENTO!$AO$69,LISTAS!L:M,2,0),0,VALOR_TOTAL/(PRAZO_TOTAL-CARENCIA)))","v":0},null,null,null,null,null,null,null,null,{"$error":"#N/A"},null,null,null,null,null,null,null,null,{"$error":"#N/A"},null,null,null,null,null,null,null,null,{"$error":"#N/A"},null,null,null,null,null,null,null,null,null,{"$error":"#VALUE!"},{"$error":"#N/A"},{"$error":"#N/A"},10,19]
[115,null,null,{"$f":"IFERROR(DATE(EMPREENDIMENTO!$AP$63,VLOOKUP(EMPREENDIMENTO!$AJ$63,LISTAS!$C$2:$D$13,2,0)+A125,1),\"-\")","v":"-"},null,null,null,null,null,null,null,{"$f":"IF(A125>PRAZO_TOTAL,0,IF(A125<=VLOOKUP(EMPREENDIMENTO!$AO$69,LISTAS!L:M,2,0),0,VALOR_TOTAL/(PRAZO_TOTAL-CARENCIA)))","v":0},null,null,null,null,null,null,null,null,{"$error":"#N/A"},null,null,null,null,null,null,null,null,{"$error":"#N/A"},null,null,null,null,null,null,null,null,{"$error":"#N/A"},null,null,null,null,null,null,null,null,null,{"$error":"#VALUE!"},{"$error":"#N/A"},{"$error":"#N/A"},10,20]
[116,null,null,{"$f":"IFERROR(DATE(EMPREENDIMENTO!$AP$63,VLOOKUP(EMPREENDIMENTO!$AJ$63,LISTAS!$C$2:$D$13,2,0)+A126,1),\"-\")","v":"-"},null,null,null,null,null,null,null,{"$f":"IF(A126>PRAZO_TOTAL,0,IF(A126<=VLOOKUP(EMPREENDIMENTO!$AO$69,LISTAS!L:M,2,0),0,VALOR_TOTAL/(PRAZO_TOTAL-CARENCIA)))","v":0},null,null,null,null,null,null,null,null,{"$error":"#N/A"},null,null,null,null,null,null,null,null,{"$error":"#N/A"},null,null,null,null,null,null,null,null,{"$error":"#N/A"},null,null,null,null,null,null,null,null,null,{"$error":"#VALUE!"},{"$error":"#N/A"},{"$error":"#N/A"},10,20]
[117,null,null,{"$f":"IFERROR(DATE(EMPREENDIMENTO!$AP$63,VLOOKUP(EMPREENDIMENTO!$AJ$63,LISTAS!$C$2:$D$13,2,0)+A127,1),\"-\")","v":"-"},null,null,null,null,null,null,null,{"$f":"IF(A127>PRAZO_TOTAL,0,IF(A127<=VLOOKUP(EMPREENDIMENTO!$AO$69,LISTAS!L:M,2,0),0,VALOR_TOTAL/(PRAZO_TOTAL-CARENCIA)))","v":0},null,null,null,null,null,null,null,null,{"$error":"#N/A"},null,null,null,null,null,null,null,null,{"$error":"#N/A"},null,null,null,null,null,null,null,null,{"$error":"#N/A"},null,null,null,null,null,null,null,null,null,{"$error":"#VALUE!"},{"$error":"#N/A"},{"$error":"#N/A"},10,20]
[118,null,null,{"$f":"IFERROR(DATE(EMPREENDIMENTO!$AP$63,VLOOKUP(EMPREENDIMENTO!$AJ$63,LISTAS!$C$2:$D$13,2,0)+A128,1),\"-\")","v":"-"},null,null,null,null,null,null,null,{"$f":"IF(A128>PRAZO_TOTAL,0,IF(A128<=VLOOKUP(EMPREENDIMENTO!$AO$69,LISTAS!L:M,2,0),0,VALOR_TOTAL/(PRAZO_TOTAL-CARENCIA)))","v":0},null,null,null,null,null,null,null,null,{"$error":"#N/A"},null,null,null,null,null,null,null,null,{"$error":"#N/A"},null,null,null,null,null,null,null,null,{"$error":"#N/A"},null,null,null,null,null,null,null,null,null,{"$error":"#VALUE!"},{"$error":"#N/A"},{"$error":"#N/A"},10,20]
[119,null,null,{"$f":"IFERROR(DATE(EMPREENDIMENTO!$AP$63,VLOOKUP(EMPREENDIMENTO!$AJ$63,LISTAS!$C$2:$D$13,2,0)+A129,1),\"-\")","v":"-"},null,null,null,null,null,null,null,{"$f":"IF(A129>PRAZO_TOTAL,0,IF(A129<=VLOOKUP(EMPREENDIMENTO!$AO$69,LISTAS!L:M,2,0),0,VALOR_TOTAL/(PRAZO_TOTAL-CARENCIA)))","v":0},null,null,null,null,null,null,null,null,{"$error":"#N/A"},null,null,null,null,null,null,null,null,{"$error":"#N/A"},null,null,null,null,null,null,null,null,{"$error":"#N/A"},null,null,null,null,null,null,null,null,null,{"$error":"#VALUE!"},{"$error":"#N/A"},{"$error":"#N/A"},10,20]
[120,null,null,{"$f":"IFERROR(DATE(EMPREENDIMENTO!$AP$63,VLOOKUP(EMPREENDIMENTO!$AJ$63,LISTAS!$C$2:$D$13,2,0)+A130,1),\"-\")","v":"-"},null,null,null,null,null,null,null,{"$f":"IF(A130>PRAZO_TOTAL,0,IF(A130<=VLOOKUP(EMPREENDIMENTO!$AO$69,LISTAS!L:M,2,0),0,VALOR_TOTAL/(PRAZO_TOTAL-CARENCIA)))","v":0},null,null,null,null,null,null,null,null,{"$error":"#N/A"},null,null,null,null,null,null,null,null,{"$error":"#N/A"},null,null,null,null,null,null,null,null,{"$error":"#N/A"},null,null,null,null,null,null,null,null,null,{"$f":"YEAR(D130)","v":{"$error":"#VALUE!"}},{"$f":"IF(AM130>0,\"SIM\",\"NÃO\")","v":{"$error":"#N/A"}},{"$f":"IF(L130=0,U130+AY129,0)","v":{"$error":"#N/A"}},10,20]
[121,null,null,{"$f":"IFERROR(DATE(EMPREENDIMENTO!$AP$63,VLOOKUP(EMPREENDIMENTO!$AJ$63,LISTAS!$C$2:$D$13,2,0)+A131,1),\"-\")","v":"-"},null,null,null,null,null,null,null,{"$f":"IF(A131>PRAZO_TOTAL,0,IF(A131<=VLOOKUP(EMPREENDIMENTO!$AO$69,LISTAS!L:M,2,0),0,VALOR_TOTAL/(PRAZO_TOTAL-CARENCIA)))","v":0},null,null,null,null,null,null,null,null,{"$error":"#N/A"},null,null,null,null,null,null,null,null,{"$error":"#N/A"},null,null,null,null,null,null,null,null,{"$error":"#N/A"},null,null,null,null,null,null,null,null,null,{"$error":"#VALUE!"},{"$error":"#N/A"},{"$error":"#N/A"},11,21]
[122,null,null,{"$f":"IFERROR(DATE(EMPREENDIMENTO!$AP$63,VLOOKUP(EMPREENDIMENTO!$AJ$63,LISTAS!$C$2:$D$13,2,0)+A132,1),\"-\")","v":"-"},null,null,null,null,null,null,null,{"$f":"IF(A132>PRAZO_TOTAL,0,IF(A132<=VLOOKUP(EMPREENDIMENTO!$AO$69,LISTAS!L:M,2,0),0,VALOR_TOTAL/(PRAZO_TOTAL-CARENCIA)))","v":0},null,null,null,null,null,null,null,null,{"$error":"#N/A"},null,null,null,null,null,null,null,null,{"$error":"#N/A"},null,null,null,null,null,null,null,null,{"$error":"#N/A"},null,null,null,null,null,null,null,null,null,{"$error":"#VALUE!"},{"$error":"#N/A"},{"$error":"#N/A"},11,21]
[123,null,null,{"$f":"IFERROR(DATE(EMPREENDIMENTO!$AP$63,VLOOKUP(EMPREENDIMENTO!$AJ$63,LISTAS!$C$2:$D$13,2,0)+A133,1),\"-\")","v":"-"},null,null,null,null,null,null,null,{"$f":"IF(A133>PRAZO_TOTAL,0,IF(A133<=VLOOKUP(EMPREENDIMENTO!$AO$69,LISTAS!L:M,2,0),0,VALOR_TOTAL/(PRAZO_TOTAL-CARENCIA)))","v":0},null,null,null,null,null,null,null,null,{"$error":"#N/A"},null,null,null,null,null,null,null,null,{"$error":"#N/A"},null,null,null,null,null,null,null,null,{"$error":"#N/A"},null,null,null,null,null,null,null,null,null,{"$error":"#VALUE!"},{"$error":"#N/A"},{"$error":"#N/A"},11,21]
[124,null,null,{"$f":"IFERROR(DATE(EMPREENDIMENTO!$AP$63,VLOOKUP(EMPREENDIMENTO!$AJ$63,LISTAS!$C$2:$D$13,2,0)+A134,1),\"-\")","v":"-"},null,null,null,null,null,null,null,{"$f":"IF(A134>PRAZO_TOTAL,0,IF(A134<=VLOOKUP(EMPREENDIMENTO!$AO$69,LISTAS!L:M,2,0),0,VALOR_TOTAL/(PRAZO_TOTAL-CARENCIA)))","v":0},null,null,null,null,null,null,null,null,{"$error":"#N/A"},null,null,null,null,null,null,null,null,{"$error":"#N/A"},null,null,null,null,null,null,null,null,{"$error":"#N/A"},null,null,null,null,null,null,null,null,null,{"$error":"#VALUE!"},{"$error":"#N/A"},{"$error":"#N/A"},11,21]
[125,null,null,{"$f":"IFERROR(DATE(EMPREENDIMENTO!$AP$63,VLOOKUP(EMPREENDIMENTO!$AJ$63,LISTAS!$C$2:$D$13,2,0)+A135,1),\"-\")","v":"-"},null,null,null,null,null,null,null,{"$f":"IF(A135>PRAZO_TOTAL,0,IF(A135<=VLOOKUP(EMPREENDIMENTO!$AO$69,LISTAS!L:M,2,0),0,VALOR_TOTAL/(PRAZO_TOTAL-CARENCIA)))","v":0},null,null,null,null,null,null,null,null,{"$error":"#N/A"},null,null,null,null,null,null,null,null,{"$error":"#N/A"},null,null,null,null,null,null,null,null,{"$error":"#N/A"},null,null,null,null,null,null,null,null,null,{"$error":"#VALUE!"},{"$error":"#N/A"},{"$error":"#N/A"},11,21]
[126,null,null,{"$f":"IFERROR(DATE(EMPREENDIMENTO!$AP$63,VLOOKUP(EMPREENDIMENTO!$AJ$63,LISTAS!$C$2:$D$13,2,0)+A136,1),\"-\")","v":"-"},null,null,null,null,null,null,null,{"$f":"IF(A136>PRAZO_TOTAL,0,IF(A136<=VLOOKUP(EMPREENDIMENTO!$AO$69,LISTAS!L:M,2,0),0,VALOR_TOTAL/(PRAZO_TOTAL-CARENCIA)))","v":0},null,null,null,null,null,null,null,null,{"$error":"#N/A"},null,null,null,null,null,null,null,null,{"$error":"#N/A"},null,null,null,null,null,null,null,null,{"$error":"#N/A"},null,null,null,null,null,null,null,null,null,{"$error":"#VALUE!"},{"$error":"#N/A"},{"$error":"#N/A"},11,21]
[127,null,null,{"$f":"IFERROR(DATE(EMPREENDIMENTO!$AP$63,VLOOKUP(EMPREENDIMENTO!$AJ$63,LISTAS!$C$2:$D$13,2,0)+A137,1),\"-\")","v":"-"},null,null,null,null,null,null,null,{"$f":"IF(A137>PRAZO_TOTAL,0,IF(A137<=VLOOKUP(EMPREENDIMENTO!$AO$69,LISTAS!L:M,2,0),0,VALOR_TOTAL/(PRAZO_TOTAL-CARENCIA)))","v":0},null,null,null,null,null,null,null,null,{"$error":"#N/A"},null,null,null,null,null,null,null,null,{"$error":"#N/A"},null,null,null,null,null,null,null,null,{"$error":"#N/A"},null,null,null,null,null,null,null,null,null,{"$error":"#VALUE!"},{"$error":"#N/A"},{"$error":"#N/A"},11,22]
[128,null,null,{"$f":"IFERROR(DATE(EMPREENDIMENTO!$AP$63,VLOOKUP(EMPREENDIMENTO!$AJ$63,LISTAS!$C$2:$D$13,2,0)+A138,1),\"-\")","v":"-"},null,null,null,null,null,null,null,{"$f":"IF(A138>PRAZO_TOTAL,0,IF(A138<=VLOOKUP(EMPREENDIMENTO!$AO$69,LISTAS!L:M,2,0),0,VALOR_TOTAL/(PRAZO_TOTAL-CARENCIA)))","v":0},null,null,null,null,null,null,null,null,{"$error":"#N/A"},null,null,null,null,null,null,null,null,{"$error":"#N/A"},null,null,null,null,null,null,null,null,{"$error":"#N/A"},null,null,null,null,null,null,null,null,null,{"$error":"#VALUE!"},{"$error":"#N/A"},{"$error":"#N/A"},11,22]
[129,null,null,{"$f":"IFERROR(DATE(EMPREENDIMENTO!$AP$63,VLOOKUP(EMPREENDIMENTO!$AJ$63,LISTAS!$C$2:$D$13,2,0)+A139,1),\"-\")","v":"-"},null,null,null,null,null,null,null,{"$f":"IF(A139>PRAZO_TOTAL,0,IF(A139<=VLOOKUP(EMPREENDIMENTO!$AO$69,LISTAS!L:M,2,0),0,VALOR_TOTAL/(PRAZO_TOTAL-CARENCIA)))","v":0},null,null,null,null,null,null,null,null,{"$error":"#N/A"},null,null,null,null,null,null,null,null,{"$error":"#N/A"},null,null,null,null,null,null,null,null,{"$error":"#N/A"},null,null,null,null,null,null,null,null,null,{"$error":"#VALUE!"},{"$error":"#N/A"},{"$error":"#N/A"},11,22]
[130,null,null,{"$f":"IFERROR(DATE(EMPREENDIMENTO!$AP$63,VLOOKUP(EMPREENDIMENTO!$AJ$63,LISTAS!$C$2:$D$13,2,0)+A140,1),\"-\")","v":"-"},null,null,null,null,null,null,null,{"$f":"IF(A140>PRAZO_TOTAL,0,IF(A140<=VLOOKUP(EMPREENDIMENTO!$AO$69,LISTAS!L:M,2,0),0,VALOR_TOTAL/(PRAZO_TOTAL-CARENCIA)))","v":0},null,null,null,null,null,null,null,null,{"$error":"#N/A"},null,null,null,null,null,null,null,null,{"$error":"#N/A"},null,null,null,null,null,null,null,null,{"$error":"#N/A"},null,null,null,null,null,null,null,null,null,{"$error":"#VALUE!"},{"$error":"#N/A"},{"$error":"#N/A"},11,22]
[131,null,null,{"$f":"IFERROR(DATE(EMPREENDIMENTO!$AP$63,VLOOKUP(EMPREENDIMENTO!$AJ$63,LISTAS!$C$2:$D$13,2,0)+A141,1),\"-\")","v":"-"},null,null,null,null,null,null,null,{"$f":"IF(A141>PRAZO_TOTAL,0,IF(A141<=VLOOKUP(EMPREENDIMENTO!$AO$69,LISTAS!L:M,2,0),0,VALOR_TOTAL/(PRAZO_TOTAL-CARENCIA)))","v":0},null,null,null,null,null,null,null,null,{"$error":"#N/A"},null,null,null,null,null,null,null,null,{"$error":"#N/A"},null,null,null,null,null,null,null,null,{"$error":"#N/A"},null,null,null,null,null,null,null,null,null,{"$error":"#VALUE!"},{"$error":"#N/A"},{"$error":"#N/A"},11,22]
[132,null,null,{"$f":"IFERROR(DATE(EMPREENDIMENTO!$AP$63,VLOOKUP(EMPREENDIMENTO!$AJ$63,LISTAS!$C$2:$D$13,2,0)+A142,1),\"-\")","v":"-"},null,null,null,null,null,null,null,{"$f":"IF(A142>PRAZO_TOTAL,0,IF(A142<=VLOOKUP(EMPREENDIMENTO!$AO$69,LISTAS!L:M,2,0),0,VALOR_TOTAL/(PRAZO_TOTAL-CARENCIA)))","v":0},null,null,null,null,null,null,null,null,{"$error":"#N/A"},null,null,null,null,null,null,null,null,{"$error":"#N/A"},null,null,null,null,null,null,null,null,{"$error":"#N/A"},null,null,null,null,null,null,null,null,null,{"$error":"#VALUE!"},{"$error":"#N/A"},{"$error":"#N/A"},11,22]
[133,null,null,{"$f":"IFERROR(DATE(EMPREENDIMENTO!$AP$63,VLOOKUP(EMPREENDIMENTO!$AJ$63,LISTAS!$C$2:$D$13,2,0)+A143,1),\"-\")","v":"-"},null,null,null,null,null,null,null,{"$f":"IF(A143>PRAZO_TOTAL,0,IF(A143<=VLOOKUP(EMPREENDIMENTO!$AO$69,LISTAS!L:M,2,0),0,VALOR_TOTAL/(PRAZO_TOTAL-CARENCIA)))","v":0},null,null,null,null,null,null,null,null,{"$f":"IF(AM142*(((1+TAXA_JUROS)^(1/12))-1)<0,0,AM142*(((1+TAXA_JUROS)^(1/12))-1))","v":{"$error":"#N/A"}},null,null,null,null,null,null,null,null,{"$f":"IF(AM143<0,0,IF(L143=0,0,U143+L143+AY142))","v":{"$error":"#N/A"}},null,null,null,null,null,null,null,null,{"$f":"IF(L143=0,AM142-L143+U143,AM142-L143-AY142)","v":{"$error":"#N/A"}},null,null,null,null,null,null,null,null,null,{"$error":"#VALUE!"},{"$error":"#N/A"},{"$error":"#N/A"},12,23]
[134,null,null,{"$f":"IFERROR(DATE(EMPREENDIMENTO!$AP$63,VLOOKUP(EMPREENDIMENTO!$AJ$63,LISTAS!$C$2:$D$13,2,0)+A144,1),\"-\")","v":"-"},null,null,null,null,null,null,null,{"$f":"IF(A144>PRAZO_TOTAL,0,IF(A144<=VLOOKUP(EMPREENDIMENTO!$AO$69,LISTAS!L:M,2,0),0,VALOR_TOTAL/(PRAZO_TOTAL-CARENCIA)))","v":0},null,null,null,null,null,null,null,null,{"$error":"#N/A"},null,null,null,null,null,null,null,null,{"$error":"#N/A"},null,null,null,null,null,null,null,null,{"$error":"#N/A"},null,null,null,null,null,null,null,null,null,{"$error":"#VALUE!"},{"$error":"#N/A"},{"$error":"#N/A"},12,23]
[135,null,null,{"$f":"IFERROR(DATE(EMPREENDIMENTO!$AP$63,VLOOKUP(EMPREENDIMENTO!$AJ$63,LISTAS!$C$2:$D$13,2,0)+A145,1),\"-\")","v":"-"},null,null,null,null,null,null,null,{"$f":"IF(A145>PRAZO_TOTAL,0,IF(A145<=VLOOKUP(EMPREENDIMENTO!$AO$69,LISTAS!L:M,2,0),0,VALOR_TOTAL/(PRAZO_TOTAL-CARENCIA)))","v":0},null,null,null,null,null,null,null,null,{"$error":"#N/A"},null,null,null,null,null,null,null,null,{"$error":"#N/A"},null,null,null,null,null,null,null,null,{"$error":"#N/A"},null,null,null,null,null,null,null,null,null,{"$error":"#VALUE!"},{"$error":"#N/A"},{"$error":"#N/A"},12,23]
[136,null,null,{"$f":"IFERROR(DATE(EMPREENDIMENTO!$AP$63,VLOOKUP(EMPREENDIMENTO!$AJ$63,LISTAS!$C$2:$D$13,2,0)+A146,1),\"-\")","v":"-"},null,null,null,null,null,null,null,{"$f":"IF(A146>PRAZO_TOTAL,0,IF(A146<=VLOOKUP(EMPREENDIMENTO!$AO$69,LISTAS!L:M,2,0),0,VALOR_TOTAL/(PRAZO_TOTAL-CARENCIA)))","v":0},null,null,null,null,null,null,null,null,{"$error":"#N/A"},null,null,null,null,null,null,null,null,{"$error":"#N/A"},null,null,null,null,null,null,null,null,{"$error":"#N/A"},null,null,null,null,null,null,null,null,null,{"$error":"#VALUE!"},{"$error":"#N/A"},{"$error":"#N/A"},12,23]
[137,null,null,{"$f":"IFERROR(DATE(EMPREENDIMENTO!$AP$63,VLOOKUP(EMPREENDIMENTO!$AJ$63,LISTAS!$C$2:$D$13,2,0)+A147,1),\"-\")","v":"-"},null,null,null,null,null,null,null,{"$f":"IF(A147>PRAZO_TOTAL,0,IF(A147<=VLOOKUP(EMPREENDIMENTO!$AO$69,LISTAS!L:M,2,0),0,VALOR_TOTAL/(PRAZO_TOTAL-CARENCIA)))","v":0},null,null,null,null,null,null,null,null,{"$error":"#N/A"},null,null,null,null,null,null,null,null,{"$error":"#N/A"},null,null,null,null,null,null,null,null,{"$error":"#N/A"},null,null,null,null,null,null,null,null,null,{"$error":"#VALUE!"},{"$error":"#N/A"},{"$error":"#N/A"},12,23]
[138,null,null,{"$f":"IFERROR(DATE(EMPREENDIMENTO!$AP$63,VLOOKUP(EMPREENDIMENTO!$AJ$63,LISTAS!$C$2:$D$13,2,0)+A148,1),\"-\")","v":"-"},null,null,null,null,null,null,null,{"$f":"IF(A148>PRAZO_TOTAL,0,IF(A148<=VLOOKUP(EMPREENDIMENTO!$AO$69,LISTAS!L:M,2,0),0,VALOR_TOTAL/(PRAZO_TOTAL-CARENCIA)))","v":0},null,null,null,null,null,null,null,null,{"$error":"#N/A"},null,null,null,null,null,null,null,null,{"$error":"#N/A"},null,null,null,null,null,null,null,null,{"$error":"#N/A"},null,null,null,null,null,null,null,null,null,{"$error":"#VALUE!"},{"$error":"#N/A"},{"$error":"#N/A"},12,23]
[139,null,null,{"$f":"IFERROR(DATE(EMPREENDIMENTO!$AP$63,VLOOKUP(EMPREENDIMENTO!$AJ$63,LISTAS!$C$2:$D$13,2,0)+A149,1),\"-\")","v":"-"},null,null,null,null,null,null,null,{"$f":"IF(A149>PRAZO_TOTAL,0,IF(A149<=VLOOKUP(EMPREENDIMENTO!$AO$69,LISTAS!L:M,2,0),0,VALOR_TOTAL/(PRAZO_TOTAL-CARENCIA)))","v":0},null,null,null,null,null,null,null,null,{"$error":"#N/A"},null,null,null,null,null,null,null,null,{"$error":"#N/A"},null,null,null,null,null,null,null,null,{"$error":"#N/A"},null,null,null,null,null,null,null,null,null,{"$error":"#VALUE!"},{"$error":"#N/A"},{"$error":"#N/A"},12,24]
[140,null,null,{"$f":"IFERROR(DATE(EMPREENDIMENTO!$AP$63,VLOOKUP(EMPREENDIMENTO!$AJ$63,LISTAS!$C$2:$D$13,2,0)+A150,1),\"-\")","v":"-"},null,null,null,null,null,null,null,{"$f":"IF(A150>PRAZO_TOTAL,0,IF(A150<=VLOOKUP(EMPREENDIMENTO!$AO$69,LISTAS!L:M,2,0),0,VALOR_TOTAL/(PRAZO_TOTAL-CARENCIA)))","v":0},null,null,null,null,null,null,null,null,{"$error":"#N/A"},null,null,null,null,null,null,null,null,{"$error":"#N/A"},null,null,null,null,null,null,null,null,{"$error":"#N/A"},null,null,null,null,null,null,null,null,null,{"$error":"#VALUE!"},{"$error":"#N/A"},{"$error":"#N/A"},12,24]
[141,null,null,{"$f":"IFERROR(DATE(EMPREENDIMENTO!$AP$63,VLOOKUP(EMPREENDIMENTO!$AJ$63,LISTAS!$C$2:$D$13,2,0)+A151,1),\"-\")","v":"-"},null,null,null,null,null,null,null,{"$f":"IF(A151>PRAZO_TOTAL,0,IF(A151<=VLOOKUP(EMPREENDIMENTO!$AO$69,LISTAS!L:M,2,0),0,VALOR_TOTAL/(PRAZO_TOTAL-CARENCIA)))","v":0},null,null,null,null,null,null,null,null,{"$error":"#N/A"},null,null,null,null,null,null,null,null,{"$error":"#N/A"},null,null,null,null,null,null,null,null,{"$error":"#N/A"},null,null,null,null,null,null,null,null,null,{"$error":"#VALUE!"},{"$error":"#N/A"},{"$error":"#N/A"},12,24]
[142,null,null,{"$f":"IFERROR(DATE(EMPREENDIMENTO!$AP$63,VLOOKUP(EMPREENDIMENTO!$AJ$63,LISTAS!$C$2:$D$13,2,0)+A152,1),\"-\")","v":"-"},null,null,null,null,null,null,null,{"$f":"IF(A152>PRAZO_TOTAL,0,IF(A152<=VLOOKUP(EMPREENDIMENTO!$AO$69,LISTAS!L:M,2,0),0,VALOR_TOTAL/(PRAZO_TOTAL-CARENCIA)))","v":0},null,null,null,null,null,null,null,null,{"$error":"#N/A"},null,null,null,null,null,null,null,null,{"$error":"#N/A"},null,null,null,null,null,null,null,null,{"$error":"#N/A"},null,null,null,null,null,null,null,null,null,{"$error":"#VALUE!"},{"$error":"#N/A"},{"$error":"#N/A"},12,{"$f":"BA146+1","v":24}]
[143,null,null,{"$f":"IFERROR(DATE(EMPREENDIMENTO!$AP$63,VLOOKUP(EMPREENDIMENTO!$AJ$63,LISTAS!$C$2:$D$13,2,0)+A153,1),\"-\")","v":"-"},null,null,null,null,null,null,null,{"$f":"IF(A153>PRAZO_TOTAL,0,IF(A153<=VLOOKUP(EMPREENDIMENTO!$AO$69,LISTAS!L:M,2,0),0,VALOR_TOTAL/(PRAZO_TOTAL-CARENCIA)))","v":0},null,null,null,null,null,null,null,null,{"$error":"#N/A"},null,null,null,null,null,null,null,null,{"$error":"#N/A"},null,null,null,null,null,null,null,null,{"$error":"#N/A"},null,null,null,null,null,null,null,null,null,{"$error":"#VALUE!"},{"$error":"#N/A"},{"$error":"#N/A"},12,24]
[144,null,null,{"$f":"IFERROR(DATE(EMPREENDIMENTO!$AP$63,VLOOKUP(EMPREENDIMENTO!$AJ$63,LISTAS!$C$2:$D$13,2,0)+A154,1),\"-\")","v":"-"},null,null,null,null,null,null,null,{"$f":"IF(A154>PRAZO_TOTAL,0,IF(A154<=VLOOKUP(EMPREENDIMENTO!$AO$69,LISTAS!L:M,2,0),0,VALOR_TOTAL/(PRAZO_TOTAL-CARENCIA)))","v":0},null,null,null,null,null,null,null,null,{"$error":"#N/A"},null,null,null,null,null,null,null,null,{"$error":"#N/A"},null,null,null,null,null,null,null,null,{"$error":"#N/A"},null,null,null,null,null,null,null,null,null,{"$error":"#VALUE!"},{"$error":"#N/A"},{"$error":"#N/A"},12,24]
[145,null,null,{"$f":"IFERROR(DATE(EMPREENDIMENTO!$AP$63,VLOOKUP(EMPREENDIMENTO!$AJ$63,LISTAS!$C$2:$D$13,2,0)+A155,1),\"-\")","v":"-"},null,null,null,null,null,null,null,{"$f":"IF(A155>PRAZO_TOTAL,0,IF(A155<=VLOOKUP(EMPREENDIMENTO!$AO$69,LISTAS!L:M,2,0),0,VALOR_TOTAL/(PRAZO_TOTAL-CARENCIA)))","v":0},null,null,null,null,null,null,null,null,{"$error":"#N/A"},null,null,null,null,null,null,null,null,{"$error":"#N/A"},null,null,null,null,null,null,null,null,{"$error":"#N/A"},null,null,null,null,null,null,null,null,null,{"$error":"#VALUE!"},{"$error":"#N/A"},{"$error":"#N/A"},13,25]
[146,null,null,{"$f":"IFERROR(DATE(EMPREENDIMENTO!$AP$63,VLOOKUP(EMPREENDIMENTO!$AJ$63,LISTAS!$C$2:$D$13,2,0)+A156,1),\"-\")","v":"-"},null,null,null,null,null,null,null,{"$f":"IF(A156>PRAZO_TOTAL,0,IF(A156<=VLOOKUP(EMPREENDIMENTO!$AO$69,LISTAS!L:M,2,0),0,VALOR_TOTAL/(PRAZO_TOTAL-CARENCIA)))","v":0},null,null,null,null,null,null,null,null,{"$error":"#N/A"},null,null,null,null,null,null,null,null,{"$error":"#N/A"},null,null,null,null,null,null,null,null,{"$error":"#N/A"},null,null,null,null,null,null,null,null,null,{"$error":"#VALUE!"},{"$error":"#N/A"},{"$error":"#N/A"},13,25]
[147,null,null,{"$f":"IFERROR(DATE(EMPREENDIMENTO!$AP$63,VLOOKUP(EMPREENDIMENTO!$AJ$63,LISTAS!$C$2:$D$13,2,0)+A157,1),\"-\")","v":"-"},null,null,null,null,null,null,null,{"$f":"IF(A157>PRAZO_TOTAL,0,IF(A157<=VLOOKUP(EMPREENDIMENTO!$AO$69,LISTAS!L:M,2,0),0,VALOR_TOTAL/(PRAZO_TOTAL-CARENCIA)))","v":0},null,null,null,null,null,null,null,null,{"$error":"#N/A"},null,null,null,null,null,null,null,null,{"$error":"#N/A"},null,null,null,null,null,null,null,null,{"$error":"#N/A"},null,null,null,null,null,null,null,null,null,{"$error":"#VALUE!"},{"$error":"#N/A"},{"$error":"#N/A"},13,25]
[148,null,null,{"$f":"IFERROR(DATE(EMPREENDIMENTO!$AP$63,VLOOKUP(EMPREENDIMENTO!$AJ$63,LISTAS!$C$2:$D$13,2,0)+A158,1),\"-\")","v":"-"},null,null,null,null,null,null,null,{"$f":"IF(A158>PRAZO_TOTAL,0,IF(A158<=VLOOKUP(EMPREENDIMENTO!$AO$69,LISTAS!L:M,2,0),0,VALOR_TOTAL/(PRAZO_TOTAL-CARENCIA)))","v":0},null,null,null,null,null,null,null,null,{"$error":"#N/A"},null,null,null,null,null,null,null,null,{"$error":"#N/A"},null,null,null,null,null,null,null,null,{"$error":"#N/A"},null,null,null,null,null,null,null,null,null,{"$error":"#VALUE!"},{"$error":"#N/A"},{"$error":"#N/A"},13,25]
[149,null,null,{"$f":"IFERROR(DATE(EMPREENDIMENTO!$AP$63,VLOOKUP(EMPREENDIMENTO!$AJ$63,LISTAS!$C$2:$D$13,2,0)+A159,1),\"-\")","v":"-"},null,null,null,null,null,null,null,{"$f":"IF(A159>PRAZO_TOTAL,0,IF(A159<=VLOOKUP(EMPREENDIMENTO!$AO$69,LISTAS!L:M,2,0),0,VALOR_TOTAL/(PRAZO_TOTAL-CARENCIA)))","v":0},null,null,null,null,null,null,null,null,{"$error":"#N/A"},null,null,null,null,null,null,null,null,{"$error":"#N/A"},null,null,null,null,null,null,null,null,{"$error":"#N/A"},null,null,null,null,null,null,null,null,null,{"$error":"#VALUE!"},{"$error":"#N/A"},{"$error":"#N/A"},13,25]
[150,null,null,{"$f":"IFERROR(DATE(EMPREENDIMENTO!$AP$63,VLOOKUP(EMPREENDIMENTO!$AJ$63,LISTAS!$C$2:$D$13,2,0)+A160,1),\"-\")","v":"-"},null,null,null,null,null,null,null,{"$f":"IF(A160>PRAZO_TOTAL,0,IF(A160<=VLOOKUP(EMPREENDIMENTO!$AO$69,LISTAS!L:M,2,0),0,VALOR_TOTAL/(PRAZO_TOTAL-CARENCIA)))","v":0},null,null,null,null,null,null,null,null,{"$error":"#N/A"},null,null,null,null,null,null,null,null,{"$error":"#N/A"},null,null,null,null,null,null,null,null,{"$error":"#N/A"},null,null,null,null,null,null,null,null,null,{"$error":"#VALUE!"},{"$error":"#N/A"},{"$error":"#N/A"},13,25]
[151,null,null,{"$f":"IFERROR(DATE(EMPREENDIMENTO!$AP$63,VLOOKUP(EMPREENDIMENTO!$AJ$63,LISTAS!$C$2:$D$13,2,0)+A161,1),\"-\")","v":"-"},null,null,null,null,null,null,null,{"$f":"IF(A161>PRAZO_TOTAL,0,IF(A161<=VLOOKUP(EMPREENDIMENTO!$AO$69,LISTAS!L:M,2,0),0,VALOR_TOTAL/(PRAZO_TOTAL-CARENCIA)))","v":0},null,null,null,null,null,null,null,null,{"$error":"#N/A"},null,null,null,null,null,null,null,null,{"$error":"#N/A"},null,null,null,null,null,null,null,null,{"$error":"#N/A"},null,null,null,null,null,null,null,null,null,{"$error":"#VALUE!"},{"$error":"#N/A"},{"$error":"#N/A"},13,26]
[152,null,null,{"$f":"IFERROR(DATE(EMPREENDIMENTO!$AP$63,VLOOKUP(EMPREENDIMENTO!$AJ$63,LISTAS!$C$2:$D$13,2,0)+A162,1),\"-\")","v":"-"},null,null,null,null,null,null,null,{"$f":"IF(A162>PRAZO_TOTAL,0,IF(A162<=VLOOKUP(EMPREENDIMENTO!$AO$69,LISTAS!L:M,2,0),0,VALOR_TOTAL/(PRAZO_TOTAL-CARENCIA)))","v":0},null,null,null,null,null,null,null,null,{"$error":"#N/A"},null,null,null,null,null,null,null,null,{"$error":"#N/A"},null,null,null,null,null,null,null,null,{"$error":"#N/A"},null,null,null,null,null,null,null,null,null,{"$error":"#VALUE!"},{"$error":"#N/A"},{"$error":"#N/A"},13,26]
[153,null,null,{"$f":"IFERROR(DATE(EMPREENDIMENTO!$AP$63,VLOOKUP(EMPREENDIMENTO!$AJ$63,LISTAS!$C$2:$D$13,2,0)+A163,1),\"-\")","v":"-"},null,null,null,null,null,null,null,{"$f":"IF(A163>PRAZO_TOTAL,0,IF(A163<=VLOOKUP(EMPREENDIMENTO!$AO$69,LISTAS!L:M,2,0),0,VALOR_TOTAL/(PRAZO_TOTAL-CARENCIA)))","v":0},null,null,null,null,null,null,null,null,{"$error":"#N/A"},null,null,null,null,null,null,null,null,{"$error":"#N/A"},null,null,null,null,null,null,null,null,{"$error":"#N/A"},null,null,null,null,null,null,null,null,null,{"$error":"#VALUE!"},{"$error":"#N/A"},{"$error":"#N/A"},13,26]
[154,null,null,{"$f":"IFERROR(DATE(EMPREENDIMENTO!$AP$63,VLOOKUP(EMPREENDIMENTO!$AJ$63,LISTAS!$C$2:$D$13,2,0)+A164,1),\"-\")","v":"-"},null,null,null,null,null,null,null,{"$f":"IF(A164>PRAZO_TOTAL,0,IF(A164<=VLOOKUP(EMPREENDIMENTO!$AO$69,LISTAS!L:M,2,0),0,VALOR_TOTAL/(PRAZO_TOTAL-CARENCIA)))","v":0},null,null,null,null,null,null,null,null,{"$error":"#N/A"},null,null,null,null,null,null,null,null,{"$error":"#N/A"},null,null,null,null,null,null,null,null,{"$error":"#N/A"},null,null,null,null,null,null,null,null,null,{"$error":"#VALUE!"},{"$error":"#N/A"},{"$error":"#N/A"},13,26]
[155,null,null,{"$f":"IFERROR(DATE(EMPREENDIMENTO!$AP$63,VLOOKUP(EMPREENDIMENTO!$AJ$63,LISTAS!$C$2:$D$13,2,0)+A165,1),\"-\")","v":"-"},null,null,null,null,null,null,null,{"$f":"IF(A165>PRAZO_TOTAL,0,IF(A165<=VLOOKUP(EMPREENDIMENTO!$AO$69,LISTAS!L:M,2,0),0,VALOR_TOTAL/(PRAZO_TOTAL-CARENCIA)))","v":0},null,null,null,null,null,null,null,null,{"$error":"#N/A"},null,null,null,null,null,null,null,null,{"$error":"#N/A"},null,null,null,null,null,null,null,null,{"$error":"#N/A"},null,null,null,null,null,null,null,null,null,{"$error":"#VALUE!"},{"$error":"#N/A"},{"$error":"#N/A"},13,26]
[156,null,null,{"$f":"IFERROR(DATE(EMPREENDIMENTO!$AP$63,VLOOKUP(EMPREENDIMENTO!$AJ$63,LISTAS!$C$2:$D$13,2,0)+A166,1),\"-\")","v":"-"},null,null,null,null,null,null,null,{"$f":"IF(A166>PRAZO_TOTAL,0,IF(A166<=VLOOKUP(EMPREENDIMENTO!$AO$69,LISTAS!L:M,2,0),0,VALOR_TOTAL/(PRAZO_TOTAL-CARENCIA)))","v":0},null,null,null,null,null,null,null,null,{"$f":"IF(AM165*(((1+TAXA_JUROS)^(1/12))-1)<0,0,AM165*(((1+TAXA_JUROS)^(1/12))-1))","v":{"$error":"#N/A"}},null,null,null,null,null,null,null,null,{"$f":"IF(AM166<0,0,IF(L166=0,0,U166+L166+AY165))","v":{"$error":"#N/A"}},null,null,null,null,null,null,null,null,{"$f":"IF(L166=0,AM165-L166+U166,AM165-L166-AY165)","v":{"$error":"#N/A"}},null,null,null,null,null,null,null,null,null,{"$error":"#VALUE!"},{"$error":"#N/A"},{"$f":"IF(L166=0,U166+AY129,0)","v":{"$error":"#N/A"}},13,26]
[]
["REEMBOLSO ANUAL"]
["ANO"]
["ANO",null,null,null,"AMORTIZAÇÃO\n(R$)",null,null,null,null,null,null,null,null,null,"JUROS\n(R$)",null,null,null,null,null,null,null,null,null,"VALOR PARCELA\n(R$)",null,null,null,null,null,null,null,null,null,null,"SALDO DEVEDOR\n(R$)",null,null,null,null,null,null,null,null,null,null,null,null,null,null,0]
["-",null,null,null,"-",null,null,null,null,null,null,null,null,null,"-",null,null,null,null,null,null,null,null,null,"-",null,null,null,null,null,null,null,null,null,null,{"$f":"AM10","v":0},null,null,null,null,null,null,null,null,null,"normal","carencia",null,{"$f":"PRAZO_TOTAL_ANO","v":8.3333333333333329E-2},null,0]
[1,null,null,null,{"$f":"SUMIF($AZ$11:$AZ$166,A172,$L$11:$L$166)","v":{"$error":"#N/A"}},null,null,null,null,null,null,null,null,null,{"$f":"IF(AJ171*TAXA_JUROS<0,0,AJ171*TAXA_JUROS)","v":0},null,null,null,null,null,null,null,null,null,{"$f":"IF(AJ171<=0,0,IF(E172=0,0,O172+E172+AY171))","v":0},null,null,null,null,null,null,null,null,null,null,{"$f":"IF(E172=0,AJ171-E172+O172,AJ171-E172-AY171)","v":{"$error":"#N/A"}},null,null,null,null,null,null,null,null,null,{"$f":"IF(A172<CARENCIA_ANO,0,IF((A172)-CARENCIA_ANO<1,(A172)-CARENCIA_ANO,1))","v":0.91666666666666663},12,12,null,null,{"$f":"IF(E172=0,O172+AY171,0)","v":{"$error":"#N/A"}}]
[2,null,null,null,0,null,null,null,null,null,null,null,null,null,{"$error":"#N/A"},null,null,null,null,null,null,null,null,null,{"$error":"#N/A"},null,null,null,null,null,null,null,null,null,null,{"$error":"#N/A"},null,null,null,null,null,null,null,null,null,1,7,24,null,null,{"$f":"IF(E173=0,O173+AY172,0)","v":{"$error":"#N/A"}}]
[3,null,null,null,0,null,null,null,null,null,null,null,null,null,{"$error":"#N/A"},null,null,null,null,null,null,null,null,null,{"$error":"#N/A"},null,null,null,null,null,null,null,null,null,null,{"$error":"#N/A"},null,null,null,null,null,null,null,null,null,1,{"$f":"AT174+AU173","v":8},36,null,null,{"$error":"#N/A"}]
[4,null,null,null,0,null,null,null,null,null,null,null,null,null,{"$error":"#N/A"},null,null,null,null,null,null,null,null,null,{"$f":"IF(AJ174<=0,0,IF(E175=0,0,O175+E175+AY174))","v":{"$error":"#N/A"}},null,null,null,null,null,null,null,null,null,null,{"$error":"#N/A"},null,null,null,null,null,null,null,null,null,1,9,48,null,null,{"$error":"#N/A"}]
[5,null,null,null,0,null,null,null,null,null,null,null,null,null,{"$error":"#N/A"},null,null,null,null,null,null,null,null,null,{"$f":"IF(AJ175<=0,0,IF(E176=0,0,O176+E176+AY175))","v":{"$error":"#N/A"}},null,null,null,null,null,null,null,null,null,null,{"$error":"#N/A"},null,null,null,null,null,null,null,null,null,1,10,60,null,null,{"$error":"#N/A"}]
[6,null,null,null,0,null,null,null,null,null,null,null,null,null,{"$error":"#N/A"},null,null,null,null,null,null,null,null,null,{"$error":"#N/A"},null,null,null,null,null,null,null,null,null,null,{"$error":"#N/A"},null,null,null,null,null,null,null,null,null,1,11,72,null,null,{"$error":"#N/A"}]
[7,null,null,null,0,null,null,null,null,null,null,null,null,null,{"$error":"#N/A"},null,null,null,null,null,null,null,null,null,{"$error":"#N/A"},null,null,null,null,null,null,null,null,null,null,{"$error":"#N/A"},null,null,null,null,null,null,null,null,null,1,12,84,null,null,{"$error":"#N/A"}]
[8,null,null,null,0,null,null,null,null,null,null,null,null,null,{"$error":"#N/A"},null,null,null,null,null,null,null,null,null,{"$error":"#N/A"},null,null,null,null,null,null,null,null,null,null,{"$error":"#N/A"},null,null,null,null,null,null,null,null,null,1,13,96,{"$f":"AU179-AY171","v":13},null,{"$error":"#N/A"}]
[9,null,null,null,0,null,null,null,null,null,null,null,null,null,{"$error":"#N/A"},null,null,null,null,null,null,null,null,null,{"$error":"#N/A"},null,null,null,null,null,null,null,null,null,null,{"$error":"#N/A"},null,null,null,null,null,null,null,null,null,1,14,108,null,null,{"$error":"#N/A"}]
[10,null,null,null,0,null,null,null,null,null,null,null,null,null,{"$f":"IF(AJ180*TAXA_JUROS<0,0,AJ180*TAXA_JUROS)","v":{"$error":"#N/A"}},null,null,null,null,null,null,null,null,null,{"$f":"IF(AJ180<=0,0,IF(E181=0,0,O181+E181+AY180))","v":{"$error":"#N/A"}},null,null,null,null,null,null,null,null,null,null,{"$f":"IF(E181=0,AJ180-E181+O181,AJ180-E181-AY180)","v":{"$error":"#N/A"}},null,null,null,null,null,null,null,null,null,{"$f":"IF(A181<CARENCIA_ANO,0,IF((A181)-CARENCIA_ANO<1,(A181)-CARENCIA_ANO,1))","v":1},15,120,null,null,{"$f":"IF(E181=0,O181+AY180,0)","v":{"$error":"#N/A"}}]
[11,null,null,null,0,null,null,null,null,null,null,null,null,null,{"$error":"#N/A"},null,null,null,null,null,null,null,null,null,{"$error":"#N/A"},null,null,null,null,null,null,null,null,null,null,{"$error":"#N/A"},null,null,null,null,null,null,null,null,null,1,16,132,{"$f":"AU182-AY174","v":{"$error":"#N/A"}},null,{"$error":"#N/A"}]
[12,null,null,null,0,null,null,null,null,null,null,null,null,null,{"$error":"#N/A"},null,null,null,null,null,null,null,null,null,{"$error":"#N/A"},null,null,null,null,null,null,null,null,null,null,{"$error":"#N/A"},null,null,null,null,null,null,null,null,null,1,17,144,null,null,{"$error":"#N/A"}]
[13,null,null,null,0,null,null,null,null,null,null,null,null,null,{"$f":"IF(AJ183*TAXA_JUROS<0,0,AJ183*TAXA_JUROS)","v":{"$error":"#N/A"}},null,null,null,null,null,null,null,null,null,{"$f":"IF(AJ183<=0,0,IF(E184=0,0,O184+E184+AY183))","v":{"$error":"#N/A"}},null,null,null,null,null,null,null,null,null,null,{"$f":"IF(E184=0,AJ183-E184+O184,AJ183-E184-AY183)","v":{"$error":"#N/A"}},null,null,null,null,null,null,null,null,null,1,18,156,null,null,{"$error":"#N/A"}]
[null,null,null,null,null,null,null,null,null,null,null,null,null,null,null,null,null,null,null,null,null,null,null,null,null,null,null,null,null,null,null,null,null,null,null,null,null,null,null,null,null,null,null,null,null,null,null,null,null,null,{"$error":"#N/A"}]
["REEMBOLSO SEMESTRAL"]
["SEMESTRE"]
["SEMESTRE",null,null,null,null,"ANO",null,null,null,"AMORTIZAÇÃO\n(R$)",null,null,null,null,null,null,null,null,"JUROS\n(R$)",null,null,null,null,null,null,null,null,"VALOR PARCELA\n(R$)",null,null,null,null,null,null,null,null,"SALDO DEVEDOR\n(R$)",null,null,null,null,null,null,null,null,null,null,null,null,null,"ACUMULADO"]
["-",null,null,null,null,"-",null,null,null,"-",null,null,null,null,null,null,null,null,"-",null,null,null,null,null,null,null,null,"-",null,null,null,null,null,null,null,null,{"$f":"AJ171","v":0},null,null,null,null,null,null,null,null,null,null,null,null,null,{"$f":"IF(A189=0,J189+AY188,0)","v":0},{"$f":"PRAZO_TOTAL_ANO-A189","v":{"$error":"#VALUE!"}}]
[1,null,null,null,null,1,null,null,null,{"$f":"SUMIF($BA$11:$BA$166,A190,$L$11:$T$166)","v":{"$error":"#N/A"}},null,null,null,null,null,null,null,null,{"$f":"IF(AK189*(((1+TAXA_JUROS)^(6/12))-1)<0,0,AK189*(((1+TAXA_JUROS)^(6/12))-1))","v":0},null,null,null,null,null,null,null,null,{"$f":"IF(AK189<0,0,IF(J190=0,0,S190+J190+AY189))","v":{"$error":"#N/A"}},null,null,null,null,null,null,null,null,{"$f":"IF(J190=0,AK189-J190+S190,AK189-J190-AY189)","v":{"$error":"#N/A"}},null,null,null,null,null,null,null,null,null,null,null,1,null,{"$f":"IF(J190=0,S190+AY189,0)","v":{"$error":"#N/A"}},{"$f":"PRAZO_TOTAL_SEMESTRE-A190","v":-0.83333333333333337}]
[2,null,null,null,null,1,null,null,null,0,null,null,null,null,null,null,null,null,{"$error":"#N/A"},null,null,null,null,null,null,null,null,{"$error":"#N/A"},null,null,null,null,null,null,null,null,{"$f":"IF(J191=0,AK190-J191+S191,AK190-J191-AY190)","v":{"$error":"#N/A"}},null,null,null,null,null,null,null,null,null,null,null,1,null,{"$f":"IF(J191=0,S191+AY190,0)","v":{"$error":"#N/A"}},-1.8333333333333333]
[3,null,null,null,null,"2",null,null,null,0,null,null,null,null,null,null,null,null,{"$error":"#N/A"},null,null,null,null,null,null,null,null,{"$f":"IF(AK191<0,0,IF(J192=0,0,S192+J192+AY191))","v":{"$error":"#N/A"}},null,null,null,null,null,null,null,null,{"$f":"IF(J192=0,AK191-J192+S192,AK191-J192-AY191)","v":{"$error":"#N/A"}},null,null,null,null,null,null,null,null,null,null,null,2,null,{"$error":"#N/A"},-2.8333333333333335]
[4,null,null,null,null,"2",null,null,null,0,null,null,null,null,null,null,null,null,{"$error":"#N/A"},null,null,null,null,null,null,null,null,{"$f":"IF(AK192<0,0,IF(J193=0,0,S193+J193+AY192))","v":{"$error":"#N/A"}},null,null,null,null,null,null,null,null,{"$error":"#N/A"},null,null,null,null,null,null,null,null,null,null,null,2,null,{"$error":"#N/A"},-3.8333333333333335]
[5,null,null,null,null,"3",null,null,null,0,null,null,null,null,null,null,null,null,{"$error":"#N/A"},null,null,null,null,null,null,null,null,{"$error":"#N/A"},null,null,null,null,null,null,null,null,{"$error":"#N/A"},null,null,null,null,null,null,null,null,null,null,null,3,null,{"$error":"#N/A"},-4.833333333333333]
[6,null,null,null,null,"3",null,null,null,0,null,null,null,null,null,null,null,null,{"$error":"#N/A"},null,null,null,null,null,null,null,null,{"$error":"#N/A"},null,null,null,null,null,null,null,null,{"$error":"#N/A"},null,null,null,null,null,null,null,null,null,{"$f":"CARENCIA_SEMESTRE","v":0.16666666666666666},null,3,null,{"$error":"#N/A"},-5.833333333333333]
[7,null,null,null,null,"4",null,null,null,0,null,null,null,null,null,null,null,null,{"$error":"#N/A"},null,null,null,null,null,null,null,null,{"$error":"#N/A"},null,null,null,null,null,null,null,null,{"$error":"#N/A"},null,null,null,null,null,null,null,null,null,{"$f":"PRAZO_TOTAL_SEMESTRE","v":0.16666666666666666},null,4,null,{"$error":"#N/A"},-6.833333333333333]
[8,null,null,null,null,"4",null,null,null,0,null,null,null,null,null,null,null,null,{"$error":"#N/A"},null,null,null,null,null,null,null,null,{"$error":"#N/A"},null,null,null,null,null,null,null,null,{"$error":"#N/A"},null,null,null,null,null,null,null,null,null,null,null,4,null,{"$error":"#N/A"},-7.833333333333333]
[9,null,null,null,null,"5",null,null,null,{"$f":"SUMIF($BA$11:$BA$166,A198,$L$11:$T$166)","v":0},null,null,null,null,null,null,null,null,{"$f":"IF(AK197*(((1+TAXA_JUROS)^(6/12))-1)<0,0,AK197*(((1+TAXA_JUROS)^(6/12))-1))","v":{"$error":"#N/A"}},null,null,null,null,null,null,null,null,{"$f":"IF(AK197<0,0,IF(J198=0,0,S198+J198+AY197))","v":{"$error":"#N/A"}},null,null,null,null,null,null,null,null,{"$error":"#N/A"},null,null,null,null,null,null,null,null,null,null,null,5,null,{"$error":"#N/A"},-8.8333333333333339]
[10,null,null,null,null,"5",null,null,null,0,null,null,null,null,null,null,null,null,{"$error":"#N/A"},null,null,null,null,null,null,null,null,{"$error":"#N/A"},null,null,null,null,null,null,null,null,{"$error":"#N/A"},null,null,null,null,null,null,null,null,null,null,null,5,null,{"$error":"#N/A"},-9.8333333333333339]
[11,null,null,null,null,"6",null,null,null,0,null,null,null,null,null,null,null,null,{"$error":"#N/A"},null,null,null,null,null,null,null,null,{"$error":"#N/A"},null,null,null,null,null,null,null,null,{"$f":"IF(J200=0,AK199-J200+S200,AK199-J200-AY199)","v":{"$error":"#N/A"}},null,null,null,null,null,null,null,null,null,null,null,6,null,{"$error":"#N/A"},-10.833333333333334]
[12,null,null,null,null,"6",null,null,null,0,null,null,null,null,null,null,null,null,{"$error":"#N/A"},null,null,null,null,null,null,null,null,{"$error":"#N/A"},null,null,null,null,null,null,null,null,{"$error":"#N/A"},null,null,null,null,null,null,null,null,null,null,null,6,null,{"$error":"#N/A"},-11.833333333333334]
[13,null,null,null,null,"7",null,null,null,0,null,null,null,null,null,null,null,null,{"$error":"#N/A"},null,null,null,null,null,null,null,null,{"$error":"#N/A"},null,null,null,null,null,null,null,null,{"$error":"#N/A"},null,null,null,null,null,null,null,null,null,null,null,7,null,{"$error":"#N/A"},-12.833333333333334]
[14,null,null,null,null,"7",null,null,null,0,null,null,null,null,null,null,null,null,{"$error":"#N/A"},null,null,null,null,null,null,null,null,{"$error":"#N/A"},null,null,null,null,null,null,null,null,{"$error":"#N/A"},null,null,null,null,null,null,null,null,null,null,null,7,null,{"$error":"#N/A"},-13.833333333333334]
[15,null,null,null,null,"8",null,null,null,0,null,null,null,null,null,null,null,null,{"$error":"#N/A"},null,null,null,null,null,null,null,null,{"$error":"#N/A"},null,null,null,null,null,null,null,null,{"$error":"#N/A"},null,null,null,null,null,null,null,null,null,null,null,8,null,{"$error":"#N/A"},-14.833333333333334]
[16,null,null,null,null,"8",null,null,null,0,null,null,null,null,null,null,null,null,{"$error":"#N/A"},null,null,null,null,null,null,null,null,{"$error":"#N/A"},null,null,null,null,null,null,null,null,{"$error":"#N/A"},null,null,null,null,null,null,null,null,null,null,null,8,null,{"$error":"#N/A"},-15.833333333333334]
[17,null,null,null,null,"9",null,null,null,0,null,null,null,null,null,null,null,null,{"$error":"#N/A"},null,null,null,null,null,null,null,null,{"$error":"#N/A"},null,null,null,null,null,null,null,null,{"$error":"#N/A"},null,null,null,null,null,null,null,null,null,null,null,9,null,{"$error":"#N/A"},-16.833333333333332]
[18,null,null,null,null,"9",null,null,null,0,null,null,null,null,null,null,null,null,{"$error":"#N/A"},null,null,null,null,null,null,null,null,{"$error":"#N/A"},null,null,null,null,null,null,null,null,{"$error":"#N/A"},null,null,null,null,null,null,null,null,null,null,null,9,null,{"$error":"#N/A"},-17.833333333333332]
[19,null,null,null,null,10,null,null,null,0,null,null,null,null,null,null,null,null,{"$error":"#N/A"},null,null,null,null,null,null,null,null,{"$error":"#N/A"},null,null,null,null,null,null,null,null,{"$error":"#N/A"},null,null,null,null,null,null,null,null,null,null,null,10,null,{"$f":"IF(J208=0,S208+AY207,0)","v":{"$error":"#N/A"}},{"$f":"PRAZO_TOTAL_SEMESTRE-A208","v":-18.833333333333332}]
[20,null,null,null,null,10,null,null,null,0,null,null,null,null,null,null,null,null,{"$error":"#N/A"},null,null,null,null,null,null,null,null,{"$error":"#N/A"},null,null,null,null,null,null,null,null,{"$error":"#N/A"},null,null,null,null,null,null,null,null,null,null,null,10,null,{"$error":"#N/A"},-19.833333333333332]
[21,null,null,null,null,11,null,null,null,0,null,null,null,null,null,null,null,null,{"$error":"#N/A"},null,null,null,null,null,null,null,null,{"$error":"#N/A"},null,null,null,null,null,null,null,null,{"$error":"#N/A"},null,null,null,null,null,null,null,null,null,null,null,11,null,{"$error":"#N/A"},-20.833333333333332]
[22,null,null,null,null,11,null,null,null,0,null,null,null,null,null,null,null,null,{"$error":"#N/A"},null,null,null,null,null,null,null,null,{"$error":"#N/A"},null,null,null,null,null,null,null,null,{"$error":"#N/A"},null,null,null,null,null,null,null,null,null,null,null,11,null,{"$error":"#N/A"},-21.833333333333332]
[23,null,null,null,null,12,null,null,null,0,null,null,null,null,null,null,null,null,{"$error":"#N/A"},null,null,null,null,null,null,null,null,{"$error":"#N/A"},null,null,null,null,null,null,null,null,{"$error":"#N/A"},null,null,null,null,null,null,null,null,null,null,null,12,null,{"$error":"#N/A"},-22.833333333333332]
[24,null,null,null,null,12,null,null,null,0,null,null,null,null,null,null,null,null,{"$error":"#N/A"},null,null,null,null,null,null,null,null,{"$error":"#N/A"},null,null,null,null,null,null,null,null,{"$error":"#N/A"},null,null,null,null,null,null,null,null,null,null,null,12,null,{"$error":"#N/A"},-23.833333333333332]
[25,null,null,null,null,13,null,null,null,0,null,null,null,null,null,null,null,null,{"$error":"#N/A"},null,null,null,null,null,null,null,null,{"$error":"#N/A"},null,null,null,null,null,null,null,null,{"$error":"#N/A"},null,null,null,null,null,null,null,null,null,null,null,13,null,{"$f":"IF(J214=0,S214+AY207,0)","v":{"$error":"#N/A"}},-24.833333333333332]
[26,null,null,null,null,13,null,null,null,0,null,null,null,null,null,null,null,null,{"$f":"IF(AK214*(((1+TAXA_JUROS)^(6/12))-1)<0,0,AK214*(((1+TAXA_JUROS)^(6/12))-1))","v":{"$error":"#N/A"}},null,null,null,null,null,null,null,null,{"$f":"IF(AK214<0,0,IF(J215=0,0,S215+J215+AY214))","v":{"$error":"#N/A"}},null,null,null,null,null,null,null,null,{"$error":"#N/A"},null,null,null,null,null,null,null,null,null,null,null,13,null,{"$error":"#N/A"},-25.833333333333332]
[]
[]
[]
["________________________________________",null,null,null,null,null,null,null,null,null,null,null,null,null,null,null,null,null,null,null,null,null,null,null,null,"________________________________________"]
[{"$f":"NOME_PROPONENTE","v":0},null,null,null,null,null,null,null,null,null,null,null,null,null,null,null,null,null,null,null,null,null,null,null,null,{"$f":"RESP_TECNICO","v":0}]
["Proponente",null,null,null,null,null,null,null,null,null,null,null,null,null,null,null,null,null,null,null,null,null,null,null,null,"Responsável Técnico"]

{"sheet":"CAPACIDADE DE PAGAMENTO","index":11,"n_rows":150,"n_cols":16,"rows_kept":150,"cut":false,"hidden":true,"merged":[[142,1,142,3],[142,4,142,5],[142,6,142,8],[139,1,139,3],[139,4,139,5],[139,6,139,8],[140,1,140,3],[140,4,140,5],[140,6,140,8],[137,1,137,3],[137,4,137,5],[137,6,137,8],[136,1,136,9],[138,1,138,3],[138,4,138,5],[138,6,138,8],[134,6,134,8],[130,6,130,8],[131,6,131,8],[132,6,132,8],[131,1,131,3],[132,1,132,3],[134,1,134,3],[130,4,130,5],[131,4,131,5],[134,4,134,5],[132,4,132,5],[106,1,106,5],[107,1,107,5],[108,1,108,5],[115,1,115,4],[105,1,105,9],[111,1,111,5],[112,1,112,5],[113,1,113,5],[114,1,114,6],[7,13,7,14],[56,1,56,9],[80,1,80,9],[7,1,7,9],[29,1,29,6],[53,1,53,6],[78,1,78,6],[149,5,149,9],[148,1,148,4],[149,1,149,4],[147,5,147,9],[147,1,147,4],[148,5,148,9],[6,1,6,9],[0,1,0,9],[31,1,31,9],[104,1,104,9],[55,1,55,9],[102,1,102,6],[116,1,116,9],[117,1,117,5],[118,1,118,5],[124,1,124,5],[125,1,125,6],[119,1,119,5],[120,1,120,5],[123,1,123,5],[127,1,127,9],[129,1,129,3],[129,6,129,8],[130,1,130,3],[129,4,129,5],[128,1,128,9]]}
[]
[]
[]
[]
[]
[]
[null,"ATIVIDADE AGRÍCOLAS"]
[null,"RECEITAS PREVISTAS"]
[null,"CULTURA","EMPRESA / GRUPO","PARTICIPAÇÃO\n(%)","ÁREA\n(ha)","PRODUTIVIDADE (kg/ha)","RECEITA\n(R$/kg)","RECEITA TOTAL\n(R$)","RECEITA PART. \n(R$)","BENEFICIADO PELO INVESTIMENTO",null,{"$f":"SUM(M10:M29)","v":1},null,{"$f":"SUM(O10:O29)","v":0},null,"Os que estão em amarelo, são contadores. O primeiro é um controle de quantas linhas estão inseridas. O segundo é um controle de quantas linhas estão completamente preenchidas. Se eles estiverem diferente, significa que existe linha sem todos os dados preenchidos."]
[null,null,null,null,null,null,null,{"$f":"IFERROR(IF(G10=\"\",\"\",G10*F10*E10),\"\")","v":""},{"$f":"IFERROR(IF(G10=\"\",\"\",D10*H10),\" \")","v":""},null,null,null,1,{"$f":"IF(AND(J10<>\"\",OR(H10<>\"\",G10<>\"\",F10<>\"\",E10<>\"\",D10<>\"\",C10<>\"\",B10<>\"\")),1,0)","v":0},{"$f":"N10*M10","v":0}]
[null,null,null,null,null,null,null,"","",null,null,null,null,0,{"$f":"N11*M11","v":0}]
[null,null,null,null,null,null,null,"","",null,null,null,null,0,0]
[null,null,null,null,null,null,null,"","",null,null,null,null,0,0]
[null,null,null,null,null,null,null,"","",null,null,null,null,0,0]
[null,null,null,null,null,null,null,"","",null,null,null,null,0,0]
[null,null,null,null,null,null,null,"","",null,null,null,null,0,0]
[null,null,null,null,null,null,null,"","",null,null,null,null,0,0]
[null,null,null,null,null,null,null,"","",null,null,null,null,0,0]
[null,null,null,null,null,null,null,"","",null,null,null,null,0,0]
[null,null,null,null,null,null,null,"","",null,null,null,null,0,0]
[null,null,null,null,null,null,null,"","",null,null,null,null,0,0]
[null,null,null,null,null,null,null,"","",null,null,null,null,0,0]
[null,null,null,null,null,null,null,"","",null,null,null,null,0,0]
[null,null,null,null,null,null,null,"","",null,null,null,null,0,0]
[null,null,null,null,null,null,null,"","",null,null,null,null,0,0]
[null,null,null,null,null,null,null,"","",null,null,null,null,0,0]
[null,null,null,null,null,null,null,"","",null,null,null,null,0,0]
[null,null,null,null,null,null,null,{"$f":"IFERROR(IF(G28=\"\",\"\",G28*F28*E28),\"\")","v":""},"",null,null,null,null,0,0]
[null,null,null,null,null,null,null,"","",null,null,null,null,0,0]
[null,"TOTAL:",null,null,null,null,null,{"$f":"SUM(H10:H29)","v":0},{"$f":"SUM(I10:I29)","v":0},null,null,null,null,0,0]
[]
[null,"CUSTOS DE PRODUÇÃO"]
[null,"CULTURA","EMPRESA / GRUPO","PARTICIPAÇÃO\n(%)","ÁREA\n(ha)","PRODUTIVIDADE (kg/ha)","CUSTO\n(R$/kg)","CUSTO TOTAL\n (R$)","CUSTO PART.\n (R$)","BENEFICIADO PELO INVESTIMENTO",null,{"$f":"SUM(M34:M53)","v":1},null,{"$f":"SUM(O34:O53)","v":0}]
[null,{"$f":"IF(B10=\"\",\"\",B10)","v":""},"","","","",null,{"$f":"IFERROR(IF(G34=\"\",\"\",G34*F34*E34),\"\")","v":""},{"$f":"IFERROR(IF(G34=\"\",\"\",D34*H34),\"\")","v":""},{"$f":"IF(J10=\"\",\"\",J10)","v":""},null,1,1,{"$f":"IF(AND(J34<>\"\",OR(H34<>\"\",G34<>\"\",F34<>\"\",E34<>\"\",D34<>\"\",C34<>\"\",B34<>\"\")),1,0)","v":0},{"$f":"N34*M34","v":0}]
[null,"","","","","",null,{"$f":"IFERROR(IF(G35=\"\",\"\",G35*F35*E35),\"\")","v":""},{"$f":"IFERROR(IF(G35=\"\",\"\",D35*H35),\"\")","v":""},{"$f":"IF(J11=\"\",\"\",J11)","v":""},null,null,null,0,{"$f":"N35*M35","v":0}]
[null,"","","","","",null,"","","",null,null,null,0,0]
[null,"","","","","",null,"","","",null,null,null,0,0]
[null,"","","","","",null,"","","",null,null,null,0,0]
[null,"","","","","",null,"","","",null,null,null,0,0]
[null,"","","","","",null,"","","",null,null,null,0,0]
[null,"","","","","",null,"","","",null,null,null,0,0]
[null,"","","","","",null,"","","",null,null,null,0,0]
[null,"","","","","",null,"","","",null,null,null,0,0]
[null,{"$f":"IF(B20=\"\",\"\",B20)","v":""},"","","","",null,"","","",null,null,null,0,0]
[null,"","","","","",null,"","","",null,null,null,0,0]
[null,"","","","","",null,"","","",null,null,null,0,0]
[null,"","","","","",null,"","","",null,null,null,0,0]
[null,"","","","","",null,"","","",null,null,null,0,0]
[null,"","","","","",null,"","","",null,null,null,0,0]
[null,"","","","","",null,"","","",null,null,null,0,0]
[null,"","","","","",null,"","","",null,null,null,0,0]
[null,"","","","","",null,"","","",null,null,null,0,0]
[null,"","","","","",null,{"$f":"IFERROR(IF(G53=\"\",\"\",G53*F53*E53),\"\")","v":""},"","",null,null,null,0,0]
[null,"TOTAL:",null,null,null,null,null,{"$f":"SUM(H34:H53)","v":0},{"$f":"SUM(I34:I53)","v":0},null,null,null,null,0,0]
[null," ",null,null," "]
[null,"ATIVIDADES PECUÁRIAS"]
[null,"RECEITAS PREVISTAS"]
[null,"ATIVIDADE","EMPRESA / GRUPO","PARTICIPAÇÃO\n(%)","UNIDADE","PRODUTIVIDADE","RECEITA\n(R$/UN)","RECEITA TOTAL\n(R$)","RECEITA PART. \n(R$)","BENEFICIADO PELO INVESTIMENTO",null,{"$f":"SUM(M59:M78)","v":1},null,{"$f":"SUM(O59:O78)","v":0}]
[null,null,null,null,{"$f":"IF(B59=\"LEITE\",\"LITROS\",IF(B59=\"\",\"\",\"CABEÇAS\"))","v":""},null,null,{"$f":"IF(G59=\"\",\"\",G59*F59)","v":""},{"$f":"IF(D59=\"\",\"\",H59*D59)","v":""},null,null,null,1,{"$f":"IF(AND(J59<>\"\",OR(H59<>\"\",G59<>\"\",F59<>\"\",E59<>\"\",D59<>\"\",C59<>\"\",B59<>\"\")),1,0)","v":0},{"$f":"N59*M59","v":0}]
[null,null,null,null,{"$f":"IF(B60=\"LEITE\",\"LITROS\",IF(B60=\"\",\"\",\"CABEÇAS\"))","v":""},null,null,{"$f":"IF(G60=\"\",\"\",G60*F60)","v":""},{"$f":"IF(D60=\"\",\"\",H60*D60)","v":""},null,null,null,null,0,{"$f":"N60*M60","v":0}]
[null,null,null,null,"",null,null,{"$f":"IF(G61=\"\",\"\",G61*F61)","v":""},"",null,null,null,null,0,0]
[null,null,null,null,"",null,null,{"$f":"IF(G62=\"\",\"\",G62*F62)","v":""},"",null,null,null,null,0,0]
[null,null,null,null,"",null,null,{"$f":"IF(G63=\"\",\"\",G63*F63)","v":""},"",null,null,null,null,0,0]
[null,null,null,null,"",null,null,{"$f":"IF(G64=\"\",\"\",G64*F64)","v":""},"",null,null,null,null,0,0]
[null,null,null,null,"",null,null,{"$f":"IF(G65=\"\",\"\",G65*F65)","v":""},"",null,null,null,null,0,0]
[null,null,null,null,"",null,null,"","",null,null,null,null,0,0]
[null,null,null,null,"",null,null,"","",null,null,null,null,0,0]
[null,null,null,null,"",null,null,"","",null,null,null,null,0,0]
[null,null,null,null,"",null,null,"","",null,null,null,null,0,0]
[null,null,null,null,"",null,null,"","",null,null,null,null,0,0]
[null,null,null,null,"",null,null,"","",null,null,null,null,0,0]
[null,null,null,null,"",null,null,"","",null,null,null,null,0,0]
[null,null,null,null,"",null,null,{"$f":"IF(G73=\"\",\"\",G73*F73)","v":""},"",null,null,null,null,0,0]
[null,null,null,null,"",null,null,{"$f":"IF(G74=\"\",\"\",G74*F74)","v":""},"",null,null,null,null,0,0]
[null,null,null,null,"",null,null,{"$f":"IF(G75=\"\",\"\",G75*F75)","v":""},"",null,null,null,null,0,0]
[null,null,null,null,"",null,null,"","",null,null,null,null,0,0]
[null,null,null,null,"",null,null,"","",null,null,null,null,0,0]
[null,null,null,null,"",null,null,"","",null,null,null,null,0,0]
[null,"TOTAL:",null,null,null,null,null,{"$f":"SUM(H59:H78)","v":0},{"$f":"SUM(I59:I78)","v":0},null,null,null,null,0,0]
[]
[null,"CUSTOS DE PRODUÇÃO"]
[null,"ATIVIDADE","EMPRESA / GRUPO","PARTICIPAÇÃO\n(%)","UNIDADE","PRODUTIVIDADE","CUSTO \n(R$/U.A)","CUSTO TOTAL\n (R$)","CUSTO PART.\n (R$)","BENEFICIADO PELO INVESTIMENTO",null,{"$f":"SUM(M83:M102)","v":1},null,{"$f":"SUM(O83:O102)","v":0}]
[null,{"$f":"IF(B59=\"\",\"\",B59)","v":""},"","","","",null,{"$f":"IF(G83=\"\",\"\",G83*F83)","v":""},{"$f":"IF(G83=\"\",\"\",H83*D83)","v":""},{"$f":"IF(J59=\"\",\"\",J59)","v":""},null,null,1,{"$f":"IF(AND(J83<>\"\",OR(H83<>\"\",G83<>\"\",F83<>\"\",E83<>\"\",D83<>\"\",C83<>\"\",B83<>\"\")),1,0)","v":0},{"$f":"N83*M83","v":0}]
[null,"","","","","",null,{"$f":"IF(G84=\"\",\"\",G84*F84)","v":""},{"$f":"IF(G84=\"\",\"\",H84*D84)","v":""},"",null,null,null,0,{"$f":"N84*M84","v":0}]
[null,"","","","","",null,{"$f":"IF(G85=\"\",\"\",G85*F85)","v":""},"","",null,null,null,0,0]
[null,"","","","","",null,{"$f":"IF(G86=\"\",\"\",G86*F86)","v":""},"","",null,null,null,0,0]
[null,"","","","","",null,"","","",null,null,null,0,0]
[null,"","","","","",null,"","","",null,null,null,0,0]
[null,"","","","","",null,"","","",null,null,null,0,0]
[null,"","","","","",null,"","","",null,null,null,0,0]
[null,"","","","","",null,"","","",null,null,null,0,0]
[null,"","","","","",null,"","","",null,null,null,0,0]
[null,{"$f":"IF(B69=\"\",\"\",B69)","v":""},"","","","",null,"","","",null,null,null,0,0]
[null,"","","","","",null,"","","",null,null,null,0,0]
[null,"","","","","",null,"","","",null,null,null,0,0]
[null,"","","","","",null,"","","",null,null,null,0,0]
[null,"","","","","",null,"","","",null,null,null,0,0]
[null,"","","","","",null,"","","",null,null,null,0,0]
[null,"","","","","",null,"","","",null,null,null,0,0]
[null,"","","","","",null,"","","",null,null,null,0,0]
[null,"","","","","",null,"","","",null,null,null,0,0]
[null,"","","","","",null,"","","",null,null,null,0,0]
[null,"TOTAL:",null,null,null,null,null,{"$f":"SUM(H83:H102)","v":0},{"$f":"SUM(I83:I102)","v":0},null,null,null,null,0,0]
[]
[null,"OUTRAS OPERAÇÕES"]
[null,"OUTRAS RECEITAS PREVISTAS:"]
[null,"DESCRIÇÃO",null,null,null,null,"PARTICIPAÇÃO\n(%)","RECEITA TOTAL\n(R$)","RECEITA PART.\n (R$)","BENEFICIADO PELO INVESTIMENTO"]
[null,null,null,null,null,null,null,null,{"$f":"IF(H108*G108=0,\"\",H108*G108)","v":""}]
[null,null,null,null,null,null,null,null,{"$f":"IF(H109*G109=0,\"\",H109*G109)","v":""}]
[null,null,null,null,null,null,null,null,""]
[null,null,null,null,null,null,null,null,""]
[null,null,null,null,null,null,null,null,""]
[null,null,null,null,null,null,null,null,""]
[null,null,null,null,null,null,null,null,""]
[null,"TOTAL:",null,null,null,null,null,{"$f":"SUM(H108:H114)","v":0},{"$f":"SUM(I108:I114)","v":0},null,null,null,null,{"$f":"IF(AND(J115<>\"\",OR(H115<>\"\",G115<>\"\",F115<>\"\",E115<>\"\",D115<>\"\",C115<>\"\",B115<>\"\")),1,0)","v":0},{"$f":"N115*M115","v":0}]
[]
[null,"OUTROS CUSTOS PREVISTOS:"]
[null,"DESCRIÇÃO",null,null,null,null,"PARTICIPAÇÃO\n(%)","CUSTO TOTAL\n(R$)","CUSTO PART.\n (R$)","BENEFICIADO PELO INVESTIMENTO"]
[null,null,null,null,null,null,null,null,{"$f":"IF(H119*G119=0,\"\",H119*G119)","v":""}]
[null,null,null,null,null,null,null,null,{"$f":"IF(H120*G120=0,\"\",H120*G120)","v":""}]
[null,null,null,null,null,null,null,null,""]
[null,null,null,null,null,null,null,null,""]
[null,null,null,null,null,null,null,null,""]
[null,null,null,null,null,null,null,null,""]
[null,null,null,null,null,null,null,null,""]
[null,"TOTAL:",null,null,null,null,null,{"$f":"SUM(H119:H125)","v":0},{"$f":"SUM(I119:I125)","v":0},null,null,null,null,{"$f":"IF(AND(J126<>\"\",OR(H126<>\"\",G126<>\"\",F126<>\"\",E126<>\"\",D126<>\"\",C126<>\"\",B126<>\"\")),1,0)","v":0},{"$f":"N126*M126","v":0}]
[]
[null,"RESULTADO DAS ATIVIDADES"]
[null,"ATIVIDADES BENEFICIADAS PELO INVESTIMENTO:"]
[null,"RECEITAS ATIVIDADES AGRÍCOLAS",null,null,{"$f":"IF(SUMIF(J10:J29,\"SIM\",I10:I29)=0,0,SUMIF(J10:J29,\"SIM\",I10:I29))","v":0},null,"CUSTOS ATIVIDADES AGRÍCOLAS",null,null,{"$f":"IF(SUMIF(J34:J53,\"SIM\",I34:I53)=0,0,SUMIF(J34:J53,\"SIM\",I34:I53))","v":0}]
[null,"RECEITAS ATIVIDADES PECUÁRIAS",null,null,{"$f":"IF(SUMIF(J59:J78,\"SIM\",I59:I78)=0,0,SUMIF(J59:J78,\"SIM\",I59:I78))","v":0},null,"CUSTOS ATIVIDADES PECUÁRIAS",null,null,{"$f":"IF(SUMIF(J83:J102,\"SIM\",I83:I102)=0,0,SUMIF(J83:J102,\"SIM\",I83:I102))","v":0}]
[null,"RECEITAS OUTRAS ATIVIDADE",null,null,{"$f":"IF(SUMIF(J108:J114,\"SIM\",I108:I114)=0,0,SUMIF(J108:J114,\"SIM\",I108:I114))","v":0},null,"CUSTOS OUTRAS ATIVIDADE",null,null,{"$f":"IF(SUMIF(J119:J125,\"SIM\",I119:I125)=0,0,SUMIF(J119:J125,\"SIM\",I119:I125))","v":0}]
[null,"TOTAL RECEITAS",null,null,{"$f":"SUM(E130:F132)","v":0},null,"TOTAL CUSTOS",null,null,{"$f":"SUM(J130:K132)","v":0}]
[]
[null,"MARGEM FINANCEIRA (R$):",null,null,{"$f":"IF(E133-J133=0,0,E133-J133)","v":0},null,"MARGEM FINANCEIRA (%):",null,null,{"$f":"IFERROR((E133/J133)-1,0)","v":0}]
[]
[null,"TODAS AS ATIVIDADES:"]
[null,"RECEITAS ATIVIDADES AGRÍCOLAS",null,null,{"$f":"I30","v":0},null,"CUSTOS ATIVIDADES AGRÍCOLAS",null,null,{"$f":"I54","v":0}]
[null,"RECEITAS ATIVIDADES PECUÁRIAS",null,null,{"$f":"I79","v":0},null,"CUSTOS ATIVIDADES PECUÁRIAS",null,null,{"$f":"I103","v":0}]
[null,"RECEITAS OUTRAS ATIVIDADE",null,null,{"$f":"I115","v":0},null,"CUSTOS OUTRAS ATIVIDADE",null,null,{"$f":"I126","v":0}]
[null,"TOTAL RECEITAS",null,null,{"$f":"SUM(E138:F140)","v":0},null,"TOTAL CUSTOS",null,null,{"$f":"SUM(J138:K140)","v":0}]
[]
[null,"MARGEM FINANCEIRA (R$):",null,null,{"$f":"IF(E141-J141=0,\"-\",E141-J141)","v":"-"},null,"MARGEM FINANCEIRA GLOBAL (%):",null,null,{"$f":"IFERROR((E141/J141)-1,\"-\")","v":"-"}]
[]
[]
[]
[]
[null,"________________________________________",null,null,null,"________________________________________"]
[null,{"$f":"UPPER(EMPREENDIMENTO!F19)","v":""},null,null,null,{"$f":"UPPER(EMPREENDIMENTO!H15)","v":""}]
[null,"Proponente",null,null,null,"Responsável Técnico"]

{"sheet":"FLUXO DE CAIXA","index":12,"n_rows":62,"n_cols":85,"rows_kept":62,"cut":false,"hidden":true,"merged":[[47,63,47,67],[47,68,47,72],[47,73,47,77],[48,63,48,67],[48,68,48,72],[48,73,48,77],[42,63,42,67],[42,68,42,72],[42,73,42,77],[44,63,44,67],[44,68,44,72],[44,73,44,77],[45,63,45,67],[45,68,45,72],[45,73,45,77],[39,63,39,67],[39,68,39,72],[39,73,39,77],[40,63,40,67],[40,68,40,72],[40,73,40,77],[41,63,41,67],[41,68,41,72],[41,73,41,77],[36,63,36,67],[36,68,36,72],[36,73,36,77],[37,63,37,67],[37,68,37,72],[37,73,37,77],[38,63,38,67],[38,68,38,72],[38,73,38,77],[32,63,32,67],[32,68,32,72],[32,73,32,77],[33,63,33,67],[33,68,33,72],[33,73,33,77],[35,63,35,67],[35,68,35,72],[35,73,35,77],[29,63,29,67],[29,68,29,72],[29,73,29,77],[30,63,30,67],[30,68,30,72],[30,73,30,77],[31,63,31,67],[31,68,31,72],[31,73,31,77],[26,63,26,67],[26,68,26,72],[26,73,26,77],[27,63,27,67],[27,68,27,72],[27,73,27,77],[28,63,28,67],[28,68,28,72],[28,73,28,77],[21,63,21,67],[21,68,21,72],[21,73,21,77],[23,63,23,67],[23,68,23,72],[23,73,23,77],[24,63,24,67],[24,68,24,72],[24,73,24,77],[18,63,18,67],[18,68,18,72],[18,73,18,77],[19,63,19,67],[19,68,19,72],[19,73,19,77],[20,63,20,67],[20,68,20,72],[20,73,20,77],[14,63,14,67],[14,68,14,72],[14,73,14,77],[16,63,16,67],[16,68,16,72],[16,73,16,77],[17,63,17,67],[17,68,17,72],[17,73,17,77],[10,63,10,67],[10,68,10,72],[10,73,10,77],[11,63,11,67],[11,68,11,72],[11,73,11,77],[12,63,12,67],[12,68,12,72],[12,73,12,77],[6,63,6,67],[6,68,6,72],[6,73,6,77],[7,63,7,67],[7,68,7,72],[7,73,7,77],[9,63,9,67],[9,68,9,72],[9,73,9,77],[44,48,44,52],[44,53,44,57],[26,58,26,62],[26,78,26,82],[35,53,35,57],[28,53,28,57],[41,58,41,62],[41,78,41,82],[33,58,33,62],[35,48,35,52],[42,48,42,52],[29,53,29,57],[42,53,42,57],[42,58,42,62],[42,78,42,82],[35,78,35,82],[29,78,29,82],[30,58,30,62],[30,78,30,82],[31,58,31,62],[29,58,29,62],[33,78,33,82],[31,78,31,82],[40,58,40,62],[40,78,40,82],[28,23,28,27],[28,28,28,32],[24,28,24,32],[24,33,24,37],[26,53,26,57],[26,18,26,22],[26,23,26,27],[26,28,26,32],[26,33,26,37],[26,38,26,42],[26,43,26,47],[26,48,26,52],[25,23,25,27],[25,18,25,22],[27,18,27,22],[27,23,27,27],[28,18,28,22],[24,58,24,62],[24,78,24,82],[28,58,28,62],[25,63,25,67],[25,68,25,72],[25,73,25,77],[21,1,21,17],[19,18,19,22],[19,23,19,27],[18,1,18,17],[18,18,18,22],[18,23,18,27],[24,23,24,27],[21,23,21,27],[23,23,23,27],[6,48,6,52],[6,53,6,57],[6,58,6,62],[6,78,6,82],[7,48,7,52],[7,53,7,57],[7,58,7,62],[7,78,7,82],[14,48,14,52],[14,53,14,57],[14,58,14,62],[14,78,14,82],[10,78,10,82],[12,78,12,82],[12,48,12,52],[12,58,12,62],[12,53,12,57],[9,48,9,52],[9,53,9,57],[9,58,9,62],[9,78,9,82],[10,48,10,52],[10,53,10,57],[10,58,10,62],[6,28,6,32],[6,33,6,37],[6,38,6,42],[6,43,6,47],[10,23,10,27],[7,23,7,27],[7,28,7,32],[7,33,7,37],[7,38,7,42],[7,43,7,47],[9,23,9,27],[9,28,9,32],[9,33,9,37],[9,38,9,42],[9,43,9,47],[6,23,6,27],[10,28,10,32],[10,33,10,37],[10,38,10,42],[10,43,10,47],[6,1,6,17],[10,1,10,17],[10,18,10,22],[12,1,12,17],[12,18,12,22],[6,18,6,22],[27,1,27,17],[25,1,25,17],[17,1,17,17],[16,1,16,17],[16,18,16,22],[14,1,14,17],[14,18,14,22],[24,1,24,17],[24,18,24,22],[7,1,7,17],[7,18,7,22],[20,1,20,17],[20,18,20,22],[19,1,19,17],[21,18,21,22],[23,1,23,17],[23,18,23,22],[26,1,26,17],[9,1,9,17],[9,18,9,22],[12,28,12,32],[12,33,12,37],[12,23,12,27],[20,23,20,27],[20,28,20,32],[20,33,20,37],[14,33,14,37],[16,23,16,27],[16,28,16,32],[16,33,16,37],[18,28,18,32],[17,28,17,32],[14,23,14,27],[17,18,17,22],[17,23,17,27],[19,28,19,32],[11,1,11,17],[11,18,11,22],[11,23,11,27],[11,28,11,32],[11,33,11,37],[61,12,61,31],[61,37,61,56],[59,12,59,31],[59,37,59,56],[60,12,60,31],[60,37,60,56],[29,1,29,17],[29,18,29,22],[29,23,29,27],[29,28,29,32],[29,33,29,37],[29,38,29,42],[29,43,29,47],[31,1,31,17],[31,18,31,22],[31,23,31,27],[50,1,50,5],[50,6,55,66],[44,33,44,37],[44,38,44,42],[44,43,44,47],[45,48,45,52],[45,53,45,57],[40,53,40,57],[32,78,32,82],[29,48,29,52],[48,28,48,32],[45,78,45,82],[33,48,33,52],[33,53,33,57],[48,38,48,42],[48,43,48,47],[48,48,48,52],[48,53,48,57],[31,28,31,32],[31,33,31,37],[31,38,31,42],[31,43,31,47],[31,48,31,52],[31,53,31,57],[41,53,41,57],[32,28,32,32],[32,33,32,37],[32,38,32,42],[32,43,32,47],[32,48,32,52],[32,53,32,57],[44,28,44,32],[48,58,48,62],[48,78,48,82],[36,1,36,17],[36,18,36,22],[36,23,36,27],[36,28,36,32],[36,33,36,37],[36,38,36,42],[36,43,36,47],[36,48,36,52],[36,53,36,57],[36,58,36,62],[36,78,36,82],[41,1,41,17],[41,18,41,22],[41,23,41,27],[41,28,41,32],[41,33,41,37],[41,38,41,42],[41,43,41,47],[41,48,41,52],[48,1,48,17],[48,18,48,22],[48,33,48,37],[48,23,48,27],[37,28,37,32],[37,33,37,37],[37,38,37,42],[37,43,37,47],[37,48,37,52],[37,53,37,57],[38,1,38,17],[38,18,38,22],[38,23,38,27],[38,28,38,32],[38,33,38,37],[38,38,38,42],[38,43,38,47],[38,48,38,52],[38,53,38,57],[39,48,39,52],[39,53,39,57],[40,1,40,17],[40,18,40,22],[40,23,40,27],[40,28,40,32],[40,33,40,37],[40,38,40,42],[47,58,47,62],[47,78,47,82],[44,1,44,17],[44,18,44,22],[44,23,44,27],[44,58,44,62],[44,78,44,82],[45,1,45,17],[45,18,45,22],[45,23,45,27],[45,28,45,32],[45,58,45,62],[45,33,45,37],[45,38,45,42],[45,43,45,47],[47,1,47,17],[47,18,47,22],[47,23,47,27],[47,28,47,32],[47,33,47,37],[47,38,47,42],[47,43,47,47],[47,48,47,52],[47,53,47,57],[14,38,14,42],[14,43,14,47],[21,33,21,37],[18,33,18,37],[17,33,17,37],[16,38,16,42],[19,48,19,52],[17,48,17,52],[21,43,21,47],[21,38,21,42],[18,38,18,42],[18,43,18,47],[18,48,18,52],[20,38,20,42],[20,43,20,47],[20,48,20,52],[19,33,19,37],[17,53,17,57],[18,58,18,62],[20,58,20,62],[18,53,18,57],[20,53,20,57],[20,78,20,82],[40,43,40,47],[40,48,40,52],[28,33,28,37],[28,38,28,42],[28,43,28,47],[28,48,28,52],[24,48,24,52],[24,53,24,57],[25,78,25,82],[28,78,28,82],[27,78,27,82],[37,58,37,62],[37,78,37,82],[38,58,38,62],[38,78,38,82],[39,58,39,62],[39,78,39,82],[35,58,35,62],[23,78,23,82],[16,58,16,62],[16,78,16,82],[13,58,13,62],[13,78,13,82],[16,43,16,47],[14,28,14,32],[19,38,19,42],[19,43,19,47],[17,38,17,42],[17,43,17,47],[21,28,21,32],[17,58,17,62],[17,78,17,82],[21,48,21,52],[21,53,21,57],[21,58,21,62],[16,48,16,52],[16,53,16,57],[18,78,18,82],[21,78,21,82],[19,53,19,57],[19,58,19,62],[19,78,19,82],[23,43,23,47],[23,48,23,52],[23,53,23,57],[23,58,23,62],[27,28,27,32],[27,33,27,37],[27,38,27,42],[25,28,25,32],[27,48,27,52],[27,53,27,57],[27,58,27,62],[25,33,25,37],[23,38,23,42],[25,38,25,42],[25,43,25,47],[25,48,25,52],[25,53,25,57],[25,58,25,62],[24,38,24,42],[24,43,24,47],[23,28,23,32],[23,33,23,37],[30,1,30,17],[30,18,30,22],[30,23,30,27],[30,28,30,32],[30,33,30,37],[30,38,30,42],[30,43,30,47],[30,48,30,52],[30,53,30,57],[35,1,35,17],[35,18,35,22],[32,23,32,27],[32,58,32,62],[33,1,33,17],[33,18,33,22],[33,23,33,27],[33,28,33,32],[33,33,33,37],[33,38,33,42],[33,43,33,47],[32,1,32,17],[32,18,32,22],[28,1,28,17],[27,43,27,47],[42,1,42,17],[42,18,42,22],[42,23,42,27],[42,28,42,32],[42,33,42,37],[42,38,42,42],[42,43,42,47],[35,23,35,27],[35,28,35,32],[35,33,35,37],[35,38,35,42],[35,43,35,47],[39,1,39,17],[39,18,39,22],[39,23,39,27],[39,28,39,32],[39,33,39,37],[39,38,39,42],[39,43,39,47],[37,1,37,17],[37,18,37,22],[37,23,37,27],[11,38,11,42],[11,43,11,47],[11,48,11,52],[11,53,11,57],[11,58,11,62],[11,78,11,82],[13,1,13,17],[13,18,13,22],[13,23,13,27],[13,28,13,32],[13,33,13,37],[13,38,13,42],[13,43,13,47],[13,48,13,52],[13,53,13,57],[12,38,12,42],[12,43,12,47],[13,63,13,67],[13,68,13,72],[13,73,13,77]]}
[]
[]
[]
[]
[]
[]
[null,null,null,null,null,null,null,null,null,null,null,null,null,null,null,null,null,null,"ANO 1",null,null,null,null,"ANO 2",null,null,null,null,"ANO 3",null,null,null,null,"ANO 4",null,null,null,null,"ANO 5",null,null,null,null,"ANO 6",null,null,null,null,"ANO 7",null,null,null,null,"ANO 8",null,null,null,null,"ANO 9",null,null,null,null,"ANO 10",null,null,null,null,"ANO 11",null,null,null,null,"ANO 12",null,null,null,null,"ANO 13"]
[null,"DESCRIÇÃO",null,null,null,null,null,null,null,null,null,null,null,null,null,null,null,null,1,null,null,null,null,2,null,null,null,null,3,null,null,null,null,4,null,null,null,null,5,null,null,null,null,6,null,null,null,null,7,null,null,null,null,8,null,null,null,null,9,null,null,null,null,10,null,null,null,null,11,null,null,null,null,12,null,null,null,null,13]
[]
[null,"RECEITAS"]
[null,"Atividades Beneficiadas pelo investimento",null,null,null,null,null,null,null,null,null,null,null,null,null,null,null,null,{"$f":"'CAPACIDADE DE PAGAMENTO'!E133","v":0},null,null,null,null,{"$f":"S11*(X12+1)","v":0},null,null,null,null,{"$f":"X11*(AC12+1)","v":0},null,null,null,null,{"$f":"AC11*(AH12+1)","v":0},null,null,null,null,{"$f":"AH11*(AM12+1)","v":0},null,null,null,null,{"$f":"AM11*(AR12+1)","v":0},null,null,null,null,{"$f":"AR11*(AW12+1)","v":0},null,null,null,null,{"$f":"AW11*(BB12+1)","v":0},null,null,null,null,{"$f":"BB11*(BG12+1)","v":0},null,null,null,null,{"$f":"BG11*(BL12+1)","v":0},null,null,null,null,{"$f":"BL11*(BQ12+1)","v":0},null,null,null,null,{"$f":"BQ11*(BV12+1)","v":0},null,null,null,null,{"$f":"BV11*(CA12+1)","v":0}]
[null,"Variação esperada (%)",null,null,null,null,null,null,null,null,null,null,null,null,null,null,null,null,"-",null,null,null,null,null,null,null,null,null,null,null,null,null,null,null,null,null,null,null,null,null,null,null,null,null,null,null,null,null,null,null,null,null,null,null,null,null,null,null,null,null,null,null,null,null,null,null,null,null,null,null,null,null,null,null,null,null,null,null,null,null,null,null,null,null,{"$f":"SUM(X12:CE12)","v":0}]
[null,"Demais atividades",null,null,null,null,null,null,null,null,null,null,null,null,null,null,null,null,{"$f":"'CAPACIDADE DE PAGAMENTO'!E141-'CAPACIDADE DE PAGAMENTO'!E133","v":0},null,null,null,null,{"$f":"S13*(X14+1)","v":0},null,null,null,null,{"$f":"X13*(AC14+1)","v":0},null,null,null,null,{"$f":"AC13*(AH14+1)","v":0},null,null,null,null,{"$f":"AH13*(AM14+1)","v":0},null,null,null,null,{"$f":"AM13*(AR14+1)","v":0},null,null,null,null,{"$f":"AR13*(AW14+1)","v":0},null,null,null,null,{"$f":"AW13*(BB14+1)","v":0},null,null,null,null,{"$f":"BB13*(BG14+1)","v":0},null,null,null,null,{"$f":"BG13*(BL14+1)","v":0},null,null,null,null,{"$f":"BL13*(BQ14+1)","v":0},null,null,null,null,{"$f":"BQ13*(BV14+1)","v":0},null,null,null,null,{"$f":"BV13*(CA14+1)","v":0}]
[null,"Variação esperada (%)",null,null,null,null,null,null,null,null,null,null,null,null,null,null,null,null,"-",null,null,null,null,null,null,null,null,null,null,null,null,null,null,null,null,null,null,null,null,null,null,null,null,null,null,null,null,null,null,null,null,null,null,null,null,null,null,null,null,null,null,null,null,null,null,null,null,null,null,null,null,null,null,null,null,null,null,null,null,null,null,null,null,null,{"$f":"SUM(X14:CE14)","v":0}]
[null,"TOTAL",null,null,null,null,null,null,null,null,null,null,null,null,null,null,null,null,{"$f":"S13+S11","v":0},null,null,null,null,{"$f":"X13+X11","v":0},null,null,null,null,{"$f":"AC13+AC11","v":0},null,null,null,null,{"$f":"AH13+AH11","v":0},null,null,null,null,{"$f":"AM13+AM11","v":0},null,null,null,null,{"$f":"AR13+AR11","v":0},null,null,null,null,{"$f":"AW13+AW11","v":0},null,null,null,null,{"$f":"BB13+BB11","v":0},null,null,null,null,{"$f":"BG13+BG11","v":0},null,null,null,null,{"$f":"BL13+BL11","v":0},null,null,null,null,{"$f":"BQ13+BQ11","v":0},null,null,null,null,0,null,null,null,null,0]
[]
[null,"CUSTOS"]
[null,"Atividades Beneficiadas pelo investimento",null,null,null,null,null,null,null,null,null,null,null,null,null,null,null,null,{"$f":"'CAPACIDADE DE PAGAMENTO'!J133","v":0},null,null,null,null,{"$f":"(X19+1)*S18","v":0},null,null,null,null,{"$f":"(AC19+1)*X18","v":0},null,null,null,null,{"$f":"(AH19+1)*AC18","v":0},null,null,null,null,{"$f":"(AM19+1)*AH18","v":0},null,null,null,null,{"$f":"(AR19+1)*AM18","v":0},null,null,null,null,{"$f":"(AW19+1)*AR18","v":0},null,null,null,null,{"$f":"(BB19+1)*AW18","v":0},null,null,null,null,{"$f":"(BG19+1)*BB18","v":0},null,null,null,null,{"$f":"(BL19+1)*BG18","v":0},null,null,null,null,{"$f":"(BQ19+1)*BL18","v":0},null,null,null,null,{"$f":"(BV19+1)*BQ18","v":0},null,null,null,null,{"$f":"(CA19+1)*BG18","v":0}]
[null,"Variação esperada (%)",null,null,null,null,null,null,null,null,null,null,null,null,null,null,null,null,"-",null,null,null,null,null,null,null,null,null,null,null,null,null,null,null,null,null,null,null,null,null,null,null,null,null,null,null,null,null,null,null,null,null,null,null,null,null,null,null,null,null,null,null,null,null,null,null,null,null,null,null,null,null,null,null,null,null,null,null,null,null,null,null,null,null,{"$f":"SUM(X19:CE19)","v":0}]
[null,"Demais atividades",null,null,null,null,null,null,null,null,null,null,null,null,null,null,null,null,{"$f":"'CAPACIDADE DE PAGAMENTO'!J141-'CAPACIDADE DE PAGAMENTO'!J133","v":0},null,null,null,null,{"$f":"S20*(X21+1)","v":0},null,null,null,null,{"$f":"X20*(AC21+1)","v":0},null,null,null,null,{"$f":"AC20*(AH21+1)","v":0},null,null,null,null,{"$f":"AH20*(AM21+1)","v":0},null,null,null,null,{"$f":"AM20*(AR21+1)","v":0},null,null,null,null,{"$f":"AR20*(AW21+1)","v":0},null,null,null,null,{"$f":"AW20*(BB21+1)","v":0},null,null,null,null,{"$f":"BB20*(BG21+1)","v":0},null,null,null,null,{"$f":"BG20*(BL21+1)","v":0},null,null,null,null,{"$f":"BL20*(BQ21+1)","v":0},null,null,null,null,{"$f":"BQ20*(BV21+1)","v":0},null,null,null,null,{"$f":"BG20*(CA21+1)","v":0}]
[null,"Variação esperada (%)",null,null,null,null,null,null,null,null,null,null,null,null,null,null,null,null,"-",null,null,null,null,null,null,null,null,null,null,null,null,null,null,null,null,null,null,null,null,null,null,null,null,null,null,null,null,null,null,null,null,null,null,null,null,null,null,null,null,null,null,null,null,null,null,null,null,null,null,null,null,null,null,null,null,null,null,null,null,null,null,null,null,null,{"$f":"SUM(X21:CE21)","v":0}]
[null,"TOTAL",null,null,null,null,null,null,null,null,null,null,null,null,null,null,null,null,{"$f":"S20+S18","v":0},null,null,null,null,{"$f":"X20+X18","v":0},null,null,null,null,{"$f":"AC20+AC18","v":0},null,null,null,null,{"$f":"AH20+AH18","v":0},null,null,null,null,{"$f":"AM20+AM18","v":0},null,null,null,null,{"$f":"AR20+AR18","v":0},null,null,null,null,{"$f":"AW20+AW18","v":0},null,null,null,null,{"$f":"BB20+BB18","v":0},null,null,null,null,{"$f":"BG20+BG18","v":0},null,null,null,null,{"$f":"BL20+BL18","v":0},null,null,null,null,{"$f":"BQ20+BQ18","v":0},null,null,null,null,{"$f":"BV20+BV18","v":0},null,null,null,null,{"$f":"CA20+CA18","v":0}]
[]
[null,"FONTES"]
[null,"RECURSOS PRÓPRIOS",null,null,null,null,null,null,null,null,null,null,null,null,null,null,null,null,{"$f":"S26+S28+S29+S27","v":0},null,null,null,null,{"$f":"X26+X28+X29+X27","v":{"$error":"#N/A"}},null,null,null,null,{"$f":"AC26+AC28+AC29+AC27","v":{"$error":"#N/A"}},null,null,null,null,{"$f":"AH26+AH28+AH29+AH27","v":{"$error":"#N/A"}},null,null,null,null,{"$f":"AM26+AM28+AM29+AM27","v":{"$error":"#N/A"}},null,null,null,null,{"$f":"AR26+AR28+AR29+AR27","v":{"$error":"#N/A"}},null,null,null,null,{"$f":"AW26+AW28+AW29+AW27","v":{"$error":"#N/A"}},null,null,null,null,{"$f":"BB26+BB28+BB29+BB27","v":{"$error":"#N/A"}},null,null,null,null,{"$error":"#N/A"},null,null,null,null,{"$error":"#N/A"},null,null,null,null,{"$error":"#N/A"},null,null,null,null,{"$error":"#N/A"},null,null,null,null,{"$error":"#N/A"}]
[null,"Resultado (Atividades beneficiadas)",null,null,null,null,null,null,null,null,null,null,null,null,null,null,null,null,{"$f":"S11-S18","v":0},null,null,null,null,{"$f":"X11-X18","v":0},null,null,null,null,{"$f":"AC11-AC18","v":0},null,null,null,null,{"$f":"AH11-AH18","v":0},null,null,null,null,{"$f":"AM11-AM18","v":0},null,null,null,null,{"$f":"AR11-AR18","v":0},null,null,null,null,{"$f":"AW11-AW18","v":0},null,null,null,null,{"$f":"BB11-BB18","v":0},null,null,null,null,0,null,null,null,null,0,null,null,null,null,0,null,null,null,null,0,null,null,null,null,0]
[null,"Resultado (Demais Atividades)",null,null,null,null,null,null,null,null,null,null,null,null,null,null,null,null,{"$f":"S13-S20","v":0},null,null,null,null,{"$f":"X13-X20","v":0},null,null,null,null,{"$f":"AC13-AC20","v":0},null,null,null,null,{"$f":"AH13-AH20","v":0},null,null,null,null,{"$f":"AM13-AM20","v":0},null,null,null,null,{"$f":"AR13-AR20","v":0},null,null,null,null,{"$f":"AW13-AW20","v":0},null,null,null,null,{"$f":"BB13-BB20","v":0},null,null,null,null,0,null,null,null,null,0,null,null,null,null,0,null,null,null,null,0,null,null,null,null,0]
[null,"Saldo de Caixa Acumulado",null,null,null,null,null,null,null,null,null,null,null,null,null,null,null,null,0,null,null,null,null,{"$f":"S49","v":{"$error":"#N/A"}},null,null,null,null,{"$f":"X49","v":{"$error":"#N/A"}},null,null,null,null,{"$f":"AC49","v":{"$error":"#N/A"}},null,null,null,null,{"$f":"AH49","v":{"$error":"#N/A"}},null,null,null,null,{"$f":"AM49","v":{"$error":"#N/A"}},null,null,null,null,{"$f":"AR49","v":{"$error":"#N/A"}},null,null,null,null,{"$f":"AW49","v":{"$error":"#N/A"}},null,null,null,null,{"$f":"BB49","v":{"$error":"#N/A"}},null,null,null,null,{"$f":"BG49","v":{"$error":"#N/A"}},null,null,null,null,{"$f":"BL49","v":{"$error":"#N/A"}},null,null,null,null,{"$f":"BQ49","v":{"$error":"#N/A"}},null,null,null,null,{"$f":"BV49","v":{"$error":"#N/A"}}]
[null,"Outros Recursos Próprios (Especificar)",null,null,null,null,null,null,null,null,null,null,null,null,null,null,null,null,{"$f":"IF(EMPREENDIMENTO!AH73=\"\",0,EMPREENDIMENTO!AH73)","v":0},null,null,null,null,0,null,null,null,null,0,null,null,null,null,0,null,null,null,null,0,null,null,null,null,0,null,null,null,null,0,null,null,null,null,0,null,null,null,null,0,null,null,null,null,0,null,null,null,null,0,null,null,null,null,0,null,null,null,null,0]
[null,"RECURSOS DE TERCEIROS",null,null,null,null,null,null,null,null,null,null,null,null,null,null,null,null,{"$f":"S31+S32+S33","v":0},null,null,null,null,{"$f":"X31+X32+X33","v":0},null,null,null,null,{"$f":"AC31+AC32+AC33","v":0},null,null,null,null,{"$f":"AH31+AH32+AH33","v":0},null,null,null,null,{"$f":"AM31+AM32+AM33","v":0},null,null,null,null,{"$f":"AR31+AR32+AR33","v":0},null,null,null,null,{"$f":"AW31+AW32+AW33","v":0},null,null,null,null,{"$f":"BB31+BB32+BB33","v":0},null,null,null,null,0,null,null,null,null,0,null,null,null,null,0,null,null,null,null,0,null,null,null,null,0]
[null,"Este Financiamento",null,null,null,null,null,null,null,null,null,null,null,null,null,null,null,null,{"$f":"VALOR_TOTAL","v":0},null,null,null,null,0,null,null,null,null,0,null,null,null,null,0,null,null,null,null,0,null,null,null,null,0,null,null,null,null,0,null,null,null,null,0,null,null,null,null,0,null,null,null,null,0,null,null,null,null,0,null,null,null,null,0,null,null,null,null,0]
[null,"Financiamentos para Custeio",null,null,null,null,null,null,null,null,null,null,null,null,null,null,null,null,0,null,null,null,null,0,null,null,null,null,0,null,null,null,null,0,null,null,null,null,0,null,null,null,null,0,null,null,null,null,0,null,null,null,null,0,null,null,null,null,0,null,null,null,null,0,null,null,null,null,0,null,null,null,null,0,null,null,null,null,0]
[null,"Outros (Especificar)",null,null,null,null,null,null,null,null,null,null,null,null,null,null,null,null,0,null,null,null,null,0,null,null,null,null,0,null,null,null,null,0,null,null,null,null,0,null,null,null,null,0,null,null,null,null,0,null,null,null,null,0,null,null,null,null,0,null,null,null,null,0,null,null,null,null,0,null,null,null,null,0,null,null,null,null,0]
[null,"TOTAL",null,null,null,null,null,null,null,null,null,null,null,null,null,null,null,null,{"$f":"S30+S25","v":0},null,null,null,null,{"$f":"X30+X25-X28","v":{"$error":"#N/A"}},null,null,null,null,{"$f":"AC30+AC25-AC28","v":{"$error":"#N/A"}},null,null,null,null,{"$f":"AH30+AH25-AH28","v":{"$error":"#N/A"}},null,null,null,null,{"$f":"AM30+AM25-AM28","v":{"$error":"#N/A"}},null,null,null,null,{"$f":"AR30+AR25-AR28","v":{"$error":"#N/A"}},null,null,null,null,{"$f":"AW30+AW25-AW28","v":{"$error":"#N/A"}},null,null,null,null,{"$f":"BB30+BB25-BB28","v":{"$error":"#N/A"}},null,null,null,null,{"$error":"#N/A"},null,null,null,null,{"$error":"#N/A"},null,null,null,null,{"$error":"#N/A"},null,null,null,null,{"$error":"#N/A"},null,null,null,null,{"$error":"#N/A"}]
[]
[null,"USOS"]
[null,"INVESTIMENTO PROPOSTO",null,null,null,null,null,null,null,null,null,null,null,null,null,null,null,null,{"$f":"EMPREENDIMENTO!AL71","v":0},null,null,null,null,{"$f":"EMPREENDIMENTO!AQ71","v":0},null,null,null,null,{"$f":"EMPREENDIMENTO!AV71","v":0},null,null,null,null,{"$f":"EMPREENDIMENTO!BA71","v":0},null,null,null,null,{"$f":"EMPREENDIMENTO!BF71","v":0},null,null,null,null,{"$f":"EMPREENDIMENTO!BK71","v":0},null,null,null,null,{"$f":"EMPREENDIMENTO!BP71","v":0},null,null,null,null,{"$f":"EMPREENDIMENTO!BU71","v":0},null,null,null,null,{"$f":"EMPREENDIMENTO!BZ71","v":0},null,null,null,null,{"$f":"EMPREENDIMENTO!CE71","v":0},null,null,null,null,{"$f":"EMPREENDIMENTO!CJ71","v":0},null,null,null,null,{"$f":"EMPREENDIMENTO!CO71","v":0},null,null,null,null,{"$f":"EMPREENDIMENTO!CT71","v":0}]
[null,"REPOSIÇÃO DE FINANCIAMENTOS",null,null,null,null,null,null,null,null,null,null,null,null,null,null,null,null,{"$f":"S39+S40+S41+S42","v":{"$error":"#N/A"}},null,null,null,null,{"$f":"X39+X40+X41+X42","v":{"$error":"#N/A"}},null,null,null,null,{"$f":"AC39+AC40+AC41+AC42","v":{"$error":"#N/A"}},null,null,null,null,{"$f":"AH39+AH40+AH41+AH42","v":{"$error":"#N/A"}},null,null,null,null,{"$f":"AM39+AM40+AM41+AM42","v":{"$error":"#N/A"}},null,null,null,null,{"$f":"AR39+AR40+AR41+AR42","v":{"$error":"#N/A"}},null,null,null,null,{"$f":"AW39+AW40+AW41+AW42","v":{"$error":"#N/A"}},null,null,null,null,{"$f":"BB39+BB40+BB41+BB42","v":{"$error":"#N/A"}},null,null,null,null,{"$f":"BG39+BG40+BG41+BG42","v":{"$error":"#N/A"}},null,null,null,null,{"$error":"#N/A"},null,null,null,null,{"$error":"#N/A"},null,null,null,null,{"$error":"#N/A"},null,null,null,null,{"$error":"#N/A"}]
[null,"Este Financiamento",null,null,null,null,null,null,null,null,null,null,null,null,null,null,null,null,{"$f":"IF(PERIODICIDADE=\"SEMESTRAL\",SUMIF(REEMBOLSO!$F$190:$F$215,S8,REEMBOLSO!$AB$190:$AB$215),IF(PERIODICIDADE=\"ANUAL\",VLOOKUP(S8,REEMBOLSO!$A$172:$Y$184,25,0),SUMIF(REEMBOLSO!$AZ$11:$AZ$166,S8,REEMBOLSO!$AD$11:$AD$166)))","v":{"$error":"#N/A"}},null,null,null,null,{"$f":"IF(PERIODICIDADE=\"SEMESTRAL\",SUMIF(REEMBOLSO!$F$190:$F$215,X8,REEMBOLSO!$AB$190:$AB$215),IF(PERIODICIDADE=\"ANUAL\",VLOOKUP(X8,REEMBOLSO!$A$172:$Y$184,25,0),SUMIF(REEMBOLSO!$AZ$11:$AZ$166,X8,REEMBOLSO!$AD$11:$AD$166)))","v":{"$error":"#N/A"}},null,null,null,null,{"$f":"IF(PERIODICIDADE=\"SEMESTRAL\",SUMIF(REEMBOLSO!$F$190:$F$215,AC8,REEMBOLSO!$AB$190:$AB$215),IF(PERIODICIDADE=\"ANUAL\",VLOOKUP(AC8,REEMBOLSO!$A$172:$Y$184,25,0),SUMIF(REEMBOLSO!$AZ$11:$AZ$166,AC8,REEMBOLSO!$AD$11:$AD$166)))","v":{"$error":"#N/A"}},null,null,null,null,{"$f":"IF(PERIODICIDADE=\"SEMESTRAL\",SUMIF(REEMBOLSO!$F$190:$F$215,AH8,REEMBOLSO!$AB$190:$AB$215),IF(PERIODICIDADE=\"ANUAL\",VLOOKUP(AH8,REEMBOLSO!$A$172:$Y$184,25,0),SUMIF(REEMBOLSO!$AZ$11:$AZ$166,AH8,REEMBOLSO!$AD$11:$AD$166)))","v":{"$error":"#N/A"}},null,null,null,null,{"$f":"IF(PERIODICIDADE=\"SEMESTRAL\",SUMIF(REEMBOLSO!$F$190:$F$215,AM8,REEMBOLSO!$AB$190:$AB$215),IF(PERIODICIDADE=\"ANUAL\",VLOOKUP(AM8,REEMBOLSO!$A$172:$Y$184,25,0),SUMIF(REEMBOLSO!$AZ$11:$AZ$166,AM8,REEMBOLSO!$AD$11:$AD$166)))","v":{"$error":"#N/A"}},null,null,null,null,{"$f":"IF(PERIODICIDADE=\"SEMESTRAL\",SUMIF(REEMBOLSO!$F$190:$F$215,AR8,REEMBOLSO!$AB$190:$AB$215),IF(PERIODICIDADE=\"ANUAL\",VLOOKUP(AR8,REEMBOLSO!$A$172:$Y$184,25,0),SUMIF(REEMBOLSO!$AZ$11:$AZ$166,AR8,REEMBOLSO!$AD$11:$AD$166)))","v":{"$error":"#N/A"}},null,null,null,null,{"$f":"IF(PERIODICIDADE=\"SEMESTRAL\",SUMIF(REEMBOLSO!$F$190:$F$215,AW8,REEMBOLSO!$AB$190:$AB$215),IF(PERIODICIDADE=\"ANUAL\",VLOOKUP(AW8,REEMBOLSO!$A$172:$Y$184,25,0),SUMIF(REEMBOLSO!$AZ$11:$AZ$166,AW8,REEMBOLSO!$AD$11:$AD$166)))","v":{"$error":"#N/A"}},null,null,null,null,{"$f":"IF(PERIODICIDADE=\"SEMESTRAL\",SUMIF(REEMBOLSO!$F$190:$F$215,BB8,REEMBOLSO!$AB$190:$AB$215),IF(PERIODICIDADE=\"ANUAL\",VLOOKUP(BB8,REEMBOLSO!$A$172:$Y$184,25,0),SUMIF(REEMBOLSO!$AZ$11:$AZ$166,BB8,REEMBOLSO!$AD$11:$AD$166)))","v":{"$error":"#N/A"}},null,null,null,null,{"$f":"IF(PERIODICIDADE=\"SEMESTRAL\",SUMIF(REEMBOLSO!$F$190:$F$215,BG8,REEMBOLSO!$AB$190:$AB$215),IF(PERIODICIDADE=\"ANUAL\",VLOOKUP(BG8,REEMBOLSO!$A$172:$Y$184,25,0),SUMIF(REEMBOLSO!$AZ$11:$AZ$166,BG8,REEMBOLSO!$AD$11:$AD$166)))","v":{"$error":"#N/A"}},null,null,null,null,{"$f":"IF(PERIODICIDADE=\"SEMESTRAL\",SUMIF(REEMBOLSO!$F$190:$F$215,BL8,REEMBOLSO!$AB$190:$AB$215),IF(PERIODICIDADE=\"ANUAL\",VLOOKUP(BL8,REEMBOLSO!$A$172:$Y$184,25,0),SUMIF(REEMBOLSO!$AZ$11:$AZ$166,BL8,REEMBOLSO!$AD$11:$AD$166)))","v":{"$error":"#N/A"}},null,null,null,null,{"$f":"IF(PERIODICIDADE=\"SEMESTRAL\",SUMIF(REEMBOLSO!$F$190:$F$215,BQ8,REEMBOLSO!$AB$190:$AB$215),IF(PERIODICIDADE=\"ANUAL\",VLOOKUP(BQ8,REEMBOLSO!$A$172:$Y$184,25,0),SUMIF(REEMBOLSO!$AZ$11:$AZ$166,BQ8,REEMBOLSO!$AD$11:$AD$166)))","v":{"$error":"#N/A"}},null,null,null,null,{"$f":"IF(PERIODICIDADE=\"SEMESTRAL\",SUMIF(REEMBOLSO!$F$190:$F$215,BV8,REEMBOLSO!$AB$190:$AB$215),IF(PERIODICIDADE=\"ANUAL\",VLOOKUP(BV8,REEMBOLSO!$A$172:$Y$184,25,0),SUMIF(REEMBOLSO!$AZ$11:$AZ$166,BV8,REEMBOLSO!$AD$11:$AD$166)))","v":{"$error":"#N/A"}},null,null,null,null,{"$f":"IF(PERIODICIDADE=\"SEMESTRAL\",SUMIF(REEMBOLSO!$F$190:$F$215,CA8,REEMBOLSO!$AB$190:$AB$215),IF(PERIODICIDADE=\"ANUAL\",VLOOKUP(CA8,REEMBOLSO!$A$172:$Y$184,25,0),SUMIF(REEMBOLSO!$AZ$11:$AZ$166,CA8,REEMBOLSO!$AD$11:$AD$166)))","v":{"$error":"#N/A"}}]
[null,"Existentes",null,null,null,null,null,null,null,null,null,null,null,null,null,null,null,null,0,null,null,null,null,0,null,null,null,null,0,null,null,null,null,0,null,null,null,null,0,null,null,null,null,0,null,null,null,null,0,null,null,null,null,0,null,null,null,null,0,null,null,null,null,0,null,null,null,null,0,null,null,null,null,0,null,null,null,null,0]
[null,"Custeios",null,null,null,null,null,null,null,null,null,null,null,null,null,null,null,null,0,null,null,null,null,0,null,null,null,null,0,null,null,null,null,0,null,null,null,null,0,null,null,null,null,0,null,null,null,null,0,null,null,null,null,0,null,null,null,null,0,null,null,null,null,0,null,null,null,null,0,null,null,null,null,0,null,null,null,null,0]
[null,"Outros (Especificar)",null,null,null,null,null,null,null,null,null,null,null,null,null,null,null,null,0,null,null,null,null,0,null,null,null,null,0,null,null,null,null,0,null,null,null,null,0,null,null,null,null,0,null,null,null,null,0,null,null,null,null,0,null,null,null,null,0,null,null,null,null,0,null,null,null,null,0,null,null,null,null,0,null,null,null,null,0]
[null,"TOTAL",null,null,null,null,null,null,null,null,null,null,null,null,null,null,null,null,{"$f":"S38+S37","v":{"$error":"#N/A"}},null,null,null,null,{"$f":"X38+X37","v":{"$error":"#N/A"}},null,null,null,null,{"$f":"AC38+AC37","v":{"$error":"#N/A"}},null,null,null,null,{"$f":"AH38+AH37","v":{"$error":"#N/A"}},null,null,null,null,{"$error":"#N/A"},null,null,null,null,{"$error":"#N/A"},null,null,null,null,{"$error":"#N/A"},null,null,null,null,{"$error":"#N/A"},null,null,null,null,{"$error":"#N/A"},null,null,null,null,{"$error":"#N/A"},null,null,null,null,{"$error":"#N/A"},null,null,null,null,{"$error":"#N/A"},null,null,null,null,{"$error":"#N/A"}]
[]
[null,"MARGEM DO INVESTIMENTO (R$)",null,null,null,null,null,null,null,null,null,null,null,null,null,null,null,null,{"$f":"IF(S39=0,\"\",S26-S39)","v":{"$error":"#N/A"}},null,null,null,null,{"$f":"IF(X39=0,\"\",X26-X39)","v":{"$error":"#N/A"}},null,null,null,null,{"$f":"IF(AC39=0,\"\",AC26-AC39)","v":{"$error":"#N/A"}},null,null,null,null,{"$f":"IF(AH39=0,\"\",AH26-AH39)","v":{"$error":"#N/A"}},null,null,null,null,{"$error":"#N/A"},null,null,null,null,{"$error":"#N/A"},null,null,null,null,{"$error":"#N/A"},null,null,null,null,{"$error":"#N/A"},null,null,null,null,{"$error":"#N/A"},null,null,null,null,{"$error":"#N/A"},null,null,null,null,{"$error":"#N/A"},null,null,null,null,{"$error":"#N/A"},null,null,null,null,{"$error":"#N/A"}]
[null,"VIABILIDADE DO INVESTIMENTO (%)",null,null,null,null,null,null,null,null,null,null,null,null,null,null,null,null,{"$f":"IF(S45=\"\",\"\",S45/S39)","v":{"$error":"#N/A"}},null,null,null,null,{"$f":"IF(X45=\"\",\"\",X45/X39)","v":{"$error":"#N/A"}},null,null,null,null,{"$f":"IF(AC45=\"\",\"\",AC45/AC39)","v":{"$error":"#N/A"}},null,null,null,null,{"$f":"IF(AH45=\"\",\"\",AH45/AH39)","v":{"$error":"#N/A"}},null,null,null,null,{"$error":"#N/A"},null,null,null,null,{"$error":"#N/A"},null,null,null,null,{"$error":"#N/A"},null,null,null,null,{"$error":"#N/A"},null,null,null,null,{"$error":"#N/A"},null,null,null,null,{"$error":"#N/A"},null,null,null,null,{"$error":"#N/A"},null,null,null,null,{"$error":"#N/A"},null,null,null,null,{"$error":"#N/A"}]
[]
[null,"SALDO DE CAIXA DO EXERCÍCIO",null,null,null,null,null,null,null,null,null,null,null,null,null,null,null,null,{"$f":"S34-S43","v":{"$error":"#N/A"}},null,null,null,null,{"$f":"X34-X43","v":{"$error":"#N/A"}},null,null,null,null,{"$f":"AC34-AC43","v":{"$error":"#N/A"}},null,null,null,null,{"$f":"AH34-AH43","v":{"$error":"#N/A"}},null,null,null,null,{"$error":"#N/A"},null,null,null,null,{"$error":"#N/A"},null,null,null,null,{"$error":"#N/A"},null,null,null,null,{"$error":"#N/A"},null,null,null,null,{"$error":"#N/A"},null,null,null,null,{"$error":"#N/A"},null,null,null,null,{"$error":"#N/A"},null,null,null,null,{"$error":"#N/A"},null,null,null,null,{"$error":"#N/A"}]
[null,"SALDO DE CAIXA ACUMULADO",null,null,null,null,null,null,null,null,null,null,null,null,null,null,null,null,{"$f":"S34-S43","v":{"$error":"#N/A"}},null,null,null,null,{"$f":"X34-X43+X28","v":{"$error":"#N/A"}},null,null,null,null,{"$f":"AC34-AC43+AC28","v":{"$error":"#N/A"}},null,null,null,null,{"$f":"AH34-AH43+AH28","v":{"$error":"#N/A"}},null,null,null,null,{"$error":"#N/A"},null,null,null,null,{"$error":"#N/A"},null,null,null,null,{"$error":"#N/A"},null,null,null,null,{"$error":"#N/A"},null,null,null,null,{"$error":"#N/A"},null,null,null,null,{"$error":"#N/A"},null,null,null,null,{"$error":"#N/A"},null,null,null,null,{"$error":"#N/A"},null,null,null,null,{"$error":"#N/A"}]
[]
[null,"OBSERVAÇÕES:"]
[]
[]
[]
[]
[]
[]
[]
[]
[null,null,null,null,null,null,null,null,null,null,null,null,"________________________________________",null,null,null,null,null,null,null,null,null,null,null,null,null,null,null,null,null,null,null,null,null,null,null,null,"________________________________________"]
[null,null,null,null,null,null,null,null,null,null,null,null,{"$f":"NOME_PROPONENTE","v":0},null,null,null,null,null,null,null,null,null,null,null,null,null,null,null,null,null,null,null,null,null,null,null,null,{"$f":"RESP_TECNICO","v":0}]
[null,null,null,null,null,null,null,null,null,null,null,null,"Proponente",null,null,null,null,null,null,null,null,null,null,null,null,null,null,null,null,null,null,null,null,null,null,null,null,"Responsável Técnico"]

{"sheet":"LISTAS","index":13,"n_rows":196,"n_cols":31,"rows_kept":196,"cut":false,"hidden":true,"merged":[]}
["CULTURAS","UNIDADES","MÊS","DIA","ANO","ASSISTENCIA TÉCNICA","CULTURA","GARANTIA","PERIODICIDADE","PRAZO DO PROJETO",null,"NENHUMA",0,{"$f":"YEAR(TODAY())","v":2024},"PRODUTOR",null,null,null,null,null,"BOVINOS",null,"ANGUS","BEZERRA","BEZERRA","0 a 6",{"$f":"YEAR(TODAY())-1","v":2023},null,null,"AGRÍCOLA","ABACATE"]
[null,"UN","JANEIRO",1,2020,"ELABORAÇÃO DO PROJETO","ABACATE","GARANTIA FIDEJUSSÓRIA","MENSAL","MENSAL","1 MÊS","1 MÊS",1,{"$f":"N1-1","v":2023},"PEQUENO PRODUTOR",null,null,null,null,null,"SUÍNOS",null,"BONSMARA","BEZERRO","BEZERRA","7 a 12",{"$f":"AA1-1","v":2022},null,null,"AGRÍCOLA","ALFACE"]
[null,"KG","FEVEREIRO",2,2021,"PROJETO + ASSISTÊNCIA TÉCNICA","ALHO","GARANTIA REAL","SEMESTRAL","MENSAL",{"$f":"_xlfn.CONCAT(M3,\" MESES\")","v":"2 MESES"},"2 MESES",2,{"$f":"N2-1","v":2022},"MÉDIO PRODUTOR",null,null,null,null,null,"BUBALINOS",null,"CARACU","NOVILHA","BEZERRO","0 a 6",2021,null,null,"AGRÍCOLA","ALHO"]
[null,"TON","MARÇO",3,2022,null,"BANANA","GARANTIA REAL + FIDEJUSSÓRIA","ANUAL","MENSAL",{"$f":"_xlfn.CONCAT(M4,\" MESES\")","v":"3 MESES"},"3 MESES",3,{"$f":"N3-1","v":2021},"GRANDE PRODUTOR",null,null,null,null,null,"EQUINOS",null,"BELGIAN BLUE","NOVILHO","BEZERRO","7 a 12",2020,null,null,"AGRÍCOLA","BANANA"]
[null,"GR","ABRIL",4,2023,null,"BATATA",null,null,"MENSAL","4 MESES","4 MESES",4,{"$f":"N4-1","v":2020},null,null,null,null,null,null,"OVINOS",null,"BRAFORD","VACA","BOI","25 a 30",2019,null,null,"AGRÍCOLA","BATATA"]
[null,"m","MAIO",5,2024,null,"BETERRABA",null,null,"MENSAL","5 MESES","5 MESES",5,2019,null,null,null,null,null,null,"APICULTURA",null,"DEVON","BOI","BOI","30 a 36",2018,null,null,"AGRÍCOLA","BETERRABA"]
[null,"m²","JUNHO",6,2025,null,"CAFÉ",null,null,"MENSAL","6 MESES","6 MESES",6,2018,null,null,null,null,null,null,"ASININOS",null,"BRAHMAN",null,"BOI",{"$f":"TEXT(\"+ de 36\",1)","v":"+ de 36"},2017,null,null,"AGRÍCOLA","CAFÉ"]
[null,"m³","JULHO",7,2026,null,"CANA-DE-AÇUCAR",null,null,"MENSAL","7 MESES","7 MESES",7,2017,null,null,null,null,null,null,"AVICULTURA",null,"BRANGUS ",null,"NOVILHA","13 a 18",2016,null,null,"AGRÍCOLA","CANA-DE-AÇUCAR"]
[null,"DIÁRIA","AGOSTO",8,2027,null,"CEBOLA",null,null,"MENSAL","8 MESES","8 MESES",8,2016,null,null,null,null,null,null,"CANINOS",null,"CANCHIM",null,"NOVILHA","19 a 24",null,null,null,"AGRÍCOLA","CEBOLA"]
[null,"HORA","SETEMBRO",9,2028,null,"CENOURA",null,null,"MENSAL","9 MESES","9 MESES",9,2015,null,null,null,null,null,null,"CAPRINOS",null,"CHAROLÊS",null,"NOVILHA","25 a 30",null,null,null,"AGRÍCOLA","CENOURA"]
[null,"L","OUTUBRO",10,2029,null,"FEIJÃO",null,null,"MENSAL","10 MESES","10 MESES",10,2014,null,null,null,null,null,null,"PISCICULTURA",null,"CHIANINA",null,"NOVILHO","19 a 24",null,null,null,"AGRÍCOLA","FEIJÃO"]
[null,"ml","NOVEMBRO",11,2030,null,"LARANJA",null,null,"MENSAL","11 MESES","11 MESES",11,2013,null,null,null,null,null,null,"RANICULTURA",null,"GIR",null,"NOVILHO","13 a 18",null,null,null,"AGRÍCOLA","LICHIA (LECHIA)"]
[null,null,"DEZEMBRO",12,2031,null,"LICHIA (LECHIA)",null,null,"MENSAL","12 MESES","12 MESES",12,null,null,null,null,null,null,null,"SERICICULTURA",null,"GUZERÁ",null,"NOVILHO","25 a 30",null,null,null,"AGRÍCOLA","MANGA"]
[null,null,null,13,null,null,"MANGA",null,null,"MENSAL","13 MESES","13 MESES",13,null,null,null,null,null,null,null,null,null,"HEREFORD",null,"VACA","25 a 30",null,null,null,"AGRÍCOLA","MARACUJÁ"]
[null,null,null,14,null,null,"MARACUJÁ",null,null,"MENSAL","14 MESES","14 MESES",14,null,null,null,null,null,null,null,null,null,"INDUBRASIL",null,"VACA","30 a 36",null,null,null,"AGRÍCOLA","MILHO"]
[null,null,null,15,null,null,"MILHO",null,null,"MENSAL","15 MESES","15 MESES",15,null,null,null,null,null,null,null,null,null,"LIMOUSIN",null,"VACA",{"$f":"TEXT(\"+ de 36\",1)","v":"+ de 36"},null,null,null,"AGRÍCOLA","MILHO SAFRINHA"]
[null,null,null,16,null,null,"MILHO SAFRINHA",null,null,"MENSAL","16 MESES","16 MESES",16,null,null,null,null,null,null,null,null,null,"MARCHIGIANA",null,null,null,null,null,null,"AGRÍCOLA","MORANGO"]
[null,null,null,17,null,null,"MORANGO",null,null,"MENSAL","17 MESES","17 MESES",17,null,null,null,null,null,null,null,null,null,"NELORE",null,null,null,null,null,null,"AGRÍCOLA","PASTAGEM"]
[null,null,null,18,null,null,"PASTAGEM",null,null,"MENSAL","18 MESES","18 MESES",18,null,null,null,null,null,null,null,null,null,"PIEMONTÊS",null,null,null,null,null,null,"AGRÍCOLA","PIMENTÃO"]
[null,null,null,19,null,null,"PIMENTÃO",null,null,"MENSAL","19 MESES","19 MESES",19,null,null,null,null,null,null,null,null,null,"RED ANGUS",null,null,null,null,null,null,"AGRÍCOLA","REPOLHO"]
[null,null,null,20,null,null,"REPOLHO",null,null,"MENSAL","20 MESES","20 MESES",20,null,null,null,null,null,null,null,null,null,"SANTA GERTRUDIS",null,null,null,null,null,null,"AGRÍCOLA","SOJA"]
[null,null,null,21,null,null,"SOJA",null,null,"MENSAL","21 MESES","21 MESES",21,null,null,null,null,null,null,null,null,null,"SENEPOL",null,null,null,null,null,null,"PECUÁRIA","SORGO"]
[null,null,null,22,null,null,"SORGO",null,null,"MENSAL","22 MESES","22 MESES",22,null,null,null,null,null,null,null,null,null,"SIMENTAL",null,null,null,null,null,null,"PECUÁRIA","TOMATE"]
[null,null,null,23,null,null,"TRIGO",null,null,"MENSAL","23 MESES","23 MESES",23,null,null,null,null,null,null,null,null,null,"TABAPUÃ",null,null,null,null,null,null,null,"TRIGO"]
[null,null,null,24,null,null,"UVA",null,null,"MENSAL","24 MESES","24 MESES",24,null,null,null,null,null,null,null,null,null,"CRUZAMENTO INDUSTRIAL",null,null,null,null,null,null,null,"UVA"]
[null,null,null,25,null,null,null,null,null,"MENSAL","25 MESES","25 MESES",25,null,null,null,null,null,null,null,null,null,"OUTROS",null,null,null,null,null,null,null,"BOVINOCULTURA DE CORTE"]
[null,null,null,26,null,null,null,null,null,"MENSAL","26 MESES","26 MESES",26,null,null,null,null,null,null,null,null,null,null,null,null,null,null,null,null,null,"BOVINOCULTURA LEITEIRA"]
[null,null,null,27,null,null,"BOVINOCULTURA DE CORTE",null,null,"MENSAL","27 MESES","27 MESES",27]
[null,null,null,28,null,null,"BOVINOCULTURA DE LEITE",null,null,"MENSAL","28 MESES","28 MESES",28]
[null,null,null,29,null,null,null,null,null,"MENSAL","29 MESES","29 MESES",29]
[null,null,null,30,null,null,null,null,null,"MENSAL","30 MESES","30 MESES",30]
[null,null,null,31,null,null,null,null,null,"MENSAL","31 MESES","31 MESES",31]
[null,null,null,null,null,null,null,null,null,"MENSAL","32 MESES","32 MESES",32]
[null,null,null,null,null,null,null,null,null,"MENSAL","33 MESES","33 MESES",33]
[null,null,null,null,null,null,null,null,null,"MENSAL","34 MESES","34 MESES",34]
[null,null,null,null,null,null,null,null,null,"MENSAL","35 MESES","35 MESES",35]
[null,null,null,null,null,null,null,null,null,"MENSAL","36 MESES","36 MESES",36]
[null,null,null,null,null,null,null,null,null,"MENSAL","37 MESES","37 MESES",37]
[null,null,null,null,null,null,null,null,null,"MENSAL","38 MESES","38 MESES",38]
[null,null,null,null,null,null,null,null,null,"MENSAL","39 MESES","39 MESES",39]
[null,null,null,null,null,null,null,null,null,"MENSAL","40 MESES","40 MESES",40]
[null,null,null,null,null,null,null,null,null,"MENSAL","41 MESES","41 MESES",41]
[null,null,null,null,null,null,null,null,null,"MENSAL","42 MESES","42 MESES",42]
[null,null,null,null,null,null,null,null,null,"MENSAL","43 MESES","43 MESES",43]
[null,null,null,null,null,null,null,null,null,"MENSAL","44 MESES","44 MESES",44]
[null,null,null,null,null,null,null,null,null,"MENSAL","45 MESES","45 MESES",45]
[null,null,null,null,null,null,null,null,null,"MENSAL","46 MESES","46 MESES",46]
[null,null,null,null,null,null,null,null,null,"MENSAL","47 MESES","47 MESES",47]
[null,null,null,null,null,null,null,null,null,"MENSAL","48 MESES","48 MESES",48]
[null,null,null,null,null,null,null,null,null,"MENSAL","49 MESES","49 MESES",49]
[null,null,null,null,null,null,null,null,null,"MENSAL","50 MESES","50 MESES",50]
[null,null,null,null,null,null,null,null,null,"MENSAL","51 MESES","51 MESES",51]
[null,null,null,null,null,null,null,null,null,"MENSAL","52 MESES","52 MESES",52]
[null,null,null,null,null,null,null,null,null,"MENSAL","53 MESES","53 MESES",53]
[null,null,null,null,null,null,null,null,null,"MENSAL","54 MESES","54 MESES",54]
[null,null,null,null,null,null,null,null,null,"MENSAL","55 MESES","55 MESES",55]
[null,null,null,null,null,null,null,null,null,"MENSAL","56 MESES","56 MESES",56]
[null,null,null,null,null,null,null,null,null,"MENSAL","57 MESES","57 MESES",57]
[null,null,null,null,null,null,null,null,null,"MENSAL","58 MESES","58 MESES",58]
[null,null,null,null,null,null,null,null,null,"MENSAL","59 MESES","59 MESES",59]
[null,null,null,null,null,null,null,null,null,"MENSAL","60 MESES","60 MESES",60]
[null,null,null,null,null,null,null,null,null,"MENSAL","61 MESES","61 MESES",61]
[null,null,null,null,null,null,null,null,null,"MENSAL","62 MESES","62 MESES",62]
[null,null,null,null,null,null,null,null,null,"MENSAL","63 MESES","63 MESES",63]
[null,null,null,null,null,null,null,null,null,"MENSAL","64 MESES","64 MESES",64]
[null,null,null,null,null,null,null,null,null,"MENSAL","65 MESES","65 MESES",65]
[null,null,null,null,null,null,null,null,null,"MENSAL","66 MESES","66 MESES",66]
[null,null,null,null,null,null,null,null,null,"MENSAL",{"$f":"_xlfn.CONCAT(M68,\" MESES\")","v":"67 MESES"},"67 MESES",67]
[null,null,null,null,null,null,null,null,null,"MENSAL","68 MESES","68 MESES",68]
[null,null,null,null,null,null,null,null,null,"MENSAL","69 MESES","69 MESES",69]
[null,null,null,null,null,null,null,null,null,"MENSAL","70 MESES","70 MESES",70]
[null,null,null,null,null,null,null,null,null,"MENSAL","71 MESES","71 MESES",71]
[null,null,null,null,null,null,null,null,null,"MENSAL","72 MESES","72 MESES",72]
[null,null,null,null,null,null,null,null,null,"MENSAL","73 MESES","73 MESES",73]
[null,null,null,null,null,null,null,null,null,"MENSAL","74 MESES","74 MESES",74]
[null,null,null,null,null,null,null,null,null,"MENSAL","75 MESES","75 MESES",75]
[null,null,null,null,null,null,null,null,null,"MENSAL","76 MESES","76 MESES",76]
[null,null,null,null,null,null,null,null,null,"MENSAL","77 MESES","77 MESES",77]
[null,null,null,null,null,null,null,null,null,"MENSAL","78 MESES","78 MESES",78]
[null,null,null,null,null,null,null,null,null,"MENSAL","79 MESES","79 MESES",79]
[null,null,null,null,null,null,null,null,null,"MENSAL","80 MESES","80 MESES",80]
[null,null,null,null,null,null,null,null,null,"MENSAL","81 MESES","81 MESES",81]
[null,null,null,null,null,null,null,null,null,"MENSAL","82 MESES","82 MESES",82]
[null,null,null,null,null,null,null,null,null,"MENSAL","83 MESES","83 MESES",83]
[null,null,null,null,null,null,null,null,null,"MENSAL","84 MESES","84 MESES",84]
[null,null,null,null,null,null,null,null,null,"MENSAL","85 MESES","85 MESES",85]
[null,null,null,null,null,null,null,null,null,"MENSAL","86 MESES","86 MESES",86]
[null,null,null,null,null,null,null,null,null,"MENSAL","87 MESES","87 MESES",87]
[null,null,null,null,null,null,null,null,null,"MENSAL","88 MESES","88 MESES",88]
[null,null,null,null,null,null,null,null,null,"MENSAL","89 MESES","89 MESES",89]
[null,null,null,null,null,null,null,null,null,"MENSAL","90 MESES","90 MESES",90]
[null,null,null,null,null,null,null,null,null,"MENSAL","91 MESES","91 MESES",91]
[null,null,null,null,null,null,null,null,null,"MENSAL","92 MESES","92 MESES",92]
[null,null,null,null,null,null,null,null,null,"MENSAL","93 MESES","93 MESES",93]
[null,null,null,null,null,null,null,null,null,"MENSAL","94 MESES","94 MESES",94]
[null,null,null,null,null,null,null,null,null,"MENSAL","95 MESES","95 MESES",95]
[null,null,null,null,null,null,null,null,null,"MENSAL","96 MESES","96 MESES",96]
[null,null,null,null,null,null,null,null,null,"MENSAL","97 MESES","97 MESES",97]
[null,null,null,null,null,null,null,null,null,"MENSAL","98 MESES","98 MESES",98]
[null,null,null,null,null,null,null,null,null,"MENSAL","99 MESES","99 MESES",99]
[null,null,null,null,null,null,null,null,null,"MENSAL","100 MESES","100 MESES",100]
[null,null,null,null,null,null,null,null,null,"MENSAL","101 MESES","101 MESES",101]
[null,null,null,null,null,null,null,null,null,"MENSAL","102 MESES","102 MESES",102]
[null,null,null,null,null,null,null,null,null,"MENSAL","103 MESES","103 MESES",103]
[null,null,null,null,null,null,null,null,null,"MENSAL","104 MESES","104 MESES",104]
[null,null,null,null,null,null,null,null,null,"MENSAL","105 MESES","105 MESES",105]
[null,null,null,null,null,null,null,null,null,"MENSAL","106 MESES","106 MESES",106]
[null,null,null,null,null,null,null,null,null,"MENSAL","107 MESES","107 MESES",107]
[null,null,null,null,null,null,null,null,null,"MENSAL","108 MESES","108 MESES",108]
[null,null,null,null,null,null,null,null,null,"MENSAL","109 MESES","109 MESES",109]
[null,null,null,null,null,null,null,null,null,"MENSAL","110 MESES","110 MESES",110]
[null,null,null,null,null,null,null,null,null,"MENSAL","111 MESES","111 MESES",111]
[null,null,null,null,null,null,null,null,null,"MENSAL","112 MESES","112 MESES",112]
[null,null,null,null,null,null,null,null,null,"MENSAL","113 MESES","113 MESES",113]
[null,null,null,null,null,null,null,null,null,"MENSAL","114 MESES","114 MESES",114]
[null,null,null,null,null,null,null,null,null,"MENSAL","115 MESES","115 MESES",115]
[null,null,null,null,null,null,null,null,null,"MENSAL","116 MESES","116 MESES",116]
[null,null,null,null,null,null,null,null,null,"MENSAL","117 MESES","117 MESES",117]
[null,null,null,null,null,null,null,null,null,"MENSAL","118 MESES","118 MESES",118]
[null,null,null,null,null,null,null,null,null,"MENSAL","119 MESES","119 MESES",119]
[null,null,null,null,null,null,null,null,null,"MENSAL","120 MESES","120 MESES",120]
[null,null,null,null,null,null,null,null,null,"ANUAL",{"$f":"_xlfn.CONCAT(M122,\" MESES\")","v":"121 MESES"},"121 MESES",121]
[null,null,null,null,null,null,null,null,null,"ANUAL","122 MESES","122 MESES",122]
[null,null,null,null,null,null,null,null,null,"ANUAL","123 MESES","123 MESES",123]
[null,null,null,null,null,null,null,null,null,"ANUAL","124 MESES","124 MESES",124]
[null,null,null,null,null,null,null,null,null,"ANUAL","125 MESES","125 MESES",125]
[null,null,null,null,null,null,null,null,null,"ANUAL","126 MESES","126 MESES",126]
[null,null,null,null,null,null,null,null,null,"ANUAL","127 MESES","127 MESES",127]
[null,null,null,null,null,null,null,null,null,"ANUAL","128 MESES","128 MESES",128]
[null,null,null,null,null,null,null,null,null,"ANUAL","129 MESES","129 MESES",129]
[null,null,null,null,null,null,null,null,null,"ANUAL","130 MESES","130 MESES",130]
[null,null,null,null,null,null,null,null,null,"SEMESTRAL","131 MESES","131 MESES",131]
[null,null,null,null,null,null,null,null,null,"SEMESTRAL","132 MESES","132 MESES",132]
[null,null,null,null,null,null,null,null,null,"SEMESTRAL","133 MESES","133 MESES",133]
[null,null,null,null,null,null,null,null,null,"SEMESTRAL","134 MESES","134 MESES",134]
[null,null,null,null,null,null,null,null,null,"SEMESTRAL","135 MESES","135 MESES",135]
[null,null,null,null,null,null,null,null,null,"SEMESTRAL","136 MESES","136 MESES",136]
[null,null,null,null,null,null,null,null,null,"SEMESTRAL","137 MESES","137 MESES",137]
[null,null,null,null,null,null,null,null,null,"SEMESTRAL","138 MESES","138 MESES",138]
[null,null,null,null,null,null,null,null,null,"SEMESTRAL","139 MESES","139 MESES",139]
[null,null,null,null,null,null,null,null,null,"SEMESTRAL","140 MESES","140 MESES",140]
[null,null,null,null,null,null,null,null,null,"SEMESTRAL","141 MESES","141 MESES",141]
[null,null,null,null,null,null,null,null,null,"SEMESTRAL","142 MESES","142 MESES",142]
[null,null,null,null,null,null,null,null,null,"SEMESTRAL","143 MESES","143 MESES",143]
[null,null,null,null,null,null,null,null,null,"SEMESTRAL","144 MESES","144 MESES",144]
[null,null,null,null,null,null,null,null,null,"SEMESTRAL",{"$f":"_xlfn.CONCAT(M146,\" MESES\")","v":"145 MESES"},"145 MESES",145]
[null,null,null,null,null,null,null,null,null,"SEMESTRAL","146 MESES","146 MESES",146]
[null,null,null,null,null,null,null,null,null,"SEMESTRAL","147 MESES","147 MESES",147]
[null,null,null,null,null,null,null,null,null,"SEMESTRAL","148 MESES","148 MESES",148]
[null,null,null,null,null,null,null,null,null,"SEMESTRAL","149 MESES","149 MESES",149]
[null,null,null,null,null,null,null,null,null,"SEMESTRAL","150 MESES","150 MESES",150]
[null,null,null,null,null,null,null,null,null,null,"151 MESES","151 MESES",151]
[null,null,null,null,null,null,null,null,null,null,"152 MESES","152 MESES",152]
[null,null,null,null,null,null,null,null,null,null,"153 MESES","153 MESES",153]
[null,null,null,null,null,null,null,null,null,null,"154 MESES","154 MESES",154]
[null,null,null,null,null,null,null,null,null,null,"155 MESES","155 MESES",155]
[null,null,null,null,null,null,null,null,null,null,"156 MESES","156 MESES",156]
[null,null,null,null,null,null,null,null,null,null,"1 ANO",null,1]
[null,null,null,null,null,null,null,null,null,null,"2 ANOS",null,2]
[null,null,null,null,null,null,null,null,null,null,"3 ANOS",null,3]
[null,null,null,null,null,null,null,null,null,null,"4 ANOS",null,4]
[null,null,null,null,null,null,null,null,null,null,"5 ANOS",null,5]
[null,null,null,null,null,null,null,null,null,null,"6 ANOS",null,6]
[null,null,null,null,null,null,null,null,null,null,"7 ANOS",null,7]
[null,null,null,null,null,null,null,null,null,null,"8 ANOS",null,8]
[null,null,null,null,null,null,null,null,null,null,"9 ANOS",null,9]
[null,null,null,null,null,null,null,null,null,null,"10 ANOS",null,10]
[null,null,null,null,null,null,null,null,null,null,"11 ANOS",null,11]
[null,null,null,null,null,null,null,null,null,null,"12 ANOS",null,12]
[null,null,null,null,null,null,null,null,null,null,"13 ANOS",null,13]
[null,null,null,null,null,null,null,null,null,null,"6 MESES",null,1]
[null,null,null,null,null,null,null,null,null,null,"12 MESES",null,2]
[null,null,null,null,null,null,null,null,null,null,"18 MESES",null,3]
[null,null,null,null,null,null,null,null,null,null,"24 MESES",null,4]
[null,null,null,null,null,null,null,null,null,null,"30 MESES",null,5]
[null,null,null,null,null,null,null,null,null,null,"36 MESES",null,6]
[null,null,null,null,null,null,null,null,null,null,"42 MESES",null,7]
[null,null,null,null,null,null,null,null,null,null,"48 MESES",null,8]
[null,null,null,null,null,null,null,null,null,null,"54 MESES",null,9]
[null,null,null,null,null,null,null,null,null,null,"60 MESES",null,10]
[null,null,null,null,null,null,null,null,null,null,"66 MESES",null,11]
[null,null,null,null,null,null,null,null,null,null,"72 MESES",null,12]
[null,null,null,null,null,null,null,null,null,null,"78 MESES",null,13]
[null,null,null,null,null,null,null,null,null,null,"84 MESES",null,14]
[null,null,null,null,null,null,null,null,null,null,"90 MESES",null,15]
[null,null,null,null,null,null,null,null,null,null,"96 MESES",null,16]
[null,null,null,null,null,null,null,null,null,null,"102 MESES",null,17]
[null,null,null,null,null,null,null,null,null,null,"108 MESES",null,18]
[null,null,null,null,null,null,null,null,null,null,"114 MESES",null,19]
[null,null,null,null,null,null,null,null,null,null,"120 MESES",null,20]
[null,null,null,null,null,null,null,null,null,null,"126 MESES",null,21]
[null,null,null,null,null,null,null,null,null,null,"132 MESES",null,22]
[null,null,null,null,null,null,null,null,null,null,"138 MESES",null,23]
[null,null,null,null,null,null,null,null,null,null,"144 MESES",null,24]
[null,null,null,null,null,null,null,null,null,null,"150 MESES",null,25]
[null,null,null,null,null,null,null,null,null,null,"156 MESES",null,26]

{"sheet":"PATRIMÔNIO","index":14,"n_rows":497,"n_cols":50,"rows_kept":497,"cut":false,"hidden":true,"merged":[[109,40,109,44],[109,36,109,39],[109,0,109,35],[162,39,162,44],[162,33,162,38],[162,0,162,32],[367,0,367,32],[367,33,367,38],[367,39,367,44],[422,0,422,32],[422,33,422,38],[422,39,422,44],[475,0,475,32],[475,33,475,38],[475,39,475,44],[423,0,423,44],[105,33,105,35],[105,36,105,39],[106,33,106,35],[106,36,106,39],[114,5,114,28],[115,33,115,38],[115,39,115,44],[116,5,116,28],[116,33,116,38],[116,39,116,44],[117,33,117,38],[117,39,117,44],[161,33,161,38],[161,39,161,44],[166,30,166,32],[177,6,177,29],[177,30,177,32],[115,5,115,28],[115,29,115,32],[119,29,119,32],[161,5,161,28],[161,29,161,32],[160,29,160,32],[122,5,122,28],[153,5,153,28],[154,5,154,28],[159,5,159,28],[159,29,159,32],[160,5,160,28],[118,5,118,28],[118,29,118,32],[116,29,116,32],[112,0,112,4],[115,0,115,4],[116,0,116,4],[175,6,175,29],[175,30,175,32],[176,6,176,29],[176,30,176,32],[122,0,122,4],[153,0,153,4],[154,0,154,4],[155,0,155,4],[156,0,156,4],[161,0,161,4],[166,6,166,29],[113,29,113,32],[120,5,120,28],[8,0,8,1],[9,0,9,1],[90,0,90,1],[92,0,92,1],[93,0,93,1],[8,2,8,4],[9,2,9,4],[90,2,90,4],[91,2,91,4],[92,2,92,4],[93,2,93,4],[10,0,10,1],[10,2,10,4],[12,0,12,1],[12,2,12,4],[64,0,64,1],[64,2,64,4],[66,0,66,1],[66,2,66,4],[68,0,68,1],[68,2,68,4],[70,0,70,1],[70,2,70,4],[72,0,72,1],[91,0,91,1],[72,2,72,4],[76,0,76,1],[76,2,76,4],[44,0,44,1],[44,2,44,4],[48,0,48,1],[48,2,48,4],[414,39,414,44],[416,26,416,32],[416,33,416,38],[416,39,416,44],[417,7,417,12],[417,13,417,18],[417,19,417,25],[463,33,463,38],[97,0,97,1],[97,2,97,4],[95,0,95,1],[95,2,95,4],[96,0,96,1],[96,2,96,4],[100,5,100,32],[101,5,101,32],[102,5,102,32],[112,29,112,32],[101,0,101,1],[106,0,106,1],[106,2,106,4],[119,5,119,28],[114,0,114,4],[118,0,118,4],[111,0,111,4],[103,5,103,32],[104,5,104,32],[105,5,105,32],[101,2,101,4],[99,0,99,1],[99,2,99,4],[105,0,105,1],[412,0,412,6],[371,0,371,6],[371,7,371,12],[371,13,371,18],[497,25,497,44],[496,25,496,44],[495,25,495,44],[411,39,411,44],[411,33,411,38],[411,26,411,32],[411,19,411,25],[411,13,411,18],[411,7,411,12],[412,39,412,44],[479,11,479,27],[481,11,481,27],[479,28,479,33],[481,28,481,33],[483,11,483,27],[483,28,483,33],[484,11,484,27],[484,28,484,33],[419,7,419,12],[419,13,419,18],[419,19,419,25],[419,26,419,32],[463,39,463,44],[419,33,419,38],[454,7,454,29],[454,30,454,32],[489,11,489,27],[477,11,477,33],[179,33,179,38],[170,0,170,5],[176,39,176,44],[176,33,176,38],[178,0,178,5],[171,6,171,29],[171,30,171,32],[177,33,177,38],[176,0,176,5],[415,0,415,6],[415,7,415,12],[172,6,172,29],[172,30,172,32],[173,6,173,29],[173,30,173,32],[174,6,174,29],[174,30,174,32],[174,39,174,44],[373,13,373,18],[373,19,373,25],[373,26,373,32],[373,33,373,38],[177,0,177,5],[407,7,407,12],[407,13,407,18],[407,19,407,25],[407,26,407,32],[407,33,407,38],[407,39,407,44],[408,0,408,6],[408,7,408,12],[408,13,408,18],[8,40,8,44],[9,40,9,44],[90,40,90,44],[91,40,91,44],[92,40,92,44],[93,40,93,44],[95,40,95,44],[96,40,96,44],[97,40,97,44],[417,39,417,44],[404,39,404,44],[404,33,404,38],[412,13,412,18],[412,19,412,25],[412,26,412,32],[412,33,412,38],[374,0,374,6],[374,7,374,12],[374,13,374,18],[374,19,374,25],[374,26,374,32],[374,33,374,38],[405,7,405,12],[405,13,405,18],[411,0,411,6],[374,39,374,44],[373,0,373,6],[373,7,373,12],[171,39,171,44],[172,39,172,44],[165,0,165,44],[372,0,372,6],[91,5,91,32],[92,5,92,32],[93,5,93,32],[94,5,94,32],[95,5,95,32],[96,5,96,32],[97,5,97,32],[98,5,98,32],[99,5,99,32],[8,36,8,39],[9,36,9,39],[9,33,9,35],[8,33,8,35],[90,33,90,35],[90,36,90,39],[91,36,91,39],[92,33,92,35],[92,36,92,39],[93,36,93,39],[91,33,91,35],[95,36,95,39],[96,33,96,35],[96,36,96,39],[97,33,97,35],[97,36,97,39],[95,33,95,35],[98,36,98,39],[98,33,98,35],[93,33,93,35],[10,5,10,32],[10,33,10,35],[10,36,10,39],[102,40,102,44],[103,40,103,44],[104,40,104,44],[94,33,94,35],[94,36,94,39],[94,40,94,44],[104,33,104,35],[99,33,99,35],[99,36,99,39],[100,33,100,35],[100,36,100,39],[101,36,101,39],[102,33,102,35],[102,36,102,39],[103,33,103,35],[103,36,103,39],[101,33,101,35],[104,36,104,39],[94,0,94,1],[94,2,94,4],[105,2,105,4],[103,0,103,1],[103,2,103,4],[117,5,117,28],[106,5,106,32],[107,5,107,32],[108,5,108,32],[155,33,155,38],[155,39,155,44],[158,39,158,44],[146,39,146,44],[139,29,139,32],[159,0,159,4],[119,0,119,4],[160,0,160,4],[98,0,98,1],[98,2,98,4],[100,0,100,1],[100,2,100,4],[102,0,102,1],[102,2,102,4],[104,0,104,1],[104,2,104,4],[155,5,155,28],[155,29,155,32],[158,0,158,4],[158,5,158,28],[158,29,158,32],[113,0,113,4],[113,5,113,28],[114,29,114,32],[117,0,117,4],[120,0,120,4],[112,5,112,28],[111,5,111,28],[122,29,122,32],[122,33,122,38],[122,39,122,44],[153,29,153,32],[153,33,153,38],[153,39,153,44],[154,29,154,32],[154,33,154,38],[154,39,154,44],[113,33,113,38],[113,39,113,44],[120,33,120,38],[120,39,120,44],[114,33,114,38],[114,39,114,44],[117,29,117,32],[118,33,118,38],[118,39,118,44],[119,33,119,38],[119,39,119,44],[121,29,121,32],[147,29,147,32],[147,33,147,38],[147,39,147,44],[137,33,137,38],[137,39,137,44],[132,29,132,32],[132,33,132,38],[132,39,132,44],[465,39,465,44],[442,0,442,6],[442,7,442,29],[442,30,442,32],[7,0,7,44],[110,0,110,44],[111,29,111,32],[111,33,111,38],[111,39,111,44],[105,40,105,44],[106,40,106,44],[370,0,370,44],[178,6,178,29],[178,30,178,32],[179,6,179,29],[179,30,179,32],[167,6,167,29],[168,6,168,29],[168,30,168,32],[169,6,169,29],[169,30,169,32],[170,6,170,29],[170,30,170,32],[160,33,160,38],[160,39,160,44],[159,33,159,38],[159,39,159,44],[112,33,112,38],[112,39,112,44],[120,29,120,32],[121,33,121,38],[121,39,121,44],[465,0,465,6],[465,7,465,29],[465,30,465,32],[465,33,465,38],[425,30,425,32],[425,7,425,29],[464,0,464,6],[464,7,464,29],[464,30,464,32],[464,33,464,38],[424,0,424,6],[425,0,425,6],[426,0,426,6],[424,7,424,29],[426,30,426,32],[426,33,426,38],[425,33,425,38],[424,33,424,38],[463,30,463,32],[463,7,463,29],[463,0,463,6],[444,0,444,6],[444,7,444,29],[444,30,444,32],[444,33,444,38],[449,0,449,6],[449,7,449,29],[449,30,449,32],[449,33,449,38],[454,0,454,6],[486,11,486,27],[474,7,474,29],[474,30,474,32],[466,39,466,44],[489,28,489,33],[482,11,482,27],[478,28,478,33],[467,7,467,29],[467,30,467,32],[473,7,473,29],[473,30,473,32],[487,11,487,27],[487,28,487,33],[488,11,488,27],[488,28,488,33],[480,11,480,27],[480,28,480,33],[472,30,472,32],[472,33,472,38],[472,39,472,44],[469,30,469,32],[486,28,486,33],[474,0,474,6],[473,33,473,38],[473,39,473,44],[466,33,466,38],[485,11,485,27],[485,28,485,33],[474,33,474,38],[474,39,474,44],[466,0,466,6],[466,7,466,29],[466,30,466,32],[467,0,467,6],[473,0,473,6],[471,0,471,6],[471,7,471,29],[471,30,471,32],[471,33,471,38],[471,39,471,44],[472,0,472,6],[472,7,472,29],[470,0,470,6],[470,7,470,29],[470,30,470,32],[469,39,469,44],[482,28,482,33],[478,11,478,27],[421,39,421,44],[464,39,464,44],[426,7,426,29],[418,0,418,6],[418,7,418,12],[415,13,415,18],[415,19,415,25],[415,26,415,32],[415,33,415,38],[415,39,415,44],[416,0,416,6],[416,7,416,12],[416,13,416,18],[416,19,416,25],[421,0,421,6],[421,7,421,12],[421,13,421,18],[421,19,421,25],[421,26,421,32],[421,33,421,38],[425,39,425,44],[424,39,424,44],[426,39,426,44],[442,33,442,38],[442,39,442,44],[443,0,443,6],[443,7,443,29],[443,30,443,32],[443,33,443,38],[443,39,443,44],[444,39,444,44],[445,0,445,6],[164,0,164,44],[173,39,173,44],[175,39,175,44],[171,0,171,5],[167,39,167,44],[168,39,168,44],[166,39,166,44],[169,39,169,44],[173,0,173,5],[172,33,172,38],[173,33,173,38],[420,39,420,44],[413,19,413,25],[413,26,413,32],[413,33,413,38],[413,39,413,44],[414,0,414,6],[414,7,414,12],[414,13,414,18],[414,19,414,25],[414,26,414,32],[414,33,414,38],[418,13,418,18],[418,19,418,25],[418,26,418,32],[372,7,372,12],[372,13,372,18],[372,19,372,25],[372,26,372,32],[372,33,372,38],[372,39,372,44],[179,0,179,5],[156,5,156,28],[156,29,156,32],[156,33,156,38],[156,39,156,44],[157,0,157,4],[157,5,157,28],[157,29,157,32],[157,33,157,38],[157,39,157,44],[496,0,496,19],[497,0,497,19],[424,30,424,32],[6,0,6,44],[495,0,495,19],[401,39,401,44],[179,39,179,44],[177,39,177,44],[178,39,178,44],[174,33,174,38],[178,33,178,38],[170,39,170,44],[107,40,107,44],[108,40,108,44],[107,0,107,1],[108,0,108,1],[107,2,107,4],[108,2,108,4],[121,0,121,4],[121,5,121,28],[420,13,420,18],[420,19,420,25],[158,33,158,38],[405,19,405,25],[405,26,405,32],[405,33,405,38],[405,39,405,44],[406,0,406,6],[406,7,406,12],[406,13,406,18],[406,19,406,25],[406,26,406,32],[406,33,406,38],[406,39,406,44],[171,33,171,38],[166,33,166,38],[170,33,170,38],[174,0,174,5],[167,33,167,38],[168,33,168,38],[166,0,166,5],[169,33,169,38],[167,0,167,5],[168,0,168,5],[169,0,169,5],[405,0,405,6],[391,33,391,38],[391,39,391,44],[365,0,365,5],[371,19,371,25],[371,26,371,32],[371,33,371,38],[371,39,371,44],[369,0,369,44],[373,39,373,44],[407,0,407,6],[172,0,172,5],[175,0,175,5],[175,33,175,38],[167,30,167,32],[418,33,418,38],[418,39,418,44],[413,0,413,6],[413,7,413,12],[413,13,413,18],[419,0,419,6],[417,0,417,6],[419,39,419,44],[417,26,417,32],[417,33,417,38],[408,19,408,25],[408,26,408,32],[408,33,408,38],[408,39,408,44],[409,0,409,6],[409,7,409,12],[409,13,409,18],[409,19,409,25],[409,26,409,32],[409,33,409,38],[409,39,409,44],[410,0,410,6],[410,7,410,12],[410,13,410,18],[410,19,410,25],[410,26,410,32],[410,33,410,38],[410,39,410,44],[420,0,420,6],[420,7,420,12],[9,5,9,32],[90,5,90,32],[470,33,470,38],[470,39,470,44],[460,7,460,29],[460,30,460,32],[460,33,460,38],[460,39,460,44],[468,0,468,6],[468,7,468,29],[468,30,468,32],[468,33,468,38],[468,39,468,44],[469,0,469,6],[469,7,469,29],[469,33,469,38],[467,33,467,38],[467,39,467,44],[420,26,420,32],[420,33,420,38],[457,30,457,32],[412,7,412,12],[457,33,457,38],[457,39,457,44],[458,0,458,6],[458,7,458,29],[458,30,458,32],[458,33,458,38],[458,39,458,44],[10,40,10,44],[11,0,11,1],[11,2,11,4],[11,5,11,32],[11,33,11,35],[11,36,11,39],[11,40,11,44],[0,46,0,47],[494,0,494,19],[494,25,494,44],[461,0,461,6],[461,7,461,29],[461,30,461,32],[461,33,461,38],[461,39,461,44],[462,0,462,6],[462,7,462,29],[462,30,462,32],[462,33,462,38],[462,39,462,44],[459,0,459,6],[459,7,459,29],[459,30,459,32],[459,33,459,38],[459,39,459,44],[460,0,460,6],[457,0,457,6],[457,7,457,29],[8,5,8,32],[64,5,64,32],[64,33,64,35],[64,36,64,39],[64,40,64,44],[65,0,65,1],[65,2,65,4],[65,5,65,32],[65,33,65,35],[65,36,65,39],[65,40,65,44],[12,5,12,32],[12,33,12,35],[12,36,12,39],[12,40,12,44],[63,0,63,1],[63,2,63,4],[63,5,63,32],[63,33,63,35],[63,36,63,39],[63,40,63,44],[38,0,38,1],[38,2,38,4],[38,5,38,32],[38,33,38,35],[38,36,38,39],[38,40,38,44],[39,0,39,1],[39,2,39,4],[39,5,39,32],[39,33,39,35],[39,36,39,39],[39,40,39,44],[40,0,40,1],[40,2,40,4],[40,5,40,32],[68,5,68,32],[68,33,68,35],[68,36,68,39],[68,40,68,44],[69,0,69,1],[69,2,69,4],[69,5,69,32],[69,33,69,35],[69,36,69,39],[69,40,69,44],[66,5,66,32],[66,33,66,35],[66,36,66,39],[66,40,66,44],[67,0,67,1],[67,2,67,4],[67,5,67,32],[67,33,67,35],[67,36,67,39],[67,40,67,44],[72,5,72,32],[72,33,72,35],[72,36,72,39],[72,40,72,44],[73,0,73,1],[73,2,73,4],[73,5,73,32],[73,33,73,35],[73,36,73,39],[73,40,73,44],[70,5,70,32],[70,33,70,35],[70,36,70,39],[70,40,70,44],[71,0,71,1],[71,2,71,4],[71,5,71,32],[71,33,71,35],[71,36,71,39],[71,40,71,44],[76,5,76,32],[76,33,76,35],[76,36,76,39],[76,40,76,44],[77,0,77,1],[77,2,77,4],[77,5,77,32],[77,33,77,35],[77,36,77,39],[77,40,77,44],[74,0,74,1],[74,2,74,4],[74,5,74,32],[74,33,74,35],[74,36,74,39],[74,40,74,44],[75,0,75,1],[75,2,75,4],[75,5,75,32],[75,33,75,35],[75,36,75,39],[75,40,75,44],[80,5,80,32],[80,33,80,35],[80,36,80,39],[80,40,80,44],[81,0,81,1],[81,2,81,4],[81,5,81,32],[81,33,81,35],[81,36,81,39],[81,40,81,44],[78,0,78,1],[78,2,78,4],[78,5,78,32],[78,33,78,35],[78,36,78,39],[78,40,78,44],[79,0,79,1],[79,2,79,4],[79,5,79,32],[79,33,79,35],[79,36,79,39],[79,40,79,44],[80,0,80,1],[80,2,80,4],[84,5,84,32],[84,33,84,35],[84,36,84,39],[84,40,84,44],[85,0,85,1],[85,2,85,4],[85,5,85,32],[85,33,85,35],[85,36,85,39],[85,40,85,44],[82,0,82,1],[82,2,82,4],[82,5,82,32],[82,33,82,35],[82,36,82,39],[82,40,82,44],[83,0,83,1],[83,2,83,4],[83,5,83,32],[83,33,83,35],[83,36,83,39],[83,40,83,44],[84,0,84,1],[84,2,84,4],[107,33,107,35],[107,36,107,39],[108,33,108,35],[108,36,108,39],[88,0,88,1],[88,2,88,4],[88,5,88,32],[88,33,88,35],[88,36,88,39],[88,40,88,44],[89,0,89,1],[89,2,89,4],[89,5,89,32],[89,33,89,35],[89,36,89,39],[89,40,89,44],[86,0,86,1],[86,2,86,4],[86,5,86,32],[86,33,86,35],[86,36,86,39],[86,40,86,44],[87,0,87,1],[87,2,87,4],[87,5,87,32],[87,33,87,35],[87,36,87,39],[87,40,87,44],[98,40,98,44],[99,40,99,44],[100,40,100,44],[101,40,101,44],[148,0,148,4],[148,5,148,28],[148,29,148,32],[148,33,148,38],[148,39,148,44],[143,0,143,4],[143,5,143,28],[143,29,143,32],[143,33,143,38],[143,39,143,44],[144,0,144,4],[144,5,144,28],[144,29,144,32],[144,33,144,38],[144,39,144,44],[145,0,145,4],[145,5,145,28],[145,29,145,32],[145,33,145,38],[145,39,145,44],[146,0,146,4],[146,5,146,28],[146,29,146,32],[146,33,146,38],[133,0,133,4],[133,5,133,28],[133,29,133,32],[133,33,133,38],[133,39,133,44],[134,0,134,4],[134,5,134,28],[134,29,134,32],[134,33,134,38],[134,39,134,44],[151,0,151,4],[151,5,151,28],[151,29,151,32],[151,33,151,38],[151,39,151,44],[152,0,152,4],[152,5,152,28],[152,29,152,32],[152,33,152,38],[152,39,152,44],[149,0,149,4],[149,5,149,28],[149,29,149,32],[149,33,149,38],[149,39,149,44],[150,0,150,4],[150,5,150,28],[150,29,150,32],[150,33,150,38],[150,39,150,44],[147,0,147,4],[147,5,147,28],[138,0,138,4],[138,5,138,28],[138,29,138,32],[138,33,138,38],[138,39,138,44],[135,0,135,4],[135,5,135,28],[135,29,135,32],[135,33,135,38],[135,39,135,44],[136,0,136,4],[136,5,136,28],[136,29,136,32],[136,33,136,38],[136,39,136,44],[125,0,125,4],[125,5,125,28],[125,29,125,32],[125,33,125,38],[125,39,125,44],[126,0,126,4],[126,5,126,28],[126,29,126,32],[126,33,126,38],[126,39,126,44],[131,0,131,4],[131,5,131,28],[131,29,131,32],[131,33,131,38],[131,39,131,44],[132,0,132,4],[132,5,132,28],[123,0,123,4],[123,5,123,28],[123,29,123,32],[123,33,123,38],[123,39,123,44],[124,0,124,4],[124,5,124,28],[124,29,124,32],[124,33,124,38],[124,39,124,44],[129,0,129,4],[129,5,129,28],[129,29,129,32],[129,33,129,38],[129,39,129,44],[130,0,130,4],[130,5,130,28],[130,29,130,32],[130,33,130,38],[130,39,130,44],[127,0,127,4],[127,5,127,28],[127,29,127,32],[127,33,127,38],[127,39,127,44],[128,0,128,4],[128,5,128,28],[128,29,128,32],[128,33,128,38],[128,39,128,44],[141,0,141,4],[141,5,141,28],[141,29,141,32],[141,33,141,38],[141,39,141,44],[142,0,142,4],[142,5,142,28],[142,29,142,32],[142,33,142,38],[142,39,142,44],[139,0,139,4],[139,5,139,28],[139,33,139,38],[139,39,139,44],[140,0,140,4],[140,5,140,28],[140,29,140,32],[140,33,140,38],[140,39,140,44],[137,0,137,4],[137,5,137,28],[137,29,137,32],[400,33,400,38],[400,39,400,44],[397,33,397,38],[397,39,397,44],[398,33,398,38],[398,39,398,44],[399,0,399,6],[399,7,399,12],[399,13,399,18],[399,19,399,25],[399,26,399,32],[400,0,400,6]],"merged_total":2535,"flags":["merged_cut"]}
[null,null,null,null,null,null,null,null,null,null,null,null,null,null,null,null,null,null,null,null,null,null,null,null,null,null,null,null,null,null,null,null,null,null,null,null,null,null,null,null,null,null,null,null,null,null,"SINALIZADORES DE INCLUSÃO E EXCLUSÃO (IMPORTANTES)!!!!"]
[]
[]
[]
[]
[]
["I - BENS IMÓVEIS"]
["IMÓVEIS RURAIS E URBANOS"]
["REF",null,"TIPO",null,null,"DESCRIÇÃO",null,null,null,null,null,null,null,null,null,null,null,null,null,null,null,null,null,null,null,null,null,null,null,null,null,null,null,"PART.\n%",null,null,"VALOR BEM\n (R$)",null,null,null,"VALOR %\n(R$)"]
[{"$f":"IF(C10<>\"\",1,\"\")","v":""},null,null,null,null,null,null,null,null,null,null,null,null,null,null,null,null,null,null,null,null,null,null,null,null,null,null,null,null,null,null,null,null,null,null,null,null,null,null,null,{"$f":"IF(OR(AH10=\"\",AK10=\"\"),\"\",AK10*AH10)","v":""},null,null,null,null,null,{"$f":"SUM(AV10:AV109)","v":1},1,{"$f":"_xlfn.CONCAT(\"IMÓVEL \",A10)","v":"IMÓVEL "},{"$f":"_xlfn.CONCAT(\"aw10:aw\"&(9+LARGE(A10:C109,1)))","v":{"$error":"#NUM!"}}]
[{"$f":"IF(C11<>\"\",A10+1,\"\")","v":""},null,null,null,null,null,null,null,null,null,null,null,null,null,null,null,null,null,null,null,null,null,null,null,null,null,null,null,null,null,null,null,null,null,null,null,null,null,null,null,{"$f":"IF(OR(AH11=\"\",AK11=\"\"),\"\",AK11*AH11)","v":""},null,null,null,null,null,null,null,"IMÓVEL "]
[{"$f":"IF(C12<>\"\",A11+1,\"\")","v":""},null,null,null,null,null,null,null,null,null,null,null,null,null,null,null,null,null,null,null,null,null,null,null,null,null,null,null,null,null,null,null,null,null,null,null,null,null,null,null,"",null,null,null,null,null,null,null,"IMÓVEL "]
["",null,null,null,null,null,null,null,null,null,null,null,null,null,null,null,null,null,null,null,null,null,null,null,null,null,null,null,null,null,null,null,null,null,null,null,null,null,null,null,"",null,null,null,null,null,null,null,"IMÓVEL "]
[{"$f":"IF(C14<>\"\",A13+1,\"\")","v":""},null,null,null,null,null,null,null,null,null,null,null,null,null,null,null,null,null,null,null,null,null,null,null,null,null,null,null,null,null,null,null,null,null,null,null,null,null,null,null,"",null,null,null,null,null,null,null,"IMÓVEL "]
["",null,null,null,null,null,null,null,null,null,null,null,null,null,null,null,null,null,null,null,null,null,null,null,null,null,null,null,null,null,null,null,null,null,null,null,null,null,null,null,"",null,null,null,null,null,null,null,"IMÓVEL "]
["",null,null,null,null,null,null,null,null,null,null,null,null,null,null,null,null,null,null,null,null,null,null,null,null,null,null,null,null,null,null,null,null,null,null,null,null,null,null,null,"",null,null,null,null,null,null,null,"IMÓVEL "]
["",null,null,null,null,null,null,null,null,null,null,null,null,null,null,null,null,null,null,null,null,null,null,null,null,null,null,null,null,null,null,null,null,null,null,null,null,null,null,null,"",null,null,null,null,null,null,null,"IMÓVEL "]
["",null,null,null,null,null,null,null,null,null,null,null,null,null,null,null,null,null,null,null,null,null,null,null,null,null,null,null,null,null,null,null,null,null,null,null,null,null,null,null,"",null,null,null,null,null,null,null,"IMÓVEL "]
["",null,null,null,null,null,null,null,null,null,null,null,null,null,null,null,null,null,null,null,null,null,null,null,null,null,null,null,null,null,null,null,null,null,null,null,null,null,null,null,"",null,null,null,null,null,null,null,"IMÓVEL "]
["",null,null,null,null,null,null,null,null,null,null,null,null,null,null,null,null,null,null,null,null,null,null,null,null,null,null,null,null,null,null,null,null,null,null,null,null,null,null,null,"",null,null,null,null,null,null,null,"IMÓVEL "]
["",null,null,null,null,null,null,null,null,null,null,null,null,null,null,null,null,null,null,null,null,null,null,null,null,null,null,null,null,null,null,null,null,null,null,null,null,null,null,null,"",null,null,null,null,null,null,null,"IMÓVEL "]
["",null,null,null,null,null,null,null,null,null,null,null,null,null,null,null,null,null,null,null,null,null,null,null,null,null,null,null,null,null,null,null,null,null,null,null,null,null,null,null,"",null,null,null,null,null,null,null,"IMÓVEL "]
["",null,null,null,null,null,null,null,null,null,null,null,null,null,null,null,null,null,null,null,null,null,null,null,null,null,null,null,null,null,null,null,null,null,null,null,null,null,null,null,"",null,null,null,null,null,null,null,"IMÓVEL "]
["",null,null,null,null,null,null,null,null,null,null,null,null,null,null,null,null,null,null,null,null,null,null,null,null,null,null,null,null,null,null,null,null,null,null,null,null,null,null,null,"",null,null,null,null,null,null,null,"IMÓVEL "]
["",null,null,null,null,null,null,null,null,null,null,null,null,null,null,null,null,null,null,null,null,null,null,null,null,null,null,null,null,null,null,null,null,null,null,null,null,null,null,null,"",null,null,null,null,null,null,null,"IMÓVEL "]
["",null,null,null,null,null,null,null,null,null,null,null,null,null,null,null,null,null,null,null,null,null,null,null,null,null,null,null,null,null,null,null,null,null,null,null,null,null,null,null,"",null,null,null,null,null,null,null,"IMÓVEL "]
["",null,null,null,null,null,null,null,null,null,null,null,null,null,null,null,null,null,null,null,null,null,null,null,null,null,null,null,null,null,null,null,null,null,null,null,null,null,null,null,"",null,null,null,null,null,null,null,"IMÓVEL "]
["",null,null,null,null,null,null,null,null,null,null,null,null,null,null,null,null,null,null,null,null,null,null,null,null,null,null,null,null,null,null,null,null,null,null,null,null,null,null,null,"",null,null,null,null,null,null,null,"IMÓVEL "]
["",null,null,null,null,null,null,null,null,null,null,null,null,null,null,null,null,null,null,null,null,null,null,null,null,null,null,null,null,null,null,null,null,null,null,null,null,null,null,null,"",null,null,null,null,null,null,null,"IMÓVEL "]
["",null,null,null,null,null,null,null,null,null,null,null,null,null,null,null,null,null,null,null,null,null,null,null,null,null,null,null,null,null,null,null,null,null,null,null,null,null,null,null,"",null,null,null,null,null,null,null,"IMÓVEL "]
["",null,null,null,null,null,null,null,null,null,null,null,null,null,null,null,null,null,null,null,null,null,null,null,null,null,null,null,null,null,null,null,null,null,null,null,null,null,null,null,"",null,null,null,null,null,null,null,"IMÓVEL "]
["",null,null,null,null,null,null,null,null,null,null,null,null,null,null,null,null,null,null,null,null,null,null,null,null,null,null,null,null,null,null,null,null,null,null,null,null,null,null,null,"",null,null,null,null,null,null,null,"IMÓVEL "]
["",null,null,null,null,null,null,null,null,null,null,null,null,null,null,null,null,null,null,null,null,null,null,null,null,null,null,null,null,null,null,null,null,null,null,null,null,null,null,null,"",null,null,null,null,null,null,null,"IMÓVEL "]
["",null,null,null,null,null,null,null,null,null,null,null,null,null,null,null,null,null,null,null,null,null,null,null,null,null,null,null,null,null,null,null,null,null,null,null,null,null,null,null,"",null,null,null,null,null,null,null,"IMÓVEL "]
["",null,null,null,null,null,null,null,null,null,null,null,null,null,null,null,null,null,null,null,null,null,null,null,null,null,null,null,null,null,null,null,null,null,null,null,null,null,null,null,"",null,null,null,null,null,null,null,"IMÓVEL "]
["",null,null,null,null,null,null,null,null,null,null,null,null,null,null,null,null,null,null,null,null,null,null,null,null,null,null,null,null,null,null,null,null,null,null,null,null,null,null,null,"",null,null,null,null,null,null,null,"IMÓVEL "]
["",null,null,null,null,null,null,null,null,null,null,null,null,null,null,null,null,null,null,null,null,null,null,null,null,null,null,null,null,null,null,null,null,null,null,null,null,null,null,null,"",null,null,null,null,null,null,null,"IMÓVEL "]
["",null,null,null,null,null,null,null,null,null,null,null,null,null,null,null,null,null,null,null,null,null,null,null,null,null,null,null,null,null,null,null,null,null,null,null,null,null,null,null,"",null,null,null,null,null,null,null,"IMÓVEL "]
["",null,null,null,null,null,null,null,null,null,null,null,null,null,null,null,null,null,null,null,null,null,null,null,null,null,null,null,null,null,null,null,null,null,null,null,null,null,null,null,{"$f":"IF(OR(AH39=\"\",AK39=\"\"),\"\",AK39*AH39)","v":""},null,null,null,null,null,null,null,{"$f":"_xlfn.CONCAT(\"IMÓVEL \",A39)","v":"IMÓVEL "}]
["",null,null,null,null,null,null,null,null,null,null,null,null,null,null,null,null,null,null,null,null,null,null,null,null,null,null,null,null,null,null,null,null,null,null,null,null,null,null,null,"",null,null,null,null,null,null,null,"IMÓVEL "]
["",null,null,null,null,null,null,null,null,null,null,null,null,null,null,null,null,null,null,null,null,null,null,null,null,null,null,null,null,null,null,null,null,null,null,null,null,null,null,null,"",null,null,null,null,null,null,null,"IMÓVEL "]
["",null,null,null,null,null,null,null,null,null,null,null,null,null,null,null,null,null,null,null,null,null,null,null,null,null,null,null,null,null,null,null,null,null,null,null,null,null,null,null,"",null,null,null,null,null,null,null,"IMÓVEL "]
["",null,null,null,null,null,null,null,null,null,null,null,null,null,null,null,null,null,null,null,null,null,null,null,null,null,null,null,null,null,null,null,null,null,null,null,null,null,null,null,"",null,null,null,null,null,null,null,"IMÓVEL "]
["",null,null,null,null,null,null,null,null,null,null,null,null,null,null,null,null,null,null,null,null,null,null,null,null,null,null,null,null,null,null,null,null,null,null,null,null,null,null,null,"",null,null,null,null,null,null,null,"IMÓVEL "]
["",null,null,null,null,null,null,null,null,null,null,null,null,null,null,null,null,null,null,null,null,null,null,null,null,null,null,null,null,null,null,null,null,null,null,null,null,null,null,null,"",null,null,null,null,null,null,null,"IMÓVEL "]
["",null,null,null,null,null,null,null,null,null,null,null,null,null,null,null,null,null,null,null,null,null,null,null,null,null,null,null,null,null,null,null,null,null,null,null,null,null,null,null,"",null,null,null,null,null,null,null,"IMÓVEL "]
["",null,null,null,null,null,null,null,null,null,null,null,null,null,null,null,null,null,null,null,null,null,null,null,null,null,null,null,null,null,null,null,null,null,null,null,null,null,null,null,"",null,null,null,null,null,null,null,"IMÓVEL "]
["",null,null,null,null,null,null,null,null,null,null,null,null,null,null,null,null,null,null,null,null,null,null,null,null,null,null,null,null,null,null,null,null,null,null,null,null,null,null,null,"",null,null,null,null,null,null,null,"IMÓVEL "]
["",null,null,null,null,null,null,null,null,null,null,null,null,null,null,null,null,null,null,null,null,null,null,null,null,null,null,null,null,null,null,null,null,null,null,null,null,null,null,null,"",null,null,null,null,null,null,null,"IMÓVEL "]
["",null,null,null,null,null,null,null,null,null,null,null,null,null,null,null,null,null,null,null,null,null,null,null,null,null,null,null,null,null,null,null,null,null,null,null,null,null,null,null,"",null,null,null,null,null,null,null,"IMÓVEL "]
["",null,null,null,null,null,null,null,null,null,null,null,null,null,null,null,null,null,null,null,null,null,null,null,null,null,null,null,null,null,null,null,null,null,null,null,null,null,null,null,"",null,null,null,null,null,null,null,"IMÓVEL "]
["",null,null,null,null,null,null,null,null,null,null,null,null,null,null,null,null,null,null,null,null,null,null,null,null,null,null,null,null,null,null,null,null,null,null,null,null,null,null,null,"",null,null,null,null,null,null,null,"IMÓVEL "]
["",null,null,null,null,null,null,null,null,null,null,null,null,null,null,null,null,null,null,null,null,null,null,null,null,null,null,null,null,null,null,null,null,null,null,null,null,null,null,null,"",null,null,null,null,null,null,null,"IMÓVEL "]
["",null,null,null,null,null,null,null,null,null,null,null,null,null,null,null,null,null,null,null,null,null,null,null,null,null,null,null,null,null,null,null,null,null,null,null,null,null,null,null,"",null,null,null,null,null,null,null,"IMÓVEL "]
["",null,null,null,null,null,null,null,null,null,null,null,null,null,null,null,null,null,null,null,null,null,null,null,null,null,null,null,null,null,null,null,null,null,null,null,null,null,null,null,"",null,null,null,null,null,null,null,"IMÓVEL "]
["",null,null,null,null,null,null,null,null,null,null,null,null,null,null,null,null,null,null,null,null,null,null,null,null,null,null,null,null,null,null,null,null,null,null,null,null,null,null,null,"",null,null,null,null,null,null,null,"IMÓVEL "]
["",null,null,null,null,null,null,null,null,null,null,null,null,null,null,null,null,null,null,null,null,null,null,null,null,null,null,null,null,null,null,null,null,null,null,null,null,null,null,null,"",null,null,null,null,null,null,null,"IMÓVEL "]
["",null,null,null,null,null,null,null,null,null,null,null,null,null,null,null,null,null,null,null,null,null,null,null,null,null,null,null,null,null,null,null,null,null,null,null,null,null,null,null,"",null,null,null,null,null,null,null,"IMÓVEL "]
["",null,null,null,null,null,null,null,null,null,null,null,null,null,null,null,null,null,null,null,null,null,null,null,null,null,null,null,null,null,null,null,null,null,null,null,null,null,null,null,"",null,null,null,null,null,null,null,"IMÓVEL "]
["",null,null,null,null,null,null,null,null,null,null,null,null,null,null,null,null,null,null,null,null,null,null,null,null,null,null,null,null,null,null,null,null,null,null,null,null,null,null,null,"",null,null,null,null,null,null,null,"IMÓVEL "]
["",null,null,null,null,null,null,null,null,null,null,null,null,null,null,null,null,null,null,null,null,null,null,null,null,null,null,null,null,null,null,null,null,null,null,null,null,null,null,null,"",null,null,null,null,null,null,null,"IMÓVEL "]
["",null,null,null,null,null,null,null,null,null,null,null,null,null,null,null,null,null,null,null,null,null,null,null,null,null,null,null,null,null,null,null,null,null,null,null,null,null,null,null,"",null,null,null,null,null,null,null,"IMÓVEL "]
["",null,null,null,null,null,null,null,null,null,null,null,null,null,null,null,null,null,null,null,null,null,null,null,null,null,null,null,null,null,null,null,null,null,null,null,null,null,null,null,"",null,null,null,null,null,null,null,"IMÓVEL "]
["",null,null,null,null,null,null,null,null,null,null,null,null,null,null,null,null,null,null,null,null,null,null,null,null,null,null,null,null,null,null,null,null,null,null,null,null,null,null,null,"",null,null,null,null,null,null,null,"IMÓVEL "]
["",null,null,null,null,null,null,null,null,null,null,null,null,null,null,null,null,null,null,null,null,null,null,null,null,null,null,null,null,null,null,null,null,null,null,null,null,null,null,null,"",null,null,null,null,null,null,null,"IMÓVEL "]
["",null,null,null,null,null,null,null,null,null,null,null,null,null,null,null,null,null,null,null,null,null,null,null,null,null,null,null,null,null,null,null,null,null,null,null,null,null,null,null,"",null,null,null,null,null,null,null,"IMÓVEL "]
["",null,null,null,null,null,null,null,null,null,null,null,null,null,null,null,null,null,null,null,null,null,null,null,null,null,null,null,null,null,null,null,null,null,null,null,null,null,null,null,"",null,null,null,null,null,null,null,"IMÓVEL "]
["",null,null,null,null,null,null,null,null,null,null,null,null,null,null,null,null,null,null,null,null,null,null,null,null,null,null,null,null,null,null,null,null,null,null,null,null,null,null,null,"",null,null,null,null,null,null,null,"IMÓVEL "]
["",null,null,null,null,null,null,null,null,null,null,null,null,null,null,null,null,null,null,null,null,null,null,null,null,null,null,null,null,null,null,null,null,null,null,null,null,null,null,null,"",null,null,null,null,null,null,null,"IMÓVEL "]
["",null,null,null,null,null,null,null,null,null,null,null,null,null,null,null,null,null,null,null,null,null,null,null,null,null,null,null,null,null,null,null,null,null,null,null,null,null,null,null,"",null,null,null,null,null,null,null,"IMÓVEL "]
["",null,null,null,null,null,null,null,null,null,null,null,null,null,null,null,null,null,null,null,null,null,null,null,null,null,null,null,null,null,null,null,null,null,null,null,null,null,null,null,"",null,null,null,null,null,null,null,"IMÓVEL "]
["",null,null,null,null,null,null,null,null,null,null,null,null,null,null,null,null,null,null,null,null,null,null,null,null,null,null,null,null,null,null,null,null,null,null,null,null,null,null,null,"",null,null,null,null,null,null,null,"IMÓVEL "]
["",null,null,null,null,null,null,null,null,null,null,null,null,null,null,null,null,null,null,null,null,null,null,null,null,null,null,null,null,null,null,null,null,null,null,null,null,null,null,null,"",null,null,null,null,null,null,null,"IMÓVEL "]
["",null,null,null,null,null,null,null,null,null,null,null,null,null,null,null,null,null,null,null,null,null,null,null,null,null,null,null,null,null,null,null,null,null,null,null,null,null,null,null,"",null,null,null,null,null,null,null,"IMÓVEL "]
["",null,null,null,null,null,null,null,null,null,null,null,null,null,null,null,null,null,null,null,null,null,null,null,null,null,null,null,null,null,null,null,null,null,null,null,null,null,null,null,"",null,null,null,null,null,null,null,"IMÓVEL "]
["",null,null,null,null,null,null,null,null,null,null,null,null,null,null,null,null,null,null,null,null,null,null,null,null,null,null,null,null,null,null,null,null,null,null,null,null,null,null,null,"",null,null,null,null,null,null,null,"IMÓVEL "]
["",null,null,null,null,null,null,null,null,null,null,null,null,null,null,null,null,null,null,null,null,null,null,null,null,null,null,null,null,null,null,null,null,null,null,null,null,null,null,null,"",null,null,null,null,null,null,null,"IMÓVEL "]
[{"$f":"IF(C78<>\"\",A77+1,\"\")","v":""},null,null,null,null,null,null,null,null,null,null,null,null,null,null,null,null,null,null,null,null,null,null,null,null,null,null,null,null,null,null,null,null,null,null,null,null,null,null,null,"",null,null,null,null,null,null,null,"IMÓVEL "]
["",null,null,null,null,null,null,null,null,null,null,null,null,null,null,null,null,null,null,null,null,null,null,null,null,null,null,null,null,null,null,null,null,null,null,null,null,null,null,null,"",null,null,null,null,null,null,null,"IMÓVEL "]
["",null,null,null,null,null,null,null,null,null,null,null,null,null,null,null,null,null,null,null,null,null,null,null,null,null,null,null,null,null,null,null,null,null,null,null,null,null,null,null,"",null,null,null,null,null,null,null,"IMÓVEL "]
["",null,null,null,null,null,null,null,null,null,null,null,null,null,null,null,null,null,null,null,null,null,null,null,null,null,null,null,null,null,null,null,null,null,null,null,null,null,null,null,"",null,null,null,null,null,null,null,"IMÓVEL "]
["",null,null,null,null,null,null,null,null,null,null,null,null,null,null,null,null,null,null,null,null,null,null,null,null,null,null,null,null,null,null,null,null,null,null,null,null,null,null,null,"",null,null,null,null,null,null,null,"IMÓVEL "]
["",null,null,null,null,null,null,null,null,null,null,null,null,null,null,null,null,null,null,null,null,null,null,null,null,null,null,null,null,null,null,null,null,null,null,null,null,null,null,null,"",null,null,null,null,null,null,null,"IMÓVEL "]
["",null,null,null,null,null,null,null,null,null,null,null,null,null,null,null,null,null,null,null,null,null,null,null,null,null,null,null,null,null,null,null,null,null,null,null,null,null,null,null,"",null,null,null,null,null,null,null,"IMÓVEL "]
["",null,null,null,null,null,null,null,null,null,null,null,null,null,null,null,null,null,null,null,null,null,null,null,null,null,null,null,null,null,null,null,null,null,null,null,null,null,null,null,"",null,null,null,null,null,null,null,"IMÓVEL "]
["",null,null,null,null,null,null,null,null,null,null,null,null,null,null,null,null,null,null,null,null,null,null,null,null,null,null,null,null,null,null,null,null,null,null,null,null,null,null,null,"",null,null,null,null,null,null,null,"IMÓVEL "]
["",null,null,null,null,null,null,null,null,null,null,null,null,null,null,null,null,null,null,null,null,null,null,null,null,null,null,null,null,null,null,null,null,null,null,null,null,null,null,null,"",null,null,null,null,null,null,null,"IMÓVEL "]
["",null,null,null,null,null,null,null,null,null,null,null,null,null,null,null,null,null,null,null,null,null,null,null,null,null,null,null,null,null,null,null,null,null,null,null,null,null,null,null,"",null,null,null,null,null,null,null,"IMÓVEL "]
["",null,null,null,null,null,null,null,null,null,null,null,null,null,null,null,null,null,null,null,null,null,null,null,null,null,null,null,null,null,null,null,null,null,null,null,null,null,null,null,"",null,null,null,null,null,null,null,"IMÓVEL "]
["",null,null,null,null,null,null,null,null,null,null,null,null,null,null,null,null,null,null,null,null,null,null,null,null,null,null,null,null,null,null,null,null,null,null,null,null,null,null,null,"",null,null,null,null,null,null,null,"IMÓVEL "]
["",null,null,null,null,null,null,null,null,null,null,null,null,null,null,null,null,null,null,null,null,null,null,null,null,null,null,null,null,null,null,null,null,null,null,null,null,null,null,null,"",null,null,null,null,null,null,null,"IMÓVEL "]
["",null,null,null,null,null,null,null,null,null,null,null,null,null,null,null,null,null,null,null,null,null,null,null,null,null,null,null,null,null,null,null,null,null,null,null,null,null,null,null,"",null,null,null,null,null,null,null,"IMÓVEL "]
["",null,null,null,null,null,null,null,null,null,null,null,null,null,null,null,null,null,null,null,null,null,null,null,null,null,null,null,null,null,null,null,null,null,null,null,null,null,null,null,"",null,null,null,null,null,null,null,"IMÓVEL "]
["",null,null,null,null,null,null,null,null,null,null,null,null,null,null,null,null,null,null,null,null,null,null,null,null,null,null,null,null,null,null,null,null,null,null,null,null,null,null,null,"",null,null,null,null,null,null,null,"IMÓVEL "]
["",null,null,null,null,null,null,null,null,null,null,null,null,null,null,null,null,null,null,null,null,null,null,null,null,null,null,null,null,null,null,null,null,null,null,null,null,null,null,null,"",null,null,null,null,null,null,null,"IMÓVEL "]
["",null,null,null,null,null,null,null,null,null,null,null,null,null,null,null,null,null,null,null,null,null,null,null,null,null,null,null,null,null,null,null,null,null,null,null,null,null,null,null,"",null,null,null,null,null,null,null,"IMÓVEL "]
["",null,null,null,null,null,null,null,null,null,null,null,null,null,null,null,null,null,null,null,null,null,null,null,null,null,null,null,null,null,null,null,null,null,null,null,null,null,null,null,"",null,null,null,null,null,null,null,"IMÓVEL "]
["",null,null,null,null,null,null,null,null,null,null,null,null,null,null,null,null,null,null,null,null,null,null,null,null,null,null,null,null,null,null,null,null,null,null,null,null,null,null,null,"",null,null,null,null,null,null,null,"IMÓVEL "]
["",null,null,null,null,null,null,null,null,null,null,null,null,null,null,null,null,null,null,null,null,null,null,null,null,null,null,null,null,null,null,null,null,null,null,null,null,null,null,null,"",null,null,null,null,null,null,null,"IMÓVEL "]
["",null,null,null,null,null,null,null,null,null,null,null,null,null,null,null,null,null,null,null,null,null,null,null,null,null,null,null,null,null,null,null,null,null,null,null,null,null,null,null,"",null,null,null,null,null,null,null,"IMÓVEL "]
["",null,null,null,null,null,null,null,null,null,null,null,null,null,null,null,null,null,null,null,null,null,null,null,null,null,null,null,null,null,null,null,null,null,null,null,null,null,null,null,"",null,null,null,null,null,null,null,"IMÓVEL "]
["",null,null,null,null,null,null,null,null,null,null,null,null,null,null,null,null,null,null,null,null,null,null,null,null,null,null,null,null,null,null,null,null,null,null,null,null,null,null,null,"",null,null,null,null,null,null,null,"IMÓVEL "]
["",null,null,null,null,null,null,null,null,null,null,null,null,null,null,null,null,null,null,null,null,null,null,null,null,null,null,null,null,null,null,null,null,null,null,null,null,null,null,null,"",null,null,null,null,null,null,null,"IMÓVEL "]
["",null,null,null,null,null,null,null,null,null,null,null,null,null,null,null,null,null,null,null,null,null,null,null,null,null,null,null,null,null,null,null,null,null,null,null,null,null,null,null,"",null,null,null,null,null,null,null,"IMÓVEL "]
["",null,null,null,null,null,null,null,null,null,null,null,null,null,null,null,null,null,null,null,null,null,null,null,null,null,null,null,null,null,null,null,null,null,null,null,null,null,null,null,"",null,null,null,null,null,null,null,"IMÓVEL "]
["",null,null,null,null,null,null,null,null,null,null,null,null,null,null,null,null,null,null,null,null,null,null,null,null,null,null,null,null,null,null,null,null,null,null,null,null,null,null,null,"",null,null,null,null,null,null,null,"IMÓVEL "]
["",null,null,null,null,null,null,null,null,null,null,null,null,null,null,null,null,null,null,null,null,null,null,null,null,null,null,null,null,null,null,null,null,null,null,null,null,null,null,null,"",null,null,null,null,null,null,null,"IMÓVEL "]
["",null,null,null,null,null,null,null,null,null,null,null,null,null,null,null,null,null,null,null,null,null,null,null,null,null,null,null,null,null,null,null,null,null,null,null,null,null,null,null,"",null,null,null,null,null,null,null,"IMÓVEL "]
["",null,null,null,null,null,null,null,null,null,null,null,null,null,null,null,null,null,null,null,null,null,null,null,null,null,null,null,null,null,null,null,null,null,null,null,null,null,null,null,"",null,null,null,null,null,null,null,"IMÓVEL "]
["TOTAL",null,null,null,null,null,null,null,null,null,null,null,null,null,null,null,null,null,null,null,null,null,null,null,null,null,null,null,null,null,null,null,null,null,null,null,null,null,null,null,{"$f":"IF(SUM(AO10:AS109)=0,\"-\",SUM(AO10:AS109))","v":"-"}]
["BENFEITORIAS"]
["IMÓVEL REF",null,null,null,null,"DESCRIÇÃO",null,null,null,null,null,null,null,null,null,null,null,null,null,null,null,null,null,null,null,null,null,null,null,"QTDE",null,null,null,"VALOR UNITÁRIO (R$)",null,null,null,null,null,"VALOR TOTAL\n(R$)"]
[null,null,null,null,null,null,null,null,null,null,null,null,null,null,null,null,null,null,null,null,null,null,null,null,null,null,null,null,null,null,null,null,null,null,null,null,null,null,null,{"$f":"IF(OR(AD113=\"\",AH113=\"\"),\"\",AH113*AD113)","v":""},null,null,null,null,null,null,{"$f":"SUM(AV113:AV162)","v":1},1]
[null,null,null,null,null,null,null,null,null,null,null,null,null,null,null,null,null,null,null,null,null,null,null,null,null,null,null,null,null,null,null,null,null,null,null,null,null,null,null,{"$f":"IF(OR(AD114=\"\",AH114=\"\"),\"\",AH114*AD114)","v":""}]
[null,null,null,null,null,null,null,null,null,null,null,null,null,null,null,null,null,null,null,null,null,null,null,null,null,null,null,null,null,null,null,null,null,null,null,null,null,null,null,""]
[null,null,null,null,null,null,null,null,null,null,null,null,null,null,null,null,null,null,null,null,null,null,null,null,null,null,null,null,null,null,null,null,null,null,null,null,null,null,null,""]
[null,null,null,null,null,null,null,null,null,null,null,null,null,null,null,null,null,null,null,null,null,null,null,null,null,null,null,null,null,null,null,null,null,null,null,null,null,null,null,""]
[null,null,null,null,null,null,null,null,null,null,null,null,null,null,null,null,null,null,null,null,null,null,null,null,null,null,null,null,null,null,null,null,null,null,null,null,null,null,null,""]
[null,null,null,null,null,null,null,null,null,null,null,null,null,null,null,null,null,null,null,null,null,null,null,null,null,null,null,null,null,null,null,null,null,null,null,null,null,null,null,""]
[null,null,null,null,null,null,null,null,null,null,null,null,null,null,null,null,null,null,null,null,null,null,null,null,null,null,null,null,null,null,null,null,null,null,null,null,null,null,null,""]
[null,null,null,null,null,null,null,null,null,null,null,null,null,null,null,null,null,null,null,null,null,null,null,null,null,null,null,null,null,null,null,null,null,null,null,null,null,null,null,""]
[null,null,null,null,null,null,null,null,null,null,null,null,null,null,null,null,null,null,null,null,null,null,null,null,null,null,null,null,null,null,null,null,null,null,null,null,null,null,null,""]
[null,null,null,null,null,null,null,null,null,null,null,null,null,null,null,null,null,null,null,null,null,null,null,null,null,null,null,null,null,null,null,null,null,null,null,null,null,null,null,""]
[null,null,null,null,null,null,null,null,null,null,null,null,null,null,null,null,null,null,null,null,null,null,null,null,null,null,null,null,null,null,null,null,null,null,null,null,null,null,null,{"$f":"IF(OR(AD124=\"\",AH124=\"\"),\"\",AH124*AD124)","v":""}]
[null,null,null,null,null,null,null,null,null,null,null,null,null,null,null,null,null,null,null,null,null,null,null,null,null,null,null,null,null,null,null,null,null,null,null,null,null,null,null,""]
[null,null,null,null,null,null,null,null,null,null,null,null,null,null,null,null,null,null,null,null,null,null,null,null,null,null,null,null,null,null,null,null,null,null,null,null,null,null,null,""]
[null,null,null,null,null,null,null,null,null,null,null,null,null,null,null,null,null,null,null,null,null,null,null,null,null,null,null,null,null,null,null,null,null,null,null,null,null,null,null,""]
[null,null,null,null,null,null,null,null,null,null,null,null,null,null,null,null,null,null,null,null,null,null,null,null,null,null,null,null,null,null,null,null,null,null,null,null,null,null,null,""]
[null,null,null,null,null,null,null,null,null,null,null,null,null,null,null,null,null,null,null,null,null,null,null,null,null,null,null,null,null,null,null,null,null,null,null,null,null,null,null,""]
[null,null,null,null,null,null,null,null,null,null,null,null,null,null,null,null,null,null,null,null,null,null,null,null,null,null,null,null,null,null,null,null,null,null,null,null,null,null,null,""]
[null,null,null,null,null,null,null,null,null,null,null,null,null,null,null,null,null,null,null,null,null,null,null,null,null,null,null,null,null,null,null,null,null,null,null,null,null,null,null,""]
[null,null,null,null,null,null,null,null,null,null,null,null,null,null,null,null,null,null,null,null,null,null,null,null,null,null,null,null,null,null,null,null,null,null,null,null,null,null,null,""]
[null,null,null,null,null,null,null,null,null,null,null,null,null,null,null,null,null,null,null,null,null,null,null,null,null,null,null,null,null,null,null,null,null,null,null,null,null,null,null,""]
[null,null,null,null,null,null,null,null,null,null,null,null,null,null,null,null,null,null,null,null,null,null,null,null,null,null,null,null,null,null,null,null,null,null,null,null,null,null,null,{"$f":"IF(OR(AD134=\"\",AH134=\"\"),\"\",AH134*AD134)","v":""}]
[null,null,null,null,null,null,null,null,null,null,null,null,null,null,null,null,null,null,null,null,null,null,null,null,null,null,null,null,null,null,null,null,null,null,null,null,null,null,null,""]
[null,null,null,null,null,null,null,null,null,null,null,null,null,null,null,null,null,null,null,null,null,null,null,null,null,null,null,null,null,null,null,null,null,null,null,null,null,null,null,""]
[null,null,null,null,null,null,null,null,null,null,null,null,null,null,null,null,null,null,null,null,null,null,null,null,null,null,null,null,null,null,null,null,null,null,null,null,null,null,null,""]
[null,null,null,null,null,null,null,null,null,null,null,null,null,null,null,null,null,null,null,null,null,null,null,null,null,null,null,null,null,null,null,null,null,null,null,null,null,null,null,""]
[null,null,null,null,null,null,null,null,null,null,null,null,null,null,null,null,null,null,null,null,null,null,null,null,null,null,null,null,null,null,null,null,null,null,null,null,null,null,null,""]
[null,null,null,null,null,null,null,null,null,null,null,null,null,null,null,null,null,null,null,null,null,null,null,null,null,null,null,null,null,null,null,null,null,null,null,null,null,null,null,""]
[null,null,null,null,null,null,null,null,null,null,null,null,null,null,null,null,null,null,null,null,null,null,null,null,null,null,null,null,null,null,null,null,null,null,null,null,null,null,null,""]
[null,null,null,null,null,null,null,null,null,null,null,null,null,null,null,null,null,null,null,null,null,null,null,null,null,null,null,null,null,null,null,null,null,null,null,null,null,null,null,""]
[null,null,null,null,null,null,null,null,null,null,null,null,null,null,null,null,null,null,null,null,null,null,null,null,null,null,null,null,null,null,null,null,null,null,null,null,null,null,null,""]
[null,null,null,null,null,null,null,null,null,null,null,null,null,null,null,null,null,null,null,null,null,null,null,null,null,null,null,null,null,null,null,null,null,null,null,null,null,null,null,{"$f":"IF(OR(AD144=\"\",AH144=\"\"),\"\",AH144*AD144)","v":""}]
[null,null,null,null,null,null,null,null,null,null,null,null,null,null,null,null,null,null,null,null,null,null,null,null,null,null,null,null,null,null,null,null,null,null,null,null,null,null,null,""]
[null,null,null,null,null,null,null,null,null,null,null,null,null,null,null,null,null,null,null,null,null,null,null,null,null,null,null,null,null,null,null,null,null,null,null,null,null,null,null,""]
[null,null,null,null,null,null,null,null,null,null,null,null,null,null,null,null,null,null,null,null,null,null,null,null,null,null,null,null,null,null,null,null,null,null,null,null,null,null,null,""]
[null,null,null,null,null,null,null,null,null,null,null,null,null,null,null,null,null,null,null,null,null,null,null,null,null,null,null,null,null,null,null,null,null,null,null,null,null,null,null,""]
[null,null,null,null,null,null,null,null,null,null,null,null,null,null,null,null,null,null,null,null,null,null,null,null,null,null,null,null,null,null,null,null,null,null,null,null,null,null,null,""]
[null,null,null,null,null,null,null,null,null,null,null,null,null,null,null,null,null,null,null,null,null,null,null,null,null,null,null,null,null,null,null,null,null,null,null,null,null,null,null,""]
[null,null,null,null,null,null,null,null,null,null,null,null,null,null,null,null,null,null,null,null,null,null,null,null,null,null,null,null,null,null,null,null,null,null,null,null,null,null,null,""]
[null,null,null,null,null,null,null,null,null,null,null,null,null,null,null,null,null,null,null,null,null,null,null,null,null,null,null,null,null,null,null,null,null,null,null,null,null,null,null,""]
[null,null,null,null,null,null,null,null,null,null,null,null,null,null,null,null,null,null,null,null,null,null,null,null,null,null,null,null,null,null,null,null,null,null,null,null,null,null,null,""]
[null,null,null,null,null,null,null,null,null,null,null,null,null,null,null,null,null,null,null,null,null,null,null,null,null,null,null,null,null,null,null,null,null,null,null,null,null,null,null,""]
[null,null,null,null,null,null,null,null,null,null,null,null,null,null,null,null,null,null,null,null,null,null,null,null,null,null,null,null,null,null,null,null,null,null,null,null,null,null,null,""]
[null,null,null,null,null,null,null,null,null,null,null,null,null,null,null,null,null,null,null,null,null,null,null,null,null,null,null,null,null,null,null,null,null,null,null,null,null,null,null,""]
[null,null,null,null,null,null,null,null,null,null,null,null,null,null,null,null,null,null,null,null,null,null,null,null,null,null,null,null,null,null,null,null,null,null,null,null,null,null,null,""]
[null,null,null,null,null,null,null,null,null,null,null,null,null,null,null,null,null,null,null,null,null,null,null,null,null,null,null,null,null,null,null,null,null,null,null,null,null,null,null,""]
[null,null,null,null,null,null,null,null,null,null,null,null,null,null,null,null,null,null,null,null,null,null,null,null,null,null,null,null,null,null,null,null,null,null,null,null,null,null,null,""]
[null,null,null,null,null,null,null,null,null,null,null,null,null,null,null,null,null,null,null,null,null,null,null,null,null,null,null,null,null,null,null,null,null,null,null,null,null,null,null,""]
[null,null,null,null,null,null,null,null,null,null,null,null,null,null,null,null,null,null,null,null,null,null,null,null,null,null,null,null,null,null,null,null,null,null,null,null,null,null,null,""]
[null,null,null,null,null,null,null,null,null,null,null,null,null,null,null,null,null,null,null,null,null,null,null,null,null,null,null,null,null,null,null,null,null,null,null,null,null,null,null,""]
["TOTAL",null,null,null,null,null,null,null,null,null,null,null,null,null,null,null,null,null,null,null,null,null,null,null,null,null,null,null,null,null,null,null,null,null,null,null,null,null,null,{"$f":"IF(SUM(AN113:AS162)=0,\"-\",SUM(AN113:AS162))","v":"-"}]
[]
["II - BENS MÓVEIS"]
[" VEÍCULOS, MÁQUINAS E EQUIPAMENTOS"]
["TIPO",null,null,null,null,null,"DESCRIÇÃO",null,null,null,null,null,null,null,null,null,null,null,null,null,null,null,null,null,null,null,null,null,null,null,"QTD",null,null,"VALOR UNITÁRIO (R$)",null,null,null,null,null,"VALOR TOTAL\n(R$)"]
[null,null,null,null,null,null,null,null,null,null,null,null,null,null,null,null,null,null,null,null,null,null,null,null,null,null,null,null,null,null,null,null,null,null,null,null,null,null,null,{"$f":"IF(AH168=\"\",\"\",AE168*AH168)","v":""},null,null,null,null,null,null,{"$f":"SUM(AV167:AV367)","v":1},1]
[null,null,null,null,null,null,null,null,null,null,null,null,null,null,null,null,null,null,null,null,null,null,null,null,null,null,null,null,null,null,null,null,null,null,null,null,null,null,null,{"$f":"IF(AH169=\"\",\"\",AE169*AH169)","v":""}]
[null,null,null,null,null,null,null,null,null,null,null,null,null,null,null,null,null,null,null,null,null,null,null,null,null,null,null,null,null,null,null,null,null,null,null,null,null,null,null,""]
[null,null,null,null,null,null,null,null,null,null,null,null,null,null,null,null,null,null,null,null,null,null,null,null,null,null,null,null,null,null,null,null,null,null,null,null,null,null,null,""]
[null,null,null,null,null,null,null,null,null,null,null,null,null,null,null,null,null,null,null,null,null,null,null,null,null,null,null,null,null,null,null,null,null,null,null,null,null,null,null,""]
[null,null,null,null,null,null,null,null,null,null,null,null,null,null,null,null,null,null,null,null,null,null,null,null,null,null,null,null,null,null,null,null,null,null,null,null,null,null,null,""]
[null,null,null,null,null,null,null,null,null,null,null,null,null,null,null,null,null,null,null,null,null,null,null,null,null,null,null,null,null,null,null,null,null,null,null,null,null,null,null,""]
[null,null,null,null,null,null,null,null,null,null,null,null,null,null,null,null,null,null,null,null,null,null,null,null,null,null,null,null,null,null,null,null,null,null,null,null,null,null,null,""]
[null,null,null,null,null,null,null,null,null,null,null,null,null,null,null,null,null,null,null,null,null,null,null,null,null,null,null,null,null,null,null,null,null,null,null,null,null,null,null,""]
[null,null,null,null,null,null,null,null,null,null,null,null,null,null,null,null,null,null,null,null,null,null,null,null,null,null,null,null,null,null,null,null,null,null,null,null,null,null,null,""]
[null,null,null,null,null,null,null,null,null,null,null,null,null,null,null,null,null,null,null,null,null,null,null,null,null,null,null,null,null,null,null,null,null,null,null,null,null,null,null,""]
[null,null,null,null,null,null,null,null,null,null,null,null,null,null,null,null,null,null,null,null,null,null,null,null,null,null,null,null,null,null,null,null,null,null,null,null,null,null,null,""]
[null,null,null,null,null,null,null,null,null,null,null,null,null,null,null,null,null,null,null,null,null,null,null,null,null,null,null,null,null,null,null,null,null,null,null,null,null,null,null,""]
[null,null,null,null,null,null,null,null,null,null,null,null,null,null,null,null,null,null,null,null,null,null,null,null,null,null,null,null,null,null,null,null,null,null,null,null,null,null,null,{"$f":"IF(AH181=\"\",\"\",AE181*AH181)","v":""}]
[null,null,null,null,null,null,null,null,null,null,null,null,null,null,null,null,null,null,null,null,null,null,null,null,null,null,null,null,null,null,null,null,null,null,null,null,null,null,null,""]
[null,null,null,null,null,null,null,null,null,null,null,null,null,null,null,null,null,null,null,null,null,null,null,null,null,null,null,null,null,null,null,null,null,null,null,null,null,null,null,""]
[null,null,null,null,null,null,null,null,null,null,null,null,null,null,null,null,null,null,null,null,null,null,null,null,null,null,null,null,null,null,null,null,null,null,null,null,null,null,null,""]
[null,null,null,null,null,null,null,null,null,null,null,null,null,null,null,null,null,null,null,null,null,null,null,null,null,null,null,null,null,null,null,null,null,null,null,null,null,null,null,""]
[null,null,null,null,null,null,null,null,null,null,null,null,null,null,null,null,null,null,null,null,null,null,null,null,null,null,null,null,null,null,null,null,null,null,null,null,null,null,null,""]
[null,null,null,null,null,null,null,null,null,null,null,null,null,null,null,null,null,null,null,null,null,null,null,null,null,null,null,null,null,null,null,null,null,null,null,null,null,null,null,""]
[null,null,null,null,null,null,null,null,null,null,null,null,null,null,null,null,null,null,null,null,null,null,null,null,null,null,null,null,null,null,null,null,null,null,null,null,null,null,null,""]
[null,null,null,null,null,null,null,null,null,null,null,null,null,null,null,null,null,null,null,null,null,null,null,null,null,null,null,null,null,null,null,null,null,null,null,null,null,null,null,""]
[null,null,null,null,null,null,null,null,null,null,null,null,null,null,null,null,null,null,null,null,null,null,null,null,null,null,null,null,null,null,null,null,null,null,null,null,null,null,null,""]
[null,null,null,null,null,null,null,null,null,null,null,null,null,null,null,null,null,null,null,null,null,null,null,null,null,null,null,null,null,null,null,null,null,null,null,null,null,null,null,""]
[null,null,null,null,null,null,null,null,null,null,null,null,null,null,null,null,null,null,null,null,null,null,null,null,null,null,null,null,null,null,null,null,null,null,null,null,null,null,null,""]
[null,null,null,null,null,null,null,null,null,null,null,null,null,null,null,null,null,null,null,null,null,null,null,null,null,null,null,null,null,null,null,null,null,null,null,null,null,null,null,""]
[null,null,null,null,null,null,null,null,null,null,null,null,null,null,null,null,null,null,null,null,null,null,null,null,null,null,null,null,null,null,null,null,null,null,null,null,null,null,null,""]
[null,null,null,null,null,null,null,null,null,null,null,null,null,null,null,null,null,null,null,null,null,null,null,null,null,null,null,null,null,null,null,null,null,null,null,null,null,null,null,""]
[null,null,null,null,null,null,null,null,null,null,null,null,null,null,null,null,null,null,null,null,null,null,null,null,null,null,null,null,null,null,null,null,null,null,null,null,null,null,null,""]
[null,null,null,null,null,null,null,null,null,null,null,null,null,null,null,null,null,null,null,null,null,null,null,null,null,null,null,null,null,null,null,null,null,null,null,null,null,null,null,""]
[null,null,null,null,null,null,null,null,null,null,null,null,null,null,null,null,null,null,null,null,null,null,null,null,null,null,null,null,null,null,null,null,null,null,null,null,null,null,null,""]
[null,null,null,null,null,null,null,null,null,null,null,null,null,null,null,null,null,null,null,null,null,null,null,null,null,null,null,null,null,null,null,null,null,null,null,null,null,null,null,""]
[null,null,null,null,null,null,null,null,null,null,null,null,null,null,null,null,null,null,null,null,null,null,null,null,null,null,null,null,null,null,null,null,null,null,null,null,null,null,null,""]
[null,null,null,null,null,null,null,null,null,null,null,null,null,null,null,null,null,null,null,null,null,null,null,null,null,null,null,null,null,null,null,null,null,null,null,null,null,null,null,""]
[null,null,null,null,null,null,null,null,null,null,null,null,null,null,null,null,null,null,null,null,null,null,null,null,null,null,null,null,null,null,null,null,null,null,null,null,null,null,null,""]
[null,null,null,null,null,null,null,null,null,null,null,null,null,null,null,null,null,null,null,null,null,null,null,null,null,null,null,null,null,null,null,null,null,null,null,null,null,null,null,""]
[null,null,null,null,null,null,null,null,null,null,null,null,null,null,null,null,null,null,null,null,null,null,null,null,null,null,null,null,null,null,null,null,null,null,null,null,null,null,null,""]
[null,null,null,null,null,null,null,null,null,null,null,null,null,null,null,null,null,null,null,null,null,null,null,null,null,null,null,null,null,null,null,null,null,null,null,null,null,null,null,""]
[null,null,null,null,null,null,null,null,null,null,null,null,null,null,null,null,null,null,null,null,null,null,null,null,null,null,null,null,null,null,null,null,null,null,null,null,null,null,null,""]
[null,null,null,null,null,null,null,null,null,null,null,null,null,null,null,null,null,null,null,null,null,null,null,null,null,null,null,null,null,null,null,null,null,null,null,null,null,null,null,""]
[null,null,null,null,null,null,null,null,null,null,null,null,null,null,null,null,null,null,null,null,null,null,null,null,null,null,null,null,null,null,null,null,null,null,null,null,null,null,null,""]
[null,null,null,null,null,null,null,null,null,null,null,null,null,null,null,null,null,null,null,null,null,null,null,null,null,null,null,null,null,null,null,null,null,null,null,null,null,null,null,""]
[null,null,null,null,null,null,null,null,null,null,null,null,null,null,null,null,null,null,null,null,null,null,null,null,null,null,null,null,null,null,null,null,null,null,null,null,null,null,null,""]
[null,null,null,null,null,null,null,null,null,null,null,null,null,null,null,null,null,null,null,null,null,null,null,null,null,null,null,null,null,null,null,null,null,null,null,null,null,null,null,""]
[null,null,null,null,null,null,null,null,null,null,null,null,null,null,null,null,null,null,null,null,null,null,null,null,null,null,null,null,null,null,null,null,null,null,null,null,null,null,null,""]
[null,null,null,null,null,null,null,null,null,null,null,null,null,null,null,null,null,null,null,null,null,null,null,null,null,null,null,null,null,null,null,null,null,null,null,null,null,null,null,""]
[null,null,null,null,null,null,null,null,null,null,null,null,null,null,null,null,null,null,null,null,null,null,null,null,null,null,null,null,null,null,null,null,null,null,null,null,null,null,null,""]
[null,null,null,null,null,null,null,null,null,null,null,null,null,null,null,null,null,null,null,null,null,null,null,null,null,null,null,null,null,null,null,null,null,null,null,null,null,null,null,""]
[null,null,null,null,null,null,null,null,null,null,null,null,null,null,null,null,null,null,null,null,null,null,null,null,null,null,null,null,null,null,null,null,null,null,null,null,null,null,null,{"$f":"IF(AH216=\"\",\"\",AE216*AH216)","v":""}]
[null,null,null,null,null,null,null,null,null,null,null,null,null,null,null,null,null,null,null,null,null,null,null,null,null,null,null,null,null,null,null,null,null,null,null,null,null,null,null,""]
[null,null,null,null,null,null,null,null,null,null,null,null,null,null,null,null,null,null,null,null,null,null,null,null,null,null,null,null,null,null,null,null,null,null,null,null,null,null,null,""]
[null,null,null,null,null,null,null,null,null,null,null,null,null,null,null,null,null,null,null,null,null,null,null,null,null,null,null,null,null,null,null,null,null,null,null,null,null,null,null,""]
[null,null,null,null,null,null,null,null,null,null,null,null,null,null,null,null,null,null,null,null,null,null,null,null,null,null,null,null,null,null,null,null,null,null,null,null,null,null,null,""]
[null,null,null,null,null,null,null,null,null,null,null,null,null,null,null,null,null,null,null,null,null,null,null,null,null,null,null,null,null,null,null,null,null,null,null,null,null,null,null,""]
[null,null,null,null,null,null,null,null,null,null,null,null,null,null,null,null,null,null,null,null,null,null,null,null,null,null,null,null,null,null,null,null,null,null,null,null,null,null,null,""]
[null,null,null,null,null,null,null,null,null,null,null,null,null,null,null,null,null,null,null,null,null,null,null,null,null,null,null,null,null,null,null,null,null,null,null,null,null,null,null,""]
[null,null,null,null,null,null,null,null,null,null,null,null,null,null,null,null,null,null,null,null,null,null,null,null,null,null,null,null,null,null,null,null,null,null,null,null,null,null,null,""]
[null,null,null,null,null,null,null,null,null,null,null,null,null,null,null,null,null,null,null,null,null,null,null,null,null,null,null,null,null,null,null,null,null,null,null,null,null,null,null,""]
[null,null,null,null,null,null,null,null,null,null,null,null,null,null,null,null,null,null,null,null,null,null,null,null,null,null,null,null,null,null,null,null,null,null,null,null,null,null,null,""]
[null,null,null,null,null,null,null,null,null,null,null,null,null,null,null,null,null,null,null,null,null,null,null,null,null,null,null,null,null,null,null,null,null,null,null,null,null,null,null,""]
[null,null,null,null,null,null,null,null,null,null,null,null,null,null,null,null,null,null,null,null,null,null,null,null,null,null,null,null,null,null,null,null,null,null,null,null,null,null,null,""]
[null,null,null,null,null,null,null,null,null,null,null,null,null,null,null,null,null,null,null,null,null,null,null,null,null,null,null,null,null,null,null,null,null,null,null,null,null,null,null,""]
[null,null,null,null,null,null,null,null,null,null,null,null,null,null,null,null,null,null,null,null,null,null,null,null,null,null,null,null,null,null,null,null,null,null,null,null,null,null,null,""]
[null,null,null,null,null,null,null,null,null,null,null,null,null,null,null,null,null,null,null,null,null,null,null,null,null,null,null,null,null,null,null,null,null,null,null,null,null,null,null,""]
[null,null,null,null,null,null,null,null,null,null,null,null,null,null,null,null,null,null,null,null,null,null,null,null,null,null,null,null,null,null,null,null,null,null,null,null,null,null,null,""]
[null,null,null,null,null,null,null,null,null,null,null,null,null,null,null,null,null,null,null,null,null,null,null,null,null,null,null,null,null,null,null,null,null,null,null,null,null,null,null,""]
[null,null,null,null,null,null,null,null,null,null,null,null,null,null,null,null,null,null,null,null,null,null,null,null,null,null,null,null,null,null,null,null,null,null,null,null,null,null,null,""]
[null,null,null,null,null,null,null,null,null,null,null,null,null,null,null,null,null,null,null,null,null,null,null,null,null,null,null,null,null,null,null,null,null,null,null,null,null,null,null,""]
[null,null,null,null,null,null,null,null,null,null,null,null,null,null,null,null,null,null,null,null,null,null,null,null,null,null,null,null,null,null,null,null,null,null,null,null,null,null,null,""]
[null,null,null,null,null,null,null,null,null,null,null,null,null,null,null,null,null,null,null,null,null,null,null,null,null,null,null,null,null,null,null,null,null,null,null,null,null,null,null,""]
[null,null,null,null,null,null,null,null,null,null,null,null,null,null,null,null,null,null,null,null,null,null,null,null,null,null,null,null,null,null,null,null,null,null,null,null,null,null,null,""]
[null,null,null,null,null,null,null,null,null,null,null,null,null,null,null,null,null,null,null,null,null,null,null,null,null,null,null,null,null,null,null,null,null,null,null,null,null,null,null,""]
[null,null,null,null,null,null,null,null,null,null,null,null,null,null,null,null,null,null,null,null,null,null,null,null,null,null,null,null,null,null,null,null,null,null,null,null,null,null,null,""]
[null,null,null,null,null,null,null,null,null,null,null,null,null,null,null,null,null,null,null,null,null,null,null,null,null,null,null,null,null,null,null,null,null,null,null,null,null,null,null,""]
[null,null,null,null,null,null,null,null,null,null,null,null,null,null,null,null,null,null,null,null,null,null,null,null,null,null,null,null,null,null,null,null,null,null,null,null,null,null,null,""]
[null,null,null,null,null,null,null,null,null,null,null,null,null,null,null,null,null,null,null,null,null,null,null,null,null,null,null,null,null,null,null,null,null,null,null,null,null,null,null,""]
[null,null,null,null,null,null,null,null,null,null,null,null,null,null,null,null,null,null,null,null,null,null,null,null,null,null,null,null,null,null,null,null,null,null,null,null,null,null,null,""]
[null,null,null,null,null,null,null,null,null,null,null,null,null,null,null,null,null,null,null,null,null,null,null,null,null,null,null,null,null,null,null,null,null,null,null,null,null,null,null,""]
[null,null,null,null,null,null,null,null,null,null,null,null,null,null,null,null,null,null,null,null,null,null,null,null,null,null,null,null,null,null,null,null,null,null,null,null,null,null,null,""]
[null,null,null,null,null,null,null,null,null,null,null,null,null,null,null,null,null,null,null,null,null,null,null,null,null,null,null,null,null,null,null,null,null,null,null,null,null,null,null,""]
[null,null,null,null,null,null,null,null,null,null,null,null,null,null,null,null,null,null,null,null,null,null,null,null,null,null,null,null,null,null,null,null,null,null,null,null,null,null,null,""]
[null,null,null,null,null,null,null,null,null,null,null,null,null,null,null,null,null,null,null,null,null,null,null,null,null,null,null,null,null,null,null,null,null,null,null,null,null,null,null,""]
[null,null,null,null,null,null,null,null,null,null,null,null,null,null,null,null,null,null,null,null,null,null,null,null,null,null,null,null,null,null,null,null,null,null,null,null,null,null,null,""]
[null,null,null,null,null,null,null,null,null,null,null,null,null,null,null,null,null,null,null,null,null,null,null,null,null,null,null,null,null,null,null,null,null,null,null,null,null,null,null,""]
[null,null,null,null,null,null,null,null,null,null,null,null,null,null,null,null,null,null,null,null,null,null,null,null,null,null,null,null,null,null,null,null,null,null,null,null,null,null,null,""]
[null,null,null,null,null,null,null,null,null,null,null,null,null,null,null,null,null,null,null,null,null,null,null,null,null,null,null,null,null,null,null,null,null,null,null,null,null,null,null,""]
[null,null,null,null,null,null,null,null,null,null,null,null,null,null,null,null,null,null,null,null,null,null,null,null,null,null,null,null,null,null,null,null,null,null,null,null,null,null,null,""]
[null,null,null,null,null,null,null,null,null,null,null,null,null,null,null,null,null,null,null,null,null,null,null,null,null,null,null,null,null,null,null,null,null,null,null,null,null,null,null,""]
[null,null,null,null,null,null,null,null,null,null,null,null,null,null,null,null,null,null,null,null,null,null,null,null,null,null,null,null,null,null,null,null,null,null,null,null,null,null,null,""]
[null,null,null,null,null,null,null,null,null,null,null,null,null,null,null,null,null,null,null,null,null,null,null,null,null,null,null,null,null,null,null,null,null,null,null,null,null,null,null,""]
[null,null,null,null,null,null,null,null,null,null,null,null,null,null,null,null,null,null,null,null,null,null,null,null,null,null,null,null,null,null,null,null,null,null,null,null,null,null,null,""]
[null,null,null,null,null,null,null,null,null,null,null,null,null,null,null,null,null,null,null,null,null,null,null,null,null,null,null,null,null,null,null,null,null,null,null,null,null,null,null,""]
[null,null,null,null,null,null,null,null,null,null,null,null,null,null,null,null,null,null,null,null,null,null,null,null,null,null,null,null,null,null,null,null,null,null,null,null,null,null,null,""]
[null,null,null,null,null,null,null,null,null,null,null,null,null,null,null,null,null,null,null,null,null,null,null,null,null,null,null,null,null,null,null,null,null,null,null,null,null,null,null,""]
[null,null,null,null,null,null,null,null,null,null,null,null,null,null,null,null,null,null,null,null,null,null,null,null,null,null,null,null,null,null,null,null,null,null,null,null,null,null,null,""]
[null,null,null,null,null,null,null,null,null,null,null,null,null,null,null,null,null,null,null,null,null,null,null,null,null,null,null,null,null,null,null,null,null,null,null,null,null,null,null,""]
[null,null,null,null,null,null,null,null,null,null,null,null,null,null,null,null,null,null,null,null,null,null,null,null,null,null,null,null,null,null,null,null,null,null,null,null,null,null,null,""]
[null,null,null,null,null,null,null,null,null,null,null,null,null,null,null,null,null,null,null,null,null,null,null,null,null,null,null,null,null,null,null,null,null,null,null,null,null,null,null,""]
[null,null,null,null,null,null,null,null,null,null,null,null,null,null,null,null,null,null,null,null,null,null,null,null,null,null,null,null,null,null,null,null,null,null,null,null,null,null,null,{"$f":"IF(AH266=\"\",\"\",AE266*AH266)","v":""}]
[null,null,null,null,null,null,null,null,null,null,null,null,null,null,null,null,null,null,null,null,null,null,null,null,null,null,null,null,null,null,null,null,null,null,null,null,null,null,null,""]
[null,null,null,null,null,null,null,null,null,null,null,null,null,null,null,null,null,null,null,null,null,null,null,null,null,null,null,null,null,null,null,null,null,null,null,null,null,null,null,""]
[null,null,null,null,null,null,null,null,null,null,null,null,null,null,null,null,null,null,null,null,null,null,null,null,null,null,null,null,null,null,null,null,null,null,null,null,null,null,null,""]
[null,null,null,null,null,null,null,null,null,null,null,null,null,null,null,null,null,null,null,null,null,null,null,null,null,null,null,null,null,null,null,null,null,null,null,null,null,null,null,""]
[null,null,null,null,null,null,null,null,null,null,null,null,null,null,null,null,null,null,null,null,null,null,null,null,null,null,null,null,null,null,null,null,null,null,null,null,null,null,null,""]
[null,null,null,null,null,null,null,null,null,null,null,null,null,null,null,null,null,null,null,null,null,null,null,null,null,null,null,null,null,null,null,null,null,null,null,null,null,null,null,""]
[null,null,null,null,null,null,null,null,null,null,null,null,null,null,null,null,null,null,null,null,null,null,null,null,null,null,null,null,null,null,null,null,null,null,null,null,null,null,null,""]
[null,null,null,null,null,null,null,null,null,null,null,null,null,null,null,null,null,null,null,null,null,null,null,null,null,null,null,null,null,null,null,null,null,null,null,null,null,null,null,""]
[null,null,null,null,null,null,null,null,null,null,null,null,null,null,null,null,null,null,null,null,null,null,null,null,null,null,null,null,null,null,null,null,null,null,null,null,null,null,null,""]
[null,null,null,null,null,null,null,null,null,null,null,null,null,null,null,null,null,null,null,null,null,null,null,null,null,null,null,null,null,null,null,null,null,null,null,null,null,null,null,""]
[null,null,null,null,null,null,null,null,null,null,null,null,null,null,null,null,null,null,null,null,null,null,null,null,null,null,null,null,null,null,null,null,null,null,null,null,null,null,null,""]
[null,null,null,null,null,null,null,null,null,null,null,null,null,null,null,null,null,null,null,null,null,null,null,null,null,null,null,null,null,null,null,null,null,null,null,null,null,null,null,""]
[null,null,null,null,null,null,null,null,null,null,null,null,null,null,null,null,null,null,null,null,null,null,null,null,null,null,null,null,null,null,null,null,null,null,null,null,null,null,null,""]
[null,null,null,null,null,null,null,null,null,null,null,null,null,null,null,null,null,null,null,null,null,null,null,null,null,null,null,null,null,null,null,null,null,null,null,null,null,null,null,""]
[null,null,null,null,null,null,null,null,null,null,null,null,null,null,null,null,null,null,null,null,null,null,null,null,null,null,null,null,null,null,null,null,null,null,null,null,null,null,null,""]
[null,null,null,null,null,null,null,null,null,null,null,null,null,null,null,null,null,null,null,null,null,null,null,null,null,null,null,null,null,null,null,null,null,null,null,null,null,null,null,""]
[null,null,null,null,null,null,null,null,null,null,null,null,null,null,null,null,null,null,null,null,null,null,null,null,null,null,null,null,null,null,null,null,null,null,null,null,null,null,null,""]
[null,null,null,null,null,null,null,null,null,null,null,null,null,null,null,null,null,null,null,null,null,null,null,null,null,null,null,null,null,null,null,null,null,null,null,null,null,null,null,""]
[null,null,null,null,null,null,null,null,null,null,null,null,null,null,null,null,null,null,null,null,null,null,null,null,null,null,null,null,null,null,null,null,null,null,null,null,null,null,null,""]
[null,null,null,null,null,null,null,null,null,null,null,null,null,null,null,null,null,null,null,null,null,null,null,null,null,null,null,null,null,null,null,null,null,null,null,null,null,null,null,""]
[null,null,null,null,null,null,null,null,null,null,null,null,null,null,null,null,null,null,null,null,null,null,null,null,null,null,null,null,null,null,null,null,null,null,null,null,null,null,null,""]
[null,null,null,null,null,null,null,null,null,null,null,null,null,null,null,null,null,null,null,null,null,null,null,null,null,null,null,null,null,null,null,null,null,null,null,null,null,null,null,""]
[null,null,null,null,null,null,null,null,null,null,null,null,null,null,null,null,null,null,null,null,null,null,null,null,null,null,null,null,null,null,null,null,null,null,null,null,null,null,null,""]
[null,null,null,null,null,null,null,null,null,null,null,null,null,null,null,null,null,null,null,null,null,null,null,null,null,null,null,null,null,null,null,null,null,null,null,null,null,null,null,""]
[null,null,null,null,null,null,null,null,null,null,null,null,null,null,null,null,null,null,null,null,null,null,null,null,null,null,null,null,null,null,null,null,null,null,null,null,null,null,null,""]
[null,null,null,null,null,null,null,null,null,null,null,null,null,null,null,null,null,null,null,null,null,null,null,null,null,null,null,null,null,null,null,null,null,null,null,null,null,null,null,""]
[null,null,null,null,null,null,null,null,null,null,null,null,null,null,null,null,null,null,null,null,null,null,null,null,null,null,null,null,null,null,null,null,null,null,null,null,null,null,null,""]
[null,null,null,null,null,null,null,null,null,null,null,null,null,null,null,null,null,null,null,null,null,null,null,null,null,null,null,null,null,null,null,null,null,null,null,null,null,null,null,""]
[null,null,null,null,null,null,null,null,null,null,null,null,null,null,null,null,null,null,null,null,null,null,null,null,null,null,null,null,null,null,null,null,null,null,null,null,null,null,null,""]
[null,null,null,null,null,null,null,null,null,null,null,null,null,null,null,null,null,null,null,null,null,null,null,null,null,null,null,null,null,null,null,null,null,null,null,null,null,null,null,""]
[null,null,null,null,null,null,null,null,null,null,null,null,null,null,null,null,null,null,null,null,null,null,null,null,null,null,null,null,null,null,null,null,null,null,null,null,null,null,null,""]
[null,null,null,null,null,null,null,null,null,null,null,null,null,null,null,null,null,null,null,null,null,null,null,null,null,null,null,null,null,null,null,null,null,null,null,null,null,null,null,""]
[null,null,null,null,null,null,null,null,null,null,null,null,null,null,null,null,null,null,null,null,null,null,null,null,null,null,null,null,null,null,null,null,null,null,null,null,null,null,null,""]
[null,null,null,null,null,null,null,null,null,null,null,null,null,null,null,null,null,null,null,null,null,null,null,null,null,null,null,null,null,null,null,null,null,null,null,null,null,null,null,""]
[null,null,null,null,null,null,null,null,null,null,null,null,null,null,null,null,null,null,null,null,null,null,null,null,null,null,null,null,null,null,null,null,null,null,null,null,null,null,null,""]
[null,null,null,null,null,null,null,null,null,null,null,null,null,null,null,null,null,null,null,null,null,null,null,null,null,null,null,null,null,null,null,null,null,null,null,null,null,null,null,""]
[null,null,null,null,null,null,null,null,null,null,null,null,null,null,null,null,null,null,null,null,null,null,null,null,null,null,null,null,null,null,null,null,null,null,null,null,null,null,null,""]
[null,null,null,null,null,null,null,null,null,null,null,null,null,null,null,null,null,null,null,null,null,null,null,null,null,null,null,null,null,null,null,null,null,null,null,null,null,null,null,""]
[null,null,null,null,null,null,null,null,null,null,null,null,null,null,null,null,null,null,null,null,null,null,null,null,null,null,null,null,null,null,null,null,null,null,null,null,null,null,null,""]
[null,null,null,null,null,null,null,null,null,null,null,null,null,null,null,null,null,null,null,null,null,null,null,null,null,null,null,null,null,null,null,null,null,null,null,null,null,null,null,""]
[null,null,null,null,null,null,null,null,null,null,null,null,null,null,null,null,null,null,null,null,null,null,null,null,null,null,null,null,null,null,null,null,null,null,null,null,null,null,null,""]
[null,null,null,null,null,null,null,null,null,null,null,null,null,null,null,null,null,null,null,null,null,null,null,null,null,null,null,null,null,null,null,null,null,null,null,null,null,null,null,""]
[null,null,null,null,null,null,null,null,null,null,null,null,null,null,null,null,null,null,null,null,null,null,null,null,null,null,null,null,null,null,null,null,null,null,null,null,null,null,null,""]
[null,null,null,null,null,null,null,null,null,null,null,null,null,null,null,null,null,null,null,null,null,null,null,null,null,null,null,null,null,null,null,null,null,null,null,null,null,null,null,""]
[null,null,null,null,null,null,null,null,null,null,null,null,null,null,null,null,null,null,null,null,null,null,null,null,null,null,null,null,null,null,null,null,null,null,null,null,null,null,null,""]
[null,null,null,null,null,null,null,null,null,null,null,null,null,null,null,null,null,null,null,null,null,null,null,null,null,null,null,null,null,null,null,null,null,null,null,null,null,null,null,""]
[null,null,null,null,null,null,null,null,null,null,null,null,null,null,null,null,null,null,null,null,null,null,null,null,null,null,null,null,null,null,null,null,null,null,null,null,null,null,null,""]
[null,null,null,null,null,null,null,null,null,null,null,null,null,null,null,null,null,null,null,null,null,null,null,null,null,null,null,null,null,null,null,null,null,null,null,null,null,null,null,""]
[null,null,null,null,null,null,null,null,null,null,null,null,null,null,null,null,null,null,null,null,null,null,null,null,null,null,null,null,null,null,null,null,null,null,null,null,null,null,null,""]
[null,null,null,null,null,null,null,null,null,null,null,null,null,null,null,null,null,null,null,null,null,null,null,null,null,null,null,null,null,null,null,null,null,null,null,null,null,null,null,{"$f":"IF(AH316=\"\",\"\",AE316*AH316)","v":""}]
[null,null,null,null,null,null,null,null,null,null,null,null,null,null,null,null,null,null,null,null,null,null,null,null,null,null,null,null,null,null,null,null,null,null,null,null,null,null,null,""]
[null,null,null,null,null,null,null,null,null,null,null,null,null,null,null,null,null,null,null,null,null,null,null,null,null,null,null,null,null,null,null,null,null,null,null,null,null,null,null,""]
[null,null,null,null,null,null,null,null,null,null,null,null,null,null,null,null,null,null,null,null,null,null,null,null,null,null,null,null,null,null,null,null,null,null,null,null,null,null,null,""]
[null,null,null,null,null,null,null,null,null,null,null,null,null,null,null,null,null,null,null,null,null,null,null,null,null,null,null,null,null,null,null,null,null,null,null,null,null,null,null,""]
[null,null,null,null,null,null,null,null,null,null,null,null,null,null,null,null,null,null,null,null,null,null,null,null,null,null,null,null,null,null,null,null,null,null,null,null,null,null,null,""]
[null,null,null,null,null,null,null,null,null,null,null,null,null,null,null,null,null,null,null,null,null,null,null,null,null,null,null,null,null,null,null,null,null,null,null,null,null,null,null,""]
[null,null,null,null,null,null,null,null,null,null,null,null,null,null,null,null,null,null,null,null,null,null,null,null,null,null,null,null,null,null,null,null,null,null,null,null,null,null,null,""]
[null,null,null,null,null,null,null,null,null,null,null,null,null,null,null,null,null,null,null,null,null,null,null,null,null,null,null,null,null,null,null,null,null,null,null,null,null,null,null,""]
[null,null,null,null,null,null,null,null,null,null,null,null,null,null,null,null,null,null,null,null,null,null,null,null,null,null,null,null,null,null,null,null,null,null,null,null,null,null,null,""]
[null,null,null,null,null,null,null,null,null,null,null,null,null,null,null,null,null,null,null,null,null,null,null,null,null,null,null,null,null,null,null,null,null,null,null,null,null,null,null,""]
[null,null,null,null,null,null,null,null,null,null,null,null,null,null,null,null,null,null,null,null,null,null,null,null,null,null,null,null,null,null,null,null,null,null,null,null,null,null,null,""]
[null,null,null,null,null,null,null,null,null,null,null,null,null,null,null,null,null,null,null,null,null,null,null,null,null,null,null,null,null,null,null,null,null,null,null,null,null,null,null,""]
[null,null,null,null,null,null,null,null,null,null,null,null,null,null,null,null,null,null,null,null,null,null,null,null,null,null,null,null,null,null,null,null,null,null,null,null,null,null,null,""]
[null,null,null,null,null,null,null,null,null,null,null,null,null,null,null,null,null,null,null,null,null,null,null,null,null,null,null,null,null,null,null,null,null,null,null,null,null,null,null,""]
[null,null,null,null,null,null,null,null,null,null,null,null,null,null,null,null,null,null,null,null,null,null,null,null,null,null,null,null,null,null,null,null,null,null,null,null,null,null,null,""]
[null,null,null,null,null,null,null,null,null,null,null,null,null,null,null,null,null,null,null,null,null,null,null,null,null,null,null,null,null,null,null,null,null,null,null,null,null,null,null,""]
[null,null,null,null,null,null,null,null,null,null,null,null,null,null,null,null,null,null,null,null,null,null,null,null,null,null,null,null,null,null,null,null,null,null,null,null,null,null,null,""]
[null,null,null,null,null,null,null,null,null,null,null,null,null,null,null,null,null,null,null,null,null,null,null,null,null,null,null,null,null,null,null,null,null,null,null,null,null,null,null,""]
[null,null,null,null,null,null,null,null,null,null,null,null,null,null,null,null,null,null,null,null,null,null,null,null,null,null,null,null,null,null,null,null,null,null,null,null,null,null,null,""]
[null,null,null,null,null,null,null,null,null,null,null,null,null,null,null,null,null,null,null,null,null,null,null,null,null,null,null,null,null,null,null,null,null,null,null,null,null,null,null,""]
[null,null,null,null,null,null,null,null,null,null,null,null,null,null,null,null,null,null,null,null,null,null,null,null,null,null,null,null,null,null,null,null,null,null,null,null,null,null,null,""]
[null,null,null,null,null,null,null,null,null,null,null,null,null,null,null,null,null,null,null,null,null,null,null,null,null,null,null,null,null,null,null,null,null,null,null,null,null,null,null,""]
[null,null,null,null,null,null,null,null,null,null,null,null,null,null,null,null,null,null,null,null,null,null,null,null,null,null,null,null,null,null,null,null,null,null,null,null,null,null,null,""]
[null,null,null,null,null,null,null,null,null,null,null,null,null,null,null,null,null,null,null,null,null,null,null,null,null,null,null,null,null,null,null,null,null,null,null,null,null,null,null,""]
[null,null,null,null,null,null,null,null,null,null,null,null,null,null,null,null,null,null,null,null,null,null,null,null,null,null,null,null,null,null,null,null,null,null,null,null,null,null,null,""]
[null,null,null,null,null,null,null,null,null,null,null,null,null,null,null,null,null,null,null,null,null,null,null,null,null,null,null,null,null,null,null,null,null,null,null,null,null,null,null,""]
[null,null,null,null,null,null,null,null,null,null,null,null,null,null,null,null,null,null,null,null,null,null,null,null,null,null,null,null,null,null,null,null,null,null,null,null,null,null,null,""]
[null,null,null,null,null,null,null,null,null,null,null,null,null,null,null,null,null,null,null,null,null,null,null,null,null,null,null,null,null,null,null,null,null,null,null,null,null,null,null,""]
[null,null,null,null,null,null,null,null,null,null,null,null,null,null,null,null,null,null,null,null,null,null,null,null,null,null,null,null,null,null,null,null,null,null,null,null,null,null,null,""]
[null,null,null,null,null,null,null,null,null,null,null,null,null,null,null,null,null,null,null,null,null,null,null,null,null,null,null,null,null,null,null,null,null,null,null,null,null,null,null,""]
[null,null,null,null,null,null,null,null,null,null,null,null,null,null,null,null,null,null,null,null,null,null,null,null,null,null,null,null,null,null,null,null,null,null,null,null,null,null,null,""]
[null,null,null,null,null,null,null,null,null,null,null,null,null,null,null,null,null,null,null,null,null,null,null,null,null,null,null,null,null,null,null,null,null,null,null,null,null,null,null,""]
[null,null,null,null,null,null,null,null,null,null,null,null,null,null,null,null,null,null,null,null,null,null,null,null,null,null,null,null,null,null,null,null,null,null,null,null,null,null,null,""]
[null,null,null,null,null,null,null,null,null,null,null,null,null,null,null,null,null,null,null,null,null,null,null,null,null,null,null,null,null,null,null,null,null,null,null,null,null,null,null,""]
[null,null,null,null,null,null,null,null,null,null,null,null,null,null,null,null,null,null,null,null,null,null,null,null,null,null,null,null,null,null,null,null,null,null,null,null,null,null,null,""]
[null,null,null,null,null,null,null,null,null,null,null,null,null,null,null,null,null,null,null,null,null,null,null,null,null,null,null,null,null,null,null,null,null,null,null,null,null,null,null,""]
[null,null,null,null,null,null,null,null,null,null,null,null,null,null,null,null,null,null,null,null,null,null,null,null,null,null,null,null,null,null,null,null,null,null,null,null,null,null,null,""]
[null,null,null,null,null,null,null,null,null,null,null,null,null,null,null,null,null,null,null,null,null,null,null,null,null,null,null,null,null,null,null,null,null,null,null,null,null,null,null,""]
[null,null,null,null,null,null,null,null,null,null,null,null,null,null,null,null,null,null,null,null,null,null,null,null,null,null,null,null,null,null,null,null,null,null,null,null,null,null,null,""]
[null,null,null,null,null,null,null,null,null,null,null,null,null,null,null,null,null,null,null,null,null,null,null,null,null,null,null,null,null,null,null,null,null,null,null,null,null,null,null,""]
[null,null,null,null,null,null,null,null,null,null,null,null,null,null,null,null,null,null,null,null,null,null,null,null,null,null,null,null,null,null,null,null,null,null,null,null,null,null,null,""]
[null,null,null,null,null,null,null,null,null,null,null,null,null,null,null,null,null,null,null,null,null,null,null,null,null,null,null,null,null,null,null,null,null,null,null,null,null,null,null,""]
[null,null,null,null,null,null,null,null,null,null,null,null,null,null,null,null,null,null,null,null,null,null,null,null,null,null,null,null,null,null,null,null,null,null,null,null,null,null,null,""]
[null,null,null,null,null,null,null,null,null,null,null,null,null,null,null,null,null,null,null,null,null,null,null,null,null,null,null,null,null,null,null,null,null,null,null,null,null,null,null,""]
[null,null,null,null,null,null,null,null,null,null,null,null,null,null,null,null,null,null,null,null,null,null,null,null,null,null,null,null,null,null,null,null,null,null,null,null,null,null,null,""]
[null,null,null,null,null,null,null,null,null,null,null,null,null,null,null,null,null,null,null,null,null,null,null,null,null,null,null,null,null,null,null,null,null,null,null,null,null,null,null,""]
[null,null,null,null,null,null,null,null,null,null,null,null,null,null,null,null,null,null,null,null,null,null,null,null,null,null,null,null,null,null,null,null,null,null,null,null,null,null,null,""]
[null,null,null,null,null,null,null,null,null,null,null,null,null,null,null,null,null,null,null,null,null,null,null,null,null,null,null,null,null,null,null,null,null,null,null,null,null,null,null,""]
[null,null,null,null,null,null,null,null,null,null,null,null,null,null,null,null,null,null,null,null,null,null,null,null,null,null,null,null,null,null,null,null,null,null,null,null,null,null,null,""]
[null,null,null,null,null,null,null,null,null,null,null,null,null,null,null,null,null,null,null,null,null,null,null,null,null,null,null,null,null,null,null,null,null,null,null,null,null,null,null,{"$f":"IF(AH366=\"\",\"\",AE366*AH366)","v":""}]
[null,null,null,null,null,null,null,null,null,null,null,null,null,null,null,null,null,null,null,null,null,null,null,null,null,null,null,null,null,null,null,null,null,null,null,null,null,null,null,""]
["TOTAL",null,null,null,null,null,null,null,null,null,null,null,null,null,null,null,null,null,null,null,null,null,null,null,null,null,null,null,null,null,null,null,null,null,null,null,null,null,null,{"$f":"IF(SUM(AN168:AS367)=0,\"-\",SUM(AN168:AS367))","v":"-"}]
[]
["III - SEMOVENTES"]
["BOVINOS"]
["TIPO DE ANIMAL",null,null,null,null,null,null,"IDADE MÉDIA\n(MESES)",null,null,null,null,null,"RAÇA:",null,null,null,null,null,"COR PREDOMINANTE",null,null,null,null,null,null,"QUANTIDADE \n(Nº CABEÇAS)",null,null,null,null,null,null,"VALOR  UN.\n (R$)",null,null,null,null,null,"VALOR \nTOTAL (R$)"]
[null,null,null,null,null,null,null,null,null,null,null,null,null,null,null,null,null,null,null,null,null,null,null,null,null,null,null,null,null,null,null,null,null,null,null,null,null,null,null,{"$f":"IF(OR(AH373=\"\",AA373=\"\"),\"\",AH373*AA373)","v":""},null,null,null,null,null,null,{"$f":"SUM(AV372:AV422)","v":1},1]
[null,null,null,null,null,null,null,null,null,null,null,null,null,null,null,null,null,null,null,null,null,null,null,null,null,null,null,null,null,null,null,null,null,null,null,null,null,null,null,{"$f":"IF(OR(AH374=\"\",AA374=\"\"),\"\",AH374*AA374)","v":""}]
[null,null,null,null,null,null,null,null,null,null,null,null,null,null,null,null,null,null,null,null,null,null,null,null,null,null,null,null,null,null,null,null,null,null,null,null,null,null,null,""]
[null,null,null,null,null,null,null,null,null,null,null,null,null,null,null,null,null,null,null,null,null,null,null,null,null,null,null,null,null,null,null,null,null,null,null,null,null,null,null,""]
[null,null,null,null,null,null,null,null,null,null,null,null,null,null,null,null,null,null,null,null,null,null,null,null,null,null,null,null,null,null,null,null,null,null,null,null,null,null,null,""]
[null,null,null,null,null,null,null,null,null,null,null,null,null,null,null,null,null,null,null,null,null,null,null,null,null,null,null,null,null,null,null,null,null,null,null,null,null,null,null,""]
[null,null,null,null,null,null,null,null,null,null,null,null,null,null,null,null,null,null,null,null,null,null,null,null,null,null,null,null,null,null,null,null,null,null,null,null,null,null,null,""]
[null,null,null,null,null,null,null,null,null,null,null,null,null,null,null,null,null,null,null,null,null,null,null,null,null,null,null,null,null,null,null,null,null,null,null,null,null,null,null,""]
[null,null,null,null,null,null,null,null,null,null,null,null,null,null,null,null,null,null,null,null,null,null,null,null,null,null,null,null,null,null,null,null,null,null,null,null,null,null,null,""]
[null,null,null,null,null,null,null,null,null,null,null,null,null,null,null,null,null,null,null,null,null,null,null,null,null,null,null,null,null,null,null,null,null,null,null,null,null,null,null,""]
[null,null,null,null,null,null,null,null,null,null,null,null,null,null,null,null,null,null,null,null,null,null,null,null,null,null,null,null,null,null,null,null,null,null,null,null,null,null,null,""]
[null,null,null,null,null,null,null,null,null,null,null,null,null,null,null,null,null,null,null,null,null,null,null,null,null,null,null,null,null,null,null,null,null,null,null,null,null,null,null,""]
[null,null,null,null,null,null,null,null,null,null,null,null,null,null,null,null,null,null,null,null,null,null,null,null,null,null,null,null,null,null,null,null,null,null,null,null,null,null,null,""]
[null,null,null,null,null,null,null,null,null,null,null,null,null,null,null,null,null,null,null,null,null,null,null,null,null,null,null,null,null,null,null,null,null,null,null,null,null,null,null,""]
[null,null,null,null,null,null,null,null,null,null,null,null,null,null,null,null,null,null,null,null,null,null,null,null,null,null,null,null,null,null,null,null,null,null,null,null,null,null,null,""]
[null,null,null,null,null,null,null,null,null,null,null,null,null,null,null,null,null,null,null,null,null,null,null,null,null,null,null,null,null,null,null,null,null,null,null,null,null,null,null,""]
[null,null,null,null,null,null,null,null,null,null,null,null,null,null,null,null,null,null,null,null,null,null,null,null,null,null,null,null,null,null,null,null,null,null,null,null,null,null,null,""]
[null,null,null,null,null,null,null,null,null,null,null,null,null,null,null,null,null,null,null,null,null,null,null,null,null,null,null,null,null,null,null,null,null,null,null,null,null,null,null,""]
[null,null,null,null,null,null,null,null,null,null,null,null,null,null,null,null,null,null,null,null,null,null,null,null,null,null,null,null,null,null,null,null,null,null,null,null,null,null,null,{"$f":"IF(OR(AH391=\"\",AA391=\"\"),\"\",AH391*AA391)","v":""}]
[null,null,null,null,null,null,null,null,null,null,null,null,null,null,null,null,null,null,null,null,null,null,null,null,null,null,null,null,null,null,null,null,null,null,null,null,null,null,null,""]
[null,null,null,null,null,null,null,null,null,null,null,null,null,null,null,null,null,null,null,null,null,null,null,null,null,null,null,null,null,null,null,null,null,null,null,null,null,null,null,""]
[null,null,null,null,null,null,null,null,null,null,null,null,null,null,null,null,null,null,null,null,null,null,null,null,null,null,null,null,null,null,null,null,null,null,null,null,null,null,null,""]
[null,null,null,null,null,null,null,null,null,null,null,null,null,null,null,null,null,null,null,null,null,null,null,null,null,null,null,null,null,null,null,null,null,null,null,null,null,null,null,""]
[null,null,null,null,null,null,null,null,null,null,null,null,null,null,null,null,null,null,null,null,null,null,null,null,null,null,null,null,null,null,null,null,null,null,null,null,null,null,null,""]
[null,null,null,null,null,null,null,null,null,null,null,null,null,null,null,null,null,null,null,null,null,null,null,null,null,null,null,null,null,null,null,null,null,null,null,null,null,null,null,""]
[null,null,null,null,null,null,null,null,null,null,null,null,null,null,null,null,null,null,null,null,null,null,null,null,null,null,null,null,null,null,null,null,null,null,null,null,null,null,null,""]
[null,null,null,null,null,null,null,null,null,null,null,null,null,null,null,null,null,null,null,null,null,null,null,null,null,null,null,null,null,null,null,null,null,null,null,null,null,null,null,""]
[null,null,null,null,null,null,null,null,null,null,null,null,null,null,null,null,null,null,null,null,null,null,null,null,null,null,null,null,null,null,null,null,null,null,null,null,null,null,null,""]
[null,null,null,null,null,null,null,null,null,null,null,null,null,null,null,null,null,null,null,null,null,null,null,null,null,null,null,null,null,null,null,null,null,null,null,null,null,null,null,""]
[null,null,null,null,null,null,null,null,null,null,null,null,null,null,null,null,null,null,null,null,null,null,null,null,null,null,null,null,null,null,null,null,null,null,null,null,null,null,null,""]
[null,null,null,null,null,null,null,null,null,null,null,null,null,null,null,null,null,null,null,null,null,null,null,null,null,null,null,null,null,null,null,null,null,null,null,null,null,null,null,""]
[null,null,null,null,null,null,null,null,null,null,null,null,null,null,null,null,null,null,null,null,null,null,null,null,null,null,null,null,null,null,null,null,null,null,null,null,null,null,null,""]
[null,null,null,null,null,null,null,null,null,null,null,null,null,null,null,null,null,null,null,null,null,null,null,null,null,null,null,null,null,null,null,null,null,null,null,null,null,null,null,""]
[null,null,null,null,null,null,null,null,null,null,null,null,null,null,null,null,null,null,null,null,null,null,null,null,null,null,null,null,null,null,null,null,null,null,null,null,null,null,null,""]
[null,null,null,null,null,null,null,null,null,null,null,null,null,null,null,null,null,null,null,null,null,null,null,null,null,null,null,null,null,null,null,null,null,null,null,null,null,null,null,""]
[null,null,null,null,null,null,null,null,null,null,null,null,null,null,null,null,null,null,null,null,null,null,null,null,null,null,null,null,null,null,null,null,null,null,null,null,null,null,null,""]
[null,null,null,null,null,null,null,null,null,null,null,null,null,null,null,null,null,null,null,null,null,null,null,null,null,null,null,null,null,null,null,null,null,null,null,null,null,null,null,""]
[null,null,null,null,null,null,null,null,null,null,null,null,null,null,null,null,null,null,null,null,null,null,null,null,null,null,null,null,null,null,null,null,null,null,null,null,null,null,null,""]
[null,null,null,null,null,null,null,null,null,null,null,null,null,null,null,null,null,null,null,null,null,null,null,null,null,null,null,null,null,null,null,null,null,null,null,null,null,null,null,""]
[null,null,null,null,null,null,null,null,null,null,null,null,null,null,null,null,null,null,null,null,null,null,null,null,null,null,null,null,null,null,null,null,null,null,null,null,null,null,null,""]
[null,null,null,null,null,null,null,null,null,null,null,null,null,null,null,null,null,null,null,null,null,null,null,null,null,null,null,null,null,null,null,null,null,null,null,null,null,null,null,""]
[null,null,null,null,null,null,null,null,null,null,null,null,null,null,null,null,null,null,null,null,null,null,null,null,null,null,null,null,null,null,null,null,null,null,null,null,null,null,null,""]
[null,null,null,null,null,null,null,null,null,null,null,null,null,null,null,null,null,null,null,null,null,null,null,null,null,null,null,null,null,null,null,null,null,null,null,null,null,null,null,""]
[null,null,null,null,null,null,null,null,null,null,null,null,null,null,null,null,null,null,null,null,null,null,null,null,null,null,null,null,null,null,null,null,null,null,null,null,null,null,null,""]
[null,null,null,null,null,null,null,null,null,null,null,null,null,null,null,null,null,null,null,null,null,null,null,null,null,null,null,null,null,null,null,null,null,null,null,null,null,null,null,""]
[null,null,null,null,null,null,null,null,null,null,null,null,null,null,null,null,null,null,null,null,null,null,null,null,null,null,null,null,null,null,null,null,null,null,null,null,null,null,null,""]
[null,null,null,null,null,null,null,null,null,null,null,null,null,null,null,null,null,null,null,null,null,null,null,null,null,null,null,null,null,null,null,null,null,null,null,null,null,null,null,""]
[null,null,null,null,null,null,null,null,null,null,null,null,null,null,null,null,null,null,null,null,null,null,null,null,null,null,null,null,null,null,null,null,null,null,null,null,null,null,null,""]
[null,null,null,null,null,null,null,null,null,null,null,null,null,null,null,null,null,null,null,null,null,null,null,null,null,null,null,null,null,null,null,null,null,null,null,null,null,null,null,""]
[null,null,null,null,null,null,null,null,null,null,null,null,null,null,null,null,null,null,null,null,null,null,null,null,null,null,null,null,null,null,null,null,null,null,null,null,null,null,null,""]
["TOTAL",null,null,null,null,null,null,null,null,null,null,null,null,null,null,null,null,null,null,null,null,null,null,null,null,null,null,null,null,null,null,null,null,null,null,null,null,null,null,{"$f":"IF(SUM(AN373:AS422)=0,\"-\",SUM(AN373:AS422))","v":"-"}]
["OUTROS ANIMAIS"]
["TIPO DE ANIMAL",null,null,null,null,null,null,"DESCRIÇÃO",null,null,null,null,null,null,null,null,null,null,null,null,null,null,null,null,null,null,null,null,null,null,"QTDE",null,null,"VALOR \nUNITÁRIO (R$)",null,null,null,null,null,"VALOR \nTOTAL (R$)"]
[null,null,null,null,null,null,null,null,null,null,null,null,null,null,null,null,null,null,null,null,null,null,null,null,null,null,null,null,null,null,null,null,null,null,null,null,null,null,null,{"$f":"IF(OR(AH426=\"\",AE426=\"\"),\"\",AE426*AH426)","v":""},null,null,null,null,null,null,{"$f":"SUM(AV426:AV475)","v":1},1]
[null,null,null,null,null,null,null,null,null,null,null,null,null,null,null,null,null,null,null,null,null,null,null,null,null,null,null,null,null,null,null,null,null,null,null,null,null,null,null,{"$f":"IF(OR(AH427=\"\",AE427=\"\"),\"\",AE427*AH427)","v":""}]
[null,null,null,null,null,null,null,null,null,null,null,null,null,null,null,null,null,null,null,null,null,null,null,null,null,null,null,null,null,null,null,null,null,null,null,null,null,null,null,{"$f":"IF(OR(AH428=\"\",AE428=\"\"),\"\",AE428*AH428)","v":""}]
[null,null,null,null,null,null,null,null,null,null,null,null,null,null,null,null,null,null,null,null,null,null,null,null,null,null,null,null,null,null,null,null,null,null,null,null,null,null,null,""]
[null,null,null,null,null,null,null,null,null,null,null,null,null,null,null,null,null,null,null,null,null,null,null,null,null,null,null,null,null,null,null,null,null,null,null,null,null,null,null,""]
[null,null,null,null,null,null,null,null,null,null,null,null,null,null,null,null,null,null,null,null,null,null,null,null,null,null,null,null,null,null,null,null,null,null,null,null,null,null,null,""]
[null,null,null,null,null,null,null,null,null,null,null,null,null,null,null,null,null,null,null,null,null,null,null,null,null,null,null,null,null,null,null,null,null,null,null,null,null,null,null,""]
[null,null,null,null,null,null,null,null,null,null,null,null,null,null,null,null,null,null,null,null,null,null,null,null,null,null,null,null,null,null,null,null,null,null,null,null,null,null,null,""]
[null,null,null,null,null,null,null,null,null,null,null,null,null,null,null,null,null,null,null,null,null,null,null,null,null,null,null,null,null,null,null,null,null,null,null,null,null,null,null,""]
[null,null,null,null,null,null,null,null,null,null,null,null,null,null,null,null,null,null,null,null,null,null,null,null,null,null,null,null,null,null,null,null,null,null,null,null,null,null,null,""]
[null,null,null,null,null,null,null,null,null,null,null,null,null,null,null,null,null,null,null,null,null,null,null,null,null,null,null,null,null,null,null,null,null,null,null,null,null,null,null,""]
[null,null,null,null,null,null,null,null,null,null,null,null,null,null,null,null,null,null,null,null,null,null,null,null,null,null,null,null,null,null,null,null,null,null,null,null,null,null,null,""]
[null,null,null,null,null,null,null,null,null,null,null,null,null,null,null,null,null,null,null,null,null,null,null,null,null,null,null,null,null,null,null,null,null,null,null,null,null,null,null,""]
[null,null,null,null,null,null,null,null,null,null,null,null,null,null,null,null,null,null,null,null,null,null,null,null,null,null,null,null,null,null,null,null,null,null,null,null,null,null,null,""]
[null,null,null,null,null,null,null,null,null,null,null,null,null,null,null,null,null,null,null,null,null,null,null,null,null,null,null,null,null,null,null,null,null,null,null,null,null,null,null,""]
[null,null,null,null,null,null,null,null,null,null,null,null,null,null,null,null,null,null,null,null,null,null,null,null,null,null,null,null,null,null,null,null,null,null,null,null,null,null,null,""]
[null,null,null,null,null,null,null,null,null,null,null,null,null,null,null,null,null,null,null,null,null,null,null,null,null,null,null,null,null,null,null,null,null,null,null,null,null,null,null,""]
[null,null,null,null,null,null,null,null,null,null,null,null,null,null,null,null,null,null,null,null,null,null,null,null,null,null,null,null,null,null,null,null,null,null,null,null,null,null,null,{"$f":"IF(OR(AH443=\"\",AE443=\"\"),\"\",AE443*AH443)","v":""}]
[null,null,null,null,null,null,null,null,null,null,null,null,null,null,null,null,null,null,null,null,null,null,null,null,null,null,null,null,null,null,null,null,null,null,null,null,null,null,null,""]
[null,null,null,null,null,null,null,null,null,null,null,null,null,null,null,null,null,null,null,null,null,null,null,null,null,null,null,null,null,null,null,null,null,null,null,null,null,null,null,""]
[null,null,null,null,null,null,null,null,null,null,null,null,null,null,null,null,null,null,null,null,null,null,null,null,null,null,null,null,null,null,null,null,null,null,null,null,null,null,null,""]
[null,null,null,null,null,null,null,null,null,null,null,null,null,null,null,null,null,null,null,null,null,null,null,null,null,null,null,null,null,null,null,null,null,null,null,null,null,null,null,""]
[null,null,null,null,null,null,null,null,null,null,null,null,null,null,null,null,null,null,null,null,null,null,null,null,null,null,null,null,null,null,null,null,null,null,null,null,null,null,null,""]
[null,null,null,null,null,null,null,null,null,null,null,null,null,null,null,null,null,null,null,null,null,null,null,null,null,null,null,null,null,null,null,null,null,null,null,null,null,null,null,""]
[null,null,null,null,null,null,null,null,null,null,null,null,null,null,null,null,null,null,null,null,null,null,null,null,null,null,null,null,null,null,null,null,null,null,null,null,null,null,null,""]
[null,null,null,null,null,null,null,null,null,null,null,null,null,null,null,null,null,null,null,null,null,null,null,null,null,null,null,null,null,null,null,null,null,null,null,null,null,null,null,""]
[null,null,null,null,null,null,null,null,null,null,null,null,null,null,null,null,null,null,null,null,null,null,null,null,null,null,null,null,null,null,null,null,null,null,null,null,null,null,null,""]
[null,null,null,null,null,null,null,null,null,null,null,null,null,null,null,null,null,null,null,null,null,null,null,null,null,null,null,null,null,null,null,null,null,null,null,null,null,null,null,""]
[null,null,null,null,null,null,null,null,null,null,null,null,null,null,null,null,null,null,null,null,null,null,null,null,null,null,null,null,null,null,null,null,null,null,null,null,null,null,null,""]
[null,null,null,null,null,null,null,null,null,null,null,null,null,null,null,null,null,null,null,null,null,null,null,null,null,null,null,null,null,null,null,null,null,null,null,null,null,null,null,""]
[null,null,null,null,null,null,null,null,null,null,null,null,null,null,null,null,null,null,null,null,null,null,null,null,null,null,null,null,null,null,null,null,null,null,null,null,null,null,null,""]
[null,null,null,null,null,null,null,null,null,null,null,null,null,null,null,null,null,null,null,null,null,null,null,null,null,null,null,null,null,null,null,null,null,null,null,null,null,null,null,""]
[null,null,null,null,null,null,null,null,null,null,null,null,null,null,null,null,null,null,null,null,null,null,null,null,null,null,null,null,null,null,null,null,null,null,null,null,null,null,null,{"$f":"IF(OR(AH458=\"\",AE458=\"\"),\"\",AE458*AH458)","v":""}]
[null,null,null,null,null,null,null,null,null,null,null,null,null,null,null,null,null,null,null,null,null,null,null,null,null,null,null,null,null,null,null,null,null,null,null,null,null,null,null,""]
[null,null,null,null,null,null,null,null,null,null,null,null,null,null,null,null,null,null,null,null,null,null,null,null,null,null,null,null,null,null,null,null,null,null,null,null,null,null,null,""]
[null,null,null,null,null,null,null,null,null,null,null,null,null,null,null,null,null,null,null,null,null,null,null,null,null,null,null,null,null,null,null,null,null,null,null,null,null,null,null,""]
[null,null,null,null,null,null,null,null,null,null,null,null,null,null,null,null,null,null,null,null,null,null,null,null,null,null,null,null,null,null,null,null,null,null,null,null,null,null,null,""]
[null,null,null,null,null,null,null,null,null,null,null,null,null,null,null,null,null,null,null,null,null,null,null,null,null,null,null,null,null,null,null,null,null,null,null,null,null,null,null,""]
[null,null,null,null,null,null,null,null,null,null,null,null,null,null,null,null,null,null,null,null,null,null,null,null,null,null,null,null,null,null,null,null,null,null,null,null,null,null,null,{"$f":"IF(OR(AH464=\"\",AE464=\"\"),\"\",AE464*AH464)","v":""}]
[null,null,null,null,null,null,null,null,null,null,null,null,null,null,null,null,null,null,null,null,null,null,null,null,null,null,null,null,null,null,null,null,null,null,null,null,null,null,null,""]
[null,null,null,null,null,null,null,null,null,null,null,null,null,null,null,null,null,null,null,null,null,null,null,null,null,null,null,null,null,null,null,null,null,null,null,null,null,null,null,""]
[null,null,null,null,null,null,null,null,null,null,null,null,null,null,null,null,null,null,null,null,null,null,null,null,null,null,null,null,null,null,null,null,null,null,null,null,null,null,null,""]
[null,null,null,null,null,null,null,null,null,null,null,null,null,null,null,null,null,null,null,null,null,null,null,null,null,null,null,null,null,null,null,null,null,null,null,null,null,null,null,""]
[null,null,null,null,null,null,null,null,null,null,null,null,null,null,null,null,null,null,null,null,null,null,null,null,null,null,null,null,null,null,null,null,null,null,null,null,null,null,null,""]
[null,null,null,null,null,null,null,null,null,null,null,null,null,null,null,null,null,null,null,null,null,null,null,null,null,null,null,null,null,null,null,null,null,null,null,null,null,null,null,""]
[null,null,null,null,null,null,null,null,null,null,null,null,null,null,null,null,null,null,null,null,null,null,null,null,null,null,null,null,null,null,null,null,null,null,null,null,null,null,null,""]
[null,null,null,null,null,null,null,null,null,null,null,null,null,null,null,null,null,null,null,null,null,null,null,null,null,null,null,null,null,null,null,null,null,null,null,null,null,null,null,""]
[null,null,null,null,null,null,null,null,null,null,null,null,null,null,null,null,null,null,null,null,null,null,null,null,null,null,null,null,null,null,null,null,null,null,null,null,null,null,null,""]
[null,null,null,null,null,null,null,null,null,null,null,null,null,null,null,null,null,null,null,null,null,null,null,null,null,null,null,null,null,null,null,null,null,null,null,null,null,null,null,""]
[null,null,null,null,null,null,null,null,null,null,null,null,null,null,null,null,null,null,null,null,null,null,null,null,null,null,null,null,null,null,null,null,null,null,null,null,null,null,null,""]
["TOTAL",null,null,null,null,null,null,null,null,null,null,null,null,null,null,null,null,null,null,null,null,null,null,null,null,null,null,null,null,null,null,null,null,null,null,null,null,null,null,{"$f":"IF(SUM(AN426:AS475)=0,\"-\",SUM(AN426:AS475))","v":"-"}]
[]
[null,null,null,null,null,null,null,null,null,null,null,"PATRIMÔNIO TOTAL"]
[null,null,null,null,null,null,null,null,null,null,null,{"$f":"A7","v":"I - BENS IMÓVEIS"},null,null,null,null,null,null,null,null,null,null,null,null,null,null,null,null,{"$f":"SUM(AC480:AH482)","v":0}]
[null,null,null,null,null,null,null,null,null,null,null,"RURAIS",null,null,null,null,null,null,null,null,null,null,null,null,null,null,null,null,{"$f":"SUMIF(C10:E109,\"RURAL\",AO10:AS109)","v":0}]
[null,null,null,null,null,null,null,null,null,null,null,"URBANOS",null,null,null,null,null,null,null,null,null,null,null,null,null,null,null,null,{"$f":"SUMIF(C10:E109,\"URBANO\",AO10:AS109)","v":0}]
[null,null,null,null,null,null,null,null,null,null,null,"BENFEITORIAS",null,null,null,null,null,null,null,null,null,null,null,null,null,null,null,null,{"$f":"SUM(AN113:AS162)","v":0}]
[null,null,null,null,null,null,null,null,null,null,null,{"$f":"A165","v":"II - BENS MÓVEIS"},null,null,null,null,null,null,null,null,null,null,null,null,null,null,null,null,{"$f":"SUM(AN168:AS367)","v":0}]
[null,null,null,null,null,null,null,null,null,null,null,"VEÍCULOS",null,null,null,null,null,null,null,null,null,null,null,null,null,null,null,null,{"$f":"SUMIF(A168:F367,\"VEÍCULO\",AN168:AS367)","v":0}]
[null,null,null,null,null,null,null,null,null,null,null,"MÁQUINAS",null,null,null,null,null,null,null,null,null,null,null,null,null,null,null,null,{"$f":"SUMIF(A168:F367,\"MÁQUINA\",AN168:AS367)","v":0}]
[null,null,null,null,null,null,null,null,null,null,null,"EQUIPAMENTOS",null,null,null,null,null,null,null,null,null,null,null,null,null,null,null,null,{"$f":"SUMIF(A168:F367,\"EQUIPAMENTO\",AN168:AS367)","v":0}]
[null,null,null,null,null,null,null,null,null,null,null,{"$f":"A370","v":"III - SEMOVENTES"},null,null,null,null,null,null,null,null,null,null,null,null,null,null,null,null,{"$f":"SUM(AC488:AH489)","v":0}]
[null,null,null,null,null,null,null,null,null,null,null,"BOVINOS",null,null,null,null,null,null,null,null,null,null,null,null,null,null,null,null,{"$f":"SUM(AN373:AS422)","v":0}]
[null,null,null,null,null,null,null,null,null,null,null,"OUTROS ANIMAIS",null,null,null,null,null,null,null,null,null,null,null,null,null,null,null,null,{"$f":"SUM(AN426:AS475)","v":0}]
[null,null,null,null,null,null,null,null,null,null,null,"TOTAL",null,null,null,null,null,null,null,null,null,null,null,null,null,null,null,null,{"$f":"PAT_IMOVEIS+PAT_MOVEIS+PAT_SEMOVENTES","v":0}]
[]
[]
[]
[]
["________________________________________",null,null,null,null,null,null,null,null,null,null,null,null,null,null,null,null,null,null,null,null,null,null,null,null,"________________________________________"]
[{"$f":"UPPER(EMPREENDIMENTO!F19)","v":""},null,null,null,null,null,null,null,null,null,null,null,null,null,null,null,null,null,null,null,null,null,null,null,null,{"$f":"UPPER(EMPREENDIMENTO!H15)","v":""}]
["Proponente",null,null,null,null,null,null,null,null,null,null,null,null,null,null,null,null,null,null,null,null,null,null,null,null,"Responsável Técnico"]

{"sheet":"REGRAS","index":15,"n_rows":22,"n_cols":5,"rows_kept":22,"cut":false,"hidden":true,"merged":[]}
[null,null,null,null,{"$f":"COUNTIF(B:B,\"OK\")","v":16}]
["DESCRIÇÃO","SITUAÇÃO","PÁGINA"]
["INFORMAÇÕES OBRIGATÓRIAS DA EMPRESA ELABORADORA - AUSENTES",{"$f":"EMPREENDIMENTO!AT7","v":"AUSENTE"},"EMPREENDIMENTO"]
["INFORMAÇÕES OBRIGATÓRIAS DE IDENTIFICAÇÃO DO PROPONENTE  - AUSENTES",{"$f":"EMPREENDIMENTO!AT17","v":"AUSENTE"},"EMPREENDIMENTO"]
["DADOS DE IDENTIFICAÇÃO DO IMÓVEL 1 - AUSENTES",{"$f":"EMPREENDIMENTO!AT29","v":"AUSENTE"},"EMPREENDIMENTO"]
["DADOS DE IDENTIFICAÇÃO DO IMÓVEL 2 - AUSENTES",{"$f":"IF(EMPREENDIMENTO!K27<2,\"OK\",EMPREENDIMENTO!AT37)","v":"OK"},"EMPREENDIMENTO"]
["DADOS DE IDENTIFICAÇÃO DO IMÓVEL 3 - AUSENTES",{"$f":"IF(EMPREENDIMENTO!K27<3,\"OK\",EMPREENDIMENTO!AT45)","v":"OK"},"EMPREENDIMENTO"]
["EXISTEM CAMPOS NAS INFORMAÇÕES SOBRE O EMPREENDIMENTO QUE NÃO FORAM PREENCHIDOS",{"$f":"EMPREENDIMENTO!AT53","v":"AUSENTE"},"EMPREENDIMENTO"]
["COORDENADAS DO IMÓVEL 1 AUSENTES","OK","EMPREENDIMENTO"]
["COORDENADAS DO IMÓVEL 2 AUSENTES","OK","EMPREENDIMENTO"]
["COORDENADAS DO IMÓVEL 3 AUSENTES","OK","EMPREENDIMENTO"]
["ROTEIRO DE ACESSO DO IMÓVEL 1","OK","IMÓVEIS"]
["ROTEIRO DE ACESSO DO IMÓVEL 2","OK","IMÓVEIS"]
["ROTEIRO DE ACESSO DO IMÓVEL 3","OK","IMÓVEIS"]
["VALOR TOTAL DO FINANCIAMENTO DIFERENTE DO ORÇAMENTO I",{"$f":"IF(AND(TIPO_ORÇAMENTO=1,ORÇAMENTO1_TABELA1[[#Totals],[CUSTO TOTAL\n(R$)]]<>TOTAL_INVESTIMENTO),\"ERRO\",\"OK\")","v":"OK"},"ORÇAMENTO"]
["VALOR TOTAL DO FINANCIAMENTO DIFERENTE DO ORÇAMENTO II",{"$f":"IF(AND(TIPO_ORÇAMENTO=2,VALOR_ORÇADO<>TOTAL_INVESTIMENTO),\"ERRO\",\"OK\")","v":"OK"},"ORÇAMENTO"]
["VALOR TOTAL DO FINANCIAMENTO DIFERENTE DO ORÇAMENTO III","OK","ORÇAMENTO"]
["VALOR TOTAL DO FINANCIAMENTO DIFERENTE DO ORÇAMENTO IV",{"$f":"IF(AND(TIPO_ORÇAMENTO=4,'ORÇAMENTO_TIPO IV'!VALOR_ORÇADO<>TOTAL_INVESTIMENTO),\"ERRO\",\"OK\")","v":"OK"},"ORÇAMENTO"]
["VALOR A SER FINANCIADO DIFERENTE DO ORÇAMENTO I",{"$f":"IF(AND(TIPO_ORÇAMENTO=1,ORÇAMENTO1_TABELA1[[#Totals],[FINANCIADO\n (R$)]]<>VALOR_TOTAL),\"ERRO\",\"OK\")","v":"OK"},"ORÇAMENTO"]
["VALOR A SER FINANCIADO DIFERENTE DO ORÇAMENTO II",{"$f":"IF(AND(TIPO_ORÇAMENTO=2,VALOR_FINANCIADO<>VALOR_TOTAL),\"ERRO\",\"OK\")","v":"OK"},"ORÇAMENTO"]
["VALOR A SER FINANCIADO DIFERENTE DO ORÇAMENTO III","OK","ORÇAMENTO"]
["VALOR A SER FINANCIADO DIFERENTE DO ORÇAMENTO IV",{"$f":"IF(AND(TIPO_ORÇAMENTO=4,'ORÇAMENTO_TIPO IV'!VALOR_FINANCIADO<>VALOR_TOTAL),\"ERRO\",\"OK\")","v":"OK"},"ORÇAMENTO"]

{"sheet":"LISTA_INVESTIMENTO","index":16,"n_rows":74,"n_cols":7,"rows_kept":74,"cut":false,"hidden":true,"merged":[[7,3,17,3]]}
[]
["PECUÁRIA","AQUISIÇÃO DE ANIMAIS","BOVINOS","DAQUI PARA FRENTE",null,"AQUISIÇÃO DE ANIMAIS",3]
["PECUÁRIA","AQUISIÇÃO DE ANIMAIS","OUTRO (NÃO LISTADO)","É TUDO VARIÁVEL",null,"AQUISIÇÃO DE VEÍCULOS",1]
["AGRÍCOLA","AQUISIÇÃO DE VEÍCULOS","AQUISIÇÃO DE EMPILHADEIRA(S)/TOMBADORA(S)","DE ACORDO COM OS ",null,"FORMAÇÃO DE CULTURAS PERENES",2]
["AGRÍCOLA","AQUISIÇÃO DE VEÍCULOS","CAMINHÕES","VALORES DA PLNILHA",null,"MÁQUINAS, EQUIPAMENTOS, MATERIAIS E UTENSÍLIOS",1]
["AGRÍCOLA","AQUISIÇÃO DE VEÍCULOS","CAMIONETAS","EMPREENDIMENTO",null,"MELHORAMENTO DAS EXPLORAÇÕES",4]
["AGRÍCOLA","AQUISIÇÃO DE VEÍCULOS","CARRETAS, CARROÇAS E VAGÕES DE CARGA, FORRAGEIROS E DEMAIS",null,null,"OUTRA MODALIDADE",1]
["PECUÁRIA","AQUISIÇÃO DE VEÍCULOS","CAMIONETAS","ESSA PARTE FOI DESATIVADA QUANDO TIVE QUE MEXER NA COMPATIBILIDADE COM O EXCEL 2019. AI CRIEI UMA PLANILHA IGUAL A ESSA SEM USAR AS FUNÇÕES NOVAS.",null,"PASTAGEM",2]
["PECUÁRIA","AQUISIÇÃO DE VEÍCULOS","CARRETAS, CARROÇAS E VAGÕES DE CARGA, FORRAGEIROS E DEMAIS"]
["PECUÁRIA","AQUISIÇÃO DE VEÍCULOS","JIPES, FURGÕES E SEMELHANTES"]
["PECUÁRIA","AQUISIÇÃO DE VEÍCULOS","OUTRO (NÃO LISTADO)"]
["AGRÍCOLA","AQUISIÇÃO DE VEÍCULOS","OUTRO (NÃO LISTADO)"]
["AGRÍCOLA","FORMAÇÃO DE CULTURAS PERENES","CAFÉ"]
["AGRÍCOLA","FORMAÇÃO DE CULTURAS PERENES","MANGA"]
["AGRÍCOLA","FORMAÇÃO DE CULTURAS PERENES","UVA"]
["AGRÍCOLA","FORMAÇÃO DE CULTURAS PERENES","ABACATE"]
["AGRÍCOLA","FORMAÇÃO DE CULTURAS PERENES","OUTRO (NÃO LISTADO)"]
["AGRÍCOLA","MÁQUINAS, EQUIPAMENTOS, MATERIAIS E UTENSÍLIOS","MÁQUINAS E IMPLEMENTOS"]
["AGRÍCOLA","MÁQUINAS, EQUIPAMENTOS, MATERIAIS E UTENSÍLIOS","TRATOR"]
["AGRÍCOLA","MÁQUINAS, EQUIPAMENTOS, MATERIAIS E UTENSÍLIOS","IRRIGAÇÃO/LIXIVIAÇÃO (GOTEJADOR, ASPERSOR, NEBULIZADOR, EXAUSTOR, VENTILADOR, MANGUEIRAS, CANAIS ET)"]
["AGRÍCOLA","MÁQUINAS, EQUIPAMENTOS, MATERIAIS E UTENSÍLIOS","MÁQUINAS E IMPLEMENTOS"]
["AGRÍCOLA","MÁQUINAS, EQUIPAMENTOS, MATERIAIS E UTENSÍLIOS","REBOQUES, SEMIREBOQUES, CAÇAMBAS E CABINES"]
["AGRÍCOLA","MÁQUINAS, EQUIPAMENTOS, MATERIAIS E UTENSÍLIOS","TRATOR"]
["AGRÍCOLA","MÁQUINAS, EQUIPAMENTOS, MATERIAIS E UTENSÍLIOS","AQUISIÇÃO DE CAIXAS D'ÁGUA, LONAS, TOLDOS, CAMPÂNULAS"]
["AGRÍCOLA","MÁQUINAS, EQUIPAMENTOS, MATERIAIS E UTENSÍLIOS","AQUISIÇÃO DE EQUIPAMENTOS PARA MOLDAGEM, TORNOS, MOINHOS E PRENSA"]
["AGRÍCOLA","MÁQUINAS, EQUIPAMENTOS, MATERIAIS E UTENSÍLIOS","AQUISIÇÃO DE MAQUINA(S)/EQUIPAMENTO(S) PARA EXTRAÇÃO/FABRICAÇÃO"]
["AGRÍCOLA","MÁQUINAS, EQUIPAMENTOS, MATERIAIS E UTENSÍLIOS","AQUISIÇÃO DE MATERIAL DE ESTOCAGEM/SACARIA"]
["AGRÍCOLA","MÁQUINAS, EQUIPAMENTOS, MATERIAIS E UTENSÍLIOS","AQUISIÇÃO DE MOTORES E ELEVADORES"]
["AGRÍCOLA","MÁQUINAS, EQUIPAMENTOS, MATERIAIS E UTENSÍLIOS","COLHEITADEIRAS, COLHEDEIRAS E ARRANCADEIRAS"]
["AGRÍCOLA","MÁQUINAS, EQUIPAMENTOS, MATERIAIS E UTENSÍLIOS","CONSTRUÇÃO/RECUPERAÇÃO BARRAGEM/TANQUE, SISTEMAS CAPTAÇÃO DE ÁGUA"]
["AGRÍCOLA","MÁQUINAS, EQUIPAMENTOS, MATERIAIS E UTENSÍLIOS","DESPOLPADOR"]
["AGRÍCOLA","MÁQUINAS, EQUIPAMENTOS, MATERIAIS E UTENSÍLIOS","EQUIPAMENTOS E UTENSILIOS PARA AGRICULTURA DE PRECISÃO"]
["AGRÍCOLA","MÁQUINAS, EQUIPAMENTOS, MATERIAIS E UTENSÍLIOS","ESTUFAS/VIVEIROS (ILUMIN. ARTIFICIAL, MUDAS, SEMENTES, SACOS, TALAGARÇAS, BANDEJAS, VASOS)"]
["AGRÍCOLA","MÁQUINAS, EQUIPAMENTOS, MATERIAIS E UTENSÍLIOS","IMPLANTAÇÃO DE TECNOLOGIAS DE ENERGIA RENOVÁVEL, AMBIENTAL E PEQUENAS APLICAÇÕES HIDROENERGÉTICAS"]
["AGRÍCOLA","MÁQUINAS, EQUIPAMENTOS, MATERIAIS E UTENSÍLIOS","INSTALAÇÃO/MONTAGEM/TRANSPORTE DE EQUIPAMENTO(S)"]
["AGRÍCOLA","MÁQUINAS, EQUIPAMENTOS, MATERIAIS E UTENSÍLIOS","INSTALAÇÕES PARA INDUSTRIALIZAÇÃO E BENEFICIAMENTO"]
["AGRÍCOLA","MÁQUINAS, EQUIPAMENTOS, MATERIAIS E UTENSÍLIOS","IRRIGAÇÃO"]
["AGRÍCOLA","MÁQUINAS, EQUIPAMENTOS, MATERIAIS E UTENSÍLIOS","IRRIGAÇÃO/LIXIVIAÇÃO (GOTEJADOR, ASPERSOR, NEBULIZADOR, EXAUSTOR, VENTILADOR, MANGUEIRAS, CANAIS ET)"]
["AGRÍCOLA","MÁQUINAS, EQUIPAMENTOS, MATERIAIS E UTENSÍLIOS","MÁQUINAS E IMPLEMENTOS"]
["AGRÍCOLA","MÁQUINAS, EQUIPAMENTOS, MATERIAIS E UTENSÍLIOS","REBOQUES, SEMIREBOQUES, CAÇAMBAS E CABINES"]
["AGRÍCOLA","MÁQUINAS, EQUIPAMENTOS, MATERIAIS E UTENSÍLIOS","REFORMAS  DE  MÁQUINAS, APARELHOS, EQUIPAMENTOS  E VEÍCULOS, COMPRA DE PECAS E ACESSRIOS"]
["AGRÍCOLA","MÁQUINAS, EQUIPAMENTOS, MATERIAIS E UTENSÍLIOS","SECADOR"]
["AGRÍCOLA","MÁQUINAS, EQUIPAMENTOS, MATERIAIS E UTENSÍLIOS","TERREIROS"]
["AGRÍCOLA","MÁQUINAS, EQUIPAMENTOS, MATERIAIS E UTENSÍLIOS","TRATOR"]
["PECUÁRIA","MÁQUINAS, EQUIPAMENTOS, MATERIAIS E UTENSÍLIOS","MÁQUINAS, APARELHOS E INSTRUMENTOS"]
["PECUÁRIA","MÁQUINAS, EQUIPAMENTOS, MATERIAIS E UTENSÍLIOS","COLHEITADEIRAS, COLHEDEIRAS E ARRANCADEIRAS"]
["PECUÁRIA","MÁQUINAS, EQUIPAMENTOS, MATERIAIS E UTENSÍLIOS","MÁQUINAS, APARELHOS E INSTRUMENTOS"]
["PECUÁRIA","MÁQUINAS, EQUIPAMENTOS, MATERIAIS E UTENSÍLIOS","AQUISIÇÃO DE UTENSÍLIOS DOMÉSTICOS PARA USO EM MEIO RURAL"]
["PECUÁRIA","MÁQUINAS, EQUIPAMENTOS, MATERIAIS E UTENSÍLIOS","COLHEITADEIRAS, COLHEDEIRAS E ARRANCADEIRAS"]
["PECUÁRIA","MÁQUINAS, EQUIPAMENTOS, MATERIAIS E UTENSÍLIOS","IMPLANTAÇÃO DE TECNOLOGIAS DE ENERGIA RENOVÁVEL, AMBIENTAL E PEQUENAS APLICAÇÕES HIDROENERGÉTICAS"]
["PECUÁRIA","MÁQUINAS, EQUIPAMENTOS, MATERIAIS E UTENSÍLIOS","MÁQUINAS, APARELHOS E INSTRUMENTOS"]
["PECUÁRIA","MÁQUINAS, EQUIPAMENTOS, MATERIAIS E UTENSÍLIOS","OUTRO (NÃO LISTADO)"]
["PECUÁRIA","MÁQUINAS, EQUIPAMENTOS, MATERIAIS E UTENSÍLIOS","OUTRO (NÃO LISTADO)"]
["PECUÁRIA","MÁQUINAS, EQUIPAMENTOS, MATERIAIS E UTENSÍLIOS","OUTRO (NÃO LISTADO)"]
["AGRÍCOLA","MÁQUINAS, EQUIPAMENTOS, MATERIAIS E UTENSÍLIOS","OUTRO (NÃO LISTADO)"]
["AGRÍCOLA","MELHORAMENTO DAS EXPLORAÇÕES","ARMAZÉM, DEPÓSITO, SILO, GALPÃO, PAIOL, ESTUFA E INSTALAÇÕES CONGÊNERES"]
["AGRÍCOLA","MELHORAMENTO DAS EXPLORAÇÕES","ADUBAÇÃO INTENSIVA DO SOLO"]
["AGRÍCOLA","MELHORAMENTO DAS EXPLORAÇÕES","ARMAZÉM"]
["AGRÍCOLA","MELHORAMENTO DAS EXPLORAÇÕES","ELETRIFICAÇÃO RURAL"]
["AGRÍCOLA","MELHORAMENTO DAS EXPLORAÇÕES","INSTALAÇÕES PARA INDUSTRIALIZAÇÃO E BENEFICIAMENTO"]
["AGRÍCOLA","MELHORAMENTO DAS EXPLORAÇÕES","IRRIGAÇÃO"]
["AGRÍCOLA","MELHORAMENTO DAS EXPLORAÇÕES","LAGO ARTIFICIAL, TANQUE, BARREIROS, CANAIS, RESERV.ÁGUA POTAVEL"]
["AGRÍCOLA","MELHORAMENTO DAS EXPLORAÇÕES","MÁQUINAS, APARELHOS E INSTRUMENTOS PARA PROCESSAMENTO E BENEFICIAMENTO  DE  PRODUTOS"]
["AGRÍCOLA","MELHORAMENTO DAS EXPLORAÇÕES","POÇO, AÇUDE, BARRAGEM, LAGO ARTIFICIAL, CISTERNA, TANQUE, BARREIROS, CANAIS, RESERV.ÁGUA POTAVEL ETC"]
["AGRÍCOLA","MELHORAMENTO DAS EXPLORAÇÕES","TERREIROS"]
["PECUÁRIA","MELHORAMENTO DAS EXPLORAÇÕES","CONSTRUÇÃO E REFORMA DE EDIFICAÇÕES RURAIS, TERRAÇOS, PORTEIRAS, MATA-BURROS, CURRAIS, COCHOS,CERCAS"]
["PECUÁRIA","MELHORAMENTO DAS EXPLORAÇÕES","PASTAGEM"]
["PECUÁRIA","MELHORAMENTO DAS EXPLORAÇÕES","TERRAÇOS, PORTEIRAS, MATA-BURROS, CURRAIS, COCHOS, CERCAS"]
["PECUÁRIA","MELHORAMENTO DAS EXPLORAÇÕES","OUTRO (NÃO LISTADO)"]
["AGRÍCOLA","MELHORAMENTO DAS EXPLORAÇÕES","OUTRO (NÃO LISTADO)"]
["AGRÍCOLA","OUTRA MODALIDADE","OUTRO (NÃO LISTADO)"]
["PECUÁRIA","OUTRA MODALIDADE","OUTRO (NÃO LISTADO)"]
["PECUÁRIA","PASTAGEM","PASTAGEM"]
["PECUÁRIA","PASTAGEM","OUTRO (NÃO LISTADO)"]

{"sheet":"LISTA_INVESTIMENTO (2)","index":17,"n_rows":25,"n_cols":18,"rows_kept":25,"cut":false,"hidden":true,"merged":[]}
["AGRÍCOLA","AQUISIÇÃO DE VEÍCULOS","FORMAÇÃO DE CULTURAS PERENES","MÁQUINAS, EQUIPAMENTOS, MATERIAIS E UTENSÍLIOS","MELHORAMENTO DAS EXPLORAÇÕES","OUTRA MODALIDADE","AQUISIÇÃO DE VEÍCULOS","LISTA_1",null,"PECUÁRIA","AQUISIÇÃO DE ANIMAIS","AQUISIÇÃO DE VEÍCULOS","MÁQUINAS, EQUIPAMENTOS, MATERIAIS E UTENSÍLIOS","MELHORAMENTO DAS EXPLORAÇÕES","OUTRA MODALIDADE","PASTAGEM","AQUISIÇÃO DE ANIMAIS","LISTA_6"]
["SELECIONADO","AQUISIÇÃO DE EMPILHADEIRA(S)/TOMBADORA(S)","ABACATE","AQUISIÇÃO DE CAIXAS D'ÁGUA, LONAS, TOLDOS, CAMPÂNULAS","ADUBAÇÃO INTENSIVA DO SOLO","OUTRO (NÃO LISTADO)","FORMAÇÃO DE CULTURAS PERENES","LISTA_2",null,"SELECIONADO","BOVINOS","AQUISIÇÃO DE EMPILHADEIRA(S)/TOMBADORA(S)","AQUISIÇÃO DE CAIXAS D'ÁGUA, LONAS, TOLDOS, CAMPÂNULAS","ADUBAÇÃO INTENSIVA DO SOLO","OUTRO (NÃO LISTADO)","OUTRO (NÃO LISTADO)","AQUISIÇÃO DE VEÍCULOS","LISTA_7"]
[{"$f":"IF(ATIVIDADE_EMP=\"AGRÍCOLA\",VLOOKUP(MODALIDADE_EMP,'LISTA_INVESTIMENTO (2)'!G:H,2,0),VLOOKUP(MODALIDADE_EMP,'LISTA_INVESTIMENTO (2)'!Q:R,2,0))","v":{"$error":"#N/A"}},"CAMINHÕES","CAFÉ","AQUISIÇÃO DE EQUIPAMENTOS PARA MOLDAGEM, TORNOS, MOINHOS E PRENSA","ARMAZÉM",null,"MÁQUINAS, EQUIPAMENTOS, MATERIAIS E UTENSÍLIOS","LISTA_3",null,{"$f":"VLOOKUP(MODALIDADE_EMP,'LISTA_INVESTIMENTO (2)'!Q:R,2,0)","v":{"$error":"#N/A"}},"OUTRO (NÃO LISTADO)","CAMINHÕES","AQUISIÇÃO DE EQUIPAMENTOS PARA MOLDAGEM, TORNOS, MOINHOS E PRENSA","ARMAZÉM",null,"PASTAGEM","MÁQUINAS, EQUIPAMENTOS, MATERIAIS E UTENSÍLIOS","LISTA_8"]
[null,"CAMIONETAS","MANGA","AQUISIÇÃO DE MAQUINA(S)/EQUIPAMENTO(S) PARA EXTRAÇÃO/FABRICAÇÃO","ARMAZÉM, DEPÓSITO, SILO, GALPÃO, PAIOL, ESTUFA E INSTALAÇÕES CONGÊNERES",null,"MELHORAMENTO DAS EXPLORAÇÕES","LISTA_4",null,null,null,"CAMIONETAS","AQUISIÇÃO DE MAQUINA(S)/EQUIPAMENTO(S) PARA EXTRAÇÃO/FABRICAÇÃO","ARMAZÉM, DEPÓSITO, SILO, GALPÃO, PAIOL, ESTUFA E INSTALAÇÕES CONGÊNERES",null,null,"MELHORAMENTO DAS EXPLORAÇÕES","LISTA_9"]
[null,"CARRETAS, CARROÇAS E VAGÕES DE CARGA, FORRAGEIROS E DEMAIS","OUTRO (NÃO LISTADO)","AQUISIÇÃO DE MATERIAL DE ESTOCAGEM/SACARIA","CONSTRUÇÃO E REFORMA DE EDIFICAÇÕES RURAIS, TERRAÇOS, PORTEIRAS, MATA-BURROS, CURRAIS, COCHOS,CERCAS",null,"OUTRA MODALIDADE","LISTA_5",null,null,null,"CARRETAS, CARROÇAS E VAGÕES DE CARGA, FORRAGEIROS E DEMAIS","AQUISIÇÃO DE MATERIAL DE ESTOCAGEM/SACARIA","CONSTRUÇÃO E REFORMA DE EDIFICAÇÕES RURAIS, TERRAÇOS, PORTEIRAS, MATA-BURROS, CURRAIS, COCHOS,CERCAS",null,null,"OUTRA MODALIDADE","LISTA_10"]
[null,"JIPES, FURGÕES E SEMELHANTES","UVA","AQUISIÇÃO DE MOTORES E ELEVADORES","ELETRIFICAÇÃO RURAL",null,null,null,null,null,null,"JIPES, FURGÕES E SEMELHANTES","AQUISIÇÃO DE MOTORES E ELEVADORES","ELETRIFICAÇÃO RURAL",null,null,"PASTAGEM","LISTA_11"]
[null,"OUTRO (NÃO LISTADO)",null,"AQUISIÇÃO DE UTENSÍLIOS DOMÉSTICOS PARA USO EM MEIO RURAL","INSTALAÇÕES PARA INDUSTRIALIZAÇÃO E BENEFICIAMENTO",null,null,null,null,null,null,"OUTRO (NÃO LISTADO)","AQUISIÇÃO DE UTENSÍLIOS DOMÉSTICOS PARA USO EM MEIO RURAL","INSTALAÇÕES PARA INDUSTRIALIZAÇÃO E BENEFICIAMENTO"]
[null,null,null,"COLHEITADEIRAS, COLHEDEIRAS E ARRANCADEIRAS","IRRIGAÇÃO",null,null,null,null,null,null,null,"COLHEITADEIRAS, COLHEDEIRAS E ARRANCADEIRAS","IRRIGAÇÃO"]
[null,null,null,"CONSTRUÇÃO/RECUPERAÇÃO BARRAGEM/TANQUE, SISTEMAS CAPTAÇÃO DE ÁGUA","LAGO ARTIFICIAL, TANQUE, BARREIROS, CANAIS, RESERV.ÁGUA POTAVEL",null,null,null,null,null,null,null,"CONSTRUÇÃO/RECUPERAÇÃO BARRAGEM/TANQUE, SISTEMAS CAPTAÇÃO DE ÁGUA","LAGO ARTIFICIAL, TANQUE, BARREIROS, CANAIS, RESERV.ÁGUA POTAVEL"]
[null,null,null,"DESPOLPADOR","MÁQUINAS, APARELHOS E INSTRUMENTOS PARA PROCESSAMENTO E BENEFICIAMENTO  DE  PRODUTOS",null,null,null,null,null,null,null,"DESPOLPADOR","MÁQUINAS, APARELHOS E INSTRUMENTOS PARA PROCESSAMENTO E BENEFICIAMENTO  DE  PRODUTOS"]
[null,null,null,"EQUIPAMENTOS E UTENSILIOS PARA AGRICULTURA DE PRECISÃO","OUTRO (NÃO LISTADO)",null,null,null,null,null,null,null,"EQUIPAMENTOS E UTENSILIOS PARA AGRICULTURA DE PRECISÃO","OUTRO (NÃO LISTADO)"]
[null,null,null,"ESTUFAS/VIVEIROS (ILUMIN. ARTIFICIAL, MUDAS, SEMENTES, SACOS, TALAGARÇAS, BANDEJAS, VASOS)","PASTAGEM",null,null,null,null,null,null,null,"ESTUFAS/VIVEIROS (ILUMIN. ARTIFICIAL, MUDAS, SEMENTES, SACOS, TALAGARÇAS, BANDEJAS, VASOS)","PASTAGEM"]
[null,null,null,"IMPLANTAÇÃO DE TECNOLOGIAS DE ENERGIA RENOVÁVEL, AMBIENTAL E PEQUENAS APLICAÇÕES HIDROENERGÉTICAS","POÇO, AÇUDE, BARRAGEM, LAGO ARTIFICIAL, CISTERNA, TANQUE, BARREIROS, CANAIS, RESERV.ÁGUA POTAVEL ETC",null,null,null,null,null,null,null,"IMPLANTAÇÃO DE TECNOLOGIAS DE ENERGIA RENOVÁVEL, AMBIENTAL E PEQUENAS APLICAÇÕES HIDROENERGÉTICAS","POÇO, AÇUDE, BARRAGEM, LAGO ARTIFICIAL, CISTERNA, TANQUE, BARREIROS, CANAIS, RESERV.ÁGUA POTAVEL ETC"]
[null,null,null,"INSTALAÇÃO/MONTAGEM/TRANSPORTE DE EQUIPAMENTO(S)","TERRAÇOS, PORTEIRAS, MATA-BURROS, CURRAIS, COCHOS, CERCAS",null,null,null,null,null,null,null,"INSTALAÇÃO/MONTAGEM/TRANSPORTE DE EQUIPAMENTO(S)","TERRAÇOS, PORTEIRAS, MATA-BURROS, CURRAIS, COCHOS, CERCAS"]
[null,null,null,"INSTALAÇÕES PARA INDUSTRIALIZAÇÃO E BENEFICIAMENTO","TERREIROS",null,null,null,null,null,null,null,"INSTALAÇÕES PARA INDUSTRIALIZAÇÃO E BENEFICIAMENTO","TERREIROS"]
[null,null,null,"IRRIGAÇÃO",null,null,null,null,null,null,null,null,"IRRIGAÇÃO"]
[null,null,null,"IRRIGAÇÃO/LIXIVIAÇÃO (GOTEJADOR, ASPERSOR, NEBULIZADOR, EXAUSTOR, VENTILADOR, MANGUEIRAS, CANAIS ET)",null,null,null,null,null,null,null,null,"IRRIGAÇÃO/LIXIVIAÇÃO (GOTEJADOR, ASPERSOR, NEBULIZADOR, EXAUSTOR, VENTILADOR, MANGUEIRAS, CANAIS ET)"]
[null,null,null,"MÁQUINAS E IMPLEMENTOS",null,null,null,null,null,null,null,null,"MÁQUINAS E IMPLEMENTOS"]
[null,null,null,"MÁQUINAS, APARELHOS E INSTRUMENTOS",null,null,null,null,null,null,null,null,"MÁQUINAS, APARELHOS E INSTRUMENTOS"]
[null,null,null,"OUTRO (NÃO LISTADO)",null,null,null,null,null,null,null,null,"OUTRO (NÃO LISTADO)"]
[null,null,null,"REBOQUES, SEMIREBOQUES, CAÇAMBAS E CABINES",null,null,null,null,null,null,null,null,"REBOQUES, SEMIREBOQUES, CAÇAMBAS E CABINES"]
[null,null,null,"REFORMAS  DE  MÁQUINAS, APARELHOS, EQUIPAMENTOS  E VEÍCULOS, COMPRA DE PECAS E ACESSRIOS",null,null,null,null,null,null,null,null,"REFORMAS  DE  MÁQUINAS, APARELHOS, EQUIPAMENTOS  E VEÍCULOS, COMPRA DE PECAS E ACESSRIOS"]
[null,null,null,"SECADOR",null,null,null,null,null,null,null,null,"SECADOR"]
[null,null,null,"TERREIROS",null,null,null,null,null,null,null,null,"TERREIROS"]
[null,null,null,"TRATOR",null,null,null,null,null,null,null,null,"TRATOR"]